Workbook

Sheet pob Distrito (hidden)
B1: GERENCIA REGIONAL DE SALUD LA LIBERTAD
B2: Oficina de Estadística e Informática
AL3: GRUPOS ESPECIALES
B4: Ubigeo | C4: Provincia | D4: TOTAL | E4: POBLACION POR EDADES SIMPLES | Y4: POBLACIÓN TOTAL POR GRUPOS QUINQUENALES | AL4: NACIMIENTO | AM4: EDADES ESPECIALES | AP4: POBLACION FEMENINA | AQ4: POBLACION FEMENINA | AT4: GESTANTES ESPERADAS
E5: 0a | F5: 1a | G5: 2a | H5: 3a | I5: 4a | J5: 5a | K5: 6a | L5: 7a | M5: 8a | N5: 9a | O5: 10a | P5: 11a | Q5: 12a | R5: 13a | S5: 14a | T5: 15a | U5: 16a | V5: 17a | W5: 18a | X5: 19a | Y5: 20-24a | Z5: 25-29a | AA5: 30-34a | AB5: 35-39a | AC5: 40-44a | AD5: 45-49a | AE5: 50-54a | AF5: 55-59a | AG5: 60-64a | AH5: 65-69a | AI5: 70-74a | AJ5: 75-79a | AK5: 80- 84a | AM5: 28 d | AN5: 0m - 5m | AO5: 6m - 11m | AQ5: 10-14a | AR5: 15-19a | AS5: 20-49a
C6: REGIÓN | D6: =SUM(E6:AK6) -> 2048492 | E6: =+SUM(E7:E18) -> 38263 | F6: =+SUM(F7:F18) -> 37862 | G6: 37472 | H6: 37435 | I6: 37595 | J6: 32605 | K6: 32814 | L6: 33081 | M6: 33369 | N6: 33713 | O6: 32052 | P6: 32468 | Q6: 32737 | R6: 32739 | S6: 32619 | T6: 28853 | U6: 28889 | V6: 28778 | W6: 28406 | X6: 28009 | Y6: 164110 | Z6: 169786 | AA6: 169111 | AB6: 158923 | AC6: 139177 | AD6: 116459 | AE6: 108920 | AF6: 94580 | AG6: 76928 | AH6: 64004 | AI6: 48150 | AJ6: 35449 | AK6: 43136 | AL6: 34903 | AM6: 2532 | AN6: 21413 | AO6: 14302 | AP6: 1032621 | AQ6: 82164 | AR6: 75364 | AS6: 463796 | AT6: 46389
B7: 130100 | C7: TRUJILLO | D7: 1046630 | E7: 15587 | F7: 15206 | G7: 14938 | H7: 14776 | I7: 14675 | J7: 12681 | K7: 12761 | L7: 12870 | M7: 13075 | N7: 13338 | O7: 12833 | P7: 13134 | Q7: 13574 | R7: 14200 | S7: 14945 | T7: 13900 | U7: 14635 | V7: 15124 | W7: 15300 | X7: 15254 | Y7: 90413 | Z7: 94094 | AA7: 93241 | AB7: 84326 | AC7: 78061 | AD7: 66790 | AE7: 61867 | AF7: 55193 | AG7: 39685 | AH7: 33445 | AI7: 24625 | AJ7: 19072 | AK7: 23012 | AL7: 14053 | AM7: 1082 | AN7: 7366 | AO7: 6735 | AP7: 527781 | AQ7: 32186 | AR7: 37654 | AS7: 253835 | AT7: 19481
B8: 130200 | C8: ASCOPE | D8: 133069 | E8: 2180 | F8: 2038 | G8: 1967 | H8: 1949 | I8: 2003 | J8: 1749 | K8: 1804 | L8: 1860 | M8: 1895 | N8: 1961 | O8: 1891 | P8: 1965 | Q8: 2009 | R8: 1965 | S8: 1882 | T8: 1619 | U8: 1561 | V8: 1526 | W8: 1510 | X8: 1513 | Y8: 9233 | Z8: 10571 | AA8: 10495 | AB8: 11132 | AC8: 10359 | AD8: 9165 | AE8: 8409 | AF8: 6848 | AG8: 6864 | AH8: 4929 | AI8: 3637 | AJ8: 1849 | AK8: 2731 | AL8: 1965 | AM8: 132 | AN8: 1362 | AO8: 710 | AP8: 65803 | AQ8: 4833 | AR8: 3995 | AS8: 31369 | AT8: 2700
B9: 130300 | C9: BOLIVAR | D9: 18743 | E9: 417 | F9: 479 | G9: 503 | H9: 537 | I9: 540 | J9: 485 | K9: 487 | L9: 483 | M9: 483 | N9: 471 | O9: 437 | P9: 439 | Q9: 426 | R9: 389 | S9: 342 | T9: 269 | U9: 227 | V9: 204 | W9: 181 | X9: 179 | Y9: 1090 | Z9: 1322 | AA9: 1476 | AB9: 1265 | AC9: 1242 | AD9: 791 | AE9: 585 | AF9: 744 | AG9: 399 | AH9: 362 | AI9: 744 | AJ9: 360 | AK9: 385 | AL9: 422 | AM9: 31 | AN9: 239 | AO9: 148 | AP9: 9671 | AQ9: 1058 | AR9: 504 | AS9: 3552 | AT9: 574
B10: 130400 | C10: CHEPÉN | D10: 95293 | E10: 1762 | F10: 1658 | G10: 1596 | H10: 1580 | I10: 1600 | J10: 1403 | K10: 1433 | L10: 1470 | M10: 1525 | N10: 1556 | O10: 1511 | P10: 1575 | Q10: 1602 | R10: 1556 | S10: 1487 | T10: 1252 | U10: 1193 | V10: 1159 | W10: 1146 | X10: 1167 | Y10: 7157 | Z10: 7708 | AA10: 8725 | AB10: 9044 | AC10: 7441 | AD10: 5412 | AE10: 4933 | AF10: 3846 | AG10: 3896 | AH10: 2780 | AI10: 2270 | AJ10: 1376 | AK10: 1474 | AL10: 1701 | AM10: 110 | AN10: 943 | AO10: 655 | AP10: 48480 | AQ10: 3857 | AR10: 3144 | AS10: 24093 | AT10: 1990
B11: 130500 | C11: JULCÁN | D11: 34195 | E11: 876 | F11: 895 | G11: 905 | H11: 913 | I11: 921 | J11: 804 | K11: 800 | L11: 800 | M11: 787 | N11: 771 | O11: 713 | P11: 704 | Q11: 682 | R11: 644 | S11: 580 | T11: 475 | U11: 426 | V11: 402 | W11: 394 | X11: 405 | Y11: 2549 | Z11: 2520 | AA11: 2504 | AB11: 2438 | AC11: 1834 | AD11: 1745 | AE11: 1655 | AF11: 1120 | AG11: 953 | AH11: 991 | AI11: 706 | AJ11: 422 | AK11: 861 | AL11: 862 | AM11: 57 | AN11: 543 | AO11: 279 | AP11: 17721 | AQ11: 1689 | AR11: 970 | AS11: 6721 | AT11: 1026
B12: 130600 | C12: OTUZCO | D12: 100912 | E12: 1996 | F12: 2157 | G12: 2224 | H12: 2313 | I12: 2361 | J12: 2080 | K12: 2100 | L12: 2106 | M12: 2092 | N12: 2090 | O12: 1932 | P12: 1930 | Q12: 1875 | R12: 1777 | S12: 1651 | T12: 1362 | U12: 1250 | V12: 1188 | W12: 1172 | X12: 1187 | Y12: 7407 | Z12: 7024 | AA12: 7636 | AB12: 7046 | AC12: 5578 | AD12: 5051 | AE12: 4558 | AF12: 4735 | AG12: 3478 | AH12: 4018 | AI12: 2172 | AJ12: 2588 | AK12: 2778 | AL12: 1865 | AM12: 169 | AN12: 1102 | AO12: 742 | AP12: 50684 | AQ12: 4630 | AR12: 3158 | AS12: 19937 | AT12: 2529
B13: 130701 | C13: PACASMAYO | D13: 113683 | E13: 2051 | F13: 1914 | G13: 1797 | H13: 1739 | I13: 1729 | J13: 1508 | K13: 1543 | L13: 1591 | M13: 1660 | N13: 1726 | O13: 1709 | P13: 1804 | Q13: 1850 | R13: 1847 | S13: 1792 | T13: 1552 | U13: 1538 | V13: 1505 | W13: 1447 | X13: 1385 | Y13: 7893 | Z13: 9960 | AA13: 10313 | AB13: 10132 | AC13: 8497 | AD13: 7619 | AE13: 6396 | AF13: 5443 | AG13: 3806 | AH13: 3489 | AI13: 2829 | AJ13: 1761 | AK13: 1858 | AL13: 1941 | AM13: 139 | AN13: 1015 | AO13: 838 | AP13: 55237 | AQ13: 4483 | AR13: 3850 | AS13: 29706 | AT13: 2404
B14: 130800 | C14: PATAZ | D14: 106831 | E14: 3306 | F14: 3323 | G14: 3310 | H14: 3323 | I14: 3382 | J14: 2944 | K14: 2983 | L14: 3028 | M14: 3057 | N14: 3093 | O14: 2920 | P14: 2917 | Q14: 2867 | R14: 2695 | S14: 2473 | T14: 1993 | U14: 1804 | V14: 1586 | W14: 1356 | X14: 1177 | Y14: 5970 | Z14: 6301 | AA14: 6215 | AB14: 5647 | AC14: 3926 | AD14: 3666 | AE14: 3662 | AF14: 2765 | AG14: 4234 | AH14: 3919 | AI14: 2848 | AJ14: 1781 | AK14: 2360 | AL14: 2684 | AM14: 159 | AN14: 3092 | AO14: 632 | AP14: 55644 | AQ14: 9402 | AR14: 5485 | AS14: 14439 | AT14: 3801
B15: 130900 | C15: SÁNCHEZ CARRIÓN | D15: 168639 | E15: 3725 | F15: 3939 | G15: 4102 | H15: 4220 | I15: 4320 | J15: 3761 | K15: 3779 | L15: 3772 | M15: 3760 | N15: 3715 | O15: 3440 | P15: 3378 | Q15: 3295 | R15: 3174 | S15: 3044 | T15: 2574 | U15: 2449 | V15: 2346 | W15: 2304 | X15: 2301 | Y15: 13476 | Z15: 12413 | AA15: 12767 | AB15: 12411 | AC15: 9345 | AD15: 6521 | AE15: 7664 | AF15: 6037 | AG15: 6557 | AH15: 4204 | AI15: 3511 | AJ15: 2885 | AK15: 3450 | AL15: 3243 | AM15: 282 | AN15: 1730 | AO15: 1626 | AP15: 83238 | AQ15: 7630 | AR15: 6194 | AS15: 34759 | AT15: 5161
B16: 131000 | C16: SANTIAGO DE CHUCO | D16: 69755 | E16: 1463 | F16: 1653 | G16: 1797 | H16: 1929 | I16: 2029 | J16: 1793 | K16: 1783 | L16: 1772 | M16: 1716 | N16: 1660 | O16: 1505 | P16: 1426 | Q16: 1361 | R16: 1314 | S16: 1272 | T16: 1110 | U16: 1090 | V16: 1074 | W16: 996 | X16: 900 | Y16: 4476 | Z16: 3896 | AA16: 4015 | AB16: 4382 | AC16: 3273 | AD16: 2746 | AE16: 3086 | AF16: 2722 | AG16: 2967 | AH16: 2676 | AI16: 2013 | AJ16: 1822 | AK16: 2038 | AL16: 1312 | AM16: 102 | AN16: 931 | AO16: 462 | AP16: 35546 | AQ16: 3610 | AR16: 2970 | AS16: 11003 | AT16: 1936
B17: 131100 | C17: GRAN CHIMÚ | D17: 35076 | E17: 774 | F17: 872 | G17: 937 | H17: 986 | I17: 1032 | J17: 908 | K17: 911 | L17: 913 | M17: 897 | N17: 888 | O17: 808 | P17: 774 | Q17: 730 | R17: 700 | S17: 673 | T17: 567 | U17: 537 | V17: 496 | W17: 445 | X17: 389 | Y17: 1821 | Z17: 2076 | AA17: 2174 | AB17: 2090 | AC17: 2033 | AD17: 1868 | AE17: 1351 | AF17: 1207 | AG17: 1184 | AH17: 1129 | AI17: 1165 | AJ17: 540 | AK17: 1201 | AL17: 746 | AM17: 55 | AN17: 462 | AO17: 254 | AP17: 18305 | AQ17: 2138 | AR17: 1376 | AS17: 5679 | AT17: 885
B18: 131200 | C18: VIRÚ | D18: 125666 | E18: 4126 | F18: 3728 | G18: 3396 | H18: 3170 | I18: 3003 | J18: 2489 | K18: 2430 | L18: 2416 | M18: 2422 | N18: 2444 | O18: 2353 | P18: 2422 | Q18: 2466 | R18: 2478 | S18: 2478 | T18: 2180 | U18: 2179 | V18: 2168 | W18: 2155 | X18: 2152 | Y18: 12625 | Z18: 11901 | AA18: 9550 | AB18: 9010 | AC18: 7588 | AD18: 5085 | AE18: 4754 | AF18: 3920 | AG18: 2905 | AH18: 2062 | AI18: 1630 | AJ18: 993 | AK18: 988 | AL18: 4109 | AM18: 214 | AN18: 2628 | AO18: 1221 | AP18: 64511 | AQ18: 6648 | AR18: 6064 | AS18: 28703 | AT18: 3902

Sheet x Distritos
B1: GERENCIA REGIONAL DE SALUD LA LIBERTAD
B2: Oficina de Estadística e Informática | K2: POBLACION ESTIMADA POR EDADES SIMPLES, GRUPOS DE EDAD y GÉNERO, SEGÚN PROVINCIA, DISTRITO Y ESTABLECIMIENTOS DE SALUD 2021
AP3: GRUPOS ESPECIALES
B4: N° | C4: Ubigeo | D4: Provincia / Distrito | E4: Cód RENAES | F4: Clasificación | G4: Establecimiento de Salud | H4: TOTAL | I4: POBLACION POR EDADES SIMPLES | AC4: POBLACIÓN TOTAL POR GRUPOS QUINQUENALES | AP4: NACIMIENTO | AQ4: EDADES ESPECIALES | AT4: GESTANTES ESPERADAS
I5: 0a | J5: 1a | K5: 2a | L5: 3a | M5: 4a | N5: 5a | O5: 6a | P5: 7a | Q5: 8a | R5: 9a | S5: 10a | T5: 11a | U5: 12a | V5: 13a | W5: 14a | X5: 15a | Y5: 16a | Z5: 17a | AA5: 18a | AB5: 19a | AC5: 20-24a | AD5: 25-29a | AE5: 30-34a | AF5: 35-39a | AG5: 40-44a | AH5: 45-49a | AI5: 50-54a | AJ5: 55-59a | AK5: 60-64a | AL5: 65-69a | AM5: 70-74a | AN5: 75-79a | AO5: 80- 84a | AQ5: 28 d | AR5: 0m - 5m | AS5: 6m - 11m
C6: 130000 | D6: LA LIBERTAD | H6: =SUM(I6:AO6) -> 2048492 | I6: =+I7+I79+I102+I117+I128+I155+I214+I231+I281+I330+I368+I389 -> 38263 | J6: =+J7+J79+J102+J117+J128+J155+J214+J231+J281+J330+J368+J389 -> 37862 | K6: =+K7+K79+K102+K117+K128+K155+K214+K231+K281+K330+K368+K389 -> 37472 | L6: 37435 | M6: =+M7+M79+M102+M117+M128+M155+M214+M231+M281+M330+M368+M389 -> 37595 | N6: 32605 | O6: 32814 | P6: 33081 | Q6: 33369 | R6: 33713 | S6: 32052 | T6: 32468 | U6: 32737 | V6: 32739 | W6: 32619 | X6: 28853 | Y6: 28889 | Z6: 28778 | AA6: 28406 | AB6: 28009 | AC6: 164110 | AD6: 169786 | AE6: 169111 | AF6: 158923 | AG6: 139177 | AH6: 116459 | AI6: 108920 | AJ6: 94580 | AK6: 76928 | AL6: 64004 | AM6: 48150 | AN6: 35449 | AO6: 43136 | AP6: =+AP7+AP79+AP102+AP117+AP128+AP155+AP214+AP231+AP281+AP330+AP368+AP389 -> 34903 | AQ6: 2532 | AR6: 21413 | AS6: 14302 | AT6: 46389
C7: 130100 | D7: TRUJILLO (1) | H7: =SUM(I7:AO7) -> 1046630 | I7: =+I8+I22+I34+I39+I47+I55+I59+I66+I68+I71+I73 -> 15587 | J7: =+J8+J22+J34+J39+J47+J55+J59+J66+J68+J71+J73 -> 15206 | K7: 14938 | L7: 14776 | M7: 14675 | N7: 12681 | O7: 12761 | P7: 12870 | Q7: 13075 | R7: 13338 | S7: 12833 | T7: 13134 | U7: 13574 | V7: 14200 | W7: 14945 | X7: 13900 | Y7: 14635 | Z7: 15124 | AA7: 15300 | AB7: 15254 | AC7: 90413 | AD7: 94094 | AE7: 93241 | AF7: 84326 | AG7: 78061 | AH7: 66790 | AI7: 61867 | AJ7: 55193 | AK7: 39685 | AL7: 33445 | AM7: 24625 | AN7: 19072 | AO7: 23012 | AP7: =+AP8+AP22+AP34+AP39+AP47+AP55+AP59+AP66+AP68+AP71+AP73 -> 14053 | AQ7: 1082 | AR7: 7366 | AS7: 6735 | AT7: 19481
C8: 130101 | D8: TRUJILLO (1) | H8: 352204 | I8: =SUM(I11:I21) -> 3619 | J8: =SUM(J11:J21) -> 3633 | K8: 3664 | L8: 3654 | M8: 3608 | N8: 3134 | O8: 3155 | P8: 3158 | Q8: 3204 | R8: 3276 | S8: 3147 | T8: 3217 | U8: 3399 | V8: 3739 | W8: 4213 | X8: 4104 | Y8: 4552 | Z8: 4846 | AA8: 5002 | AB8: 5034 | AC8: 30219 | AD8: 30948 | AE8: 29774 | AF8: 27075 | AG8: 26822 | AH8: 24495 | AI8: 25025 | AJ8: 22052 | AK8: 16327 | AL8: 13787 | AM8: 10894 | AN8: 8892 | AO8: 10536 | AP8: 3126 | AQ8: 262 | AR8: 1611 | AS8: 1648 | AT8: 4865
B9: 1 | C9: 130101 | D9: TRUJILLO | E9: 00005195 | F9: HOSPITAL | G9: BELEN DE TRUJILLO
B10: 2 | C10: 130101 | D10: TRUJILLO | E10: 00005196 | F10: HOSPITAL | G10: REGIONAL DOCENTE DE TRUJILLO
B11: 3 | C11: 130101 | D11: TRUJILLO | E11: 00005204 | F11: HOSPITAL DE ESPECIALIDADES BÁSICAS | G11: LA NORIA | H11: 25134.1236 | I11: 258.2605345 | J11: 259.2596082 | K11: 261.4718427 | L11: 260.7582186 | M11: 257.4755481 | N11: 223.6497693 | O11: 225.1483798 | P11: 225.362467 | Q11: 228.6451375 | R11: 233.7832305 | S11: 224.5774806 | T11: 229.5728488 | U11: 242.560806 | V11: 266.8240228 | W11: 300.6498016 | X11: 292.8712997 | Y11: 324.8416561 | Z11: 345.8222024 | AA11: 356.9547372 | AB11: 359.238334 | AC11: 2156.50044 | AD11: 2208.523632 | AE11: 2124.744171 | AF11: 1932.137047 | AG11: 1914.082359 | AH11: 1748.022049 | AI11: 1785.844122 | AJ11: 1573.683699 | AK11: 1165.133945 | AL11: 983.8734429 | AM11: 777.4220125 | AN11: 634.5544828 | AO11: 751.8742724 | AP11: 223.0788701 | AQ11: 18.69694945 | AR11: 114.9648304 | AS11: 117.6052393 | AT11: 347.178088
B12: 4 | C12: 130101 | D12: TRUJILLO | E12: 00005202 | F12: CENTRO DE SALUD CON CAMAS DE INTERNAMIENTO | G12: EL BOSQUE | H12: 33718.04224 | I12: 346.4628309 | J12: 347.8031126 | K12: 350.7708793 | L12: 349.8135352 | M12: 345.4097524 | N12: 300.0316419 | O12: 302.0420645 | P12: 302.3292677 | Q12: 306.7330506 | R12: 313.6259281 | S12: 301.2761892 | T12: 307.9775979 | U12: 325.4012606 | V12: 357.9509601 | W12: 403.3290706 | X12: 392.8940199 | Y12: 435.7830357 | Z12: 463.9289523 | AA12: 478.8635203 | AB12: 481.9270214 | AC12: 2892.998145 | AD12: 2962.78853 | AE12: 2850.396332 | AF12: 2592.009159 | AG12: 2567.788353 | AH12: 2345.01438 | AI12: 2395.753618 | AJ12: 2111.135216 | AK12: 1563.055717 | AL12: 1319.890315 | AM12: 1042.930666 | AN12: 851.2703764 | AO12: 1008.657747 | AP12: 299.2657666 | AQ12: 25.0824155 | AR12: 154.228135 | AS12: 157.7703082 | AT12: 465.7479061
B13: 5 | C13: 130101 | D13: TRUJILLO | E13: 00005201 | F13: CENTRO DE SALUD | G13: ARANJUEZ | H13: 20873.80708 | I13: 214.4845255 | J13: 215.3142529 | K13: 217.1515064 | L13: 216.558844 | M13: 213.8325969 | N13: 185.7403987 | O13: 186.9849898 | P13: 187.1627885 | Q13: 189.8890356 | R13: 194.1562049 | S13: 186.5108599 | T13: 190.6594967 | U13: 201.4459525 | V13: 221.5964744 | W13: 249.6886726 | X13: 243.2286523 | Y13: 269.7799282 | Z13: 287.204203 | AA13: 296.4497366 | AB13: 298.3462563 | AC13: 1790.966531 | AD13: 1834.171621 | AE13: 1764.593054 | AF13: 1604.63347 | AG13: 1589.639111 | AH13: 1451.726569 | AI13: 1483.137676 | AJ13: 1306.939143 | AK13: 967.6399138 | AL13: 817.1036622 | AM13: 645.6464275 | AN13: 526.9954134 | AO13: 624.4291133 | AP13: 185.2662688 | AQ13: 15.52775509 | AR13: 95.47791396 | AS13: 97.67076487 | AT13: 288.3302616
B14: 6 | C14: 130101 | D14: TRUJILLO | E14: 00005203 | F14: CENTRO DE SALUD | G14: LOS GRANADOS "SAGRADO CORAZON" | H14: 49457.08196 | I14: 508.186107 | J14: 510.1520107 | K14: 514.5050832 | L14: 513.1008663 | M14: 506.6414684 | N14: 440.0815859 | O14: 443.0304414 | P14: 443.4517065 | Q14: 449.9111044 | R14: 460.0214663 | S14: 441.9070679 | T14: 451.7365864 | U14: 477.2933345 | V14: 525.0367102 | W14: 591.5965926 | X14: 576.2906281 | Y14: 639.1995466 | Z14: 680.4835243 | AA14: 702.3893084 | AB14: 706.8828026 | AC14: 4243.403141 | AD14: 4345.770555 | AE14: 4180.915488 | AF14: 3801.917338 | AG14: 3766.39065 | AH14: 3439.62937 | AI14: 3514.052868 | AJ14: 3096.579174 | AK14: 2292.664982 | AL14: 1935.993882 | AM14: 1529.753924 | AN14: 1248.629694 | AO14: 1479.482958 | AP14: 438.9582123 | AQ14: 36.79048357 | AR14: 226.2193474 | AS14: 231.4149501 | AT14: 683.1515365
B15: 7 | C15: 130101 | D15: TRUJILLO | E15: 00005199 | F15: CENTRO DE SALUD | G15: LA UNION | H15: 18700.25474 | I15: 192.150634 | J15: 192.8939634 | K15: 194.5399069 | L15: 194.0089574 | M15: 191.5665896 | N15: 166.3995819 | O15: 167.514576 | P15: 167.6738608 | Q15: 170.1162286 | R15: 173.9390652 | S15: 167.0898163 | T15: 170.806463 | U15: 180.4697444 | V15: 198.5220284 | W15: 223.689036 | X15: 217.9016861 | Y15: 241.688225 | Z15: 257.2981411 | AA15: 265.5809537 | AB15: 267.2799922 | AC15: 1604.476377 | AD15: 1643.182598 | AE15: 1580.849123 | AF15: 1437.545846 | AG15: 1424.112823 | AH15: 1300.560868 | AI15: 1328.701193 | AJ15: 1170.849898 | AK15: 866.8812937 | AL15: 732.0201137 | AM15: 578.4164154 | AN15: 472.1203199 | AO15: 559.4084223 | AP15: 165.9748223 | AQ15: 13.91087762 | AR15: 85.5359689 | AS15: 87.50048215 | AT15: 258.3069452
A16: | | B16: 8 | C16: 130101 | D16: TRUJILLO | E16: 00005200 | F16: CENTRO DE SALUD | G16: LOS JARDINES | H16: 51272.60563 | I16: 526.8411482 | J16: 528.8792184 | K16: 533.3920882 | L16: 531.9363237 | M16: 525.2398074 | N16: 456.2365732 | O16: 459.2936786 | P16: 459.7304079 | Q16: 466.4269243 | R16: 476.9084282 | S16: 458.129067 | T16: 468.319418 | U16: 494.8143307 | V16: 544.3103214 | W16: 613.3135555 | X16: 597.4457232 | Y16: 662.6639698 | Z16: 705.4634441 | AA16: 728.1733693 | AB16: 732.8318155 | AC16: 4399.174539 | AD16: 4505.299767 | AE16: 4334.393022 | AF16: 3941.482202 | AG16: 3904.651362 | AH16: 3565.894978 | AI16: 3643.050493 | AJ16: 3210.251727 | AK16: 2376.826589 | AL16: 2007.062424 | AM16: 1585.909773 | AN16: 1294.465734 | AO16: 1533.793406 | AP16: 455.0719617 | AQ16: 38.14102814 | AR16: 234.5236501 | AS16: 239.9099785 | AT16: 708.2293966
B17: 9 | C17: 130101 | D17: TRUJILLO | E17: 00005198 | F17: CENTRO DE SALUD | G17: SAN MARTIN PORRES | H17: 91893.96782 | I17: 944.237628 | J17: 947.8903848 | K17: 955.978632 | L17: 953.36952 | M17: 941.3676048 | N17: 817.6956967 | O17: 823.1748318 | P17: 823.9575654 | Q17: 835.9594806 | R17: 854.7450869 | S17: 821.0875422 | T17: 839.3513262 | U17: 886.8371643 | V17: 975.5469719 | W17: 1099.21888 | X17: 1070.779559 | Y17: 1187.667776 | Z17: 1264.375669 | AA17: 1305.077816 | AB17: 1313.426974 | AC17: 7884.475513 | AD17: 8074.679777 | AE17: 7768.37003 | AF17: 7064.170704 | AG17: 6998.160171 | AH17: 6391.019812 | AI17: 6529.302747 | AJ17: 5753.613753 | AK17: 4259.897141 | AL17: 3597.182696 | AM17: 2842.366598 | AN17: 2320.022379 | AO17: 2748.960389 | AP17: 815.6084071 | AQ17: 68.35873405 | AR17: 420.3279411 | AS17: 429.9816554 | AT17: 1269.332982
B18: 10 | C18: 130101 | D18: TRUJILLO | E18: 00005208 | F18: PUESTO DE SALUD | G18: CLUB DE LEONES | H18: 38200.76976 | I18: 392.5241785 | J18: 394.0426473 | K18: 397.404971 | L18: 396.3203505 | M18: 391.3310959 | N18: 339.9200817 | O18: 342.1977848 | P18: 342.523171 | Q18: 347.5124255 | R18: 355.3216935 | S18: 341.3300884 | T18: 348.9224323 | U18: 368.6625263 | V18: 405.5396252 | W18: 456.9506394 | X18: 445.1282754 | Y18: 493.7192762 | Z18: 525.6071205 | AA18: 542.5272012 | AB18: 545.9979869 | AC18: 3277.614852 | AD18: 3356.683691 | AE18: 3229.349238 | AF18: 2936.61015 | AG18: 2909.16925 | AH18: 2656.778047 | AI18: 2714.262937 | AJ18: 2391.805246 | AK18: 1770.859979 | AL18: 1495.366358 | AM18: 1181.585632 | AN18: 964.4445967 | AO18: 1142.756216 | AP18: 339.0523852 | AQ18: 28.41705852 | AR18: 174.7323713 | AS18: 178.7454673 | AT18: 527.6678996
B19: 11 | C19: 130101 | D19: TRUJILLO | E19: 00005206 | F19: PUESTO DE SALUD | G19: LIBERTAD | H19: 6179.430006 | I19: 63.49546624 | J19: 63.74109667 | K19: 64.28499262 | L19: 64.10954231 | M19: 63.3024709 | N19: 54.98612633 | O19: 55.35457198 | P19: 55.40720707 | Q19: 56.21427848 | R19: 57.47752069 | S19: 55.21421173 | T19: 56.44236388 | U19: 59.63555948 | V19: 65.60086993 | W19: 73.9172145 | X19: 72.00480614 | Y19: 79.86497992 | Z19: 85.02321895 | AA19: 87.76024375 | AB19: 88.32168473 | AC19: 530.1932838 | AD19: 542.9836113 | AE19: 522.3857452 | AF19: 475.0317072 | AG19: 470.5928144 | AH19: 429.7655279 | AI19: 439.0643942 | AJ19: 386.9030178 | AK19: 286.4577168 | AL19: 241.8933388 | AM19: 191.1355648 | AN19: 156.0104133 | AO19: 184.8544438 | AP19: 54.84576608 | AQ19: 4.596798053 | AR19: 28.26504452 | AS19: 28.91421065 | AT19: 85.35657454
B20: 12 | C20: 130101 | D20: TRUJILLO | E20: 00005205 | F20: PUESTO DE SALUD | G20: PESQUEDA II | H20: 6741.107389 | I20: 69.26686704 | J20: 69.53482398 | K20: 70.12815718 | L20: 69.93675938 | M20: 69.05632945 | N20: 59.98407331 | O20: 60.38600871 | P20: 60.44342805 | Q20: 61.32385797 | R20: 62.7019222 | S20: 60.23289046 | T20: 61.57267513 | U20: 65.05611525 | V20: 71.56364075 | W20: 80.63589689 | X20: 78.54966078 | Y20: 87.12428261 | Z20: 92.7513782 | AA20: 95.73718402 | AB20: 96.349657 | AC20: 578.3850387 | AD20: 592.337939 | AE20: 569.8678362 | AF20: 518.2095676 | AG20: 513.3672031 | AH20: 468.8289329 | AI20: 478.9730168 | AJ20: 422.0704482 | AK20: 312.4952026 | AL20: 263.8801591 | AM20: 208.508773 | AN20: 170.1909317 | AO20: 201.6567315 | AP20: 59.83095506 | AQ20: 5.014622593 | AR20: 30.83418702 | AS20: 31.54235891 | AT20: 93.11503403
B21: 13 | C21: 130101 | D21: TRUJILLO | E21: 00005207 | F21: PUESTO DE SALUD | G21: PESQUEDA III | H21: 10032.80976 | I21: 103.09008 | J21: 103.488881 | K21: 104.3719406 | L21: 104.0870827 | M21: 102.7767363 | N21: 89.27447101 | O21: 89.87267264 | P21: 89.95813001 | Q21: 91.26847643 | R21: 93.31945343 | S21: 89.6447863 | T21: 91.63879172 | U21: 96.8232058 | V21: 106.508375 | W21: 120.0106402 | X21: 116.9056889 | Y21: 129.6673236 | Z21: 138.0421463 | AA21: 142.4859298 | AB21: 143.3974751 | AC21: 860.8121377 | AD21: 881.5782798 | AE21: 848.1359604 | AF21: 771.2528088 | AG21: 764.0459035 | AH21: 697.7594663 | AI21: 712.8569359 | AJ21: 628.1686773 | AK21: 465.0875202 | AL21: 392.7336094 | AM21: 310.3242142 | AN21: 253.2956593 | AO21: 300.1263008 | AP21: 89.04658468 | AQ21: 7.463277411 | AR21: 45.89061034 | AS21: 46.94458463 | AT21: 138.5833763
C22: 130102 | D22: EL PORVENIR (2) | H22: 201614 | I22: =SUM(I23:I33) -> 3968 | J22: =SUM(J23:J33) -> 3780 | K22: 3645 | L22: 3560 | M22: 3511 | N22: 3028 | O22: 3038 | P22: 3071 | Q22: 3121 | R22: 3176 | S22: 3057 | T22: 3139 | U22: 3204 | V22: 3254 | W22: 3281 | X22: 2947 | Y22: 2990 | Z22: 3010 | AA22: 2997 | AB22: 2968 | AC22: 17527 | AD22: 19512 | AE22: 19871 | AF22: 16284 | AG22: 14190 | AH22: 11090 | AI22: 9428 | AJ22: 7657 | AK22: 6132 | AL22: 5467 | AM22: 3604 | AN22: 3046 | AO22: 3061 | AP22: 3758 | AQ22: 252 | AR22: 1993 | AS22: 1587 | AT22: 4430
A23: 1 | B23: 14 | C23: 130102 | D23: EL PORVENIR | E23: 00005209 | F23: HOSPITAL DISTRITAL DE EL PORVENIR | G23: SANTA ISABEL | H23: 24693.92457 | I23: 486.0053999 | J23: 462.9789344 | K23: 446.4439724 | L23: 436.0330704 | M23: 430.0314917 | N23: 370.8730723 | O23: 372.0978843 | P23: 376.1397639 | Q23: 382.2638238 | R23: 389.0002898 | S23: 374.4250271 | T23: 384.4684854 | U23: 392.4297634 | V23: 398.5538234 | W23: 401.8608158 | X23: 360.9520951 | Y23: 366.2187867 | Z23: 368.6684107 | AA23: 367.0761551 | AB23: 363.5242003 | AC23: 2146.727985 | AD23: 2389.853166 | AE23: 2433.823917 | AF23: 1994.483854 | AG23: 1738.008222 | AH23: 1358.316503 | AI23: 1154.752749 | AJ23: 937.8385451 | AK23: 751.0547157 | AL23: 669.604718 | AM23: 441.4222432 | AN23: 373.0777339 | AO23: 374.9149519 | AP23: 460.284348 | AQ23: 30.86526229 | AR23: 244.1050307 | AS23: 194.3776637 | AT23: 542.5917141
A24: 2 | B24: 15 | C24: 130102 | D24: EL PORVENIR | E24: 00005220 | F24: CENTRO DE SALUD CON CAMAS DE INTERNAMIENTO | G24: ALTO TRUJILLO | H24: 58030.16772 | I24: 1142.101766 | J24: 1087.99009 | K24: 1049.133301 | L24: 1024.667915 | M24: 1010.56434 | N24: 871.5433841 | O24: 874.4216648 | P24: 883.919991 | Q24: 898.3113943 | R24: 914.1419379 | S24: 879.8903981 | T24: 903.4922995 | U24: 922.2011238 | V24: 936.5925271 | W24: 944.3638849 | X24: 848.2293108 | Y24: 860.6059176 | Z24: 866.3624789 | AA24: 862.6207141 | AB24: 854.2737002 | AC24: 5044.762514 | AD24: 5616.101226 | AE24: 5719.431501 | AF24: 4686.992228 | AG24: 4084.280258 | AH24: 3192.013253 | AI24: 2713.643007 | AJ24: 2203.899502 | AK24: 1764.961701 | AL24: 1573.556037 | AM24: 1037.33235 | AN24: 876.7242893 | AO24: 881.0417103 | AP24: 1081.657872 | AQ24: 72.53267266 | AR24: 573.6413357 | AS24: 456.7831409 | AT24: 1275.078333
A25: 3 | B25: 16 | C25: 130102 | D25: EL PORVENIR | E25: 00005210 | F25: PUESTO DE SALUD | G25: BUEN PASTOR | H25: 12221.64487 | I25: 240.5363062 | J25: 229.1399287 | K25: 220.9563599 | L25: 215.8037424 | M25: 212.83341 | N25: 183.5544191 | O25: 184.1606094 | P25: 186.1610373 | Q25: 189.1919888 | R25: 192.5260354 | S25: 185.3123709 | T25: 190.2831313 | U25: 194.2233682 | V25: 197.2543196 | W25: 198.8910334 | X25: 178.6442778 | Y25: 181.250896 | Z25: 182.4632766 | AA25: 181.6752292 | AB25: 179.9172774 | AC25: 1062.469717 | AD25: 1182.798489 | AE25: 1204.560721 | AF25: 987.1202645 | AG25: 860.1840182 | AH25: 672.265029 | AI25: 571.5162032 | AJ25: 464.1599033 | AK25: 371.7158844 | AL25: 331.4042303 | AM25: 218.4709797 | AN25: 184.6455616 | AO25: 185.5548471 | AP25: 227.8063101 | AQ25: 15.27599525 | AR25: 120.8137243 | AS25: 96.20239865 | AT25: 268.5422974
A26: 4 | B26: 17 | C26: 130102 | D26: EL PORVENIR | E26: 00005211 | F26: PUESTO DE SALUD | G26: GRAN CHIMU | H26: 17283.34435 | I26: 340.1564891 | J26: 324.0402038 | K26: 312.4673394 | L26: 305.180721 | M26: 300.9801999 | N26: 259.5750627 | O26: 260.4323119 | P26: 263.2612344 | Q26: 267.5474804 | R26: 272.2623511 | S26: 262.0610854 | T26: 269.090529 | U26: 274.6626489 | V26: 278.948895 | W26: 281.2634679 | X26: 252.6313441 | Y26: 256.3175157 | Z26: 258.0320141 | AA26: 256.9175901 | AB26: 254.4315674 | AC26: 1502.500702 | AD26: 1672.664671 | AE26: 1703.439918 | AF26: 1395.944624 | AG26: 1216.436638 | AH26: 950.689381 | AI26: 808.2145612 | AJ26: 656.395725 | AK26: 525.6652195 | AL26: 468.6581466 | AM26: 308.9526176 | AN26: 261.1181113 | AO26: 262.4039851 | AP26: 322.1542555 | AQ26: 21.60268025 | AR26: 170.8497688 | AS26: 136.0454506 | AT26: 379.7614029
A27: 5 | B27: 18 | C27: 130102 | D27: EL PORVENIR | E27: 00005212 | F27: PUESTO DE SALUD | G27: MIGUEL GRAU | H27: 16419.98794 | I27: 323.1646223 | J27: 307.8533952 | K27: 296.8586311 | L27: 289.9360018 | M27: 285.9453097 | N27: 246.608487 | O27: 247.4229139 | P27: 250.1105229 | Q27: 254.1826578 | R27: 258.6620061 | S27: 248.9703252 | T27: 255.6486263 | U27: 260.9424017 | V27: 265.0145365 | W27: 267.2134893 | X27: 240.0116285 | Y27: 243.5136645 | Z27: 245.1425184 | AA27: 244.0837633 | AB27: 241.7219251 | AC27: 1427.446153 | AD27: 1589.109907 | AE27: 1618.347835 | AF27: 1326.21288 | AG27: 1155.671872 | AH27: 903.1995113 | AI27: 767.8417487 | AJ27: 623.606732 | AK27: 499.4066189 | AL27: 445.2472253 | AM27: 293.5194805 | AN27: 248.0744555 | AO27: 249.296096 | AP27: 306.0616559 | AQ27: 20.52355968 | AR27: 162.3152954 | AS27: 129.2495604 | AT27: 360.7911484
A28: 6 | B28: 19 | C28: 130102 | D28: EL PORVENIR | E28: 00005213 | F28: CENTRO DE SALUD | G28: RIO SECO - "SANTA. ROSA" | H28: 32097.19047 | I28: 631.7103564 | J28: 601.7805311 | K28: 580.2883692 | L28: 566.7562673 | M28: 558.9554086 | N28: 482.0612296 | O28: 483.6532416 | P28: 488.9068812 | Q28: 496.8669411 | R28: 505.623007 | S28: 486.6780644 | T28: 499.7325627 | U28: 510.0806406 | V28: 518.0407005 | W28: 522.3391329 | X28: 469.1659325 | Y28: 476.0115841 | Z28: 479.1956081 | AA28: 477.1259925 | AB28: 472.5091577 | AC28: 2790.319409 | AD28: 3106.333789 | AE28: 3163.487019 | AF28: 2592.432319 | AG28: 2259.065009 | AH28: 1765.541293 | AI28: 1500.948901 | AJ28: 1219.003578 | AK28: 976.2217504 | AL28: 870.3529532 | AM28: 573.7611201 | AN28: 484.9268512 | AO28: 487.3148692 | AP28: 598.2781047 | AQ28: 40.11870207 | AR28: 317.287989 | AS28: 252.6523023 | AT28: 705.2613102
A29: 7 | B29: 20 | C29: 130102 | D29: EL PORVENIR | E29: 00005214 | F29: PUESTO DE SALUD | G29: VICTOR RAUL HAYA DE LA TORRE | H29: 5560.566992 | I29: 109.4384806 | J29: 104.2533913 | K29: 100.5300559 | L29: 98.18573358 | M29: 96.83430073 | N29: 83.51303407 | O29: 83.78883669 | P29: 84.69898535 | Q29: 86.07799846 | R29: 87.59491288 | S29: 84.31286168 | T29: 86.57444318 | U29: 88.36716023 | V29: 89.74617334 | W29: 90.49084042 | X29: 81.27903283 | Y29: 82.46498411 | Z29: 83.01658935 | AA29: 82.65804594 | AB29: 81.85821834 | AC29: 483.3992563 | AD29: 538.1460769 | AE29: 548.047391 | AF29: 449.1169904 | AG29: 391.3639212 | AH29: 305.8651083 | AI29: 260.0267124 | AJ29: 211.182068 | AK29: 169.1221681 | AL29: 150.7812937 | AM29: 99.39926512 | AN29: 84.00947879 | AO29: 84.42318273 | AP29: 103.6466255 | AQ29: 6.950226085 | AR29: 54.96746265 | AS29: 43.76987618 | AT29: 122.1805617
A30: 8 | B30: 21 | C30: 130102 | D30: EL PORVENIR | E30: 00005215 | F30: PUESTO DE SALUD | G30: INDOAMERICA | H30: 6666.764577 | I30: 131.2097466 | J30: 124.9931557 | K30: 120.5291145 | L30: 117.7184218 | M30: 116.0981402 | N30: 100.1267925 | O30: 100.4574622 | P30: 101.5486723 | Q30: 103.2020209 | R30: 105.0207044 | S30: 101.0857347 | T30: 103.7972264 | U30: 105.9465796 | V30: 107.5999282 | W30: 108.4927365 | X30: 97.44836771 | Y30: 98.87024753 | Z30: 99.53158697 | AA30: 99.10171633 | AB30: 98.14277413 | AC30: 579.5648256 | AD30: 645.2027658 | AE30: 657.0738089 | AF30: 538.4625788 | AG30: 469.2203386 | AH30: 366.7127241 | AI30: 311.7554159 | AJ30: 253.1938078 | AK30: 202.7666749 | AL30: 180.7771382 | AM30: 119.1733686 | AN30: 100.721998 | AO30: 101.2180026 | AP30: 124.2656823 | AQ30: 8.332877049 | AR30: 65.90247603 | AS30: 52.47728523 | AT30: 146.4866878
A31: 9 | B31: 22 | C31: 130102 | D31: EL PORVENIR | E31: 00005216 | F31: PUESTO DE SALUD | G31: VIRGEN DEL CARMEN | H31: 8950.687211 | I31: 176.1600229 | J31: 167.8137315 | K31: 161.8203839 | L31: 158.0467947 | M31: 155.8714315 | N31: 134.4285658 | O31: 134.8725175 | P31: 136.337558 | Q31: 138.5573164 | R31: 140.9990506 | S31: 135.7160257 | T31: 139.3564294 | U31: 142.2421152 | V31: 144.4618736 | W31: 145.6605431 | X31: 130.8325573 | Y31: 132.7415495 | Z31: 133.6294528 | AA31: 133.0523157 | AB31: 131.7648558 | AC31: 778.114093 | AD31: 866.2384996 | AE31: 882.1763646 | AF31: 722.9309003 | AG31: 629.9674205 | AH31: 492.3424026 | AI31: 418.557635 | AJ31: 339.9337941 | AK31: 272.2311644 | AL31: 242.7083783 | AM31: 160.0001821 | AN31: 135.2276789 | AO31: 135.8936064 | AP31: 166.8370378 | AQ31: 11.1875821 | AR31: 88.47956794 | AS31: 70.45513012 | AT31: 196.6705901
A32: 10 | B32: 23 | C32: 130102 | D32: EL PORVENIR | E32: 00012229 | F32: PUESTO DE SALUD | G32: BARRIO 1 | H32: 9815.981762 | I32: 193.1900346 | J32: 184.0368777 | K32: 177.4641321 | L32: 173.3257367 | M32: 170.9400734 | N32: 147.4242502 | O32: 147.9111202 | P32: 149.5177914 | Q32: 151.9521416 | R32: 154.6299269 | S32: 148.8361733 | T32: 152.8285077 | U32: 155.993163 | V32: 158.4275132 | W32: 159.7420624 | X32: 143.4806028 | Y32: 145.574144 | Z32: 146.5478841 | AA32: 145.914953 | AB32: 144.5030299 | AC32: 853.337131 | AD32: 949.9808353 | AE32: 967.45947 | AF32: 792.8191842 | AG32: 690.8685964 | AH32: 539.9388819 | AI32: 459.0210801 | AJ32: 372.7963948 | AK32: 298.5487127 | AL32: 266.1718546 | AM32: 175.4679649 | AN32: 148.3006163 | AO32: 149.0309213 | AP32: 182.9657636 | AQ32: 12.26912518 | AR32: 97.03320033 | AS32: 77.26627643 | AT32: 215.6834307
A33: 11 | B33: 24 | C33: 130102 | D33: EL PORVENIR | E33: 00013242 | F33: PUESTO DE SALUD | G33: SUPERVIVENCIA | H33: 9873.73954 | I33: 194.3267754 | J33: 185.1197608 | K33: 178.5083408 | L33: 174.3455949 | M33: 171.9458943 | N33: 148.2917026 | O33: 148.7814374 | P33: 150.3975623 | Q33: 152.8462364 | R33: 155.5397779 | S33: 149.7119336 | T33: 153.7277591 | U33: 156.9110354 | V33: 159.3597095 | W33: 160.6819935 | X33: 144.3248506 | Y33: 146.4307103 | Z33: 147.4101799 | AA33: 146.7735247 | AB33: 145.3532937 | AC33: 858.3582138 | AD33: 955.570575 | AE33: 973.1520549 | AF33: 797.484176 | AG33: 694.9337054 | AH33: 543.1159121 | AI33: 461.7219855 | AJ33: 374.9899494 | AK33: 300.3053898 | AL33: 267.7380245 | AM33: 176.5004281 | AN33: 149.1732253 | AO33: 149.9078275 | AP33: 184.0423442 | AQ33: 12.34131739 | AR33: 97.60414903 | AS33: 77.72091546 | AT33: 216.9525239
C34: 130103 | D34: FLORENCIA DE MORA (3) | H34: 45793 | I34: =SUM(I35:I38) -> 870 | J34: =SUM(J35:J38) -> 759 | K34: 683 | L34: 635 | M34: 619 | N34: 530 | O34: 541 | P34: 565 | Q34: 596 | R34: 626 | S34: 635 | T34: 691 | U34: 723 | V34: 714 | W34: 677 | X34: 580 | Y34: 556 | Z34: 554 | AA34: 578 | AB34: 630 | AC34: 4287 | AD34: 4402 | AE34: 3976 | AF34: 3501 | AG34: 2774 | AH34: 2438 | AI34: 2783 | AJ34: 2400 | AK34: 1969 | AL34: 1668 | AM34: 1431 | AN34: 805 | AO34: 597 | AP34: 869 | AQ34: 47 | AR34: 462 | AS34: 325 | AT34: 898
A35: 1 | B35: 25 | C35: 130103 | D35: FLORENCIA DE MORA | E35: 00005217 | F35: HOSPITAL DISTRITAL DE FLORENCIA DE MORA | G35: EL ESFUERZO | H35: 26909.00557 | I35: 511.231735 | J35: 446.0056171 | K35: 401.3462931 | L35: 373.1404043 | M35: 363.7384414 | N35: 311.4400225 | O35: 317.903872 | P35: 332.0068164 | Q35: 350.2231196 | R35: 367.8518001 | S35: 373.1404043 | T35: 406.0472746 | U35: 424.8512005 | V35: 419.5625963 | W35: 397.820557 | X35: 340.8211567 | Y35: 326.7182123 | Z35: 325.5429669 | AA35: 339.6459113 | AB35: 370.2022909 | AC35: 2519.138446 | AD35: 2586.715055 | AE35: 2336.387791 | AF35: 2057.267016 | AG35: 1630.065325 | AH35: 1432.624103 | AI35: 1635.353929 | AJ35: 1410.294441 | AK35: 1157.029065 | AL35: 980.1546368 | AM35: 840.8880607 | AN35: 473.0362606 | AO35: 350.8107423 | AP35: 510.6441123 | AQ35: 27.61826615 | AR35: 271.48168 | AS35: 190.9773723 | AT35: 527.6851702
A36: 2 | B36: 26 | C36: 130103 | D36: FLORENCIA DE MORA | E36: 00017752 | F36: PUESTO DE SALUD | G36: LA CABAÑA | H36: 2991.075452 | I36: 56.82605733 | J36: 49.57583622 | K36: 44.61172087 | L36: 41.47649012 | M36: 40.4314132 | N36: 34.61817286 | O36: 35.33666324 | P36: 36.90427861 | Q36: 38.92911514 | R36: 40.88863436 | S36: 41.47649012 | T36: 45.13425933 | U36: 47.22441316 | V36: 46.6365574 | W36: 44.21981703 | X36: 37.88403822 | Y36: 36.31642285 | Z36: 36.18578823 | AA36: 37.75340361 | AB36: 41.14990358 | AC36: 280.0152963 | AD36: 287.5267866 | AE36: 259.7016137 | AF36: 228.6758928 | AG36: 181.1902104 | AH36: 159.2435951 | AI36: 181.7780662 | AJ36: 156.7615375 | AK36: 128.609778 | AL36: 108.9492685 | AM36: 93.46906671 | AN36: 52.58043236 | AO36: 38.99443244 | AP36: 56.76074002 | AQ36: 3.069913442 | AR36: 30.17659596 | AS36: 21.22812486 | AT36: 58.65494193
A37: 3 | B37: 27 | C37: 130103 | D37: FLORENCIA DE MORA | E37: 00005218 | F37: PUESTO DE SALUD | G37: FLORENCIA DE MORA PARTE ALTA | H37: 6602.212797 | I37: 125.4323834 | J37: 109.4289414 | K37: 98.47162973 | L37: 91.55122237 | M37: 89.24441992 | N37: 76.41283127 | O37: 77.99875796 | P37: 81.45896164 | Q37: 85.92839139 | R37: 90.25364599 | S37: 91.55122237 | T37: 99.62503096 | U37: 104.2386359 | V37: 102.9410595 | W37: 97.60657881 | X37: 83.62158894 | Y37: 80.16138526 | Z37: 79.87303495 | AA37: 83.33323863 | AB37: 90.83034661 | AC37: 618.0788824 | AD37: 634.659025 | AE37: 573.2404097 | AF37: 504.7572119 | AG37: 399.9418754 | AH37: 351.4990238 | AI37: 401.2394518 | AJ37: 346.020368 | AK37: 283.8808769 | AL37: 240.4841558 | AM37: 206.3146444 | AN37: 116.0609984 | AO37: 86.07256655 | AP37: 125.2882083 | AQ37: 6.776232207 | AR37: 66.60892084 | AS37: 46.85692484 | AT37: 129.4692877
A38: 4 | B38: 28 | C38: 130103 | D38: FLORENCIA DE MORA | E38: 00005219 | F38: PUESTO DE SALUD | G38: SANTO TORIBIO DE MOGROVEJO | H38: =SUM(I38:AO38) -> 9290.706185 | I38: 176.5098242 | J38: 153.9896053 | K38: 138.5703563 | L38: 128.8318832 | M38: 125.5857255 | N38: 107.5289734 | O38: 109.7607068 | P38: 114.6299433 | Q38: 120.9193738 | R38: 127.0059195 | S38: 128.8318832 | T38: 140.1934351 | U38: 146.6857505 | V38: 144.8597868 | W38: 137.3530471 | X38: 117.6732162 | Y38: 112.8039796 | Z38: 112.3982099 | AA38: 117.2674464 | AB38: 127.8174589 | AC38: 869.7673753 | AD38: 893.0991336 | AE38: 806.6701852 | AF38: 710.2998789 | AG38: 562.802589 | AH38: 494.6332776 | AI38: 564.6285527 | AJ38: 486.923653 | AK38: 399.4802804 | AL38: 338.4119389 | AM38: 290.3282281 | AN38: 163.3223086 | AO38: 121.1222587 | AP38: 176.3069394 | AQ38: 9.535588205 | AR38: 93.73280321 | AS38: 65.93757802 | AT38: 182.1906002
C39: 130104 | D39: HUANCHACO (4) | H39: 73487 | I39: =SUM(I40:I46) -> 1246 | J39: =SUM(J40:J46) -> 1368 | K39: =SUM(K40:K46) -> 1458 | L39: 1525 | M39: 1555 | N39: 1349 | O39: 1342 | P39: 1322 | Q39: 1298 | R39: 1273 | S39: 1158 | T39: 1106 | U39: 1100 | V39: 1163 | W39: 1270 | X39: 1210 | Y39: 1310 | Z39: 1358 | AA39: 1312 | AB39: 1214 | AC39: 6115 | AD39: 5795 | AE39: 6983 | AF39: 6434 | AG39: 4590 | AH39: 4576 | AI39: 3533 | AJ39: 2706 | AK39: 2253 | AL39: 1691 | AM39: 1158 | AN39: 534 | AO39: 1182 | AP39: 1079 | AQ39: 98 | AR39: 543 | AS39: 580 | AT39: 1679
A40: 1 | B40: 29 | C40: 130104 | E40: 00005221 | F40: CENTRO DE SALUD CON CAMAS DE INTERNAMIENTO | G40: HUANCHACO | H40: 13503.28221 | I40: 228.9532793 | J40: 251.3708556 | K40: 267.9084119 | L40: 280.2197038 | M40: 285.7322225 | N40: 247.8795937 | O40: 246.5933393 | P40: 242.9183268 | Q40: 238.5083118 | R40: 233.9145462 | S40: 212.7832242 | T40: 203.2281917 | U40: 202.125688 | V40: 213.7019774 | W40: 233.3632943 | X40: 222.3382568 | Y40: 240.7133193 | Z40: 249.5333493 | AA40: 241.0808206 | AB40: 223.0732593 | AC40: 1123.635074 | AD40: 1064.834874 | AE40: 1283.130617 | AF40: 1182.251524 | AG40: 843.4153707 | AH40: 840.8428619 | AI40: 649.1909596 | AJ40: 497.2291924 | AK40: 413.9901591 | AL40: 310.7223076 | AM40: 212.7832242 | AN40: 98.12283398 | AO40: 217.1932393 | AP40: 198.2669248 | AQ40: 18.00756129 | AR40: 99.77658961 | AS40: 106.5753627 | AT40: 308.5173001
A41: 2 | B41: 30 | C41: 130104 | E41: 00005222 | F41: CENTRO DE SALUD | G41: EL MILAGRO | H41: 20795.99792 | I41: 352.6040444 | J41: 387.128678 | K41: 412.5976699 | L41: 431.5579195 | M41: 440.0475835 | N41: 381.7518908 | O41: 379.7709692 | P41: 374.1111932 | Q41: 367.319462 | R41: 360.244742 | S41: 327.70103 | T41: 312.9856125 | U41: 311.2876797 | V41: 329.115974 | W41: 359.3957756 | X41: 342.4164476 | Y41: 370.7153276 | Z41: 384.29879 | AA41: 371.2813052 | AB41: 343.5484028 | AC41: 1730.47651 | AD41: 1639.920094 | AE41: 1976.110788 | AF41: 1820.749937 | AG41: 1298.918591 | AH41: 1294.956747 | AI41: 999.7994293 | AJ41: 765.767692 | AK41: 637.5737657 | AL41: 478.5340603 | AM41: 327.70103 | AN41: 151.116019 | AO41: 334.4927612 | AP41: 305.3449149 | AQ41: 27.73290237 | AR41: 153.6629182 | AS41: 164.1335038 | AT41: 475.1381947
A42: 3 | B42: 31 | C42: 130104 | E42: 00020157 | F42: PUESTO DE SALUD | G42: 1° DE MAYO- SECTOR 10 EL MILAGRO | H42: 11881.8182 | I42: 201.460741 | J42: 221.1864315 | K42: 235.7381704 | L42: 246.5711316 | M42: 251.4217113 | N42: 218.1143978 | O42: 216.9825958 | P42: 213.7488761 | Q42: 209.8684124 | R42: 205.8262627 | S42: 187.2323741 | T42: 178.8247027 | U42: 177.8545868 | V42: 188.040804 | W42: 205.3412047 | X42: 195.6400454 | Y42: 211.8086442 | Z42: 219.5695716 | AA42: 212.1320162 | AB42: 196.2867894 | AC42: 988.7098164 | AD42: 936.9703002 | AE42: 1129.053254 | AF42: 1040.287647 | AG42: 742.1386847 | AH42: 739.8750809 | AI42: 571.2365955 | AJ42: 437.5222834 | AK42: 364.2785309 | AL42: 273.4110056 | AM42: 187.2323741 | AN42: 86.34031757 | AO42: 191.1128378 | AP42: 174.459181 | AQ42: 15.84522682 | AR42: 87.79549146 | AS42: 93.77787302 | AT42: 271.4707738
A43: 4 | B43: 32 | C43: 130104 | E43: 00011629 | F43: PUESTO DE SALUD | G43: HUANCHAQUITO | H43: 4541.697705 | I43: 77.00620982 | J43: 84.54614368 | K43: 90.10838998 | L43: 94.24917333 | M43: 96.10325543 | N43: 83.37189169 | O43: 82.93927253 | P43: 81.7032178 | Q43: 80.21995212 | R43: 78.67488371 | S43: 71.567569 | T43: 68.35382669 | U43: 67.98301027 | V43: 71.87658268 | W43: 78.4894755 | X43: 74.7813113 | Y43: 80.96158496 | Z43: 83.92811632 | AA43: 81.08519043 | AB43: 75.02852225 | AC43: 377.9237344 | AD43: 358.1468587 | AE43: 431.5685098 | AF43: 397.6388074 | AG43: 283.674561 | AH43: 282.8093227 | AI43: 218.3490684 | AJ43: 167.2382053 | AK43: 139.2415656 | AL43: 104.5084276 | AM43: 71.567569 | AN43: 33.00266135 | AO43: 73.05083467 | AP43: 66.6851528 | AQ43: 6.056668188 | AR43: 33.55888598 | AS43: 35.84558723 | AT43: 103.7667948
A44: 5 | B44: 33 | C44: 130104 | E44: 00011007 | F44: PUESTO DE SALUD | G44: EL TROPICO | H44: 6219.392236 | I44: 105.4521579 | J44: 115.777329 | K44: 123.3942586 | L44: 129.0646395 | M44: 131.603616 | N44: 114.1693106 | O44: 113.5768827 | P44: 111.8842317 | Q44: 109.8530505 | R44: 107.7372367 | S44: 98.00449345 | T44: 93.60360082 | U44: 93.09580552 | V44: 98.4276562 | W44: 107.4833391 | X44: 102.4053861 | Y44: 110.8686411 | Z44: 114.9310035 | AA44: 111.0379062 | AB44: 102.7439163 | AC44: 517.5280461 | AD44: 490.44563 | AE44: 590.9890999 | AF44: 544.5258297 | AG44: 388.4634067 | AH44: 387.278551 | AI44: 299.0068008 | AJ44: 229.0156816 | AK44: 190.6771362 | AL44: 143.1136428 | AM44: 98.00449345 | AN44: 45.19378195 | AO44: 100.0356747 | AP44: 91.31852196 | AQ44: 8.293989946 | AR44: 45.95547491 | AS44: 49.08687927 | AT44: 142.0980522
A45: 6 | B45: 34 | C45: 130104 | E45: 00012228 | F45: PUESTO DE SALUD | G45: VICTOR RAUL HAYA DE LA TORRE | H45: 10730.76706 | I45: 181.9442317 | J45: 199.758996 | K45: 212.9010352 | L45: 222.6845532 | M45: 227.065233 | N45: 196.9845655 | O45: 195.9624069 | P45: 193.0419537 | Q45: 189.5374099 | R45: 185.8868435 | S45: 169.0942378 | T45: 161.5010596 | U45: 160.6249236 | V45: 169.8243511 | W45: 185.4487755 | X45: 176.687416 | Y45: 191.2896818 | Z45: 198.2987694 | AA45: 191.5817271 | AB45: 177.2715066 | AC45: 892.9285528 | AD45: 846.2013023 | AE45: 1019.67622 | AF45: 939.5097807 | AG45: 670.2439996 | AH45: 668.1996824 | AI45: 515.8980502 | AJ45: 395.1373122 | AK45: 328.9890482 | AL45: 246.9243144 | AM45: 169.0942378 | AN45: 77.9760993 | AO45: 172.5987816 | AP45: 157.5584478 | AQ45: 14.31022047 | AR45: 79.29030322 | AS45: 84.69314156 | AT45: 245.1720426
A46: 7 | B46: 35 | C46: 130104 | D46: HUANCHACO | E46: 00005223 | F46: PUESTO DE SALUD | G46: VILLA DEL MAR | H46: 5814.04467 | I46: 98.57933591 | J46: 108.2315662 | K46: 115.352064 | L46: 120.652879 | M46: 123.0263783 | N46: 106.72835 | O46: 106.1745335 | P46: 104.5922007 | Q46: 102.6934013 | R46: 100.7154852 | S46: 91.61707142 | T46: 87.50300604 | U46: 87.02830618 | V46: 92.01265463 | W46: 100.4781353 | X46: 95.7311368 | Y46: 103.642801 | Z46: 107.4403998 | AA46: 103.8010343 | AB46: 96.04760337 | AC46: 483.7982657 | AD46: 458.4809403 | AE46: 552.471511 | AF46: 509.0364745 | AG46: 363.1453867 | AH46: 362.0377537 | AI46: 279.5190961 | AJ46: 214.0896332 | AK46: 178.2497944 | AL46: 133.7862416 | AM46: 91.61707142 | AN46: 42.24828682 | AO46: 93.51587083 | AP46: 85.3668567 | AQ46: 7.753430915 | AR46: 42.9603366 | AS46: 45.88765235 | AT46: 132.8368419
C47: 130105 | D47: LA ESPERANZA (5) | H47: 198532 | I47: =SUM(I48:I54) -> 3089 | J47: =SUM(J48:J54) -> 2985 | K47: 2907 | L47: 2861 | M47: 2847 | N47: 2464 | O47: 2492 | P47: 2536 | Q47: 2594 | R47: 2673 | S47: 2596 | T47: 2681 | U47: 2779 | V47: 2889 | W47: 3004 | X47: 2771 | Y47: 2874 | Z47: 2956 | AA47: 3005 | AB47: 3025 | AC47: 18084 | AD47: 17719 | AE47: 17831 | AF47: 16834 | AG47: 16609 | AH47: 12604 | AI47: 11011 | AJ47: 10479 | AK47: 6275 | AL47: 5043 | AM47: 3493 | AN47: 2946 | AO47: 3576 | AP47: 2663 | AQ47: 239 | AR47: 1324 | AS47: 1457 | AT47: 4179
A48: 1 | B48: 36 | C48: 130105 | E48: 00005226 | F48: HOSPITAL DISTRITAL DE LA ESPERANZA | G48: JERUSALEN | H48: 73739.89994 | I48: 1147.334187 | J48: 1108.705908 | K48: 1079.734698 | L48: 1062.649113 | M48: 1057.449152 | N48: 915.1930845 | O48: 925.5930059 | P48: 941.9357396 | Q48: 963.4784339 | R48: 992.8210693 | S48: 964.2212854 | T48: 995.7924755 | U48: 1032.1922 | V48: 1073.049035 | W48: 1115.762997 | X48: 1029.220794 | Y48: 1067.477648 | Z48: 1097.934561 | AA48: 1116.134423 | AB48: 1123.562939 | AC48: 6716.863531 | AD48: 6581.293127 | AE48: 6622.892812 | AF48: 6252.581325 | AG48: 6169.010528 | AH48: 4681.45034 | AI48: 4089.769096 | AJ48: 3892.170589 | AK48: 2330.696674 | AL48: 1873.100132 | AM48: 1297.390196 | AN48: 1094.220303 | AO48: 1328.218535 | AP48: 989.1068117 | AQ48: 88.77075779 | AR48: 491.7677126 | AS48: 541.1673393 | AT48: 1552.188271
A49: 2 | B49: 37 | C49: 130105 | E49: 00005230 | F49: CENTRO DE SALUD CON CAMAS DE INTERNAMIENTO | G49: WICHANZAO | H49: 40543.06853 | I49: 630.8178968 | J49: 609.5796122 | K49: 593.6508987 | L49: 584.257042 | M49: 581.3980422 | N49: 503.1839747 | O49: 508.9019744 | P49: 517.8874025 | Q49: 529.7318305 | R49: 545.8647582 | S49: 530.140259 | T49: 547.4984724 | U49: 567.5114714 | V49: 589.9750417 | W49: 613.4596834 | X49: 565.8777572 | Y49: 586.9118276 | Z49: 603.6573982 | AA49: 613.6638977 | AB49: 617.7481832 | AC49: 3693.010957 | AD49: 3618.472746 | AE49: 3641.344745 | AF49: 3437.743113 | AG49: 3391.794901 | AH49: 2573.916728 | AI49: 2248.603387 | AJ49: 2139.961392 | AK49: 1281.444578 | AL49: 1029.852591 | AM49: 713.3204641 | AN49: 601.6152554 | AO49: 730.270249 | AP49: 543.8226155 | AQ49: 48.80721183 | AR49: 270.3797007 | AS49: 297.5401993 | AT49: 853.411457
A50: 3 | B50: 38 | C50: 130105 | E50: 00005229 | F50: CENTRO DE SALUD | G50: BELLAVISTA | H50: 19399.652 | I50: 301.8431539 | J50: 291.6807427 | K50: 284.0589344 | L50: 279.5640217 | M50: 278.1960049 | N50: 240.7709715 | O50: 243.5070053 | P50: 247.8064869 | Q50: 253.4739855 | R50: 261.1935093 | S50: 253.6694164 | T50: 261.9752332 | U50: 271.5513514 | V50: 282.3000555 | W50: 293.5373371 | X50: 270.7696275 | Y50: 280.8343231 | Z50: 288.8469935 | AA50: 293.6350525 | AB50: 295.5893624 | AC50: 1767.086952 | AD50: 1731.420797 | AE50: 1742.364932 | AF50: 1644.942587 | AG50: 1622.956602 | AH50: 1231.606057 | AI50: 1075.945279 | AJ50: 1023.960637 | AK50: 613.1647104 | AL50: 492.7792246 | AM50: 341.3202125 | AN50: 287.8698385 | AO50: 349.4305983 | AP50: 260.2163544 | AQ50: 23.35400252 | AR50: 129.375311 | AS50: 142.3714714 | AT50: 408.3530398
A51: 4 | B51: 39 | C51: 130105 | E51: 00005227 | F51: PUESTO DE SALUD | G51: SAN MARTIN | H51: 13665.63854 | I51: 212.6264656 | J51: 205.4677888 | K51: 200.0987813 | L51: 196.9324435 | M51: 195.9687755 | N51: 169.6055717 | O51: 171.5329078 | P51: 174.5615787 | Q51: 178.5539177 | R51: 183.9917586 | S51: 178.6915845 | T51: 184.5424261 | U51: 191.2881022 | V51: 198.8597795 | W51: 206.775624 | X51: 190.7374348 | Y51: 197.8272781 | Z51: 203.4716193 | AA51: 206.8444574 | AB51: 208.221126 | AC51: 1244.78375 | AD51: 1219.659548 | AE51: 1227.368892 | AF51: 1158.741962 | AG51: 1143.25444 | AH51: 867.5765529 | AI51: 757.9248987 | AJ51: 721.3055139 | AK51: 431.9297738 | AL51: 347.1269879 | AM51: 240.4351713 | AN51: 202.783285 | AO51: 246.148346 | AP51: 183.3034243 | AQ51: 16.45118979 | AR51: 91.13546144 | AS51: 100.2903076 | AT51: 287.6549043
A52: 5 | B52: 40 | C52: 130105 | E52: 00005228 | F52: PUESTO DE SALUD | G52: PUEBLO LIBRE | H52: 13990.03316 | I52: 217.6737877 | J52: 210.3451785 | K52: 204.8487215 | L52: 201.6072213 | M52: 200.6206777 | N52: 173.6316649 | O52: 175.604752 | P52: 178.7053174 | Q52: 182.7924264 | R52: 188.3593508 | S52: 182.9333612 | T52: 188.9230899 | U52: 195.8288948 | V52: 203.5803084 | W52: 211.684059 | X52: 195.2651556 | Y52: 202.5232974 | Z52: 208.301624 | AA52: 211.7545264 | AB52: 213.1638743 | AC52: 1274.332398 | AD52: 1248.611798 | AE52: 1256.504146 | AF52: 1186.248152 | AG52: 1170.392988 | AH52: 888.1710651 | AI52: 775.9165025 | AJ52: 738.4278476 | AK52: 442.1829128 | AL52: 355.3670804 | AM52: 246.1426159 | AN52: 207.59695 | AO52: 251.9914098 | AP52: 187.6546768 | AQ52: 16.84170776 | AR52: 93.29883292 | AS52: 102.6709967 | AT52: 294.4832498
A53: 6 | B53: 41 | C53: 130105 | E53: 00007115 | F53: PUESTO DE SALUD | G53: MANUEL AREVALO | H53: 19080.24393 | I53: 296.8734184 | J53: 286.8783276 | K53: 279.3820095 | L53: 274.9611039 | M53: 273.6156109 | N53: 236.8067669 | O53: 239.4977529 | P53: 243.7264451 | Q53: 249.3006304 | R53: 256.8930551 | S53: 249.4928437 | T53: 257.6619083 | U53: 267.0803592 | V53: 277.6520899 | W53: 288.7043538 | X53: 266.3115061 | Y53: 276.2104903 | Z53: 284.0912349 | AA53: 288.8004604 | AB53: 290.7225933 | AC53: 1737.992521 | AD53: 1702.913597 | AE53: 1713.677541 | AF53: 1617.859218 | AG53: 1596.235224 | AH53: 1211.328121 | AI53: 1058.230239 | AJ53: 1007.101506 | AK53: 603.0691811 | AL53: 484.6657976 | AM53: 335.7005019 | AN53: 283.1301685 | AO53: 343.6773532 | AP53: 255.9319887 | AQ53: 22.96948753 | AR53: 127.2451945 | AS53: 140.027378 | AT53: 401.6296586
A54: 7 | B54: 42 | C54: 130105 | E54: 00005225 | F54: CENTRO DE SALUD | G54: SANTISIMO SACRAMENTO | H54: 18113.46391 | I54: 281.8310902 | J54: 272.3424423 | K54: 265.2259564 | L54: 261.0290544 | M54: 259.7517364 | N54: 224.8079658 | O54: 227.3626018 | P54: 231.3770297 | Q54: 236.6687757 | R54: 243.8764986 | S54: 236.8512497 | T54: 244.6063946 | U54: 253.5476205 | V54: 263.5836904 | W54: 274.0759453 | X54: 252.8177245 | Y54: 262.2151354 | Z54: 269.6965693 | AA54: 274.1671823 | AB54: 275.9919223 | AC54: 1649.929892 | AD54: 1616.628387 | AE54: 1626.846931 | AF54: 1535.883643 | AG54: 1515.355318 | AH54: 1149.951137 | AI54: 1004.610597 | AJ54: 956.0725136 | AK54: 572.5121694 | AL54: 460.1081865 | AM54: 318.6908379 | AN54: 268.7841993 | AO54: 326.2635088 | AP54: 242.9641286 | AQ54: 21.80564278 | AR54: 120.7977868 | AS54: 132.9323077 | AT54: 381.2794192
C55: 130106 | D55: LAREDO (6) | H55: 38563 | I55: =SUM(I56:I58) -> 509 | J55: =SUM(J56:J58) -> 573 | K55: =SUM(K56:K58) -> 624 | L55: 663 | M55: 686 | N55: 610 | O55: 623 | P55: 623 | Q55: 618 | R55: 616 | S55: 570 | T55: 554 | U55: 545 | V55: 543 | W55: 547 | X55: 484 | Y55: 482 | Z55: 482 | AA55: 486 | AB55: 491 | AC55: 3013 | AD55: 3070 | AE55: 3057 | AF55: 2893 | AG55: 3066 | AH55: 2677 | AI55: 1839 | AJ55: 2390 | AK55: 1681 | AL55: 1470 | AM55: 866 | AN55: 567 | AO55: 645 | AP55: 432 | AQ55: 43 | AR55: 219 | AS55: 240 | AT55: 748
A56: 1 | B56: 43 | C56: 130106 | E56: 00005231 | F56: HOSPITAL DISTRITAL DE LAREDO | G56: LAREDO | H56: 32912.32811 | I56: 434.4157614 | J56: 489.0377825 | K56: 532.5647056 | L56: 565.8499996 | M56: 585.4797885 | N56: 520.6161384 | O56: 531.7112365 | P56: 531.7112365 | Q56: 527.4438911 | R56: 525.7369529 | S56: 486.4773753 | T56: 472.82187 | U56: 465.1406483 | V56: 463.4337101 | W56: 466.8475864 | X56: 413.0790344 | Y56: 411.3720963 | Z56: 411.3720963 | AA56: 414.7859726 | AB56: 419.053318 | AC56: 2571.502336 | AD56: 2620.150074 | AE56: 2609.054976 | AF56: 2469.086047 | AG56: 2616.736197 | AH56: 2284.736726 | AI56: 1569.529637 | AJ56: 2039.7911 | AK56: 1434.681522 | AL56: 1254.599547 | AM56: 739.1042228 | AN56: 483.916968 | AO56: 550.4875562 | AP56: 368.6986423 | AQ56: 36.69917041 | AR56: 186.9097284 | AS56: 204.8325791 | AT56: 638.3948714
A57: 2 | B57: 44 | C57: 130106 | E57: 00005232 | F57: PUESTO DE SALUD | G57: MENOCUCHO | H57: 4389.118744 | I57: 57.93277081 | J57: 65.21704847 | K57: 71.02170723 | L57: 75.46056394 | M57: 78.07835122 | N57: 69.4282715 | O57: 70.9078904 | P57: 70.9078904 | Q57: 70.3388062 | R57: 70.11117253 | S57: 64.87559795 | T57: 63.05452854 | U57: 62.03017699 | V57: 61.80254331 | W57: 62.25781067 | X57: 55.08734984 | Y57: 54.85971617 | Z57: 54.85971617 | AA57: 55.31498352 | AB57: 55.88406771 | AC57: 342.9301345 | AD57: 349.4176942 | AE57: 347.9380753 | AF57: 329.2721138 | AG57: 348.9624269 | AH57: 304.6876767 | AI57: 209.309166 | AJ57: 272.0222441 | AK57: 191.3261055 | AL57: 167.3107526 | AM57: 98.56538216 | AN57: 64.53414744 | AO57: 73.41186084 | AP57: 49.16887424 | AQ57: 4.894124056 | AR57: 24.92588764 | AS57: 27.31604124 | AT57: 85.13499521
A58: 3 | B58: 45 | C58: 130106 | E58: 00005233 | F58: PUESTO DE SALUD | G58: SANTO DOMINGO | H58: 1261.553147 | I58: 16.65146777 | J58: 18.74516903 | K58: 20.41358721 | L58: 21.68943641 | M58: 22.4418603 | N58: 19.95559006 | O58: 20.38087313 | P58: 20.38087313 | Q58: 20.21730272 | R58: 20.15187456 | S58: 18.64702678 | T58: 18.12360147 | U58: 17.82917473 | V58: 17.76374657 | W58: 17.89460289 | X58: 15.83361572 | Y58: 15.76818756 | Z58: 15.76818756 | AA58: 15.89904389 | AB58: 16.0626143 | AC58: 98.56752928 | AD58: 100.432232 | AE58: 100.0069489 | AF58: 94.64183944 | AG58: 100.3013756 | AH58: 87.57559771 | AI58: 60.16119693 | AJ58: 78.18665615 | AK58: 54.99237196 | AL58: 48.08970065 | AM58: 28.33039507 | AN58: 18.54888453 | AO58: 21.10058294 | AP58: 14.13248346 | AQ58: 1.406705529 | AR58: 7.164383974 | AS58: 7.851379697 | AT58: 24.47013339
C59: 130107 | D59: MOCHE (7) | H59: 37620 | I59: =SUM(I60:I65) -> 661 | J59: =SUM(J60:J65) -> 635 | K59: =SUM(K60:K65) -> 615 | L59: 606 | M59: 611 | N59: 524 | O59: 535 | P59: 547 | Q59: 563 | R59: 575 | S59: 562 | T59: 579 | U59: 592 | V59: 590 | W59: 573 | X59: 504 | Y59: 492 | Z59: 487 | AA59: 489 | AB59: 503 | AC59: 3078 | AD59: 3263 | AE59: 3364 | AF59: 3346 | AG59: 3173 | AH59: 2284 | AI59: 1980 | AJ59: 1909 | AK59: 893 | AL59: 1216 | AM59: 822 | AN59: 400 | AO59: 649 | AP59: 602 | AQ59: 42 | AR59: 289 | AS59: 306 | AT59: 819
A60: 1 | B60: 46 | C60: 130107 | E60: 00007152 | F60: HOSPITAL | G60: ALTO MOCHE-WALTER CRUZ VILCA | H60: 10727.27815 | I60: 188.4830105 | J60: 181.0691553 | K60: 175.3661898 | L60: 172.7998553 | M60: 174.2255967 | N60: 149.4176967 | O60: 152.5543277 | P60: 155.976107 | Q60: 160.5384795 | R60: 163.9602588 | S60: 160.2533312 | T60: 165.1008519 | U60: 168.8077795 | V60: 168.2374829 | W60: 163.3899622 | X60: 143.7147312 | Y60: 140.2929518 | Z60: 138.8672105 | AA60: 139.437507 | AB60: 143.4295829 | AC60: 877.6863939 | AD60: 930.438825 | AE60: 959.2388009 | AF60: 954.1061319 | AG60: 904.7754801 | AH60: 651.2786626 | AI60: 564.5935867 | AJ60: 544.3480591 | AK60: 254.6374106 | AL60: 346.7403038 | AM60: 234.391883 | AN60: 114.0593104 | AO60: 185.0612312 | AP60: 171.6592622 | AQ60: 11.9762276 | AR60: 82.4078518 | AS60: 87.25537249 | AT60: 233.5364381
A61: 2 | B61: 47 | C61: 130107 | E61: 00005234 | F61: CENTRO DE SALUD CON CAMAS DE INTERNAMIENTO | G61: SANTA LUCIA DE MOCHE | H61: 11874.77695 | I61: 208.6450708 | J61: 200.4381542 | K61: 194.1251415 | L61: 191.2842858 | M61: 192.862539 | N61: 165.4009336 | O61: 168.8730906 | P61: 172.6608982 | Q61: 177.7113084 | R61: 181.4991161 | S61: 177.3956578 | T61: 182.7617186 | U61: 186.8651769 | V61: 186.2338756 | W61: 180.8678148 | X61: 159.0879209 | Y61: 155.3001132 | Z61: 153.72186 | AA61: 154.3531613 | AB61: 158.7722702 | AC61: 971.5726595 | AD61: 1029.968027 | AE61: 1061.848742 | AF61: 1056.16703 | AG61: 1001.55947 | AH61: 720.946054 | AI61: 624.9882605 | AJ61: 602.5770653 | AK61: 281.8760185 | AL61: 383.8311741 | AM61: 259.4648233 | AN61: 126.2602546 | AO61: 204.8572632 | AP61: 190.0216832 | AQ61: 13.25732674 | AR61: 91.22303398 | AS61: 96.5890948 | AT61: 258.5178714
A62: 3 | B62: 48 | C62: 130107 | E62: 00005235 | F62: CENTRO DE SALUD | G62: ALTO MOCHE | H62: 7383.855827 | I62: 129.737605 | J62: 124.6344617 | K62: 120.7089669 | L62: 118.9424942 | M62: 119.9238679 | N62: 102.8479653 | O62: 105.0069874 | P62: 107.3622843 | Q62: 110.5026802 | R62: 112.8579771 | S62: 110.3064055 | T62: 113.6430761 | U62: 116.1946478 | V62: 115.8020983 | W62: 112.4654277 | X62: 98.9224704 | Y62: 96.56717349 | Z62: 95.58579978 | AA62: 95.97834926 | AB62: 98.72619566 | AC62: 604.1336585 | AD62: 640.444486 | AE62: 660.268235 | AF62: 656.7352896 | AG62: 622.7797591 | AH62: 448.2915127 | AI62: 388.6239909 | AJ62: 374.6884841 | AK62: 175.2733454 | AL62: 238.6700873 | AM62: 161.3378386 | AN62: 78.50989715 | AO62: 127.3823081 | AP62: 118.1573952 | AQ62: 8.2435392 | AR62: 56.72340069 | AS62: 60.06007132 | AT62: 160.7490144
A63: 4 | B63: 49 | C63: 130107 | E63: 00005236 | F63: PUESTO DE SALUD | G63: ELIO JACOBO CAFFO | H63: 2345.234579 | I63: 41.20680641 | J63: 39.58596379 | K63: 38.33916178 | L63: 37.77810088 | M63: 38.08980138 | N63: 32.66621264 | O63: 33.35195375 | P63: 34.10003495 | Q63: 35.09747656 | R63: 35.84555777 | S63: 35.03513646 | T63: 36.09491817 | U63: 36.90533947 | V63: 36.78065927 | W63: 35.72087757 | X63: 31.41941063 | Y63: 30.67132943 | Z63: 30.35962893 | AA63: 30.48430913 | AB63: 31.35707053 | AC63: 191.8828292 | AD63: 203.4157478 | AE63: 209.712098 | AF63: 208.5899761 | AG63: 197.8051388 | AH63: 142.3847895 | AI63: 123.4333989 | AJ63: 119.0072518 | AK63: 55.66970971 | AL63: 75.80556216 | AM63: 51.24356258 | AN63: 24.93604019 | AO63: 40.4587252 | AP63: 37.52874048 | AQ63: 2.618284219 | AR63: 18.01628903 | AS63: 19.07607074 | AT63: 51.05654228
A64: 5 | B64: 50 | C64: 130107 | E64: 00005237 | F64: PUESTO DE SALUD | G64: SAN PEDRO - DELICIAS | H64: 4240.452075 | I64: 74.50661408 | J64: 71.57594545 | K64: 69.32158496 | L64: 68.30712275 | M64: 68.87071287 | N64: 59.06424475 | O64: 60.30414302 | P64: 61.65675931 | Q64: 63.4602477 | R64: 64.81286399 | S64: 63.34752967 | T64: 65.26373609 | U64: 66.7290704 | V64: 66.50363436 | W64: 64.58742794 | X64: 56.80988426 | Y64: 55.45726797 | Z64: 54.89367785 | AA64: 55.1191139 | AB64: 56.69716624 | AC64: 346.9460789 | AD64: 367.7989134 | AE64: 379.1834339 | AF64: 377.1545094 | AG64: 357.6542912 | AH64: 257.4479676 | AI64: 223.1816882 | AJ64: 215.1787085 | AK64: 100.6571957 | AL64: 137.0651176 | AM64: 92.654216 | AN64: 45.08720973 | AO64: 73.15399779 | AP64: 67.85625065 | AQ64: 4.734157022 | AR64: 32.57550903 | AS64: 34.49171545 | AT64: 92.31606193
A65: 6 | B65: 51 | C65: 130107 | E65: 00007151 | F65: PUESTO DE SALUD | G65: CURVA DE SUN | H65: 1048.402422 | I65: 18.42089316 | J65: 17.69631945 | K65: 17.13895506 | L65: 16.88814109 | M65: 17.02748218 | N65: 14.60294708 | O65: 14.90949749 | P65: 15.24391613 | Q65: 15.68980764 | R65: 16.02422628 | S65: 15.66193942 | T65: 16.13569916 | U65: 16.49798601 | V65: 16.44224957 | W65: 15.96848984 | X65: 14.04558269 | Y65: 13.71116405 | Z65: 13.57182295 | AA65: 13.62755939 | AB65: 14.01771447 | AC65: 85.77837997 | AD65: 90.9340006 | AE65: 93.74869078 | AF65: 93.24706283 | AG65: 88.42586084 | AH65: 63.6510136 | AI65: 55.17907484 | AJ65: 53.20043124 | AK65: 24.88632012 | AL65: 33.88775505 | AM65: 22.90767652 | AN65: 11.14728785 | AO65: 18.08647453 | AP65: 16.77666821 | AQ65: 1.170465224 | AR65: 8.053915468 | AS65: 8.527675202 | AT65: 22.82407186
C66: 130108 | D66: POROTO (8) | H66: 3590 | I66: =+I67 -> 124 | J66: =+J67 -> 103 | K66: =+K67 -> 83 | L66: =+L67 -> 79 | M66: 71 | N66: 58 | O66: 58 | P66: 58 | Q66: 61 | R66: 64 | S66: 62 | T66: 66 | U66: 66 | V66: 61 | W66: 56 | X66: 40 | Y66: 30 | Z66: 30 | AA66: 30 | AB66: 35 | AC66: 258 | AD66: 289 | AE66: 262 | AF66: 323 | AG66: 228 | AH66: 153 | AI66: 103 | AJ66: 100 | AK66: 136 | AL66: 184 | AM66: 115 | AN66: 136 | AO66: 68 | AP66: 115 | AQ66: 5 | AR66: 133 | AS66: 8 | AT66: 126
A67: 1 | B67: 52 | C67: 130108 | E67: 00005238 | F67: CENTRO DE SALUD | G67: POROTO | H67: 3590 | I67: 124 | J67: 103 | K67: 83 | L67: 79 | M67: 71 | N67: 58 | O67: 58 | P67: 58 | Q67: 61 | R67: 64 | S67: 62 | T67: 66 | U67: 66 | V67: 61 | W67: 56 | X67: 40 | Y67: 30 | Z67: 30 | AA67: 30 | AB67: 35 | AC67: 258 | AD67: 289 | AE67: 262 | AF67: 323 | AG67: 228 | AH67: 153 | AI67: 103 | AJ67: 100 | AK67: 136 | AL67: 184 | AM67: 115 | AN67: 136 | AO67: 68 | AP67: 115 | AQ67: 5 | AR67: 133 | AS67: 8 | AT67: 126
C68: 130109 | D68: SALAVERRY (9) | H68: 19846 | I68: =SUM(I69:I70) -> 462 | J68: =SUM(J69:J70) -> 408 | K68: =SUM(K69:K70) -> 363 | L68: 330 | M68: 321 | N68: 265 | O68: 260 | P68: 265 | Q68: 272 | R68: 290 | S68: 279 | T68: 296 | U68: 311 | V68: 314 | W68: 309 | X68: 274 | Y68: 276 | Z68: 276 | AA68: 274 | AB68: 271 | AC68: 1616 | AD68: 1909 | AE68: 1864 | AF68: 1705 | AG68: 1133 | AH68: 1406 | AI68: 1020 | AJ68: 647 | AK68: 940 | AL68: 401 | AM68: 306 | AN68: 308 | AO68: 475 | AP68: 463 | AQ68: 28 | AR68: 245 | AS68: 173 | AT68: 483
A69: 1 | B69: 53 | C69: 130109 | E69: 00005239 | F69: CENTRO DE SALUD CON INTERNAMIENTO | G69: SALAVERRY | H69: 15298.07882 | I69: 356.1278049 | J69: 314.5024771 | K69: 279.8147039 | L69: 254.3770035 | M69: 247.4394489 | N69: 204.2724422 | O69: 200.4182452 | P69: 204.2724422 | Q69: 209.668318 | R69: 223.5434273 | S69: 215.0641939 | T69: 228.1684637 | U69: 239.7310548 | V69: 242.043573 | W69: 238.189376 | X69: 211.2099968 | Y69: 212.7516757 | Z69: 212.7516757 | AA69: 211.2099968 | AB69: 208.8974786 | AC69: 1245.676478 | AD69: 1471.532423 | AE69: 1436.84465 | AF69: 1314.281185 | AG69: 873.3610454 | AH69: 1083.800203 | AI69: 786.2561926 | AJ69: 498.7330947 | AK69: 724.5890403 | AL69: 309.1066012 | AM69: 235.8768578 | AN69: 237.4185366 | AO69: 366.1487172 | AP69: 356.8986443 | AQ69: 21.58350333 | AR69: 188.8556541 | AS69: 133.355217 | AT69: 372.3154324
A70: 2 | B70: 54 | C70: 130109 | E70: 00005240 | F70: PUESTO DE SALUD | G70: AURORA DIAZ | H70: 4547.921177 | I70: 105.8721951 | J70: 93.49752294 | K70: 83.18529615 | L70: 75.6229965 | M70: 73.56055114 | N70: 60.72755779 | O70: 59.58175481 | P70: 60.72755779 | Q70: 62.33168196 | R70: 66.45657268 | S70: 63.93580613 | T70: 67.83153625 | U70: 71.26894518 | V70: 71.95642697 | W70: 70.81062399 | X70: 62.79000315 | Y70: 63.24832434 | Z70: 63.24832434 | AA70: 62.79000315 | AB70: 62.10252136 | AC70: 370.3235222 | AD70: 437.4675767 | AE70: 427.1553499 | AF70: 390.7188152 | AG70: 259.6389546 | AH70: 322.1997972 | AI70: 233.7438074 | AJ70: 148.2669053 | AK70: 215.4109597 | AL70: 91.89339877 | AM70: 70.12314221 | AN70: 70.5814634 | AO70: 108.8512828 | AP70: 106.1013557 | AQ70: 6.416496672 | AR70: 56.14434588 | AS70: 39.64478301 | AT70: 110.6845676
C71: 130110 | D71: SIMBAL (10) | H71: 4850 | I71: =+I72 -> 149 | J71: =+J72 -> 132 | K71: =+K72 -> 111 | L71: =+L72 -> 104 | M71: 98 | N71: 79 | O71: 73 | P71: 70 | Q71: 68 | R71: 65 | S71: 65 | T71: 66 | U71: 66 | V71: 64 | W71: 57 | X71: 52 | Y71: 52 | Z71: 54 | AA71: 61 | AB71: 68 | AC71: 547 | AD71: 376 | AE71: 248 | AF71: 545 | AG71: 226 | AH71: 314 | AI71: 223 | AJ71: 123 | AK71: 129 | AL71: 176 | AM71: 100 | AN71: 113 | AO71: 176 | AP71: 138 | AQ71: 2 | AR71: 142 | AS71: 15 | AT71: 140
A72: 1 | B72: 55 | C72: 130110 | E72: 00005241 | F72: PUESTO DE SALUD | G72: SIMBAL | H72: 4850 | I72: 149 | J72: 132 | K72: 111 | L72: 104 | M72: 98 | N72: 79 | O72: 73 | P72: 70 | Q72: 68 | R72: 65 | S72: 65 | T72: 66 | U72: 66 | V72: 64 | W72: 57 | X72: 52 | Y72: 52 | Z72: 54 | AA72: 61 | AB72: 68 | AC72: 547 | AD72: 376 | AE72: 248 | AF72: 545 | AG72: 226 | AH72: 314 | AI72: 223 | AJ72: 123 | AK72: 129 | AL72: 176 | AM72: 100 | AN72: 113 | AO72: 176 | AP72: 138 | AQ72: 2 | AR72: 142 | AS72: 15 | AT72: 140
C73: 130111 | D73: VICTOR LARCO HERRERA (11) | H73: 70531 | I73: =SUM(I74:I78) -> 890 | J73: =SUM(J74:J78) -> 830 | K73: =SUM(K74:K78) -> 785 | L73: 759 | M73: 748 | N73: 640 | O73: 644 | P73: 655 | Q73: 680 | R73: 704 | S73: 702 | T73: 739 | U73: 789 | V73: 869 | W73: 958 | X73: 934 | Y73: 1021 | Z73: 1071 | AA73: 1066 | AB73: 1015 | AC73: 5669 | AD73: 6811 | AE73: 6011 | AF73: 5386 | AG73: 5250 | AH73: 4753 | AI73: 4922 | AJ73: 4730 | AK73: 2950 | AL73: 2342 | AM73: 1836 | AN73: 1325 | AO73: 2047 | AP73: 808 | AQ73: 64 | AR73: 405 | AS73: 396 | AT73: 1114
A74: 1 | B74: 56 | C74: 130111 | E74: 00005243 | F74: HOSPITAL | G74: VISTA ALEGRE | H74: 25226.42013 | I74: 318.3212192 | J74: 296.8613617 | K74: 280.7664686 | L74: 271.4671971 | M74: 267.5328899 | N74: 228.9051464 | O74: 230.3358036 | P74: 234.2701108 | Q74: 243.211718 | R74: 251.795661 | S74: 251.0803325 | T74: 264.3139112 | U74: 282.1971258 | V74: 310.8102691 | W74: 342.642391 | X74: 334.058448 | Y74: 365.1752414 | Z74: 383.0584559 | AA74: 381.2701345 | AB74: 363.0292556 | AC74: 2027.598867 | AD74: 2436.051488 | AE74: 2149.920055 | AF74: 1926.379873 | AG74: 1877.737529 | AH74: 1699.978376 | AI74: 1760.423642 | AJ74: 1691.752098 | AK74: 1055.109659 | AL74: 837.6497701 | AM74: 656.6716387 | AN74: 473.9051859 | AO74: 732.1388042 | AP74: 288.9927473 | AQ74: 22.89051464 | AR74: 144.854038 | AS74: 141.6350593 | AT74: 398.4380204
A75: 2 | B75: 57 | C75: 130111 | E75: 00005242 | F75: CENTRO DE SALUD | G75: VICTOR LARCO HERRERA | H75: 17133.13923 | I75: 216.195629 | J75: 201.6206428 | K75: 190.6894031 | L75: 184.3735758 | M75: 181.701495 | N75: 155.4665198 | O75: 156.4381855 | P75: 159.1102663 | Q75: 165.1831772 | R75: 171.0131717 | S75: 170.5273389 | T75: 179.515247 | U75: 191.6610689 | V75: 211.0943839 | W75: 232.7139468 | X75: 226.8839523 | Y75: 248.0176823 | Z75: 260.1635042 | AA75: 258.948922 | AB75: 246.5601837 | AC75: 1377.093282 | AD75: 1654.503853 | AE75: 1460.170704 | AF75: 1308.34793 | AG75: 1275.311295 | AH75: 1154.581826 | AI75: 1195.634703 | AJ75: 1148.994748 | AK75: 716.6034895 | AL75: 568.9102957 | AM75: 445.9945785 | AN75: 321.8642792 | AO75: 497.2499468 | AP75: 196.2764812 | AQ75: 15.54665198 | AR75: 98.38115703 | AS75: 96.1949091 | AT75: 270.6089109
A76: 3 | B76: 58 | C76: 130111 | E76: 00005245 | F76: CENTRO DE SALUD | G76: LIBERACION SOCIAL | H76: 14263.86019 | I76: 179.9894454 | J76: 167.8553255 | K76: 158.7547355 | L76: 153.4966169 | M76: 151.2720282 | N76: 129.4306124 | O76: 130.2395537 | P76: 132.4641424 | Q76: 137.5200257 | R76: 142.3736736 | S76: 141.969203 | T76: 149.4519103 | U76: 159.5636768 | V76: 175.7425034 | W76: 193.7414479 | X76: 188.8878 | Y76: 206.4822738 | Z76: 216.5940404 | AA76: 215.5828638 | AB76: 205.2688619 | AC76: 1146.472096 | AD76: 1377.424845 | AE76: 1215.63658 | AF76: 1089.239497 | AG76: 1061.735492 | AH76: 961.2245324 | AI76: 995.4023035 | AJ76: 956.5731198 | AK76: 596.594229 | AL76: 473.6351472 | AM76: 371.3040693 | AN76: 267.9618147 | AO76: 413.9757243 | AP76: 163.4061482 | AQ76: 12.94306124 | AR76: 81.90530941 | AS76: 80.08519142 | AT76: 225.2901597
A77: 4 | B77: 59 | C77: 130111 | E77: 00005244 | F77: PUESTO DE SALUD | G77: BUENOS AIRES SUR | H77: 8027.089651 | I77: 101.2903516 | J77: 94.46178858 | K77: 89.34036631 | L77: 86.38132233 | M77: 85.12941911 | N77: 72.83800566 | O77: 73.29324319 | P77: 74.54514641 | Q77: 77.39038101 | R77: 80.12180622 | S77: 79.89418745 | T77: 84.10513466 | U77: 89.79560385 | V77: 98.90035455 | W77: 109.0293897 | X77: 106.2979645 | Y77: 116.1993809 | Z77: 121.8898501 | AA77: 121.3208032 | AB77: 115.5165246 | AC77: 645.185397 | AD77: 775.1557133 | AE77: 684.1082062 | AF77: 612.9773413 | AG77: 597.4992651 | AH77: 540.9360014 | AI77: 560.1697872 | AJ77: 538.3183855 | AK77: 335.7376823 | AL77: 266.5415769 | AM77: 208.9540287 | AN77: 150.7974336 | AO77: 232.9678087 | AP77: 91.95798214 | AQ77: 7.283800566 | AR77: 46.09280045 | AS77: 45.068516 | AT77: 126.7836536
A78: 5 | B78: 60 | C78: 130111 | E78: 00005246 | F78: PUESTO DE SALUD | G78: HUAMAN | H78: 5880.490804 | I78: 74.20335478 | J78: 69.20088142 | K78: 65.4490264 | L78: 63.28128795 | M78: 62.36416783 | N78: 53.35971579 | O78: 53.69321402 | P78: 54.61033413 | Q78: 56.69469803 | R78: 58.69568737 | S78: 58.52893826 | T78: 61.61379683 | U78: 65.78252463 | V78: 72.4524891 | W78: 79.87282458 | X78: 77.87183524 | Y78: 85.1254216 | Z78: 89.2941494 | AA78: 88.87727662 | AB78: 84.62517427 | AC78: 472.6503576 | AD78: 567.8641004 | AE78: 501.1644557 | AF78: 449.0553582 | AG78: 437.7164186 | AH78: 396.2792643 | AI78: 410.3695643 | AJ78: 394.3616495 | AK78: 245.95494 | AL78: 195.26321 | AM78: 153.0756847 | AN78: 110.4712866 | AO78: 170.667716 | AP78: 67.36664119 | AQ78: 5.335971579 | AR78: 33.76669515 | AS78: 33.01632415 | AT78: 92.8792553
C79: 130200 | D79: ASCOPE (2) | H79: 133069 | I79: =+I80+I82+I85+I88+I90+I93+I95+I98 -> 2180 | J79: =+J80+J82+J85+J88+J90+J93+J95+J98 -> 2038 | K79: =+K80+K82+K85+K88+K90+K93+K95+K98 -> 1967 | L79: 1949 | M79: 2003 | N79: 1749 | O79: 1804 | P79: 1860 | Q79: 1895 | R79: 1961 | S79: 1891 | T79: 1965 | U79: 2009 | V79: 1965 | W79: 1882 | X79: 1619 | Y79: 1561 | Z79: 1526 | AA79: 1510 | AB79: 1513 | AC79: 9233 | AD79: 10571 | AE79: 10495 | AF79: 11132 | AG79: 10359 | AH79: 9165 | AI79: 8409 | AJ79: 6848 | AK79: 6864 | AL79: 4929 | AM79: 3637 | AN79: 1849 | AO79: 2731 | AP79: 1965 | AQ79: 132 | AR79: 1362 | AS79: 710 | AT79: 2700
C80: 130201 | D80: ASCOPE (1) | H80: 7504 | I80: =+I81 -> 251 | J80: =+J81 -> 174 | K80: =+K81 -> 122 | L80: 88 | M80: 70 | N80: 52 | O80: 52 | P80: 53 | Q80: 59 | R80: 69 | S80: 73 | T80: 90 | U80: 106 | V80: 112 | W80: 113 | X80: 102 | Y80: 106 | Z80: 106 | AA80: 100 | AB80: 89 | AC80: 471 | AD80: 586 | AE80: 623 | AF80: 471 | AG80: 617 | AH80: 556 | AI80: 520 | AJ80: 387 | AK80: 200 | AL80: 296 | AM80: 342 | AN80: 228 | AO80: 220 | AP80: 205 | AQ80: 9 | AR80: 241 | AS80: 26 | AT80: 252
A81: 1 | B81: 61 | C81: 130201 | E81: 00005263 | F81: HOSPITAL | G81: ASCOPE "ROSA SANCHEZ DE SANTILLAN" | H81: 7504 | I81: 251 | J81: 174 | K81: 122 | L81: 88 | M81: 70 | N81: 52 | O81: 52 | P81: 53 | Q81: 59 | R81: 69 | S81: 73 | T81: 90 | U81: 106 | V81: 112 | W81: 113 | X81: 102 | Y81: 106 | Z81: 106 | AA81: 100 | AB81: 89 | AC81: 471 | AD81: 586 | AE81: 623 | AF81: 471 | AG81: 617 | AH81: 556 | AI81: 520 | AJ81: 387 | AK81: 200 | AL81: 296 | AM81: 342 | AN81: 228 | AO81: 220 | AP81: 205 | AQ81: 9 | AR81: 241 | AS81: 26 | AT81: 252
C82: 130202 | D82: CHICAMA (2) | H82: 17099 | I82: =SUM(I83:I84) -> 351 | J82: =SUM(J83:J84) -> 303 | K82: 263 | L82: 242 | M82: 244 | N82: 209 | O82: 219 | P82: 231 | Q82: 246 | R82: 265 | S82: 271 | T82: 301 | U82: 313 | V82: 290 | W82: 265 | X82: 203 | Y82: 178 | Z82: 164 | AA82: 166 | AB82: 177 | AC82: 1209 | AD82: 1545 | AE82: 1066 | AF82: 1437 | AG82: 1331 | AH82: 1318 | AI82: 989 | AJ82: 775 | AK82: 965 | AL82: 670 | AM82: 443 | AN82: 207 | AO82: 243 | AP82: 366 | AQ82: 20 | AR82: 206 | AS82: 114 | AT82: 346
A83: 1 | B83: 62 | C83: 130202 | E83: 00005264 | F83: CENTRO DE SALUD CON CAMAS DE INTERNAMIENTO | G83: MATERNO CHICAMA | H83: 11545.54436 | I83: 237.0013493 | J83: 204.5909084 | K83: 177.5822076 | L83: 163.4026397 | M83: 164.7530747 | N83: 141.1204616 | O83: 147.8726368 | P83: 155.975247 | Q83: 166.1035098 | R83: 178.9326426 | S83: 182.9839478 | T83: 203.2404733 | U83: 211.3430836 | V83: 195.8130806 | W83: 178.9326426 | X83: 137.0691564 | Y83: 120.1887185 | Z83: 110.7356732 | AA83: 112.0861082 | AB83: 119.5135009 | AC83: 816.337981 | AD83: 1043.211068 | AE83: 719.7818757 | AF83: 970.2875754 | AG83: 898.7145184 | AH83: 889.9366906 | AI83: 667.7901267 | AJ83: 523.2935776 | AK83: 651.5849062 | AL83: 452.395738 | AM83: 299.1213611 | AN83: 139.7700265 | AO83: 164.0778572 | AP83: 247.1296121 | AQ83: 13.50435039 | AR83: 139.094809 | AS83: 76.97479721 | AT83: 233.6252617
A84: 2 | B84: 63 | C84: 130202 | E84: 00005265 | F84: CENTRO DE SALUD | G84: ALTO PERU | H84: 5553.455635 | I84: 113.9986507 | J84: 98.40909162 | K84: 85.41779239 | L84: 78.5973603 | M84: 79.24692526 | N84: 67.87953844 | O84: 71.12736325 | P84: 75.02475301 | Q84: 79.89649022 | R84: 86.06735735 | S84: 88.01605224 | T84: 97.75952665 | U84: 101.6569164 | V84: 94.18691937 | W84: 86.06735735 | X84: 65.93084356 | Y84: 57.81128154 | Z84: 53.26432681 | AA84: 53.91389178 | AB84: 57.48649906 | AC84: 392.662019 | AD84: 501.7889325 | AE84: 346.2181243 | AF84: 466.7124246 | AG84: 432.2854816 | AH84: 428.0633094 | AI84: 321.2098733 | AJ84: 251.7064224 | AK84: 313.4150938 | AL84: 217.604262 | AM84: 143.8786389 | AN84: 67.22997348 | AO84: 78.92214278 | AP84: 118.8703879 | AQ84: 6.495649612 | AR84: 66.905191 | AS84: 37.02520279 | AT84: 112.3747383
C85: 130203 | D85: CHOCOPE (3) | H85: 10398 | I85: =SUM(I86:I87) -> 52 | J85: =SUM(J86:J87) -> 90 | K85: 127 | L85: 159 | M85: 181 | N85: 171 | O85: 182 | P85: 184 | Q85: 175 | R85: 166 | S85: 151 | T85: 137 | U85: 131 | V85: 132 | W85: 133 | X85: 126 | Y85: 127 | Z85: 128 | AA85: 121 | AB85: 109 | AC85: 606 | AD85: 844 | AE85: 916 | AF85: 946 | AG85: 781 | AH85: 830 | AI85: 682 | AJ85: 613 | AK85: 502 | AL85: 263 | AM85: 219 | AN85: 227 | AO85: 187 | AP85: 36 | AQ85: 9 | AR85: 17 | AS85: 30 | AT85: 163
A86: 1 | B86: 64 | C86: 130203 | E86: 00005266 | F86: CENTRO DE SALUD | G86: CHOCOPE | H86: 8440.291132 | I86: 42.20957289 | J86: 73.05503 | K86: 103.0887646 | L86: 129.0638863 | M86: 146.9217825 | N86: 138.804557 | O86: 147.7335051 | P86: 149.3569502 | Q86: 142.0514472 | R86: 134.7459442 | S86: 122.5701059 | T86: 111.2059901 | U86: 106.3356548 | V86: 107.1473773 | W86: 107.9590999 | X86: 102.277042 | Y86: 103.0887646 | Z86: 103.9004871 | AA86: 98.21842922 | AB86: 88.47775855 | AC86: 491.9038686 | AD86: 685.0938369 | AE86: 743.5378609 | AF86: 767.8895375 | AG86: 633.9553159 | AH86: 673.7297211 | AI86: 553.5947829 | AJ86: 497.5859265 | AK86: 407.4847229 | AL86: 213.4830321 | AM86: 177.7672397 | AN86: 184.2610201 | AO86: 151.7921179 | AP86: 29.222012 | AQ86: 7.305503 | AR86: 13.79928344 | AS86: 24.35167667 | AT86: 132.3107766
A87: 2 | B87: 65 | C87: 130203 | E87: 00005267 | F87: PUESTO DE SALUD | G87: MOLINOS DE CAJANLEQUE | H87: 1957.708868 | I87: 9.790427113 | J87: 16.94497 | K87: 23.91123545 | L87: 29.93611367 | M87: 34.07821745 | N87: 32.19544301 | O87: 34.26649489 | P87: 34.64304978 | Q87: 32.94855278 | R87: 31.25405578 | S87: 28.42989412 | T87: 25.79400989 | U87: 24.66434523 | V87: 24.85262267 | W87: 25.04090012 | X87: 23.722958 | Y87: 23.91123545 | Z87: 24.09951289 | AA87: 22.78157078 | AB87: 20.52224145 | AC87: 114.0961314 | AD87: 158.9061631 | AE87: 172.4621391 | AF87: 178.1104625 | AG87: 147.0446841 | AH87: 156.2702789 | AI87: 128.4052171 | AJ87: 115.4140735 | AK87: 94.51527713 | AL87: 49.5169679 | AM87: 41.23276034 | AN87: 42.7389799 | AO87: 35.20788212 | AP87: 6.777988001 | AQ87: 1.694497 | AR87: 3.200716556 | AS87: 5.648323334 | AT87: 30.68922345
C88: 130204 | D88: MAGDALENA DE CAO (4) | H88: 3591 | I88: =+I89 -> 16 | J88: =+J89 -> 32 | K88: 43 | L88: 57 | M88: 70 | N88: 57 | O88: 57 | P88: 55 | Q88: 51 | R88: 51 | S88: 41 | T88: 33 | U88: 30 | V88: 32 | W88: 39 | X88: 46 | Y88: 53 | Z88: 57 | AA88: 54 | AB88: 45 | AC88: 201 | AD88: 295 | AE88: 338 | AF88: 240 | AG88: 336 | AH88: 269 | AI88: 298 | AJ88: 141 | AK88: 136 | AL88: 152 | AM88: 72 | AN88: 90 | AO88: 104 | AP88: 10 | AQ88: 4 | AR88: 2 | AS88: 13 | AT88: 68
A89: 1 | B89: 66 | C89: 130204 | E89: 00005268 | F89: CENTRO DE SALUD | G89: MAGDALENA DE CAO | H89: 3591 | I89: 16 | J89: 32 | K89: 43 | L89: 57 | M89: 70 | N89: 57 | O89: 57 | P89: 55 | Q89: 51 | R89: 51 | S89: 41 | T89: 33 | U89: 30 | V89: 32 | W89: 39 | X89: 46 | Y89: 53 | Z89: 57 | AA89: 54 | AB89: 45 | AC89: 201 | AD89: 295 | AE89: 338 | AF89: 240 | AG89: 336 | AH89: 269 | AI89: 298 | AJ89: 141 | AK89: 136 | AL89: 152 | AM89: 72 | AN89: 90 | AO89: 104 | AP89: 10 | AQ89: 4 | AR89: 2 | AS89: 13 | AT89: 68
C90: 130205 | D90: PAIJAN (5) | H90: 27985 | I90: =SUM(I91:I92) -> 502 | J90: =SUM(J91:J92) -> 504 | K90: 506 | L90: 504 | M90: 513 | N90: 447 | O90: 453 | P90: 460 | Q90: 464 | R90: 474 | S90: 447 | T90: 456 | U90: 455 | V90: 436 | W90: 410 | X90: 350 | Y90: 327 | Z90: 320 | AA90: 322 | AB90: 331 | AC90: 2126 | AD90: 2324 | AE90: 2379 | AF90: 2096 | AG90: 1829 | AH90: 1548 | AI90: 1591 | AJ90: 1274 | AK90: 1161 | AL90: 927 | AM90: 867 | AN90: 429 | AO90: 753 | AP90: 447 | AQ90: 37 | AR90: 223 | AS90: 229 | AT90: 647
A91: 1 | B91: 67 | C91: 130205 | E91: 00005269 | F91: CENTRO DE SALUD CON CAMAS DE INTERNAMIENTO | G91: PAIJAN | H91: 24891.1556 | I91: 446.5020587 | J91: 448.2809513 | K91: 450.059844 | L91: 448.2809513 | M91: 456.2859683 | N91: 397.5825104 | O91: 402.9191884 | P91: 409.1453127 | Q91: 412.703098 | R91: 421.5975614 | S91: 397.5825104 | T91: 405.5875274 | U91: 404.6980811 | V91: 387.7986007 | W91: 364.6729961 | X91: 311.3062162 | Y91: 290.8489506 | Z91: 284.6228262 | AA91: 286.4017189 | AB91: 294.4067359 | AC91: 1890.962902 | AD91: 2067.073276 | AE91: 2115.992824 | AF91: 1864.279512 | AG91: 1626.797341 | AH91: 1376.862922 | AI91: 1415.109114 | AJ91: 1133.154627 | AK91: 1032.647191 | AL91: 824.5167498 | AM91: 771.1499698 | AN91: 381.5724764 | AO91: 669.753088 | AP91: 397.5825104 | AQ91: 32.90951428 | AR91: 198.346532 | AS91: 203.68321 | AT91: 575.4717768
A92: 2 | B92: 68 | C92: 130205 | E92: 00005270 | F92: PUESTO DE SALUD | G92: MACABI BAJO | H92: 3093.844399 | I92: 55.49794134 | J92: 55.71904868 | K92: 55.94015601 | L92: 55.71904868 | M92: 56.71403169 | N92: 49.4174896 | O92: 50.08081161 | P92: 50.85468728 | Q92: 51.29690196 | R92: 52.40243864 | S92: 49.4174896 | T92: 50.41247261 | U92: 50.30191894 | V92: 48.20139925 | W92: 45.32700388 | X92: 38.6937838 | Y92: 36.15104944 | Z92: 35.37717376 | AA92: 35.5982811 | AB92: 36.59326411 | AC92: 235.0370982 | AD92: 256.9267245 | AE92: 263.0071762 | AF92: 231.7204882 | AG92: 202.2026588 | AH92: 171.1370781 | AI92: 175.8908858 | AJ92: 140.845373 | AK92: 128.3528086 | AL92: 102.4832502 | AM92: 95.85003017 | AN92: 47.42752358 | AO92: 83.24691201 | AP92: 49.4174896 | AQ92: 4.090485716 | AR92: 24.65346797 | AS92: 25.31678997 | AT92: 71.5282232
C93: 130206 | D93: RAZURI (6) | H93: 9932 | I93: =+I94 -> 94 | J93: =+J94 -> 139 | K93: 183 | L93: 209 | M93: 243 | N93: 215 | O93: 218 | P93: 220 | Q93: 209 | R93: 193 | S93: 167 | T93: 151 | U93: 138 | V93: 129 | W93: 124 | X93: 105 | Y93: 100 | Z93: 98 | AA93: 108 | AB93: 120 | AC93: 894 | AD93: 972 | AE93: 770 | AF93: 651 | AG93: 762 | AH93: 579 | AI93: 627 | AJ93: 485 | AK93: 317 | AL93: 299 | AM93: 196 | AN93: 95 | AO93: 122 | AP93: 70 | AQ93: 6 | AR93: 35 | AS93: 50 | AT93: 199
A94: 1 | B94: 69 | C94: 130206 | E94: 00005271 | F94: CENTRO DE SALUD CON CAMAS DE INTERNAMIENTO | G94: RAZURI | H94: 9932 | I94: 94 | J94: 139 | K94: 183 | L94: 209 | M94: 243 | N94: 215 | O94: 218 | P94: 220 | Q94: 209 | R94: 193 | S94: 167 | T94: 151 | U94: 138 | V94: 129 | W94: 124 | X94: 105 | Y94: 100 | Z94: 98 | AA94: 108 | AB94: 120 | AC94: 894 | AD94: 972 | AE94: 770 | AF94: 651 | AG94: 762 | AH94: 579 | AI94: 627 | AJ94: 485 | AK94: 317 | AL94: 299 | AM94: 196 | AN94: 95 | AO94: 122 | AP94: 70 | AQ94: 6 | AR94: 35 | AS94: 50 | AT94: 199
C95: 130207 | D95: SANTIAGO DE CAO (7) | H95: 21883 | I95: =SUM(I96:I97) -> 495 | J95: =SUM(J96:J97) -> 381 | K95: 307 | L95: 269 | M95: 250 | N95: 211 | O95: 217 | P95: 230 | Q95: 248 | R95: 280 | S95: 287 | T95: 323 | U95: 350 | V95: 351 | W95: 327 | X95: 284 | Y95: 274 | Z95: 266 | AA95: 260 | AB95: 262 | AC95: 1464 | AD95: 1380 | AE95: 1792 | AF95: 1690 | AG95: 1789 | AH95: 1487 | AI95: 1535 | AJ95: 1016 | AK95: 1265 | AL95: 1207 | AM95: 698 | AN95: 247 | AO95: 441 | AP95: 465 | AQ95: 14 | AR95: 446 | AS95: 62 | AT95: 446
A96: 1 | B96: 70 | C96: 130207 | E96: 00005272 | F96: CENTRO DE SALUD | G96: SANTIAGO DE CAO | H96: 5993.892197 | I96: 135.5836329 | J96: 104.3583113 | K96: 84.089243 | L96: 73.6808025 | M96: 68.47658225 | N96: 57.79423542 | O96: 59.43767339 | P96: 62.99845567 | Q96: 67.92876959 | R96: 76.69377212 | S96: 78.61111642 | T96: 88.47174426 | U96: 95.86721515 | V96: 96.14112148 | W96: 89.56736958 | X96: 77.78939743 | Y96: 75.05033414 | Z96: 72.85908351 | AA96: 71.21564554 | AB96: 71.7634582 | AC96: 400.9988656 | AD96: 377.990734 | AE96: 490.8401416 | AF96: 462.901696 | AG96: 490.0184226 | AH96: 407.2987112 | AI96: 420.446215 | AJ96: 278.2888303 | AK96: 346.4915062 | AL96: 330.6049391 | AM96: 191.1866176 | AN96: 67.65486326 | AO96: 120.7926911 | AP96: 127.366443 | AQ96: 3.834688606 | AR96: 122.1622227 | AS96: 16.9821924 | AT96: 122.1622227
A97: 2 | B97: 71 | C97: 130207 | E97: 00005273 | F97: PUESTO DE SALUD | G97: SANTA ROSA DE CARTAVIO | H97: 15889.1078 | I97: 359.4163671 | J97: 276.6416887 | K97: 222.910757 | L97: 195.3191975 | M97: 181.5234178 | N97: 153.2057646 | O97: 157.5623266 | P97: 167.0015443 | Q97: 180.0712304 | R97: 203.3062279 | S97: 208.3888836 | T97: 234.5282557 | U97: 254.1327849 | V97: 254.8588785 | W97: 237.4326304 | X97: 206.2106026 | Y97: 198.9496659 | Z97: 193.1409165 | AA97: 188.7843545 | AB97: 190.2365418 | AC97: 1063.001134 | AD97: 1002.009266 | AE97: 1301.159858 | AF97: 1227.098304 | AG97: 1298.981577 | AH97: 1079.701289 | AI97: 1114.553785 | AJ97: 737.7111697 | AK97: 918.5084938 | AL97: 876.3950609 | AM97: 506.8133824 | AN97: 179.3451367 | AO97: 320.2073089 | AP97: 337.633557 | AQ97: 10.16531139 | AR97: 323.8377773 | AS97: 45.0178076 | AT97: 323.8377773
C98: 130208 | D98: CASA GRANDE (8) | H98: 34677 | I98: =SUM(I99:I101) -> 419 | J98: =SUM(J99:J101) -> 415 | K98: 416 | L98: 421 | M98: 432 | N98: 387 | O98: 406 | P98: 427 | Q98: 443 | R98: 463 | S98: 454 | T98: 474 | U98: 486 | V98: 483 | W98: 471 | X98: 403 | Y98: 396 | Z98: 387 | AA98: 379 | AB98: 380 | AC98: 2262 | AD98: 2625 | AE98: 2611 | AF98: 3601 | AG98: 2914 | AH98: 2578 | AI98: 2167 | AJ98: 2157 | AK98: 2318 | AL98: 1115 | AM98: 800 | AN98: 326 | AO98: 661 | AP98: 366 | AQ98: 33 | AR98: 192 | AS98: 186 | AT98: 579
A99: 1 | B99: 72 | C99: 130208 | E99: 00007631 | F99: CENTRO DE SALUD | G99: CASA GRANDE | H99: 24653.14332 | I99: 297.8823731 | J99: 295.0386273 | K99: 295.7495637 | L99: 299.304246 | M99: 307.1245469 | N99: 275.1324066 | O99: 288.6401992 | P99: 303.5698647 | Q99: 314.9448479 | R99: 329.1635769 | S99: 322.7651489 | T99: 336.9838779 | U99: 345.5151153 | V99: 343.382306 | W99: 334.8510685 | X99: 286.5073899 | Y99: 281.5308347 | Z99: 275.1324066 | AA99: 269.444915 | AB99: 270.1558515 | AC99: 1608.138253 | AD99: 1866.208185 | AE99: 1856.255074 | AF99: 2560.082161 | AG99: 2071.668819 | AH99: 1832.794171 | AI99: 1540.59929 | AJ99: 1533.489925 | AK99: 1647.950694 | AL99: 792.6941431 | AM99: 568.749161 | AN99: 231.7652831 | AO99: 469.9289943 | AP99: 260.2027412 | AQ99: 23.46090289 | AR99: 136.4997986 | AS99: 132.2341799 | AT99: 411.6322053
A100: 2 | B100: 73 | C100: 130208 | E100: 00005275 | F100: CENTRO DE SALUD | G100: ROMA "3 DE OCTUBRE" | H100: 7629.226889 | I100: 92.18346646 | J100: 91.30343337 | K100: 91.52344164 | L100: 92.62348301 | M100: 95.04357401 | N100: 85.14320172 | O100: 89.32335891 | P100: 93.94353265 | Q100: 97.46366502 | R100: 101.8638305 | S100: 99.88375602 | T100: 104.2839215 | U100: 106.9240208 | V100: 106.2639959 | W100: 103.6238967 | X100: 88.66333409 | Y100: 87.12327618 | Z100: 85.14320172 | AA100: 83.38313553 | AB100: 83.60314381 | AC100: 497.6587139 | AD100: 577.5217171 | AE100: 574.4416013 | AF100: 792.2497917 | AG100: 641.104108 | AH100: 567.1813283 | AI100: 476.757928 | AJ100: 474.5578452 | AK100: 509.9791772 | AL100: 245.3092246 | AM100: 176.0066185 | AN100: 71.72269706 | AO100: 145.4254686 | AP100: 80.52302798 | AQ100: 7.260273015 | AR100: 42.24158845 | AS100: 40.92153881 | AT100: 127.3847902
A101: 3 | B101: 74 | C101: 130208 | E101: 00005274 | F101: PUESTO DE SALUD | G101: MOCAN | H101: 2394.629791 | I101: 28.93416047 | J101: 28.65793937 | K101: 28.72699464 | L101: 29.07227102 | M101: 29.83187905 | N101: 26.72439165 | O101: 28.03644188 | P101: 29.48660267 | Q101: 30.59148708 | R101: 31.97259259 | S101: 31.35109511 | T101: 32.73220062 | U101: 33.56086393 | V101: 33.3536981 | W101: 32.5250348 | X101: 27.82927606 | Y101: 27.34588913 | Z101: 26.72439165 | AA101: 26.17194944 | AB101: 26.24100472 | AC101: 156.2030334 | AD101: 181.2700984 | AE101: 180.3033245 | AF101: 248.6680474 | AG101: 201.227073 | AH101: 178.0245004 | AI101: 149.6427822 | AJ101: 148.9522294 | AK101: 160.0701288 | AL101: 76.99663227 | AM101: 55.24422046 | AN101: 22.51201984 | AO101: 45.64553716 | AP101: 25.27423086 | AQ101: 2.278824094 | AR101: 13.25861291 | AS101: 12.84428126 | AT101: 39.98300456
C102: 130300 | D102: BOLIVAR (3) | H102: =SUM(I102:AO102) -> 18743 | I102: =+I103+I105+I108+I110+I113+I115 -> 417 | J102: =+J103+J105+J108+J110+J113+J115 -> 479 | K102: 503 | L102: 537 | M102: 540 | N102: 485 | O102: 487 | P102: 483 | Q102: 483 | R102: 471 | S102: 437 | T102: 439 | U102: 426 | V102: 389 | W102: 342 | X102: 269 | Y102: 227 | Z102: 204 | AA102: 181 | AB102: 179 | AC102: 1090 | AD102: 1322 | AE102: 1476 | AF102: 1265 | AG102: 1242 | AH102: 791 | AI102: 585 | AJ102: 744 | AK102: 399 | AL102: 362 | AM102: 744 | AN102: 360 | AO102: 385 | AP102: 422 | AQ102: 31 | AR102: 239 | AS102: 148 | AT102: 574
C103: 130301 | D103: BOLIVAR (1) | H103: 5477 | I103: =+I104 -> 123 | J103: =+J104 -> 144 | K103: 151 | L103: 155 | M103: 161 | N103: 141 | O103: 143 | P103: 137 | Q103: 137 | R103: 129 | S103: 120 | T103: 115 | U103: 111 | V103: 100 | W103: 91 | X103: 72 | Y103: 61 | Z103: 54 | AA103: 49 | AB103: 48 | AC103: 279 | AD103: 419 | AE103: 254 | AF103: 465 | AG103: 350 | AH103: 253 | AI103: 153 | AJ103: 272 | AK103: 49 | AL103: 157 | AM103: 298 | AN103: 49 | AO103: 237 | AP103: 117 | AQ103: 8 | AR103: 63 | AS103: 48 | AT103: 148
A104: 1 | B104: 75 | C104: 130301 | E104: 00005366 | F104: HOSPITAL | G104: BOLIVAR | H104: 5477 | I104: 123 | J104: 144 | K104: 151 | L104: 155 | M104: 161 | N104: 141 | O104: 143 | P104: 137 | Q104: 137 | R104: 129 | S104: 120 | T104: 115 | U104: 111 | V104: 100 | W104: 91 | X104: 72 | Y104: 61 | Z104: 54 | AA104: 49 | AB104: 48 | AC104: 279 | AD104: 419 | AE104: 254 | AF104: 465 | AG104: 350 | AH104: 253 | AI104: 153 | AJ104: 272 | AK104: 49 | AL104: 157 | AM104: 298 | AN104: 49 | AO104: 237 | AP104: 117 | AQ104: 8 | AR104: 63 | AS104: 48 | AT104: 148
C105: 130302 | D105: BAMBAMARCA (2) | H105: 4392 | I105: =SUM(I106:I107) -> 44 | J105: =SUM(J106:J107) -> 88 | K105: 127 | L105: 168 | M105: 184 | N105: 172 | O105: 167 | P105: 160 | Q105: 143 | R105: 125 | S105: 106 | T105: 87 | U105: 71 | V105: 65 | W105: 63 | X105: 51 | Y105: 46 | Z105: 45 | AA105: 44 | AB105: 47 | AC105: 322 | AD105: 240 | AE105: 394 | AF105: 305 | AG105: 250 | AH105: 106 | AI105: 112 | AJ105: 129 | AK105: 113 | AL105: 38 | AM105: 220 | AN105: 103 | AO105: 57 | AP105: 32 | AQ105: 8 | AR105: 16 | AS105: 24 | AT105: 139
A106: 1 | B106: 76 | C106: 130302 | E106: 00005368 | F106: CENTRO DE SALUD | G106: CALEMAR | H106: 1855.854143 | I106: 18.59234569 | J106: 37.18469138 | K106: 53.66427052 | L106: 70.98895628 | M106: 77.74980926 | N106: 72.67916952 | O106: 70.56640297 | P106: 67.60852979 | Q106: 60.4251235 | R106: 52.8191639 | S106: 44.79065099 | T106: 36.76213807 | U106: 30.00128509 | V106: 27.46596523 | W106: 26.6208586 | X106: 21.55021887 | Y106: 19.43745231 | Z106: 19.014899 | AA106: 18.59234569 | AB106: 19.86000563 | AC106: 136.0621662 | AD106: 101.4127947 | AE106: 166.4860046 | AF106: 128.8787599 | AG106: 105.6383278 | AH106: 44.79065099 | AI106: 47.32597085 | AJ106: 54.50937714 | AK106: 47.74852416 | AL106: 16.05702583 | AM106: 92.96172846 | AN106: 43.52299105 | AO106: 24.08553874 | AP106: 13.52170596 | AQ106: 3.38042649 | AR106: 6.760852979 | AS106: 10.14127947 | AT106: 58.73491026
A107: 2 | B107: 77 | C107: 130302 | E107: 00005367 | F107: PUESTO DE SALUD | G107: BAMBAMARCA | H107: 2536.145857 | I107: 25.40765431 | J107: 50.81530862 | K107: 73.33572948 | L107: 97.01104372 | M107: 106.2501907 | N107: 99.32083048 | O107: 96.43359703 | P107: 92.39147021 | Q107: 82.5748765 | R107: 72.1808361 | S107: 61.20934901 | T107: 50.23786193 | U107: 40.99871491 | V107: 37.53403477 | W107: 36.3791414 | X107: 29.44978113 | Y107: 26.56254769 | Z107: 25.985101 | AA107: 25.40765431 | AB107: 27.13999437 | AC107: 185.9378338 | AD107: 138.5872053 | AE107: 227.5139954 | AF107: 176.1212401 | AG107: 144.3616722 | AH107: 61.20934901 | AI107: 64.67402915 | AJ107: 74.49062286 | AK107: 65.25147584 | AL107: 21.94297417 | AM107: 127.0382715 | AN107: 59.47700895 | AO107: 32.91446126 | AP107: 18.47829404 | AQ107: 4.61957351 | AR107: 9.239147021 | AS107: 13.85872053 | AT107: 80.26508974
C108: 130303 | D108: CONDORMARCA (3) | H108: 2280 | I108: =+I109 -> 81 | J108: =+J109 -> 94 | K108: 91 | L108: 91 | M108: 76 | N108: 66 | O108: 66 | P108: 66 | Q108: 62 | R108: 63 | S108: 55 | T108: 54 | U108: 50 | V108: 50 | W108: 48 | X108: 43 | Y108: 43 | Z108: 41 | AA108: 34 | AB108: 32 | AC108: 101 | AD108: 82 | AE108: 153 | AF108: 97 | AG108: 199 | AH108: 106 | AI108: 79 | AJ108: 88 | AK108: 34 | AL108: 51 | AM108: 32 | AN108: 12 | AO108: 40 | AP108: 96 | AQ108: 4 | AR108: 57 | AS108: 20 | AT108: 72
A109: 1 | B109: 78 | C109: 130303 | E109: 00005369 | F109: PUESTO DE SALUD | G109: CONDORMARCA | H109: 2280 | I109: 81 | J109: 94 | K109: 91 | L109: 91 | M109: 76 | N109: 66 | O109: 66 | P109: 66 | Q109: 62 | R109: 63 | S109: 55 | T109: 54 | U109: 50 | V109: 50 | W109: 48 | X109: 43 | Y109: 43 | Z109: 41 | AA109: 34 | AB109: 32 | AC109: 101 | AD109: 82 | AE109: 153 | AF109: 97 | AG109: 199 | AH109: 106 | AI109: 79 | AJ109: 88 | AK109: 34 | AL109: 51 | AM109: 32 | AN109: 12 | AO109: 40 | AP109: 96 | AQ109: 4 | AR109: 57 | AS109: 20 | AT109: 72
C110: 130304 | D110: LONGOTEA (4) | H110: 2498 | I110: =SUM(I111:I112) -> 43 | J110: =SUM(J111:J112) -> 40 | K110: 33 | L110: 33 | M110: 38 | N110: 33 | O110: 35 | P110: 40 | Q110: 52 | R110: 62 | S110: 63 | T110: 78 | U110: 90 | V110: 80 | W110: 65 | X110: 52 | Y110: 42 | Z110: 37 | AA110: 31 | AB110: 24 | AC110: 133 | AD110: 143 | AE110: 332 | AF110: 162 | AG110: 136 | AH110: 153 | AI110: 101 | AJ110: 83 | AK110: 37 | AL110: 34 | AM110: 96 | AN110: 93 | AO110: 24 | AP110: 45 | AQ110: 3 | AR110: 23 | AS110: 16 | AT110: 63
A111: 1 | B111: 79 | C111: 130304 | E111: 00005371 | F111: PUESTO DE SALUD | G111: LONGOTEA | H111: 664.7194811 | I111: 11.44232894 | J111: 10.64402692 | K111: 8.781322208 | L111: 8.781322208 | M111: 10.11182557 | N111: 8.781322208 | O111: 9.313523554 | P111: 10.64402692 | Q111: 13.837235 | R111: 16.49824173 | S111: 16.7643424 | T111: 20.75585249 | U111: 23.94906057 | V111: 21.28805384 | W111: 17.29654374 | X111: 13.837235 | Y111: 11.17622827 | Z111: 9.8457249 | AA111: 8.249120863 | AB111: 6.386416152 | AC111: 35.39138951 | AD111: 38.05239624 | AE111: 88.34542343 | AF111: 43.10830902 | AG111: 36.18969153 | AH111: 40.71340297 | AI111: 26.87616797 | AJ111: 22.08635586 | AK111: 9.8457249 | AL111: 9.047422881 | AM111: 25.54566461 | AN111: 24.74736259 | AO111: 6.386416152 | AP111: 11.97453028 | AQ111: 0.798302019 | AR111: 6.120315479 | AS111: 4.257610768 | AT111: 16.7643424
A112: 2 | B112: 80 | C112: 130304 | E112: 00005372 | F112: CENTRO DE SALUD | G112: PUSAC | H112: 1833.280519 | I112: 31.55767106 | J112: 29.35597308 | K112: 24.21867779 | L112: 24.21867779 | M112: 27.88817443 | N112: 24.21867779 | O112: 25.68647645 | P112: 29.35597308 | Q112: 38.162765 | R112: 45.50175827 | S112: 46.2356576 | T112: 57.24414751 | U112: 66.05093943 | V112: 58.71194616 | W112: 47.70345626 | X112: 38.162765 | Y112: 30.82377173 | Z112: 27.1542751 | AA112: 22.75087914 | AB112: 17.61358385 | AC112: 97.60861049 | AD112: 104.9476038 | AE112: 243.6545766 | AF112: 118.891691 | AG112: 99.81030847 | AH112: 112.286597 | AI112: 74.12383203 | AJ112: 60.91364414 | AK112: 27.1542751 | AL112: 24.95257712 | AM112: 70.45433539 | AN112: 68.25263741 | AO112: 17.61358385 | AP112: 33.02546972 | AQ112: 2.201697981 | AR112: 16.87968452 | AS112: 11.74238923 | AT112: 46.2356576
C113: 130305 | D113: UCHUMARCA (5) | H113: 3128 | I113: =+I114 -> 103 | J113: =+J114 -> 84 | K113: 78 | L113: 65 | M113: 64 | N113: 55 | O113: 58 | P113: 63 | Q113: 69 | R113: 75 | S113: 76 | T113: 86 | U113: 86 | V113: 76 | W113: 58 | X113: 39 | Y113: 27 | Z113: 19 | AA113: 16 | AB113: 21 | AC113: 172 | AD113: 330 | AE113: 323 | AF113: 144 | AG113: 257 | AH113: 114 | AI113: 51 | AJ113: 163 | AK113: 82 | AL113: 68 | AM113: 89 | AN113: 102 | AO113: 15 | AP113: 97 | AQ113: 7 | AR113: 54 | AS113: 39 | AT113: 123
A114: 1 | B114: 81 | C114: 130305 | E114: 00005373 | F114: PUESTO DE SALUD | G114: UCHUMARCA | H114: 3128 | I114: 103 | J114: 84 | K114: 78 | L114: 65 | M114: 64 | N114: 55 | O114: 58 | P114: 63 | Q114: 69 | R114: 75 | S114: 76 | T114: 86 | U114: 86 | V114: 76 | W114: 58 | X114: 39 | Y114: 27 | Z114: 19 | AA114: 16 | AB114: 21 | AC114: 172 | AD114: 330 | AE114: 323 | AF114: 144 | AG114: 257 | AH114: 114 | AI114: 51 | AJ114: 163 | AK114: 82 | AL114: 68 | AM114: 89 | AN114: 102 | AO114: 15 | AP114: 97 | AQ114: 7 | AR114: 54 | AS114: 39 | AT114: 123
C115: 130306 | D115: UCUNCHA (6) | H115: 968 | I115: =+I116 -> 23 | J115: =+J116 -> 29 | K115: 23 | L115: 25 | M115: 17 | N115: 18 | O115: 18 | P115: 17 | Q115: 20 | R115: 17 | S115: 17 | T115: 19 | U115: 18 | V115: 18 | W115: 17 | X115: 12 | Y115: 8 | Z115: 8 | AA115: 7 | AB115: 7 | AC115: 83 | AD115: 108 | AE115: 20 | AF115: 92 | AG115: 50 | AH115: 59 | AI115: 89 | AJ115: 9 | AK115: 84 | AL115: 14 | AM115: 9 | AN115: 1 | AO115: 12 | AP115: 35 | AQ115: 1 | AR115: 26 | AS115: 1 | AT115: 29
A116: 1 | B116: 82 | C116: 130306 | E116: 00005374 | F116: PUESTO DE SALUD | G116: UCUNCHA | H116: 968 | I116: 23 | J116: 29 | K116: 23 | L116: 25 | M116: 17 | N116: 18 | O116: 18 | P116: 17 | Q116: 20 | R116: 17 | S116: 17 | T116: 19 | U116: 18 | V116: 18 | W116: 17 | X116: 12 | Y116: 8 | Z116: 8 | AA116: 7 | AB116: 7 | AC116: 83 | AD116: 108 | AE116: 20 | AF116: 92 | AG116: 50 | AH116: 59 | AI116: 89 | AJ116: 9 | AK116: 84 | AL116: 14 | AM116: 9 | AN116: 1 | AO116: 12 | AP116: 35 | AQ116: 1 | AR116: 26 | AS116: 1 | AT116: 29
C117: 130400 | D117: CHEPÉN (4) | H117: 95293 | I117: =+I118+I121+I124 -> 1762 | J117: =+J118+J121+J124 -> 1658 | K117: 1596 | L117: 1580 | M117: 1600 | N117: 1403 | O117: 1433 | P117: 1470 | Q117: 1525 | R117: 1556 | S117: 1511 | T117: 1575 | U117: 1602 | V117: 1556 | W117: 1487 | X117: 1252 | Y117: 1193 | Z117: 1159 | AA117: 1146 | AB117: 1167 | AC117: 7157 | AD117: 7708 | AE117: 8725 | AF117: 9044 | AG117: 7441 | AH117: 5412 | AI117: 4933 | AJ117: 3846 | AK117: 3896 | AL117: 2780 | AM117: 2270 | AN117: 1376 | AO117: 1474 | AP117: 1701 | AQ117: 110 | AR117: 943 | AS117: 655 | AT117: 1990
C118: 130401 | D118: CHEPÉN (1) | H118: 53430 | I118: =SUM(I119:I120) -> 1033 | J118: =SUM(J119:J120) -> 871 | K118: 762 | L118: 704 | M118: 666 | N118: 575 | O118: 589 | P118: 618 | Q118: 658 | R118: 707 | S118: 710 | T118: 776 | U118: 819 | V118: 814 | W118: 785 | X118: 670 | Y118: 644 | Z118: 629 | AA118: 626 | AB118: 634 | AC118: 3872 | AD118: 4065 | AE118: 5060 | AF118: 5114 | AG118: 4490 | AH118: 3375 | AI118: 3182 | AJ118: 2507 | AK118: 2369 | AL118: 1846 | AM118: 1372 | AN118: 944 | AO118: 944 | AP118: 1044 | AQ118: 54 | AR118: 597 | AS118: 344 | AT118: 1030
A119: 1 | B119: 83 | C119: 130401 | E119: 00005299 | F119: HOSPITAL DE APOYO | G119: CHEPEN | H119: 44933.32802 | I119: 868.7278279 | J119: 732.4897755 | K119: 640.8234316 | L119: 592.046845 | M119: 560.0897709 | N119: 483.5609884 | O119: 495.3346473 | P119: 519.7229406 | Q119: 553.3619659 | R119: 594.5697719 | S119: 597.0926987 | T119: 652.5970905 | U119: 688.7590426 | V119: 684.5541645 | W119: 660.1658712 | X119: 563.4536735 | Y119: 541.588307 | Z119: 528.9736726 | AA119: 526.4507457 | AB119: 533.1785507 | AC119: 3256.257647 | AD119: 3418.565944 | AE119: 4255.336698 | AF119: 4300.749382 | AG119: 3775.980588 | AH119: 2838.292758 | AI119: 2675.984461 | AJ119: 2108.32591 | AK119: 1992.271272 | AL119: 1552.441017 | AM119: 1153.818567 | AN119: 793.8809966 | AO119: 793.8809966 | AP119: 877.9785598 | AQ119: 45.41268413 | AR119: 502.0624523 | AS119: 289.2956174 | AT119: 866.204901
A120: 2 | B120: 84 | C120: 130401 | E120: 00005300 | F120: PUESTO DE SALUD | G120: CHEQUEN | H120: 8496.67198 | I120: 164.2721721 | J120: 138.5102245 | K120: 121.1765684 | L120: 111.953155 | M120: 105.9102291 | N120: 91.43901158 | O120: 93.66535273 | P120: 98.2770594 | Q120: 104.6380341 | R120: 112.4302281 | S120: 112.9073013 | T120: 123.4029095 | U120: 130.2409574 | V120: 129.4458355 | W120: 124.8341288 | X120: 106.5463265 | Y120: 102.411693 | Z120: 100.0263274 | AA120: 99.54925434 | AB120: 100.8214493 | AC120: 615.7423527 | AD120: 646.4340558 | AE120: 804.6633019 | AF120: 813.2506178 | AG120: 714.0194121 | AH120: 536.7072419 | AI120: 506.0155389 | AJ120: 398.6740905 | AK120: 376.7287277 | AL120: 293.5589833 | AM120: 218.1814328 | AN120: 150.1190034 | AO120: 150.1190034 | AP120: 166.0214402 | AQ120: 8.58731587 | AR120: 94.93754767 | AS120: 54.70438258 | AT120: 163.795099
C121: 130402 | D121: PACANGA (2) | H121: 25730 | I121: =SUM(I122:I123) -> 511 | J121: =SUM(J122:J123) -> 517 | K121: 521 | L121: 531 | M121: 557 | N121: 495 | O121: 510 | P121: 524 | Q121: 545 | R121: 553 | S121: 531 | T121: 548 | U121: 544 | V121: 501 | W121: 451 | X121: 352 | Y121: 309 | Z121: 288 | AA121: 290 | AB121: 317 | AC121: 2171 | AD121: 2262 | AE121: 2120 | AF121: 2342 | AG121: 1915 | AH121: 1117 | AI121: 987 | AJ121: 750 | AK121: 1002 | AL121: 579 | AM121: 563 | AN121: 268 | AO121: 259 | AP121: 486 | AQ121: 34 | AR121: 258 | AS121: 203 | AT121: 581
A122: 1 | B122: 85 | C122: 130402 | E122: 00005301 | F122: CENTRO DE SALUD | G122: PACANGA | H122: 6105.43781 | I122: 121.2545169 | J122: 122.678249 | K122: 123.6274038 | L122: 126.0002906 | M122: 132.1697963 | N122: 117.457898 | O122: 121.0172283 | P122: 124.3392698 | Q122: 129.3223322 | R122: 131.2206416 | S122: 126.0002906 | T122: 130.0341982 | U122: 129.0850435 | V122: 118.8816301 | W122: 107.017196 | X122: 83.52561636 | Y122: 73.322203 | Z122: 68.33914066 | AA122: 68.81371803 | AB122: 75.22051246 | AC122: 515.1537305 | AD122: 536.7470006 | AE122: 503.0520076 | AF122: 555.7300952 | AG122: 454.4078277 | AH122: 265.0514587 | AI122: 234.20393 | AJ122: 177.9665121 | AK122: 237.7632602 | AL122: 137.3901474 | AM122: 133.5935284 | AN122: 63.593367 | AO122: 61.45776886 | AP122: 115.3222999 | AQ122: 8.067815217 | AR122: 61.22048018 | AS122: 48.16960262 | AT122: 137.8647247
A123: 2 | B123: 86 | C123: 130402 | E123: 00005302 | F123: CENTRO DE SALUD | G123: PACANGUILLA | H123: 19624.56219 | I123: 389.7454831 | J123: 394.321751 | K123: 397.3725962 | L123: 404.9997094 | M123: 424.8302037 | N123: 377.542102 | O123: 388.9827717 | P123: 399.6607302 | Q123: 415.6776678 | R123: 421.7793584 | S123: 404.9997094 | T123: 417.9658018 | U123: 414.9149565 | V123: 382.1183699 | W123: 343.982804 | X123: 268.4743836 | Y123: 235.677797 | Z123: 219.6608593 | AA123: 221.186282 | AB123: 241.7794875 | AC123: 1655.84627 | AD123: 1725.252999 | AE123: 1616.947992 | AF123: 1786.269905 | AG123: 1460.592172 | AH123: 851.9485413 | AI123: 752.79607 | AJ123: 572.0334879 | AK123: 764.2367398 | AL123: 441.6098526 | AM123: 429.4064716 | AN123: 204.406633 | AO123: 197.5422311 | AP123: 370.6777001 | AQ123: 25.93218478 | AR123: 196.7795198 | AS123: 154.8303974 | AT123: 443.1352753
C124: 130403 | D124: PUEBLO NUEVO (3) | H124: 16133 | I124: =SUM(I125:I127) -> 218 | J124: =SUM(J125:J127) -> 270 | K124: 313 | L124: 345 | M124: 377 | N124: 333 | O124: 334 | P124: 328 | Q124: 322 | R124: 296 | S124: 270 | T124: 251 | U124: 239 | V124: 241 | W124: 251 | X124: 230 | Y124: 240 | Z124: 242 | AA124: 230 | AB124: 216 | AC124: 1114 | AD124: 1381 | AE124: 1545 | AF124: 1588 | AG124: 1036 | AH124: 920 | AI124: 764 | AJ124: 589 | AK124: 525 | AL124: 355 | AM124: 335 | AN124: 164 | AO124: 271 | AP124: 171 | AQ124: 22 | AR124: 88 | AS124: 108 | AT124: 379
A125: 1 | B125: 87 | C125: 130403 | E125: 00005303 | F125: CENTRO DE SALUD | G125: PUEBLO NUEVO | H125: 9225.206205 | I125: 124.6572214 | J125: 154.3919714 | K125: 178.9803225 | L125: 197.2786302 | M125: 215.5769379 | N125: 190.4167648 | O125: 190.9885869 | P125: 187.5576542 | Q125: 184.1267215 | R125: 169.2593465 | S125: 154.3919714 | T125: 143.5273512 | U125: 136.6654858 | V125: 137.8091301 | W125: 143.5273512 | X125: 131.5190868 | Y125: 137.237308 | Z125: 138.3809522 | AA125: 131.5190868 | AB125: 123.5135772 | AC125: 637.0098377 | AD125: 789.6863428 | AE125: 883.4651699 | AF125: 908.053521 | AG125: 592.4077127 | AH125: 526.0763472 | AI125: 436.872097 | AJ125: 336.8032266 | AK125: 300.2066111 | AL125: 202.9968513 | AM125: 191.560409 | AN125: 93.7788271 | AO125: 154.9637936 | AP125: 97.78158192 | AQ125: 12.58008656 | AR125: 50.32034625 | AS125: 61.75678858 | AT125: 216.7205821
A126: 2 | B126: 88 | C126: 130403 | E126: 00005305 | F126: PUESTO DE SALUD | G126: SANTA ROSA | H126: 4351.924932 | I126: 58.80615106 | J126: 72.83330636 | K126: 84.43268479 | L126: 93.06478035 | M126: 101.6968759 | N126: 89.82774452 | O126: 90.0974975 | P126: 88.47897958 | Q126: 86.86046166 | R126: 79.84688401 | S126: 72.83330636 | T126: 67.70799962 | U126: 64.47096378 | V126: 65.01046976 | W126: 67.70799962 | X126: 62.0431869 | Y126: 64.74071677 | Z126: 65.28022274 | AA126: 62.0431869 | AB126: 58.26664509 | AC126: 300.504827 | AD126: 372.5288744 | AE126: 416.7683642 | AF126: 428.3677426 | AG126: 279.4640941 | AH126: 248.1727476 | AI126: 206.0912817 | AJ126: 158.8845091 | AK126: 141.6203179 | AL126: 95.76231022 | AM126: 90.36725049 | AN126: 44.23948979 | AO126: 73.10305935 | AP126: 46.1277607 | AQ126: 5.934565704 | AR126: 23.73826282 | AS126: 29.13332255 | AT126: 102.2363819
A127: 3 | B127: 89 | C127: 130403 | E127: 00005304 | F127: PUESTO DE SALUD | G127: SAN IDELFONSO | H127: 2555.868863 | I127: 34.53662755 | J127: 42.77472219 | K127: 49.58699276 | L127: 54.65658946 | M127: 59.72618617 | N127: 52.7554907 | O127: 52.9139156 | P127: 51.96336621 | Q127: 51.01281683 | R127: 46.89376951 | S127: 42.77472219 | T127: 39.76464915 | U127: 37.86355038 | V127: 38.18040018 | W127: 39.76464915 | X127: 36.43772631 | Y127: 38.02197528 | Z127: 38.33882507 | AA127: 36.43772631 | AB127: 34.21977775 | AC127: 176.4853353 | AD127: 218.7847828 | AE127: 244.7664659 | AF127: 251.5787364 | AG127: 164.1281933 | AH127: 145.7509052 | AI127: 121.0366213 | AJ127: 93.31226433 | AK127: 83.17307092 | AL127: 56.24083843 | AM127: 53.07234049 | AN127: 25.98168311 | AO127: 42.93314709 | AP127: 27.09065739 | AQ127: 3.485347734 | AR127: 13.94139094 | AS127: 17.10988888 | AT127: 60.04303596
C128: 130500 | D128: JULCÁN (5) | H128: 34195 | I128: =+I129+I137+I143+I147 -> 876 | J128: =+J129+J137+J143+J147 -> 895 | K128: 905 | L128: 913 | M128: 921 | N128: 804 | O128: 800 | P128: 800 | Q128: 787 | R128: 771 | S128: 713 | T128: 704 | U128: 682 | V128: 644 | W128: 580 | X128: 475 | Y128: 426 | Z128: 402 | AA128: 394 | AB128: 405 | AC128: 2549 | AD128: 2520 | AE128: 2504 | AF128: 2438 | AG128: 1834 | AH128: 1745 | AI128: 1655 | AJ128: 1120 | AK128: 953 | AL128: 991 | AM128: 706 | AN128: 422 | AO128: 861 | AP128: 862 | AQ128: 57 | AR128: 543 | AS128: 279 | AT128: 1026
C129: 130501 | D129: JULCÁN (1) | H129: 12820 | I129: =SUM(I130:I136) -> 252 | J129: =SUM(J130:J136) -> 248 | K129: 249 | L129: 250 | M129: 257 | N129: 229 | O129: 233 | P129: 239 | Q129: 245 | R129: 256 | S129: 242 | T129: 249 | U129: 249 | V129: 236 | W129: 211 | X129: 171 | Y129: 154 | Z129: 145 | AA129: 144 | AB129: 151 | AC129: 976 | AD129: 860 | AE129: 1102 | AF129: 1083 | AG129: 638 | AH129: 717 | AI129: 774 | AJ129: 552 | AK129: 414 | AL129: 312 | AM129: 324 | AN129: 292 | AO129: 366 | AP129: 208 | AQ129: 21 | AR129: 104 | AS129: 122 | AT129: 377
A130: 1 | B130: 90 | C130: 130501 | E130: 00005306 | F130: HOSPITAL | G130: JULCAN | H130: 6029.349884 | I130: 118.517642 | J130: 116.6364096 | K130: 117.1067177 | L130: 117.5770258 | M130: 120.8691825 | N130: 107.7005556 | O130: 109.5817881 | P130: 112.4036367 | Q130: 115.2254853 | R130: 120.3988744 | S130: 113.814561 | T130: 117.1067177 | U130: 117.1067177 | V130: 110.9927124 | W130: 99.23500979 | X130: 80.42268566 | Y130: 72.4274479 | Z130: 68.19467497 | AA130: 67.72436687 | AB130: 71.01652359 | AC130: 459.0207088 | AD130: 404.4649688 | AE130: 518.2795298 | AF130: 509.3436758 | AG130: 300.0565699 | AH130: 337.21091 | AI130: 364.0184719 | AJ130: 259.610073 | AK130: 194.7075548 | AL130: 146.7361282 | AM130: 152.3798255 | AN130: 137.3299662 | AO130: 172.1327658 | AP130: 97.82408548 | AQ130: 9.876470169 | AR130: 48.91204274 | AS130: 57.3775886 | AT130: 177.3061549
A131: 2 | B131: 91 | C131: 130501 | E131: 00006775 | F131: CENTRO DE SALUD | G131: AYANGAY | H131: 2043.525205 | I131: 40.1691382 | J131: 39.53153283 | K131: 39.69093417 | L131: 39.85033551 | M131: 40.96614491 | N131: 36.50290733 | O131: 37.1405127 | P131: 38.09692075 | Q131: 39.0533288 | R131: 40.80674357 | S131: 38.57512478 | T131: 39.69093417 | U131: 39.69093417 | V131: 37.61871672 | W131: 33.63368317 | X131: 27.25762949 | Y131: 24.54780668 | Z131: 23.1131946 | AA131: 22.95379326 | AB131: 24.06960265 | AC131: 155.5757098 | AD131: 137.0851542 | AE131: 175.6602789 | AF131: 172.6316534 | AG131: 101.6980562 | AH131: 114.2907623 | AI131: 123.3766387 | AJ131: 87.98954081 | AK131: 65.99215561 | AL131: 49.73321872 | AM131: 51.64603483 | AN131: 46.54519188 | AO131: 58.34089119 | AP131: 33.15547915 | AQ131: 3.347428183 | AR131: 16.57773957 | AS131: 19.44696373 | AT131: 60.09430595
A132: 3 | B132: 92 | C132: 130501 | E132: 00007249 | F132: PUESTO DE SALUD | G132: SAN AGUSTIN | H132: 729.3342343 | I132: 14.33636716 | J132: 14.10880578 | K132: 14.16569613 | L132: 14.22258647 | M132: 14.62081889 | N132: 13.02788921 | O132: 13.25545059 | P132: 13.59679267 | Q132: 13.93813474 | R132: 14.56392855 | S132: 13.76746371 | T132: 14.16569613 | U132: 14.16569613 | V132: 13.42612163 | W132: 12.00386298 | X132: 9.728249148 | Y132: 8.761113267 | Z132: 8.249100154 | AA132: 8.192209809 | AB132: 8.59044223 | AC132: 55.52497759 | AD132: 48.92569747 | AE132: 62.69316117 | AF132: 61.6122446 | AG132: 36.29604068 | AH132: 40.79037801 | AI132: 44.03312772 | AJ132: 31.40347093 | AK132: 23.5526032 | AL132: 17.74978792 | AM132: 18.43247207 | AN132: 16.611981 | AO132: 20.8218666 | AP132: 11.83319195 | AQ132: 1.194697264 | AR132: 5.916595973 | AS132: 6.940622199 | AT132: 21.4476604
A133: 4 | B133: 93 | C133: 130501 | E133: 00006963 | F133: PUESTO DE SALUD | G133: CHUGURPAMPA | H133: 729.3342343 | I133: 14.33636716 | J133: 14.10880578 | K133: 14.16569613 | L133: 14.22258647 | M133: 14.62081889 | N133: 13.02788921 | O133: 13.25545059 | P133: 13.59679267 | Q133: 13.93813474 | R133: 14.56392855 | S133: 13.76746371 | T133: 14.16569613 | U133: 14.16569613 | V133: 13.42612163 | W133: 12.00386298 | X133: 9.728249148 | Y133: 8.761113267 | Z133: 8.249100154 | AA133: 8.192209809 | AB133: 8.59044223 | AC133: 55.52497759 | AD133: 48.92569747 | AE133: 62.69316117 | AF133: 61.6122446 | AG133: 36.29604068 | AH133: 40.79037801 | AI133: 44.03312772 | AJ133: 31.40347093 | AK133: 23.5526032 | AL133: 17.74978792 | AM133: 18.43247207 | AN133: 16.611981 | AO133: 20.8218666 | AP133: 11.83319195 | AQ133: 1.194697264 | AR133: 5.916595973 | AS133: 6.940622199 | AT133: 21.4476604
A134: 5 | B134: 94 | C134: 130501 | E134: 00006774 | F134: PUESTO DE SALUD | G134: PARUQUE BAJO | H134: 1120.946352 | I134: 22.03420286 | J134: 21.68445361 | K134: 21.77189092 | L134: 21.85932824 | M134: 22.47138943 | N134: 20.02314466 | O134: 20.37289392 | P134: 20.89751779 | Q134: 21.42214167 | R134: 22.38395211 | S134: 21.15982973 | T134: 21.77189092 | U134: 21.77189092 | V134: 20.63520585 | W134: 18.44927303 | X134: 14.95178051 | Y134: 13.46534619 | Z134: 12.67841038 | AA134: 12.59097306 | AB134: 13.20303425 | AC134: 85.33881743 | AD134: 75.19608913 | AE134: 96.35591886 | AF134: 94.69460992 | AG134: 55.78500566 | AH134: 62.69255338 | AI134: 67.67648022 | AJ134: 48.26539674 | AK134: 36.19904756 | AL134: 27.28044164 | AM134: 28.32968939 | AN134: 25.53169538 | AO134: 32.00205654 | AP134: 18.18696109 | AQ134: 1.836183572 | AR134: 9.093480546 | AS134: 10.66735218 | AT134: 32.96386698
A135: 6 | B135: 95 | C135: 130501 | E135: 00005307 | F135: PUESTO DE SALUD | G135: SANTA TERESA | H135: 921.3295253 | I135: 18.11037756 | J135: 17.82291125 | K135: 17.89477783 | L135: 17.96664441 | M135: 18.46971045 | N135: 16.45744628 | O135: 16.74491259 | P135: 17.17611206 | Q135: 17.60731152 | R135: 18.39784388 | S135: 17.39171179 | T135: 17.89477783 | U135: 17.89477783 | V135: 16.96051232 | W135: 15.16384788 | X135: 12.28918478 | Y135: 11.06745296 | Z135: 10.42065376 | AA135: 10.34878718 | AB135: 10.85185322 | AC135: 70.14177978 | AD135: 61.80525677 | AE135: 79.19696856 | AF135: 77.83150358 | AG135: 45.85087653 | AH135: 51.52833617 | AI135: 55.62473109 | AJ135: 39.67035086 | AK135: 29.75276314 | AL135: 22.42237222 | AM135: 23.28477115 | AN135: 20.98504067 | AO135: 26.30316742 | AP135: 14.94824815 | AQ135: 1.50919813 | AR135: 7.474124074 | AS135: 8.767722472 | AT135: 27.09369977
A136: 7 | B136: 96 | C136: 130501 | E136: 00016423 | F136: PUESTO DE SALUD | G136: SAN ANTONIO DE JULCAN | H136: 1246.180565 | I136: 24.49590502 | J136: 24.10708113 | K136: 24.2042871 | L136: 24.30149308 | M136: 24.98193488 | N136: 22.26016766 | O136: 22.64899155 | P136: 23.23222738 | Q136: 23.81546321 | R136: 24.88472891 | S136: 23.5238453 | T136: 24.2042871 | U136: 24.2042871 | V136: 22.94060946 | W136: 20.51046016 | X136: 16.62222126 | Y136: 14.96971973 | Z136: 14.09486598 | AA136: 13.99766001 | AB136: 14.67810182 | AC136: 94.87302897 | AD136: 83.59713618 | AE136: 107.1209815 | AF136: 105.274068 | AG136: 62.01741033 | AH136: 69.69668214 | AI136: 75.23742256 | AJ136: 53.65769671 | AK136: 40.24327253 | AL136: 30.32826336 | AM136: 31.49473503 | AN136: 28.38414391 | AO136: 35.57738586 | AP136: 20.21884224 | AQ136: 2.041325418 | AR136: 10.10942112 | AS136: 11.85912862 | AT136: 36.64665156
C137: 130502 | D137: CALAMARCA (2) | H137: =SUM(I137:AO137) -> 6280 | I137: =SUM(I138:I142) -> 207 | J137: =SUM(J138:J142) -> 202 | K137: 197 | L137: 193 | M137: 180 | N137: 154 | O137: 150 | P137: 147 | Q137: 142 | R137: 134 | S137: 125 | T137: 125 | U137: 121 | V137: 113 | W137: 101 | X137: 80 | Y137: 70 | Z137: 68 | AA137: 71 | AB137: 75 | AC137: 513 | AD137: 312 | AE137: 375 | AF137: 377 | AG137: 489 | AH137: 263 | AI137: 309 | AJ137: 126 | AK137: 237 | AL137: 336 | AM137: 140 | AN137: 25 | AO137: 123 | AP137: 236 | AQ137: 10 | AR137: 160 | AS137: 40 | AT137: 180
A138: 1 | B138: 97 | C138: 130502 | E138: 00005308 | F138: CENTRO DE SALUD CON CAMAS DE INTERNAMIENTO | G138: CALAMARCA | H138: 2347.517073 | I138: 77.37834938 | J138: 75.50930712 | K138: 73.64026487 | L138: 72.14503106 | M138: 67.2855212 | N138: 57.56650147 | O138: 56.07126767 | P138: 54.94984231 | Q138: 53.08080006 | R138: 50.09033245 | S138: 46.72605639 | T138: 46.72605639 | U138: 45.23082258 | V138: 42.24035497 | W138: 37.75465356 | X138: 29.90467609 | Y138: 26.16659158 | Z138: 25.41897468 | AA138: 26.54040003 | AB138: 28.03563383 | AC138: 191.7637354 | AD138: 116.6282367 | AE138: 140.1781692 | AF138: 140.9257861 | AG138: 182.7923326 | AH138: 98.31162264 | AI138: 115.5068114 | AJ138: 47.09986484 | AK138: 88.59260291 | AL138: 125.5996396 | AM138: 52.33318315 | AN138: 9.345211278 | AO138: 45.97843949 | AP138: 88.21879446 | AQ138: 3.738084511 | AR138: 59.80935218 | AS138: 14.95233804 | AT138: 67.2855212
A139: 2 | B139: 98 | C139: 130502 | E139: 00005309 | F139: CENTRO DE SALUD | G139: SICCHAL | H139: 2013.773705 | I139: 66.37757277 | J139: 64.77424975 | K139: 63.17092674 | L139: 61.88826833 | M139: 57.71962849 | N139: 49.38234882 | O139: 48.09969041 | P139: 47.1376966 | Q139: 45.53437359 | R139: 42.96905677 | S139: 40.08307534 | T139: 40.08307534 | U139: 38.80041693 | V139: 36.23510011 | W139: 32.38712488 | X139: 25.65316822 | Y139: 22.44652219 | Z139: 21.80519299 | AA139: 22.76718679 | AB139: 24.04984521 | AC139: 164.5009412 | AD139: 100.0473561 | AE139: 120.249226 | AF139: 120.8905552 | AG139: 156.8049907 | AH139: 84.33479052 | AI139: 99.08536225 | AJ139: 40.40373995 | AK139: 75.99751085 | AL139: 107.7433065 | AM139: 44.89304438 | AN139: 8.016615068 | AO139: 39.44174614 | AP139: 75.67684625 | AQ139: 3.206646027 | AR139: 51.30633644 | AS139: 12.82658411 | AT139: 57.71962849
A140: 3 | B140: 99 | C140: 130502 | E140: 00007247 | F140: PUESTO DE SALUD | G140: BARRO NEGRO | H140: 588.3146348 | I140: 19.39189959 | J140: 18.92349622 | K140: 18.45509284 | L140: 18.08037015 | M140: 16.86252138 | N140: 14.42682385 | O140: 14.05210115 | P140: 13.77105913 | Q140: 13.30265576 | R140: 12.55321036 | S140: 11.71008429 | T140: 11.71008429 | U140: 11.33536159 | V140: 10.5859162 | W140: 9.461748108 | X140: 7.494453947 | Y140: 6.557647203 | Z140: 6.370285855 | AA140: 6.651327878 | AB140: 7.026050575 | AC140: 48.05818593 | AD140: 29.22837039 | AE140: 35.13025287 | AF140: 35.31761422 | AG140: 45.80984975 | AH140: 24.63801735 | AI140: 28.94732837 | AJ140: 11.80376497 | AK140: 22.20231982 | AL140: 31.47670658 | AM140: 13.11529441 | AN140: 2.342016858 | AO140: 11.52272294 | AP140: 22.10863914 | AQ140: 0.9368067433 | AR140: 14.98890789 | AS140: 3.747226973 | AT140: 16.86252138
A141: 4 | B141: 100 | C141: 130502 | E141: 00007248 | F141: PUESTO DE SALUD | G141: CHAZKA | H141: 632.8032587 | I141: 20.85832397 | J141: 20.35449972 | K141: 19.85067547 | L141: 19.44761607 | M141: 18.13767302 | N141: 15.51778692 | O141: 15.11472752 | P141: 14.81243297 | Q141: 14.30860872 | R141: 13.50248992 | S141: 12.59560626 | T141: 12.59560626 | U141: 12.19254686 | V141: 11.38642806 | W141: 10.17724986 | X141: 8.061188009 | Y141: 7.053539508 | Z141: 6.852009808 | AA141: 7.154304358 | AB141: 7.557363759 | AC141: 51.69236811 | AD141: 31.43863324 | AE141: 37.78681879 | AF141: 37.98834849 | AG141: 49.27401171 | AH141: 26.50115558 | AI141: 31.13633869 | AJ141: 12.69637111 | AK141: 23.88126948 | AL141: 33.85698964 | AM141: 14.10707902 | AN141: 2.519121253 | AO141: 12.39407656 | AP141: 23.78050463 | AQ141: 1.007648501 | AR141: 16.12237602 | AS141: 4.030594005 | AT141: 18.13767302
A142: 5 | B142: 101 | C142: 130502 | E142: 00016424 | F142: PUESTO DE SALUD | G142: HUAGAL | H142: 697.5913283 | I142: 22.99385429 | J142: 22.43844718 | K142: 21.88304008 | L142: 21.43871439 | M142: 19.99465591 | N142: 17.10653894 | O142: 16.66221326 | P142: 16.32896899 | Q142: 15.77356188 | R142: 14.88491051 | S142: 13.88517771 | T142: 13.88517771 | U142: 13.44085203 | V142: 12.55220065 | W142: 11.21922359 | X142: 8.886513737 | Y142: 7.77569952 | Z142: 7.553536676 | AA142: 7.886780941 | AB142: 8.331106628 | AC142: 56.98476934 | AD142: 34.65740357 | AE142: 41.65553314 | AF142: 41.87769598 | AG142: 54.31881522 | AH142: 29.21441391 | AI142: 34.32415931 | AJ142: 13.99625914 | AK142: 26.32629694 | AL142: 37.32335769 | AM142: 15.55139904 | AN142: 2.777035543 | AO142: 13.66301487 | AP142: 26.21521552 | AQ142: 1.110814217 | AR142: 17.77302747 | AS142: 4.443256868 | AT142: 19.99465591
C143: 130503 | D143: CARABAMBA (3) | H143: 7174 | I143: =SUM(I144:I146) -> 260 | J143: =SUM(J144:J146) -> 234 | K143: 210 | L143: 196 | M143: 189 | N143: 157 | O143: 154 | P143: 154 | Q143: 153 | R143: 154 | S143: 148 | T143: 150 | U143: 149 | V143: 141 | W143: 123 | X143: 104 | Y143: 91 | Z143: 85 | AA143: 80 | AB143: 82 | AC143: 521 | AD143: 703 | AE143: 493 | AF143: 413 | AG143: 408 | AH143: 418 | AI143: 286 | AJ143: 109 | AK143: 248 | AL143: 184 | AM143: 163 | AN143: 52 | AO143: 162 | AP143: 286 | AQ143: 12 | AR143: 212 | AS143: 44 | AT143: 225
A144: 1 | B144: 102 | C144: 130503 | E144: 00005310 | F144: CENTRO DE SALUD | G144: CARABAMBA | H144: 5510.495902 | I144: 199.7113095 | J144: 179.7401786 | K144: 161.3052884 | L144: 150.5516026 | M144: 145.1747596 | N144: 120.5949061 | O144: 118.2905449 | P144: 118.2905449 | Q144: 117.5224244 | R144: 118.2905449 | S144: 113.6818223 | T144: 115.2180632 | U144: 114.4499428 | V144: 108.3049794 | W144: 94.4788118 | X144: 79.8845238 | Y144: 69.89895833 | Z144: 65.2902358 | AA144: 61.44963369 | AB144: 62.98587454 | AC144: 400.1907394 | AD144: 539.9886561 | AE144: 378.6833676 | AF144: 317.2337339 | AG144: 313.3931318 | AH144: 321.0743361 | AI144: 219.6824405 | AJ144: 83.72512591 | AK144: 190.4938645 | AL144: 141.3341575 | AM144: 125.2036287 | AN144: 39.9422619 | AO144: 124.4355082 | AP144: 219.6824405 | AQ144: 9.217445054 | AR144: 162.8415293 | AS144: 33.79729853 | AT144: 172.8270948
A145: 2 | B145: 103 | C145: 130503 | E145: 00005311 | F145: PUESTO DE SALUD | G145: SAN JOSE DE SALO BAJO | H145: 552.638009 | I145: 20.0286984 | J145: 18.02582856 | K145: 16.17702563 | L145: 15.09855726 | M145: 14.55932307 | N145: 12.0942525 | O145: 11.86315213 | P145: 11.86315213 | Q145: 11.78611868 | R145: 11.86315213 | S145: 11.4009514 | T145: 11.55501831 | U145: 11.47798485 | V145: 10.86171721 | W145: 9.475115014 | X145: 8.011479361 | Y145: 7.010044441 | Z145: 6.547843709 | AA145: 6.162676432 | AB145: 6.316743342 | AC145: 40.13443026 | AD145: 54.15451914 | AE145: 37.97749351 | AF145: 31.81481708 | AG145: 31.4296498 | AH145: 32.19998436 | AI145: 22.03156824 | AJ145: 8.396646638 | AK145: 19.10429694 | AL145: 14.17415579 | AM145: 12.55645323 | AN145: 4.005739681 | AO145: 12.47941977 | AP145: 22.03156824 | AQ145: 0.9244014647 | AR145: 16.33109254 | AS145: 3.389472037 | AT145: 17.33252746
A146: 3 | B146: 104 | C146: 130501 | E146: 00006773 | F146: PUESTO DE SALUD | G146: VILLA MARIA | H146: 1110.866089 | I146: 40.25999209 | J146: 36.23399288 | K146: 32.51768592 | L146: 30.34984019 | M146: 29.26591733 | N146: 24.31084138 | O146: 23.84630301 | P146: 23.84630301 | Q146: 23.69145688 | R146: 23.84630301 | S146: 22.91722627 | T146: 23.22691851 | U146: 23.07207239 | V146: 21.8333034 | W146: 19.04607318 | X146: 16.10399684 | Y146: 14.09099723 | Z146: 13.16192049 | AA146: 12.38768987 | AB146: 12.69738212 | AC146: 80.67483031 | AD146: 108.8568248 | AE146: 76.33913885 | AF146: 63.95144898 | AG146: 63.17721836 | AH146: 64.72567959 | AI146: 44.2859913 | AJ146: 16.87822745 | AK146: 38.40183861 | AL146: 28.49168671 | AM146: 25.23991812 | AN146: 8.051998418 | AO146: 25.085072 | AP146: 44.2859913 | AQ146: 1.858153481 | AR146: 32.82737817 | AS146: 6.813229431 | AT146: 34.84037777
C147: 130504 | D147: HUASO (4) | H147: 7921 | I147: =SUM(I148:I154) -> 157 | J147: =SUM(J148:J154) -> 211 | K147: 249 | L147: 274 | M147: 295 | N147: 264 | O147: 263 | P147: 260 | Q147: 247 | R147: 227 | S147: 198 | T147: 180 | U147: 163 | V147: 154 | W147: 145 | X147: 120 | Y147: 111 | Z147: 104 | AA147: 99 | AB147: 97 | AC147: 539 | AD147: 645 | AE147: 534 | AF147: 565 | AG147: 299 | AH147: 347 | AI147: 286 | AJ147: 333 | AK147: 54 | AL147: 159 | AM147: 79 | AN147: 53 | AO147: 210 | AP147: 132 | AQ147: 14 | AR147: 67 | AS147: 73 | AT147: 244
A148: 1 | B148: 105 | C148: 130504 | E148: 00005312 | F148: CENTRO DE SALUD CON CAMAS DE INTERNAMIENTO | G148: HUASO | H148: 1338.586411 | I148: 26.53175945 | J148: 35.65733276 | K148: 42.0790325 | L148: 46.30383496 | M148: 49.85266903 | N148: 44.61391398 | O148: 44.44492188 | P148: 43.93794558 | Q148: 41.7410483 | R148: 38.36120634 | S148: 33.46043548 | T148: 30.41857771 | U148: 27.54571204 | V148: 26.02478315 | W148: 24.50385427 | X148: 20.27905181 | Y148: 18.75812292 | Z148: 17.57517823 | AA148: 16.73021774 | AB148: 16.39223354 | AC148: 91.08674103 | AD148: 108.9999035 | AE148: 90.24178054 | AF148: 95.48053559 | AG148: 50.52863742 | AH148: 58.64025814 | AI148: 48.33174014 | AJ148: 56.27436877 | AK148: 9.125573313 | AL148: 26.86974364 | AM148: 13.35037577 | AN148: 8.956581215 | AO148: 35.48834066 | AP148: 22.30695699 | AQ148: 2.365889378 | AR148: 11.32247059 | AS148: 12.33642318 | AT148: 41.23407201
A149: 2 | B149: 106 | C149: 130504 | E149: 00006771 | F149: CENTRO DE SALUD | G149: CANRAZ | H149: 1650.909119 | I149: 32.72222342 | J149: 43.9770009 | K149: 51.8970295 | L149: 57.10757463 | M149: 61.48443254 | N149: 55.02335658 | O149: 54.81493478 | P149: 54.18966936 | Q149: 51.48018589 | R149: 47.31174979 | S149: 41.26751744 | T149: 37.51592494 | U149: 33.97275425 | V149: 32.09695801 | W149: 30.22116176 | X149: 25.01061663 | Y149: 23.13482038 | Z149: 21.67586774 | AA149: 20.63375872 | AB149: 20.21691511 | AC149: 112.339353 | AD149: 134.4320644 | AE149: 111.297244 | AF149: 117.75832 | AG149: 62.31811976 | AH149: 72.32236641 | AI149: 59.6086363 | AJ149: 69.40446114 | AK149: 11.25477748 | AL149: 33.13906703 | AM149: 16.46532261 | AN149: 11.04635568 | AO149: 43.7685791 | AP149: 27.51167829 | AQ149: 2.917905273 | AR149: 13.96426095 | AS149: 15.21479178 | AT149: 50.85492048
A150: 3 | B150: 107 | C150: 130504 | E150: 00006772 | F150: PUESTO DE SALUD | G150: LA VEGA | H150: 707.9658625 | I150: 14.0324 | J150: 18.85883058 | K150: 22.25520765 | L150: 24.48966625 | M150: 26.36661147 | N150: 23.59588281 | O150: 23.50650446 | P150: 23.23836943 | Q150: 22.07645096 | R150: 20.28888408 | S150: 17.6969121 | T150: 16.08810191 | U150: 14.56867007 | V150: 13.76426497 | W150: 12.95985987 | X150: 10.72540128 | Y150: 9.92099618 | Z150: 9.295347772 | AA150: 8.848456052 | AB150: 8.669699364 | AC150: 48.1749274 | AD150: 57.64903186 | AE150: 47.72803568 | AF150: 50.49876434 | AG150: 26.72412484 | AH150: 31.01428535 | AI150: 25.56220637 | AJ150: 29.76298854 | AK150: 4.826430574 | AL150: 14.21115669 | AM150: 7.060889173 | AN150: 4.73705223 | AO150: 18.76945223 | AP150: 11.7979414 | AQ150: 1.251296815 | AR150: 5.988349045 | AS150: 6.524619109 | AT150: 21.80831593
A151: 4 | B151: 108 | C151: 130504 | E151: 00006770 | F151: PUESTO DE SALUD | G151: CHINCHINVARA | H151: 991.90353 | I151: 19.66025176 | J151: 26.42237657 | K151: 31.18090885 | L151: 34.31152218 | M151: 36.94123739 | N151: 33.05927685 | O151: 32.93405232 | P151: 32.55837871 | Q151: 30.93045978 | R151: 28.42596911 | S151: 24.79445764 | T151: 22.54041603 | U151: 20.41159896 | V151: 19.28457816 | W151: 18.15755736 | X151: 15.02694402 | Y151: 13.89992322 | Z151: 13.02335149 | AA151: 12.39722882 | AB151: 12.14677975 | AC151: 67.49602357 | AD151: 80.76982412 | AE151: 66.8699009 | AF151: 70.75186144 | AG151: 37.44213552 | AH151: 43.45291313 | AI151: 35.81421659 | AJ151: 41.69976966 | AK151: 6.76212481 | AL151: 19.91070083 | AM151: 9.892738148 | AN151: 6.636900276 | AO151: 26.29715204 | AP151: 16.52963842 | AQ151: 1.753143469 | AR151: 8.390043746 | AS151: 9.141390947 | AT151: 30.55478618
A152: 5 | B152: 109 | C152: 130504 | E152: 00005313 | F152: PUESTO DE SALUD | G152: PARASIVE | H152: 943.2576531 | I152: 18.69605499 | J152: 25.12654524 | K152: 29.65170504 | L152: 32.62878386 | M152: 35.12953007 | N152: 31.43795233 | O152: 31.31886918 | P152: 30.96161972 | Q152: 29.41353874 | R152: 27.03187568 | S152: 23.57846425 | T152: 21.4349675 | U152: 19.4105539 | V152: 18.33880553 | W152: 17.26705715 | X152: 14.28997833 | Y152: 13.21822996 | Z152: 12.38464789 | AA152: 11.78923212 | AB152: 11.55106582 | AC152: 64.18581935 | AD152: 76.80863354 | AE152: 63.59040358 | AF152: 67.28198132 | AG152: 35.60586268 | AH152: 41.32185401 | AI152: 34.05778169 | AJ152: 39.65468987 | AK152: 6.43049025 | AL152: 18.93422129 | AM152: 9.407569069 | AN152: 6.311407097 | AO152: 25.00746208 | AP152: 15.71897617 | AQ152: 1.667164139 | AR152: 7.978571236 | AS152: 8.693070153 | AT152: 29.05628928
A153: 6 | B153: 110 | C153: 130504 | E153: 00016422 | F153: PUESTO DE SALUD | G153: LA UNION | H153: 650.5329139 | I153: 12.89403705 | J153: 17.32892878 | K153: 20.44977851 | L153: 22.50296912 | M153: 24.22764924 | N153: 21.68169288 | O153: 21.59956525 | P153: 21.35318238 | Q153: 20.28552326 | R153: 18.64297077 | S153: 16.26126966 | T153: 14.78297241 | U153: 13.3868028 | V153: 12.64765418 | W153: 11.90850556 | X153: 9.855314943 | Y153: 9.116166323 | Z153: 8.541272951 | AA153: 8.130634828 | AB153: 7.966379579 | AC153: 44.26678962 | AD153: 52.97231782 | AE153: 43.8561515 | AF153: 46.40210786 | AG153: 24.55615973 | AH153: 28.49828571 | AI153: 23.48850061 | AJ153: 27.34849897 | AK153: 4.434891724 | AL153: 13.0582923 | AM153: 6.488082338 | AN153: 4.3527641 | AO153: 17.24680115 | AP153: 10.84084644 | AQ153: 1.149786743 | AR153: 5.502550843 | AS153: 5.99531659 | AT153: 20.03914038
A154: 7 | B154: 111 | C154: 131001 | E154: 00005335 | F154: PUESTO DE SALUD | G154: UNINGAMBAL | H154: 1637.84451 | I154: 32.46327333 | J154: 43.62898518 | K154: 51.48633796 | L154: 56.655649 | M154: 60.99787027 | N154: 54.58792458 | O154: 54.38115214 | P154: 53.76083481 | Q154: 51.07279307 | R154: 46.93734424 | S154: 40.94094344 | T154: 37.21903949 | U154: 33.70390798 | V154: 31.84295601 | W154: 29.98200403 | X154: 24.81269299 | Y154: 22.95174102 | Z154: 21.50433393 | AA154: 20.47047172 | AB154: 20.05692683 | AC154: 111.450346 | AD154: 133.3682248 | AE154: 110.4164838 | AF154: 116.8264295 | AG154: 61.82496004 | AH154: 71.75003723 | AI154: 59.1369183 | AJ154: 68.85522305 | AK154: 11.16571185 | AL154: 32.87681821 | AM154: 16.33502289 | AN154: 10.9589394 | AO154: 43.42221273 | AP154: 27.29396229 | AQ154: 2.894814182 | AR154: 13.85375359 | AS154: 15.09438824 | AT154: 50.45247575
C155: 130600 | D155: OTUZCO (6) | H155: 100912 | I155: =+I156+I166+I178+I183+I186+I188+I192+I194+I199+I203 -> 1996 | J155: =+J156+J166+J178+J183+J186+J188+J192+J194+J199+J203 -> 2157 | K155: 2224 | L155: 2313 | M155: 2361 | N155: 2080 | O155: 2100 | P155: 2106 | Q155: 2092 | R155: 2090 | S155: 1932 | T155: 1930 | U155: 1875 | V155: 1777 | W155: 1651 | X155: 1362 | Y155: 1250 | Z155: 1188 | AA155: 1172 | AB155: 1187 | AC155: 7407 | AD155: 7024 | AE155: 7636 | AF155: 7046 | AG155: 5578 | AH155: 5051 | AI155: 4558 | AJ155: 4735 | AK155: 3478 | AL155: 4018 | AM155: 2172 | AN155: 2588 | AO155: 2778 | AP155: 1865 | AQ155: 169 | AR155: 1102 | AS155: 742 | AT155: 2529
C156: 130601 | D156: OTUZCO (1) | H156: 30032 | I156: =SUM(I157:I165) -> 472 | J156: =SUM(J157:J165) -> 530 | K156: 572 | L156: 602 | M156: 612 | N156: 531 | O156: 529 | P156: 519 | Q156: 502 | R156: 491 | S156: 441 | T156: 426 | U156: 409 | V156: 407 | W156: 411 | X156: 366 | Y156: 370 | Z156: 380 | AA156: 386 | AB156: 394 | AC156: 2417 | AD156: 2204 | AE156: 2575 | AF156: 1960 | AG156: 1795 | AH156: 1723 | AI156: 1324 | AJ156: 1554 | AK156: 1204 | AL156: 1324 | AM156: 620 | AN156: 975 | AO156: 1007 | AP156: 396 | AQ156: 39 | AR156: 208 | AS156: 217 | AT156: 680
A157: 1 | B157: 112 | C157: 130601 | E157: 00005314 | F157: HOSPITAL DE APOYO | G157: OTUZCO | H157: 6081.527213 | I157: 95.58074203 | J157: 107.3258332 | K157: 115.8308992 | L157: 121.9059464 | M157: 123.9309621 | N157: 107.5283348 | O157: 107.1233316 | P157: 105.0983159 | Q157: 101.6557892 | R157: 99.4282719 | S157: 89.3031933 | T157: 86.26566971 | U157: 82.82314299 | V157: 82.41813984 | W157: 83.22814613 | X157: 74.11557539 | Y157: 74.92558168 | Z157: 76.9505974 | AA157: 78.16560683 | AB157: 79.78561941 | AC157: 489.4462998 | AD157: 446.3134649 | AE157: 521.4415482 | AF157: 396.9030813 | AG157: 363.4903219 | AH157: 348.9102087 | AI157: 268.1120815 | AJ157: 314.687443 | AK157: 243.8118928 | AL157: 268.1120815 | AM157: 125.5509747 | AN157: 197.4390328 | AO157: 203.9190831 | AP157: 80.19062255 | AQ157: 7.897561312 | AR157: 42.120327 | AS157: 43.94284115 | AT157: 137.701069
A158: 2 | B158: 113 | C158: 130601 | E158: 00005317 | F158: CENTRO DE SALUD | G158: RAMON CASTILLA | H158: 7407.697393 | I158: 116.4235872 | J158: 130.7298754 | K158: 141.0896014 | L158: 148.4894057 | M158: 150.9560071 | N158: 130.9765356 | O158: 130.4832153 | P158: 128.0166138 | Q158: 123.8233914 | R158: 121.1101299 | S158: 108.7771228 | T158: 105.0772206 | U158: 100.8839982 | V158: 100.3906779 | W158: 101.3773185 | X158: 90.27761208 | Y158: 91.26425265 | Z158: 93.73085407 | AA158: 95.21081492 | AB158: 97.18409606 | AC158: 596.1775639 | AD158: 543.6389536 | AE158: 635.1498664 | AF158: 483.4538789 | AG158: 442.7549554 | AH158: 424.9954252 | AI158: 326.5780284 | AJ158: 383.3098611 | AK158: 296.9788113 | AL158: 326.5780284 | AM158: 152.9292882 | AN158: 240.4936387 | AO158: 248.3867633 | AP158: 97.67741635 | AQ158: 9.619745549 | AR158: 51.3053096 | AS158: 53.52525088 | AT158: 167.7288968
A159: 3 | B159: 114 | C159: 130601 | E159: 00005315 | F159: PUESTO DE SALUD | G159: PANGO | H159: 3278.928134 | I159: 51.53350024 | J159: 57.86600663 | K159: 62.4516147 | L159: 65.72704904 | M159: 66.81886049 | N159: 57.97518777 | O159: 57.75682549 | P159: 56.66501404 | Q159: 54.80893458 | R159: 53.60794199 | S159: 48.14888476 | T159: 46.51116759 | U159: 44.65508814 | V159: 44.43672585 | W159: 44.87345042 | X159: 39.96029892 | Y159: 40.3970235 | Z159: 41.48883494 | AA159: 42.14392181 | AB159: 43.01737097 | AC159: 263.8908265 | AD159: 240.6352427 | AE159: 281.1414473 | AF159: 213.9950434 | AG159: 195.9801545 | AH159: 188.1191121 | AI159: 144.5558354 | AJ159: 169.6674987 | AK159: 131.4540981 | AL159: 144.5558354 | AM159: 67.69230964 | AN159: 106.451616 | AO159: 109.9454126 | AP159: 43.23573326 | AQ159: 4.258064639 | AR159: 22.70967807 | AS159: 23.69230838 | AT159: 74.24317832
A160: 4 | B160: 115 | C160: 130601 | E160: 00005316 | F160: PUESTO DE SALUD | G160: SAMNE | H160: 1525.6161 | I160: 23.9774507 | J160: 26.92383235 | K160: 29.05741907 | L160: 30.58140958 | M160: 31.08940641 | N160: 26.97463204 | O160: 26.87303267 | P160: 26.36503583 | Q160: 25.50144121 | R160: 24.94264469 | S160: 22.4026605 | T160: 21.64066525 | U160: 20.77707063 | V160: 20.67547126 | W160: 20.87866999 | X160: 18.59268423 | Y160: 18.79588296 | Z160: 19.3038798 | AA160: 19.6086779 | AB160: 20.01507537 | AC160: 122.7828355 | AD160: 111.9625028 | AE160: 130.8091855 | AF160: 99.56738002 | AG160: 91.18543221 | AH160: 87.52785499 | AI160: 67.2587812 | AJ160: 78.94270845 | AK160: 61.16281916 | AL160: 67.2587812 | AM160: 31.49580388 | AN160: 49.52969159 | AO160: 51.15528147 | AP160: 20.11667474 | AQ160: 1.981187664 | AR160: 10.56633421 | AS160: 11.02353136 | AT160: 34.54378491
A161: 5 | B161: 116 | C161: 130601 | E161: 00011008 | F161: PUESTO DE SALUD | G161: LLAUGUEDA | H161: 3050.845593 | I161: 47.94882525 | J161: 53.84084191 | K161: 58.10747467 | L161: 61.15506949 | M161: 62.17093443 | N161: 53.9424284 | O161: 53.73925542 | P161: 52.72339047 | Q161: 50.99642007 | R161: 49.87896864 | S161: 44.79964393 | T161: 43.27584652 | U161: 41.54887612 | V161: 41.34570313 | W161: 41.7520491 | X161: 37.18065687 | Y161: 37.58700284 | Z161: 38.60286778 | AA161: 39.21238675 | AB161: 40.0250787 | AC161: 245.5345564 | AD161: 223.8966331 | AE161: 261.5852225 | AF161: 199.1095286 | AG161: 182.347757 | AH161: 175.0335295 | AI161: 134.5005183 | AJ161: 157.8654119 | AK161: 122.310139 | AL161: 134.5005183 | AM161: 62.98362639 | AN161: 99.04683182 | AO161: 102.2975996 | AP161: 40.22825169 | AQ161: 3.961873273 | AR161: 21.12999079 | AS161: 22.04426923 | AT161: 69.07881604
A162: 6 | B162: 117 | C162: 130601 | E162: 00006932 | F162: PUESTO DE SALUD | G162: PACHIN ALTO | H162: 1866.547004 | I162: 29.33571477 | J162: 32.94052717 | K162: 35.55090857 | L162: 37.41546671 | M162: 38.03698609 | N162: 33.00267911 | O162: 32.87837523 | P162: 32.25685585 | Q162: 31.20027291 | R162: 30.51660159 | S162: 27.40900469 | T162: 26.47672561 | U162: 25.42014267 | V162: 25.29583879 | W162: 25.54444654 | X162: 22.74760933 | Y162: 22.99621708 | Z162: 23.61773646 | AA162: 23.99064809 | AB162: 24.4878636 | AC162: 150.2212343 | AD162: 136.9828715 | AE162: 160.0412405 | AF162: 121.8177986 | AG162: 111.5627288 | AH162: 107.0877893 | AI162: 82.28916599 | AJ162: 96.58411175 | AK162: 74.83093343 | AL162: 82.28916599 | AM162: 38.5342016 | AN162: 60.59813961 | AO162: 62.58700163 | AP162: 24.61216747 | AQ162: 2.423925584 | AR162: 12.92760312 | AS162: 13.48697056 | AT162: 42.26331788
A163: 7 | B163: 118 | C163: 130601 | E163: 00006931 | F163: PUESTO DE SALUD | G163: SAN ISIDRO | H163: 4466.907309 | I163: 70.20445691 | J163: 78.83127577 | K163: 85.07828253 | L163: 89.54043022 | M163: 91.02781278 | N163: 78.98001403 | O163: 78.68253751 | P163: 77.19515495 | Q163: 74.6666046 | R163: 73.03048378 | S163: 65.59357097 | T163: 63.36249713 | U163: 60.83394677 | V163: 60.53647026 | W163: 61.13142329 | X163: 54.43820176 | Y163: 55.03315478 | Z163: 56.52053735 | AA163: 57.41296688 | AB163: 58.60287293 | AC163: 359.5003652 | AD163: 327.8191166 | AE163: 383.0010096 | AF163: 291.5269821 | AG163: 266.9851698 | AH163: 256.2760154 | AI163: 196.9294512 | AJ163: 231.1392501 | AK163: 179.0808604 | AL163: 196.9294512 | AM163: 92.21771883 | AN163: 145.0197998 | AO163: 149.779424 | AP163: 58.90034944 | AQ163: 5.800791991 | AR163: 30.93755728 | AS163: 32.27620159 | AT163: 101.1420142
A164: 8 | B164: 119 | C164: 130601 | E164: 00018298 | F164: PUESTO DE SALUD | G164: ALLACDAY | H164: 1151.772301 | I164: 18.10190883 | J164: 20.32629593 | K164: 21.93705901 | L164: 23.08760406 | M164: 23.47111908 | N164: 20.36464744 | O164: 20.28794443 | P164: 19.90442942 | Q164: 19.25245389 | R164: 18.83058737 | S164: 16.91301228 | T164: 16.33773975 | U164: 15.68576422 | V164: 15.60906122 | W164: 15.76246722 | X164: 14.03664965 | Y164: 14.19005565 | Z164: 14.57357067 | AA164: 14.80367968 | AB164: 15.1104917 | AC164: 92.69557976 | AD164: 84.52670989 | AE164: 98.75511704 | AF164: 75.16894346 | AG164: 68.84094567 | AH164: 66.07963754 | AI164: 50.77738834 | AJ164: 59.59823374 | AK164: 46.17520812 | AL164: 50.77738834 | AM164: 23.77793109 | AN164: 37.39271422 | AO164: 38.61996228 | AP164: 15.1871947 | AQ164: 1.495708569 | AR164: 7.977112367 | AS164: 8.322275883 | AT164: 26.0790212
A165: 9 | B165: 120 | C165: 130601 | E165: 00018299 | F165: PUESTO DE SALUD | G165: PAMPA GRANDE | H165: 1202.158952 | I165: 18.8938141 | J165: 21.2155116 | K165: 22.89674082 | L165: 24.09761884 | M165: 24.49791151 | N165: 21.25554087 | O165: 21.17548233 | P165: 20.77518966 | Q165: 20.09469212 | R165: 19.65437018 | S165: 17.65290682 | T165: 17.05246781 | U165: 16.37197027 | V165: 16.29191174 | W165: 16.45202881 | X165: 14.65071178 | Y165: 14.81082885 | Z165: 15.21112152 | AA165: 15.45129713 | AB165: 15.77153127 | AC165: 96.75073875 | AD165: 88.22450484 | AE165: 103.075363 | AF165: 78.45736365 | AG165: 71.85253457 | AH165: 68.97042734 | AI165: 52.99874973 | AJ165: 62.20548118 | AK165: 48.19523767 | AL165: 52.99874973 | AM165: 24.81814565 | AN165: 39.02853549 | AO165: 40.30947204 | AP165: 15.8515898 | AQ165: 1.56114142 | AR165: 8.326087572 | AS165: 8.686350976 | AT165: 27.21990168
C166: 130602 | D166: AGALLPAMPA (2) | H166: 10588 | I166: =SUM(I167:I177) -> 289 | J166: =SUM(J167:J177) -> 271 | K166: 258 | L166: 251 | M166: 255 | N166: 220 | O166: 225 | P166: 234 | Q166: 242 | R166: 254 | S166: 246 | T166: 261 | U166: 264 | V166: 251 | W166: 231 | X166: 190 | Y166: 173 | Z166: 161 | AA166: 152 | AB166: 149 | AC166: 877 | AD166: 938 | AE166: 795 | AF166: 620 | AG166: 571 | AH166: 606 | AI166: 443 | AJ166: 310 | AK166: 165 | AL166: 210 | AM166: 147 | AN166: 147 | AO166: 182 | AP166: 287 | AQ166: 17 | AR166: 166 | AS166: 97 | AT166: 304
A167: 1 | B167: 121 | C167: 130602 | E167: 00005318 | F167: CENTRO DE SALUD CON CAMAS DE INTERNAMIENTO | G167: AGALLPAMPA | H167: 1165.69746 | I167: 31.81777162 | J167: 29.8360419 | K167: 28.40479266 | L167: 27.63411999 | M167: 28.07450437 | N167: 24.22114102 | O167: 24.7716215 | P167: 25.76248636 | Q167: 26.64325513 | R167: 27.96440827 | S167: 27.08363951 | T167: 28.73508094 | U167: 29.06536923 | V167: 27.63411999 | W167: 25.43219808 | X167: 20.91825816 | Y167: 19.04662453 | Z167: 17.72547139 | AA167: 16.73460653 | AB167: 16.40431824 | AC167: 96.55427581 | AD167: 103.2701376 | AE167: 87.52639597 | AF167: 68.25957925 | AG167: 62.86487057 | AH167: 66.71823391 | AI167: 48.77257034 | AJ167: 34.12978963 | AK167: 18.16585577 | AL167: 23.12018007 | AM167: 16.18412605 | AN167: 16.18412605 | AO167: 20.03748939 | AP167: 31.59757943 | AQ167: 1.871633625 | AR167: 18.27595186 | AS167: 10.67932127 | AT167: 33.46921305
A168: 2 | B168: 122 | C168: 130602 | E168: 00005319 | F168: PUESTO DE SALUD | G168: CHOTA | H168: 2450.258604 | I168: 66.87993355 | J168: 62.71440136 | K168: 59.70596144 | L168: 58.08603225 | M168: 59.01170607 | N168: 50.91206014 | O168: 52.06915242 | P168: 54.15191852 | Q168: 56.00326616 | R168: 58.78028762 | S168: 56.92893998 | T168: 60.40021681 | U168: 61.09447217 | V168: 58.08603225 | W168: 53.45766315 | X168: 43.96950649 | Y168: 40.03539275 | Z168: 37.25837129 | AA168: 35.17560519 | AB168: 34.48134982 | AC168: 202.9539852 | AD168: 217.070511 | AE168: 183.9776719 | AF168: 143.4794422 | AG168: 132.1399379 | AH168: 140.2395838 | AI168: 102.5183757 | AJ168: 71.73972111 | AK168: 38.18404511 | AL168: 48.59787559 | AM168: 34.01851291 | AN168: 34.01851291 | AO168: 42.11815885 | AP168: 66.41709664 | AQ168: 3.934113738 | AR168: 38.41546356 | AS168: 22.44759015 | AT168: 70.35121038
A169: 3 | B169: 123 | C169: 130602 | E169: 00006933 | F169: PUESTO DE SALUD | G169: PARAISO | H169: 864.2873706 | I169: 23.59076786 | J169: 22.12144668 | K169: 21.06027027 | L169: 20.48886759 | M169: 20.8153834 | N169: 17.95837 | O169: 18.36651477 | P169: 19.10117536 | Q169: 19.754207 | R169: 20.73375445 | S169: 20.08072281 | T169: 21.30515713 | U169: 21.550044 | V169: 20.48886759 | W169: 18.8562885 | X169: 15.50950136 | Y169: 14.12180913 | Z169: 13.14226168 | AA169: 12.40760109 | AB169: 12.16271422 | AC169: 71.58859312 | AD169: 76.56795935 | AE169: 64.89501885 | AF169: 50.60995181 | AG169: 46.61013304 | AH169: 49.46714644 | AI169: 36.16162686 | AJ169: 25.3049759 | AK169: 13.4687775 | AL169: 17.14208045 | AM169: 11.99945632 | AN169: 11.99945632 | AO169: 14.85646972 | AP169: 23.42750995 | AQ169: 1.387692227 | AR169: 13.55040645 | AS169: 7.918008589 | AT169: 24.81520218
A170: 4 | B170: 124 | C170: 130602 | E170: 00006934 | F170: PUESTO DE SALUD | G170: CARATA | H170: 1145.286983 | I170: 31.26066662 | J170: 29.31363548 | K170: 27.90744633 | L170: 27.15026755 | M170: 27.58294114 | N170: 23.79704726 | O170: 24.33788924 | P170: 25.31140481 | Q170: 26.17675198 | R170: 27.47477274 | S170: 26.60942557 | T170: 28.23195152 | U170: 28.55645671 | V170: 27.15026755 | W170: 24.98689962 | X170: 20.55199536 | Y170: 18.71313262 | Z170: 17.41511186 | AA170: 16.44159629 | AB170: 16.1170911 | AC170: 94.86368384 | AD170: 101.461956 | AE170: 85.99387532 | AF170: 67.06440591 | AG170: 61.76415447 | AH170: 65.55004835 | AI170: 47.9185997 | AJ170: 33.53220295 | AK170: 17.84778544 | AL170: 22.71536329 | AM170: 15.9007543 | AN170: 15.9007543 | AO170: 19.68664819 | AP170: 31.04432983 | AQ170: 1.838862743 | AR170: 17.95595384 | AS170: 10.49233447 | AT170: 32.88319257
A171: 5 | B171: 125 | C171: 130602 | E171: 00008336 | F171: PUESTO DE SALUD | G171: CUSHCANDAY | H171: 361.6415293 | I171: 9.871023986 | J171: 9.256219724 | K171: 8.812194424 | L171: 8.573103877 | M171: 8.709727047 | N171: 7.514274315 | O171: 7.685053277 | P171: 7.992455408 | Q171: 8.265701746 | R171: 8.675571254 | S171: 8.402324916 | T171: 8.914661801 | U171: 9.017129178 | V171: 8.573103877 | W171: 7.889988031 | X171: 6.489600545 | Y171: 5.908952075 | Z171: 5.499082567 | AA171: 5.191680436 | AB171: 5.089213059 | AC171: 29.95462988 | AD171: 32.03813321 | AE171: 27.15385491 | AF171: 21.17659125 | AG171: 19.50295743 | AH171: 20.69841016 | AI171: 15.13101601 | AJ171: 10.58829563 | AK171: 5.635705736 | AL171: 7.172716391 | AM171: 5.020901474 | AN171: 5.020901474 | AO171: 6.216354206 | AP171: 9.802712402 | AQ171: 0.5806484698 | AR171: 5.669861528 | AS171: 3.313111857 | AT171: 10.38336087
A172: 6 | B172: 126 | C172: 130602 | E172: 00013928 | F172: PUESTO DE SALUD | G172: PAIHUAL | H172: 565.5221896 | I172: 15.43595701 | J172: 14.47454792 | K172: 13.78019691 | L172: 13.4063156 | M172: 13.61996206 | N172: 11.75055551 | O172: 12.01761359 | P172: 12.49831813 | Q172: 12.92561106 | R172: 13.56655045 | S172: 13.13925752 | T172: 13.94043176 | U172: 14.10066661 | V172: 13.4063156 | W172: 12.33808328 | X172: 10.14820703 | Y172: 9.240209557 | Z172: 8.599270166 | AA172: 8.118565623 | AB172: 7.958330775 | AC172: 46.84198718 | AD172: 50.10009575 | AE172: 42.46223467 | AF172: 33.11520188 | AG172: 30.4980327 | AH172: 32.36743926 | AI172: 23.66134586 | AJ172: 16.55760094 | AK172: 8.81291663 | AL172: 11.21643935 | AM172: 7.851507543 | AN172: 7.851507543 | AO172: 9.720914101 | AP172: 15.32913377 | AQ172: 0.9079974709 | AR172: 8.866328246 | AS172: 5.180926746 | AT172: 16.23713125
A173: 7 | B173: 127 | C173: 130602 | E173: 00013929 | F173: PUESTO DE SALUD | G173: PUEBLO LIBRE | H173: 401.7511454 | I173: 10.965818 | J173: 10.28282588 | K173: 9.789553788 | L173: 9.523945739 | M173: 9.675721767 | N173: 8.347681524 | O173: 8.537401559 | P173: 8.878897621 | Q173: 9.182449677 | R173: 9.63777776 | S173: 9.334225704 | T173: 9.903385808 | U173: 10.01721783 | V173: 9.523945739 | W173: 8.765065601 | X173: 7.209361316 | Y173: 6.564313199 | Z173: 6.108985116 | AA173: 5.767489053 | AB173: 5.653657032 | AC173: 33.27689408 | AD173: 35.5914785 | AE173: 30.16548551 | AF173: 23.5252843 | AG173: 21.66602796 | AH173: 22.9940682 | AI173: 16.80919507 | AJ173: 11.76264215 | AK173: 6.260761143 | AL173: 7.968241455 | AM173: 5.577769019 | AN173: 5.577769019 | AO173: 6.905809261 | AP173: 10.88992999 | AQ173: 0.6450481178 | AR173: 6.29870515 | AS173: 3.680568672 | AT173: 11.53497811
A174: 8 | B174: 128 | C174: 130602 | E174: 00013930 | F174: PUESTO DE SALUD | G174: LA MORADA | H174: 851.3797266 | I174: 23.23845306 | J174: 21.79107536 | K174: 20.74574702 | L174: 20.18287792 | M174: 20.5045174 | N174: 17.69017188 | O174: 18.09222124 | P174: 18.81591009 | Q174: 19.45918907 | R174: 20.42410753 | S174: 19.78082855 | T174: 20.98697664 | U174: 21.22820625 | V174: 20.18287792 | W174: 18.57468047 | X174: 15.27787571 | Y174: 13.91090789 | Z174: 12.94598942 | AA174: 12.22230057 | AB174: 11.98107095 | AC174: 70.5194579 | AD174: 75.4244601 | AE174: 63.92584838 | AF174: 49.85412075 | AG174: 45.91403701 | AH174: 48.72838254 | AI174: 35.62157337 | AJ174: 24.92706037 | AK174: 13.26762891 | AL174: 16.88607316 | AM174: 11.82025121 | AN174: 11.82025121 | AO174: 14.63459674 | AP174: 23.07763331 | AQ174: 1.366967827 | AR174: 13.34803878 | AS174: 7.799757601 | AT174: 24.44460114
A175: 9 | B175: 129 | C175: 130602 | E175: 00013931 | F175: PUESTO DE SALUD | G175: MOTIL | H175: 1257.921972 | I175: 34.33504439 | J175: 32.19652952 | K175: 30.65204655 | L175: 29.82040188 | M175: 30.2956274 | N175: 26.13740404 | O175: 26.73143595 | P175: 27.80069338 | Q175: 28.75114444 | R175: 30.17682102 | S175: 29.22636997 | T175: 31.0084657 | U175: 31.36488484 | V175: 29.82040188 | W175: 27.44427424 | X175: 22.57321258 | Y175: 20.55350408 | Z175: 19.1278275 | AA175: 18.05857006 | AB175: 17.70215091 | AC175: 104.193197 | AD175: 111.4403863 | AE175: 94.45107367 | AF175: 73.65995683 | AG175: 67.83844411 | AH175: 71.99666748 | AI175: 52.63122722 | AJ175: 36.82997841 | AK175: 19.60305303 | AL175: 24.94934022 | AM175: 17.46453815 | AN175: 17.46453815 | AO175: 21.62276152 | AP175: 34.09743163 | AQ175: 2.019708494 | AR175: 19.72185941 | AS175: 11.52421905 | AT175: 36.11714012
A176: 10 | B176: 130 | C176: 130602 | E176: 00013932 | F176: PUESTO DE SALUD | G176: SAN AGUSTIN | H176: 1085.515688 | I176: 29.62920605 | J176: 27.78378838 | K176: 26.45098672 | L176: 25.73332429 | M176: 26.14341711 | N176: 22.55510495 | O176: 23.06772098 | P176: 23.99042981 | Q176: 24.81061545 | R176: 26.0408939 | S176: 25.22070827 | T176: 26.75855633 | U176: 27.06612594 | V176: 25.73332429 | W176: 23.6828602 | X176: 19.47940882 | Y176: 17.73651435 | Z176: 16.5062359 | AA176: 15.58352706 | AB176: 15.27595745 | AC176: 89.9128502 | AD176: 96.16676567 | AE176: 81.50594745 | AF176: 63.56438669 | AG176: 58.54074968 | AH176: 62.12906183 | AI176: 45.41777952 | AJ176: 31.78219334 | AK176: 16.91632872 | AL176: 21.52987291 | AM176: 15.07091104 | AN176: 15.07091104 | AO176: 18.65922319 | AP176: 29.42415964 | AQ176: 1.742894474 | AR176: 17.01885192 | AS176: 9.944750821 | AT176: 31.16705412
A177: 11 | B177: 131 | C177: 130602 | E177: 00024601 | F177: PUESTO DE SALUD | G177: LABUNDAY | H177: 438.7373319 | I177: 11.97535785 | J177: 11.22948781 | K177: 10.69080389 | L177: 10.40074332 | M177: 10.56649222 | N177: 9.116189366 | O177: 9.323375488 | P177: 9.696310508 | Q177: 10.0278083 | R177: 10.525055 | S177: 10.1935572 | T177: 10.81511557 | U177: 10.93942724 | V177: 10.40074332 | W177: 9.571998834 | X177: 7.873072634 | Y177: 7.16863982 | Z177: 6.671393127 | AA177: 6.298458107 | AB177: 6.174146434 | AC177: 36.34044579 | AD177: 38.86811648 | AE177: 32.94259339 | AF177: 25.69107912 | AG177: 23.66065513 | AH177: 25.11095798 | AI177: 18.35669041 | AJ177: 12.84553956 | AK177: 6.837142025 | AL177: 8.701817122 | AM177: 6.091271986 | AN177: 6.091271986 | AO177: 7.541574839 | AP177: 11.8924834 | AQ177: 0.7044328147 | AR177: 6.878579249 | AS177: 4.019410766 | AT177: 12.59691621
C178: 130604 | D178: CHARAT (3) | H178: 3252 | I178: =SUM(I179:I182) -> 98 | J178: =SUM(J179:J182) -> 79 | K178: 56 | L178: 47 | M178: 42 | N178: 37 | O178: 38 | P178: 46 | Q178: 47 | R178: 55 | S178: 59 | T178: 76 | U178: 76 | V178: 71 | W178: 47 | X178: 34 | Y178: 23 | Z178: 20 | AA178: 22 | AB178: 25 | AC178: 249 | AD178: 141 | AE178: 138 | AF178: 217 | AG178: 157 | AH178: 135 | AI178: 191 | AJ178: 316 | AK178: 188 | AL178: 199 | AM178: 133 | AN178: 78 | AO178: 112 | AP178: 91 | AQ178: 3 | AR178: 114 | AS178: 3 | AT178: 96
A179: 1 | B179: 132 | C179: 130604 | E179: 00005321 | F179: CENTRO DE SALUD | G179: CALLANCAS | H179: 1577.203789 | I179: 47.52951148 | J179: 38.31460619 | K179: 27.15972085 | L179: 22.79476571 | M179: 20.36979063 | N179: 17.94481556 | O179: 18.42981057 | P179: 22.30977069 | Q179: 22.79476571 | R179: 26.67472583 | S179: 28.61470589 | T179: 36.85962115 | U179: 36.85962115 | V179: 34.43464607 | W179: 22.79476571 | X179: 16.48983051 | Y179: 11.15488535 | Z179: 9.699900302 | AA179: 10.66989033 | AB179: 12.12487538 | AC179: 120.7637588 | AD179: 68.38429713 | AE179: 66.92931208 | AF179: 105.2439183 | AG179: 76.14421737 | AH179: 65.47432704 | AI179: 92.63404788 | AJ179: 153.2584248 | AK179: 91.17906284 | AL179: 96.51400801 | AM179: 64.50433701 | AN179: 37.82961118 | AO179: 54.31944169 | AP179: 44.13454637 | AQ179: 1.454985045 | AR179: 55.28943172 | AS179: 1.454985045 | AT179: 46.55952145
A180: 2 | B180: 133 | C180: 130604 | E180: 00005322 | F180: PUESTO DE SALUD | G180: CHARAT | H180: 534.869816 | I180: 16.11846309 | J180: 12.99345494 | K180: 9.210550338 | L180: 7.730283319 | M180: 6.907912753 | N180: 6.085542187 | O180: 6.250016301 | P180: 7.565809206 | Q180: 7.730283319 | R180: 9.046076225 | S180: 9.703972677 | T180: 12.5000326 | U180: 12.5000326 | V180: 11.67766204 | W180: 7.730283319 | X180: 5.592119848 | Y180: 3.782904603 | Z180: 3.289482264 | AA180: 3.61843049 | AB180: 4.111852829 | AC180: 40.95405418 | AD180: 23.19084996 | AE180: 22.69742762 | AF180: 35.69088256 | AG180: 25.82243577 | AH180: 22.20400528 | AI180: 31.41455562 | AJ180: 51.97381976 | AK180: 30.92113328 | AL180: 32.73034852 | AM180: 21.87505705 | AN180: 12.82898083 | AO180: 18.42110068 | AP180: 14.9671443 | AQ180: 0.4934223395 | AR180: 18.7500489 | AS180: 0.4934223395 | AT180: 15.78951486
A181: 3 | B181: 134 | C181: 130604 | E181: 00016898 | F181: PUESTO DE SALUD | G181: LA RAMADA | H181: 393.5025937 | I181: 11.85831924 | J181: 9.55925735 | K181: 6.776182426 | L181: 5.687153107 | M181: 5.082136819 | N181: 4.477120531 | O181: 4.598123789 | P181: 5.56614985 | Q181: 5.687153107 | R181: 6.655179168 | S181: 7.139192198 | T181: 9.196247578 | U181: 9.196247578 | V181: 8.59123129 | W181: 5.687153107 | X181: 4.114110758 | Y181: 2.783074925 | Z181: 2.420065152 | AA181: 2.662071667 | AB181: 3.02508144 | AC181: 30.12981114 | AD181: 17.06145932 | AE181: 16.69844955 | AF181: 26.2577069 | AG181: 18.99751144 | AH181: 16.33543978 | AI181: 23.1116222 | AJ181: 38.2370294 | AK181: 22.74861243 | AL181: 24.07964826 | AM181: 16.09343326 | AN181: 9.438254093 | AO181: 13.55236485 | AP181: 11.01129644 | AQ181: 0.3630097728 | AR181: 13.79437137 | AS181: 0.3630097728 | AT181: 11.61631273
A182: 4 | B182: 135 | C182: 130604 | E182: 00016900 | F182: PUESTO DE SALUD | G182: CAYANCHAL | H182: 746.4238011 | I182: 22.49370618 | J182: 18.13268152 | K182: 12.85354639 | L182: 10.78779786 | M182: 9.640159793 | N182: 8.492521723 | O182: 8.722049337 | P182: 10.55827025 | Q182: 10.78779786 | R182: 12.62401878 | S182: 13.54212923 | T182: 17.44409867 | U182: 17.44409867 | V182: 16.2964606 | W182: 10.78779786 | X182: 7.80393888 | Y182: 5.279135125 | Z182: 4.590552282 | AA182: 5.049607511 | AB182: 5.738190353 | AC182: 57.15237592 | AD182: 32.36339359 | AE182: 31.67481075 | AF182: 49.80749226 | AG182: 36.03583542 | AH182: 30.98622791 | AI182: 43.8397743 | AJ182: 72.53072606 | AK182: 43.15119146 | AL182: 45.67599521 | AM182: 30.52717268 | AN182: 17.9031539 | AO182: 25.70709278 | AP182: 20.88701289 | AQ182: 0.6885828424 | AR182: 26.16614801 | AS182: 0.6885828424 | AT182: 22.03465096
C183: 130605 | D183: HUARANCHAL (4) | H183: 5691 | I183: =SUM(I184:I185) -> 139 | J183: =SUM(J184:J185) -> 150 | K183: 148 | L183: 150 | M183: 153 | N183: 132 | O183: 135 | P183: 129 | Q183: 128 | R183: 135 | S183: 122 | T183: 121 | U183: 116 | V183: 105 | W183: 96 | X183: 72 | Y183: 62 | Z183: 53 | AA183: 50 | AB183: 45 | AC183: 299 | AD183: 322 | AE183: 486 | AF183: 451 | AG183: 250 | AH183: 254 | AI183: 256 | AJ183: 201 | AK183: 125 | AL183: 303 | AM183: 174 | AN183: 203 | AO183: 126 | AP183: 156 | AQ183: 7 | AR183: 111 | AS183: 25 | AT183: 127
A184: 1 | B184: 136 | C184: 130605 | E184: 00005323 | F184: PUESTO DE SALUD | G184: HUARANCHAL | H184: 3820.036652 | I184: 93.30259965 | J184: 100.6862586 | K184: 99.34377517 | L184: 100.6862586 | M184: 102.6999838 | N184: 88.60390759 | O184: 90.61763276 | P184: 86.59018241 | Q184: 85.91894069 | R184: 90.61763276 | S184: 81.89149034 | T184: 81.22024862 | U184: 77.86404 | V184: 70.48038103 | W184: 64.43920552 | X184: 48.32940414 | Y184: 41.6169869 | Z184: 35.57581138 | AA184: 33.56208621 | AB184: 30.20587759 | AC184: 200.7012755 | AD184: 216.1398352 | AE184: 326.2234779 | AF184: 302.7300176 | AG184: 167.810431 | AH184: 170.4953979 | AI184: 171.8378814 | AJ184: 134.9195865 | AK184: 83.90521552 | AL184: 203.3862424 | AM184: 116.79606 | AN184: 136.26207 | AO184: 84.57645724 | AP184: 104.713709 | AQ184: 4.698692069 | AR184: 74.50783138 | AS184: 16.7810431 | AT184: 85.24769896
A185: 2 | B185: 137 | C185: 130605 | E185: 00005324 | F185: PUESTO DE SALUD | G185: HUAYOBAMBA | H185: 1870.963348 | I185: 45.69740035 | J185: 49.31374138 | K185: 48.65622483 | L185: 49.31374138 | M185: 50.30001621 | N185: 43.39609241 | O185: 44.38236724 | P185: 42.40981759 | Q185: 42.08105931 | R185: 44.38236724 | S185: 40.10850966 | T185: 39.77975138 | U185: 38.13596 | V185: 34.51961897 | W185: 31.56079448 | X185: 23.67059586 | Y185: 20.3830131 | Z185: 17.42418862 | AA185: 16.43791379 | AB185: 14.79412241 | AC185: 98.29872449 | AD185: 105.8601648 | AE185: 159.7765221 | AF185: 148.2699824 | AG185: 82.18956897 | AH185: 83.50460207 | AI185: 84.16211862 | AJ185: 66.08041345 | AK185: 41.09478448 | AL185: 99.61375759 | AM185: 57.20394 | AN185: 66.73793 | AO185: 41.42354276 | AP185: 51.28629104 | AQ185: 2.301307931 | AR185: 36.49216862 | AS185: 8.218956897 | AT185: 41.75230104
C186: 130606 | D186: LA CUESTA (5) | H186: 790 | I186: =+I187 -> 11 | J186: =+J187 -> 17 | K186: 17 | L186: 16 | M186: 15 | N186: 13 | O186: 13 | P186: 13 | Q186: 13 | R186: 14 | S186: 13 | T186: 13 | U186: 13 | V186: 15 | W186: 15 | X186: 16 | Y186: 13 | Z186: 15 | AA186: 13 | AB186: 13 | AC186: 59 | AD186: 26 | AE186: 35 | AF186: 44 | AG186: 22 | AH186: 26 | AI186: 45 | AJ186: 33 | AK186: 66 | AL186: 52 | AM186: 20 | AN186: 74 | AO186: 7 | AP186: 15 | AQ186: 1 | AR186: 4 | AS186: 7 | AT186: 27
A187: 1 | B187: 138 | C187: 130606 | E187: 00005247 | F187: PUESTO DE SALUD | G187: LA CUESTA | H187: 790 | I187: 11 | J187: 17 | K187: 17 | L187: 16 | M187: 15 | N187: 13 | O187: 13 | P187: 13 | Q187: 13 | R187: 14 | S187: 13 | T187: 13 | U187: 13 | V187: 15 | W187: 15 | X187: 16 | Y187: 13 | Z187: 15 | AA187: 13 | AB187: 13 | AC187: 59 | AD187: 26 | AE187: 35 | AF187: 44 | AG187: 22 | AH187: 26 | AI187: 45 | AJ187: 33 | AK187: 66 | AL187: 52 | AM187: 20 | AN187: 74 | AO187: 7 | AP187: 15 | AQ187: 1 | AR187: 4 | AS187: 7 | AT187: 27
C188: 130608 | D188: MACHE (6) | H188: 3514 | I188: =SUM(I189:I191) -> 47 | J188: =SUM(J189:J191) -> 58 | K188: 60 | L188: 68 | M188: 67 | N188: 59 | O188: 59 | P188: 58 | Q188: 57 | R188: 48 | S188: 45 | T188: 46 | U188: 45 | V188: 46 | W188: 44 | X188: 46 | Y188: 49 | Z188: 49 | AA188: 49 | AB188: 43 | AC188: 202 | AD188: 178 | AE188: 290 | AF188: 265 | AG188: 231 | AH188: 204 | AI188: 207 | AJ188: 224 | AK188: 133 | AL188: 192 | AM188: 61 | AN188: 180 | AO188: 104 | AP188: 44 | AQ188: 5 | AR188: 18 | AS188: 24 | AT188: 90
A189: 1 | B189: 139 | C189: 130608 | E189: 00005325 | F189: CENTRO DE SALUD | G189: MACHE | H189: 1921.522858 | I189: 25.70050493 | J189: 31.71551672 | K189: 32.80915523 | L189: 37.18370926 | M189: 36.63689 | N189: 32.26233597 | O189: 32.26233597 | P189: 31.71551672 | Q189: 31.16869747 | R189: 26.24732418 | S189: 24.60686642 | T189: 25.15368567 | U189: 24.60686642 | V189: 25.15368567 | W189: 24.06004717 | X189: 25.15368567 | Y189: 26.79414344 | Z189: 26.79414344 | AA189: 26.79414344 | AB189: 23.51322791 | AC189: 110.4574893 | AD189: 97.33382717 | AE189: 158.5775836 | AF189: 144.9071023 | AG189: 126.3152476 | AH189: 111.5511278 | AI189: 113.1915855 | AJ189: 122.4875128 | AK189: 72.72696075 | AL189: 104.9892967 | AM189: 33.35597448 | AN189: 98.42746568 | AO189: 56.86920239 | AP189: 24.06004717 | AQ189: 2.734096269 | AR189: 9.842746568 | AS189: 13.12366209 | AT189: 49.21373284
A190: 2 | B190: 140 | C190: 130608 | E190: 00012823 | F190: PUESTO DE SALUD | G190: LLUIN | H190: 732.9642148 | I190: 9.803448518 | J190: 12.09787264 | K190: 12.51504066 | L190: 14.18371275 | M190: 13.97512874 | N190: 12.30645665 | O190: 12.30645665 | P190: 12.09787264 | Q190: 11.88928863 | R190: 10.01203253 | S190: 9.386280496 | T190: 9.594864507 | U190: 9.386280496 | V190: 9.594864507 | W190: 9.177696485 | X190: 9.594864507 | Y190: 10.22061654 | Z190: 10.22061654 | AA190: 10.22061654 | AB190: 8.969112474 | AC190: 42.13397023 | AD190: 37.12795396 | AE190: 60.4893632 | AF190: 55.27476292 | AG190: 48.18290655 | AH190: 42.55113825 | AI190: 43.17689028 | AJ190: 46.72281847 | AK190: 27.74167347 | AL190: 40.04813012 | AM190: 12.72362467 | AN190: 37.54512199 | AO190: 21.69273715 | AP190: 9.177696485 | AQ190: 1.042920055 | AR190: 3.754512199 | AS190: 5.006016265 | AT190: 18.77256099
A191: 3 | B191: 141 | C191: 130608 | E191: 00013974 | F191: PUESTO DE SALUD | G191: CRUZ DE MAYO | H191: 859.5129274 | I191: 11.49604655 | J191: 14.18661064 | K191: 14.67580411 | L191: 16.63257799 | M191: 16.38798126 | N191: 14.43120738 | O191: 14.43120738 | P191: 14.18661064 | Q191: 13.94201391 | R191: 11.74064329 | S191: 11.00685308 | T191: 11.25144982 | U191: 11.00685308 | V191: 11.25144982 | W191: 10.76225635 | X191: 11.25144982 | Y191: 11.98524002 | Z191: 11.98524002 | AA191: 11.98524002 | AB191: 10.51765961 | AC191: 49.40854051 | AD191: 43.53821886 | AE191: 70.9330532 | AF191: 64.81813482 | AG191: 56.50184583 | AH191: 49.89773398 | AI191: 50.63152418 | AJ191: 54.78966868 | AK191: 32.53136578 | AL191: 46.96257315 | AM191: 14.92040085 | AN191: 44.02741233 | AO191: 25.43806046 | AP191: 10.76225635 | AQ191: 1.222983676 | AR191: 4.402741233 | AS191: 5.870321644 | AT191: 22.01370617
C192: 130610 | D192: PARANDAY (7) | H192: 846 | I192: =+I193 -> 13 | J192: =+J193 -> 18 | K192: 12 | L192: 16 | M192: 11 | N192: 13 | O192: 16 | P192: 13 | Q192: 17 | R192: 20 | S192: 18 | T192: 19 | U192: 22 | V192: 18 | W192: 19 | X192: 9 | Y192: 6 | Z192: 2 | AA192: 5 | AB192: 12 | AC192: 110 | AD192: 66 | AE192: 37 | AF192: 56 | AG192: 54 | AH192: 61 | AI192: 31 | AJ192: 17 | AK192: 45 | AL192: 0 | AM192: 23 | AN192: 38 | AO192: 29 | AP192: 20 | AQ192: 30 | AR192: 11 | AS192: 2 | AT192: 31
A193: 1 | B193: 142 | C193: 130610 | E193: 00005248 | F193: PUESTO DE SALUD | G193: PARANDAY | H193: 846 | I193: 13 | J193: 18 | K193: 12 | L193: 16 | M193: 11 | N193: 13 | O193: 16 | P193: 13 | Q193: 17 | R193: 20 | S193: 18 | T193: 19 | U193: 22 | V193: 18 | W193: 19 | X193: 9 | Y193: 6 | Z193: 2 | AA193: 5 | AB193: 12 | AC193: 110 | AD193: 66 | AE193: 37 | AF193: 56 | AG193: 54 | AH193: 61 | AI193: 31 | AJ193: 17 | AK193: 45 | AL193: 0 | AM193: 23 | AN193: 38 | AO193: 29 | AP193: 20 | AQ193: 30 | AR193: 11 | AS193: 2 | AT193: 31
C194: 130611 | D194: SALPO (8) | H194: 6885 | I194: =SUM(I195:I198) -> 80 | J194: =SUM(J195:J198) -> 102 | K194: 116 | L194: 137 | M194: 143 | N194: 135 | O194: 136 | P194: 141 | Q194: 140 | R194: 142 | S194: 126 | T194: 120 | U194: 114 | V194: 109 | W194: 101 | X194: 84 | Y194: 78 | Z194: 74 | AA194: 71 | AB194: 67 | AC194: 426 | AD194: 551 | AE194: 410 | AF194: 338 | AG194: 594 | AH194: 418 | AI194: 436 | AJ194: 292 | AK194: 221 | AL194: 249 | AM194: 275 | AN194: 158 | AO194: 301 | AP194: 59 | AQ194: 11 | AR194: 28 | AS194: 43 | AT194: 188
A195: 1 | B195: 143 | C195: 130611 | E195: 00005326 | F195: CENTRO DE SALUD | G195: SALPO | H195: 1585.876265 | I195: 18.42702995 | J195: 23.49446318 | K195: 26.71919342 | L195: 31.55628879 | M195: 32.93831603 | N195: 31.09561304 | O195: 31.32595091 | P195: 32.47764028 | Q195: 32.24730241 | R195: 32.70797816 | S195: 29.02257217 | T195: 27.64054492 | U195: 26.25851768 | V195: 25.1068283 | W195: 23.26412531 | X195: 19.34838145 | Y195: 17.9663542 | Z195: 17.0450027 | AA195: 16.35398908 | AB195: 15.43263758 | AC195: 98.12393447 | AD195: 126.9161688 | AE195: 94.43852848 | AF195: 77.85420153 | AG195: 136.8206974 | AH195: 96.28123148 | AI195: 100.4273132 | AJ195: 67.25865931 | AK195: 50.90467023 | AL195: 57.35413071 | AM195: 63.34291545 | AN195: 36.39338415 | AO195: 69.33170018 | AP195: 13.58993459 | AQ195: 2.533716618 | AR195: 6.449460482 | AS195: 9.904528597 | AT195: 43.30352038
A196: 2 | B196: 144 | C196: 130611 | E196: 00005327 | F196: PUESTO DE SALUD | G196: BELLAVISTA | H196: 2408.920582 | I196: 27.99036261 | J196: 35.68771232 | K196: 40.58602578 | L196: 47.93349596 | M196: 50.03277316 | N196: 47.2337369 | O196: 47.58361643 | P196: 49.33301409 | Q196: 48.98313456 | R196: 49.68289363 | S196: 44.0848211 | T196: 41.98554391 | U196: 39.88626671 | V196: 38.13686905 | W196: 35.33783279 | X196: 29.38988074 | Y196: 27.29060354 | Z196: 25.89108541 | AA196: 24.84144681 | AB196: 23.44192868 | AC196: 149.0486809 | AD196: 192.7836224 | AE196: 143.4506084 | AF196: 118.259282 | AG196: 207.8284423 | AH196: 146.2496446 | AI196: 152.5474762 | AJ196: 102.1648235 | AK196: 77.3233767 | AL196: 87.12000361 | AM196: 96.21687146 | AN196: 55.28096615 | AO196: 105.3137393 | AP196: 20.64289242 | AQ196: 3.848674858 | AR196: 9.796626912 | AS196: 15.0448199 | AT196: 65.77735212
A197: 3 | B197: 145 | C197: 130611 | E197: 00013043 | F197: PUESTO DE SALUD | G197: RAYAMPAMPA | H197: 1583.548487 | I197: 18.39998242 | J197: 23.45997759 | K197: 26.67997451 | L197: 31.50996989 | M197: 32.88996858 | N197: 31.04997033 | O197: 31.27997011 | P197: 32.42996902 | Q197: 32.19996923 | R197: 32.6599688 | S197: 28.97997231 | T197: 27.59997363 | U197: 26.21997495 | V197: 25.06997605 | W197: 23.22997781 | X197: 19.31998154 | Y197: 17.93998286 | Z197: 17.01998374 | AA197: 16.3299844 | AB197: 15.40998528 | AC197: 97.97990639 | AD197: 126.7298789 | AE197: 94.2999099 | AF197: 77.73992572 | AG197: 136.6198695 | AH197: 96.13990814 | AI197: 100.2799042 | AJ197: 67.15993583 | AK197: 50.82995143 | AL197: 57.26994528 | AM197: 63.24993957 | AN197: 36.33996528 | AO197: 69.22993385 | AP197: 13.56998703 | AQ197: 2.529997583 | AR197: 6.439993847 | AS197: 9.889990551 | AT197: 43.23995869
A198: 4 | B198: 146 | C198: 130611 | E198: 00007042 | F198: PUESTO DE SALUD | G198: SHULGON | H198: 1306.654666 | I198: 15.18262503 | J198: 19.35784691 | K198: 22.01480629 | L198: 26.00024536 | M198: 27.13894223 | N198: 25.62067973 | O198: 25.81046254 | P198: 26.75937661 | Q198: 26.5695938 | R198: 26.94915942 | S198: 23.91263442 | T198: 22.77393754 | U198: 21.63524066 | V198: 20.6863266 | W198: 19.1680641 | X198: 15.94175628 | Y198: 14.8030594 | Z198: 14.04392815 | AA198: 13.47457971 | AB198: 12.71544846 | AC198: 80.84747827 | AD198: 104.5703299 | AE198: 77.81095326 | AF198: 64.14659074 | AG198: 112.7309908 | AH198: 79.32921576 | AI198: 82.74530639 | AJ198: 55.41658135 | AK198: 41.94200164 | AL198: 47.25592039 | AM198: 52.19027353 | AN198: 29.98568443 | AO198: 57.12462666 | AP198: 11.19718596 | AQ198: 2.087610941 | AR198: 5.313918759 | AS198: 8.160660952 | AT198: 35.67916881
C199: 130613 | D199: SINSICAP (9) | H199: 9437 | I199: =SUM(I200:I202) -> 206 | J199: =SUM(J200:J202) -> 229 | K199: 240 | L199: 250 | M199: 254 | N199: 228 | O199: 229 | P199: 231 | Q199: 228 | R199: 227 | S199: 212 | T199: 207 | U199: 201 | V199: 180 | W199: 158 | X199: 124 | Y199: 104 | Z199: 91 | AA199: 88 | AB199: 91 | AC199: 640 | AD199: 767 | AE199: 805 | AF199: 895 | AG199: 361 | AH199: 459 | AI199: 361 | AJ199: 284 | AK199: 294 | AL199: 442 | AM199: 121 | AN199: 84 | AO199: 146 | AP199: 199 | AQ199: 13 | AR199: 118 | AS199: 69 | AT199: 237
A200: 1 | B200: 147 | C200: 130613 | E200: 00005249 | F200: PUESTO DE SALUD | G200: SINSICAP | H200: 889.6648453 | I200: 19.42046817 | J200: 21.58877287 | K200: 22.62578816 | L200: 23.56852933 | M200: 23.9456258 | N200: 21.49449875 | O200: 21.58877287 | P200: 21.7773211 | Q200: 21.49449875 | R200: 21.40022463 | S200: 19.98611287 | T200: 19.51474229 | U200: 18.94909758 | V200: 16.96934112 | W200: 14.89531054 | X200: 11.68999055 | Y200: 9.804508203 | Z200: 8.578944677 | AA200: 8.296122325 | AB200: 8.578944677 | AC200: 60.33543509 | AD200: 72.308248 | AE200: 75.89066445 | AF200: 84.37533501 | AG200: 34.03295636 | AH200: 43.27181986 | AI200: 34.03295636 | AJ200: 26.77384932 | AK200: 27.7165905 | AL200: 41.66915986 | AM200: 11.4071682 | AN200: 7.919025856 | AO200: 13.76402113 | AP200: 18.76054935 | AQ200: 1.225563525 | AR200: 11.12434585 | AS200: 6.504914096 | AT200: 22.34296581
... 220 more rows

Sheet x Redes
F2: GERENCIA REGIONAL DE SALUD LA LIBERTAD
F3: Oficina de Estadística e Informática
M4: POBLACION ESTIMADA POR EDADES SIMPLES, GRUPOS DE EDAD y GÉNERO, SEGÚN REDES, MICROREDES Y ESTABLECIMIENTOS DE SALUD 2021
AS5: GRUPOS ESPECIALES
A6: N° EESS x RED | B6: N° EE SS | C6: Red | D6: N° MR | E6: Microrred | F6: Cód RENAES | G6: Clasificación | H6: EESS | I6: CATEGORIA | J6: TOTAL | K6: POBLACION POR EDADES SIMPLES | AE6: POBLACIÓN TOTAL POR GRUPOS QUINQUENALES | AS6: NACIMIENTO | AT6: EDADES ESPECIALES | AW6: GESTANTES ESPERADAS
A7: N° | B7: N° | K7: 0a | L7: 1a | M7: 2a | N7: 3a | O7: 4a | P7: 5a | Q7: 6a | R7: 7a | S7: 8a | T7: 9a | U7: 10a | V7: 11a | W7: 12a | X7: 13a | Y7: 14a | Z7: 15a | AA7: 16a | AB7: 17a | AC7: 18a | AD7: 19a | AE7: 20-24a | AF7: 25-29a | AG7: 30-34a | AH7: 35-39a | AI7: 40-44a | AJ7: 45-49a | AK7: 50-54a | AL7: 55-59a | AM7: 60-64a | AN7: 65-69a | AO7: 70-74a | AP7: 75-79a | AQ7: 80- 84a | AT7: 28 d | AU7: 0m - 5m | AV7: 6m - 11m
G8: LA LIBERTAD | J8: =SUM(K8:AQ8) -> 2048492 | K8: =+K9+K77+K97+K108+K119+K140+K167+K221+K237+K276+K327+K363 -> 38263 | L8: =+L9+L77+L97+L108+L119+L140+L167+L221+L237+L276+L327+L363 -> 37862 | M8: 37472 | N8: 37435 | O8: 37595 | P8: 32605 | Q8: 32814 | R8: 33081 | S8: 33369 | T8: 33713 | U8: 32052 | V8: 32468 | W8: 32737 | X8: 32739 | Y8: 32619 | Z8: 28853 | AA8: 28889 | AB8: 28778 | AC8: 28406 | AD8: 28009 | AE8: 164110 | AF8: 169786 | AG8: 169111 | AH8: 158923 | AI8: 139177 | AJ8: 116459 | AK8: 108920 | AL8: 94580 | AM8: 76928 | AN8: 64004 | AO8: 48150 | AP8: 35449 | AQ8: 43136 | AS8: 34903 | AT8: 2532 | AU8: 21413 | AV8: 14302 | AW8: 46389
C9: TRUJILLO | D9: 9 | J9: =SUM(K9:AQ9) -> 1046630 | K9: =+K10+K22+K34+K39+K44+K55+K61+K71+K68 -> 15587 | L9: =+L10+L22+L34+L39+L44+L55+L61+L71+L68 -> 15206 | M9: 14938 | N9: 14776 | O9: 14675 | P9: 12681 | Q9: 12761 | R9: 12870 | S9: 13075 | T9: 13338 | U9: 12833 | V9: 13134 | W9: 13574 | X9: 14200 | Y9: 14945 | Z9: 13900 | AA9: 14635 | AB9: 15124 | AC9: 15300 | AD9: 15254 | AE9: 90413 | AF9: 94094 | AG9: 93241 | AH9: 84326 | AI9: 78061 | AJ9: 66790 | AK9: 61867 | AL9: 55193 | AM9: 39685 | AN9: 33445 | AO9: 24625 | AP9: 19072 | AQ9: 23012 | AS9: 14053 | AT9: 1082 | AU9: 7366 | AV9: 6735 | AW9: 19481
D10: 1 | J10: 352204 | K10: =+SUM(K11:K21) -> 3619 | L10: =+SUM(L11:L21) -> 3633 | M10: 3664 | N10: 3654 | O10: 3608 | P10: 3134 | Q10: 3155 | R10: 3158 | S10: 3204 | T10: 3276 | U10: 3147 | V10: 3217 | W10: 3399 | X10: 3739 | Y10: 4213 | Z10: 4104 | AA10: 4552 | AB10: 4846 | AC10: 5002 | AD10: 5034 | AE10: 30219 | AF10: 30948 | AG10: 29774 | AH10: 27075 | AI10: 26822 | AJ10: 24495 | AK10: 25025 | AL10: 22052 | AM10: 16327 | AN10: 13787 | AO10: 10894 | AP10: 8892 | AQ10: 10536 | AS10: 3126 | AT10: 262 | AU10: 1611 | AV10: 1648 | AW10: 4865
B11: 1 | C11: TRUJILLO | E11: TRUJILLO METROPOLITANO | F11: 00005204 | G11: HOSPITAL DE ESPECIALIDADES BÁSICAS | H11: LA NORIA | I11: II-1 | J11: 25134.1236 | K11: 258.2605345 | L11: 259.2596082 | M11: 261.4718427 | N11: 260.7582186 | O11: 257.4755481 | P11: 223.6497693 | Q11: 225.1483798 | R11: 225.362467 | S11: 228.6451375 | T11: 233.7832305 | U11: 224.5774806 | V11: 229.5728488 | W11: 242.560806 | X11: 266.8240228 | Y11: 300.6498016 | Z11: 292.8712997 | AA11: 324.8416561 | AB11: 345.8222024 | AC11: 356.9547372 | AD11: 359.238334 | AE11: 2156.50044 | AF11: 2208.523632 | AG11: 2124.744171 | AH11: 1932.137047 | AI11: 1914.082359 | AJ11: 1748.022049 | AK11: 1785.844122 | AL11: 1573.683699 | AM11: 1165.133945 | AN11: 983.8734429 | AO11: 777.4220125 | AP11: 634.5544828 | AQ11: 751.8742724 | AR11: 0 | AS11: 223.0788701 | AT11: 18.69694945 | AU11: 114.9648304 | AV11: 117.6052393 | AW11: 347.178088
B12: =+B11+1 -> 2 | C12: TRUJILLO | E12: TRUJILLO METROPOLITANO | F12: 00005202 | G12: CENTRO DE SALUD CON CAMAS DE INTERNAMIENTO | H12: EL BOSQUE | I12: I-4 | J12: 33718.04224 | K12: 346.4628309 | L12: 347.8031126 | M12: 350.7708793 | N12: 349.8135352 | O12: 345.4097524 | P12: 300.0316419 | Q12: 302.0420645 | R12: 302.3292677 | S12: 306.7330506 | T12: 313.6259281 | U12: 301.2761892 | V12: 307.9775979 | W12: 325.4012606 | X12: 357.9509601 | Y12: 403.3290706 | Z12: 392.8940199 | AA12: 435.7830357 | AB12: 463.9289523 | AC12: 478.8635203 | AD12: 481.9270214 | AE12: 2892.998145 | AF12: 2962.78853 | AG12: 2850.396332 | AH12: 2592.009159 | AI12: 2567.788353 | AJ12: 2345.01438 | AK12: 2395.753618 | AL12: 2111.135216 | AM12: 1563.055717 | AN12: 1319.890315 | AO12: 1042.930666 | AP12: 851.2703764 | AQ12: 1008.657747 | AR12: 0 | AS12: 299.2657666 | AT12: 25.0824155 | AU12: 154.228135 | AV12: 157.7703082 | AW12: 465.7479061
B13: =+B12+1 -> 3 | C13: TRUJILLO | E13: TRUJILLO METROPOLITANO | F13: 00005201 | G13: CENTRO DE SALUD | H13: ARANJUEZ | I13: I-3 | J13: 20873.80708 | K13: 214.4845255 | L13: 215.3142529 | M13: 217.1515064 | N13: 216.558844 | O13: 213.8325969 | P13: 185.7403987 | Q13: 186.9849898 | R13: 187.1627885 | S13: 189.8890356 | T13: 194.1562049 | U13: 186.5108599 | V13: 190.6594967 | W13: 201.4459525 | X13: 221.5964744 | Y13: 249.6886726 | Z13: 243.2286523 | AA13: 269.7799282 | AB13: 287.204203 | AC13: 296.4497366 | AD13: 298.3462563 | AE13: 1790.966531 | AF13: 1834.171621 | AG13: 1764.593054 | AH13: 1604.63347 | AI13: 1589.639111 | AJ13: 1451.726569 | AK13: 1483.137676 | AL13: 1306.939143 | AM13: 967.6399138 | AN13: 817.1036622 | AO13: 645.6464275 | AP13: 526.9954134 | AQ13: 624.4291133 | AR13: 0 | AS13: 185.2662688 | AT13: 15.52775509 | AU13: 95.47791396 | AV13: 97.67076487 | AW13: 288.3302616
B14: 4 | C14: TRUJILLO | E14: TRUJILLO METROPOLITANO | F14: 00005203 | G14: CENTRO DE SALUD | H14: LOS GRANADOS "SAGRADO CORAZON" | I14: I-3 | J14: 49457.08196 | K14: 508.186107 | L14: 510.1520107 | M14: 514.5050832 | N14: 513.1008663 | O14: 506.6414684 | P14: 440.0815859 | Q14: 443.0304414 | R14: 443.4517065 | S14: 449.9111044 | T14: 460.0214663 | U14: 441.9070679 | V14: 451.7365864 | W14: 477.2933345 | X14: 525.0367102 | Y14: 591.5965926 | Z14: 576.2906281 | AA14: 639.1995466 | AB14: 680.4835243 | AC14: 702.3893084 | AD14: 706.8828026 | AE14: 4243.403141 | AF14: 4345.770555 | AG14: 4180.915488 | AH14: 3801.917338 | AI14: 3766.39065 | AJ14: 3439.62937 | AK14: 3514.052868 | AL14: 3096.579174 | AM14: 2292.664982 | AN14: 1935.993882 | AO14: 1529.753924 | AP14: 1248.629694 | AQ14: 1479.482958 | AR14: 0 | AS14: 438.9582123 | AT14: 36.79048357 | AU14: 226.2193474 | AV14: 231.4149501 | AW14: 683.1515365
B15: 5 | C15: TRUJILLO | E15: TRUJILLO METROPOLITANO | F15: 00005199 | G15: CENTRO DE SALUD | H15: LA UNION | I15: I-3 | J15: 18700.25474 | K15: 192.150634 | L15: 192.8939634 | M15: 194.5399069 | N15: 194.0089574 | O15: 191.5665896 | P15: 166.3995819 | Q15: 167.514576 | R15: 167.6738608 | S15: 170.1162286 | T15: 173.9390652 | U15: 167.0898163 | V15: 170.806463 | W15: 180.4697444 | X15: 198.5220284 | Y15: 223.689036 | Z15: 217.9016861 | AA15: 241.688225 | AB15: 257.2981411 | AC15: 265.5809537 | AD15: 267.2799922 | AE15: 1604.476377 | AF15: 1643.182598 | AG15: 1580.849123 | AH15: 1437.545846 | AI15: 1424.112823 | AJ15: 1300.560868 | AK15: 1328.701193 | AL15: 1170.849898 | AM15: 866.8812937 | AN15: 732.0201137 | AO15: 578.4164154 | AP15: 472.1203199 | AQ15: 559.4084223 | AR15: 0 | AS15: 165.9748223 | AT15: 13.91087762 | AU15: 85.5359689 | AV15: 87.50048215 | AW15: 258.3069452
B16: 6 | C16: TRUJILLO | E16: TRUJILLO METROPOLITANO | F16: 00005200 | G16: CENTRO DE SALUD | H16: LOS JARDINES | I16: I-3 | J16: 51272.60563 | K16: 526.8411482 | L16: 528.8792184 | M16: 533.3920882 | N16: 531.9363237 | O16: 525.2398074 | P16: 456.2365732 | Q16: 459.2936786 | R16: 459.7304079 | S16: 466.4269243 | T16: 476.9084282 | U16: 458.129067 | V16: 468.319418 | W16: 494.8143307 | X16: 544.3103214 | Y16: 613.3135555 | Z16: 597.4457232 | AA16: 662.6639698 | AB16: 705.4634441 | AC16: 728.1733693 | AD16: 732.8318155 | AE16: 4399.174539 | AF16: 4505.299767 | AG16: 4334.393022 | AH16: 3941.482202 | AI16: 3904.651362 | AJ16: 3565.894978 | AK16: 3643.050493 | AL16: 3210.251727 | AM16: 2376.826589 | AN16: 2007.062424 | AO16: 1585.909773 | AP16: 1294.465734 | AQ16: 1533.793406 | AR16: 0 | AS16: 455.0719617 | AT16: 38.14102814 | AU16: 234.5236501 | AV16: 239.9099785 | AW16: 708.2293966
B17: 7 | C17: TRUJILLO | E17: TRUJILLO METROPOLITANO | F17: 00005198 | G17: CENTRO DE SALUD | H17: SAN MARTIN PORRES | I17: I-3 | J17: 91893.96782 | K17: 944.237628 | L17: 947.8903848 | M17: 955.978632 | N17: 953.36952 | O17: 941.3676048 | P17: 817.6956967 | Q17: 823.1748318 | R17: 823.9575654 | S17: 835.9594806 | T17: 854.7450869 | U17: 821.0875422 | V17: 839.3513262 | W17: 886.8371643 | X17: 975.5469719 | Y17: 1099.21888 | Z17: 1070.779559 | AA17: 1187.667776 | AB17: 1264.375669 | AC17: 1305.077816 | AD17: 1313.426974 | AE17: 7884.475513 | AF17: 8074.679777 | AG17: 7768.37003 | AH17: 7064.170704 | AI17: 6998.160171 | AJ17: 6391.019812 | AK17: 6529.302747 | AL17: 5753.613753 | AM17: 4259.897141 | AN17: 3597.182696 | AO17: 2842.366598 | AP17: 2320.022379 | AQ17: 2748.960389 | AR17: 0 | AS17: 815.6084071 | AT17: 68.35873405 | AU17: 420.3279411 | AV17: 429.9816554 | AW17: 1269.332982
B18: 8 | C18: TRUJILLO | E18: TRUJILLO METROPOLITANO | F18: 00005208 | G18: PUESTO DE SALUD | H18: CLUB DE LEONES | I18: I-2 | J18: 38200.76976 | K18: 392.5241785 | L18: 394.0426473 | M18: 397.404971 | N18: 396.3203505 | O18: 391.3310959 | P18: 339.9200817 | Q18: 342.1977848 | R18: 342.523171 | S18: 347.5124255 | T18: 355.3216935 | U18: 341.3300884 | V18: 348.9224323 | W18: 368.6625263 | X18: 405.5396252 | Y18: 456.9506394 | Z18: 445.1282754 | AA18: 493.7192762 | AB18: 525.6071205 | AC18: 542.5272012 | AD18: 545.9979869 | AE18: 3277.614852 | AF18: 3356.683691 | AG18: 3229.349238 | AH18: 2936.61015 | AI18: 2909.16925 | AJ18: 2656.778047 | AK18: 2714.262937 | AL18: 2391.805246 | AM18: 1770.859979 | AN18: 1495.366358 | AO18: 1181.585632 | AP18: 964.4445967 | AQ18: 1142.756216 | AR18: 0 | AS18: 339.0523852 | AT18: 28.41705852 | AU18: 174.7323713 | AV18: 178.7454673 | AW18: 527.6678996
B19: 9 | C19: TRUJILLO | E19: TRUJILLO METROPOLITANO | F19: 00005206 | G19: PUESTO DE SALUD | H19: LIBERTAD | I19: I-2 | J19: 6179.430006 | K19: 63.49546624 | L19: 63.74109667 | M19: 64.28499262 | N19: 64.10954231 | O19: 63.3024709 | P19: 54.98612633 | Q19: 55.35457198 | R19: 55.40720707 | S19: 56.21427848 | T19: 57.47752069 | U19: 55.21421173 | V19: 56.44236388 | W19: 59.63555948 | X19: 65.60086993 | Y19: 73.9172145 | Z19: 72.00480614 | AA19: 79.86497992 | AB19: 85.02321895 | AC19: 87.76024375 | AD19: 88.32168473 | AE19: 530.1932838 | AF19: 542.9836113 | AG19: 522.3857452 | AH19: 475.0317072 | AI19: 470.5928144 | AJ19: 429.7655279 | AK19: 439.0643942 | AL19: 386.9030178 | AM19: 286.4577168 | AN19: 241.8933388 | AO19: 191.1355648 | AP19: 156.0104133 | AQ19: 184.8544438 | AR19: 0 | AS19: 54.84576608 | AT19: 4.596798053 | AU19: 28.26504452 | AV19: 28.91421065 | AW19: 85.35657454
B20: 10 | C20: TRUJILLO | E20: TRUJILLO METROPOLITANO | F20: 00005205 | G20: PUESTO DE SALUD | H20: PESQUEDA II | I20: I-2 | J20: 6741.107389 | K20: 69.26686704 | L20: 69.53482398 | M20: 70.12815718 | N20: 69.93675938 | O20: 69.05632945 | P20: 59.98407331 | Q20: 60.38600871 | R20: 60.44342805 | S20: 61.32385797 | T20: 62.7019222 | U20: 60.23289046 | V20: 61.57267513 | W20: 65.05611525 | X20: 71.56364075 | Y20: 80.63589689 | Z20: 78.54966078 | AA20: 87.12428261 | AB20: 92.7513782 | AC20: 95.73718402 | AD20: 96.349657 | AE20: 578.3850387 | AF20: 592.337939 | AG20: 569.8678362 | AH20: 518.2095676 | AI20: 513.3672031 | AJ20: 468.8289329 | AK20: 478.9730168 | AL20: 422.0704482 | AM20: 312.4952026 | AN20: 263.8801591 | AO20: 208.508773 | AP20: 170.1909317 | AQ20: 201.6567315 | AR20: 0 | AS20: 59.83095506 | AT20: 5.014622593 | AU20: 30.83418702 | AV20: 31.54235891 | AW20: 93.11503403
B21: 11 | C21: TRUJILLO | E21: TRUJILLO METROPOLITANO | F21: 00005207 | G21: PUESTO DE SALUD | H21: PESQUEDA III | I21: I-2 | J21: 10032.80976 | K21: 103.09008 | L21: 103.488881 | M21: 104.3719406 | N21: 104.0870827 | O21: 102.7767363 | P21: 89.27447101 | Q21: 89.87267264 | R21: 89.95813001 | S21: 91.26847643 | T21: 93.31945343 | U21: 89.6447863 | V21: 91.63879172 | W21: 96.8232058 | X21: 106.508375 | Y21: 120.0106402 | Z21: 116.9056889 | AA21: 129.6673236 | AB21: 138.0421463 | AC21: 142.4859298 | AD21: 143.3974751 | AE21: 860.8121377 | AF21: 881.5782798 | AG21: 848.1359604 | AH21: 771.2528088 | AI21: 764.0459035 | AJ21: 697.7594663 | AK21: 712.8569359 | AL21: 628.1686773 | AM21: 465.0875202 | AN21: 392.7336094 | AO21: 310.3242142 | AP21: 253.2956593 | AQ21: 300.1263008 | AR21: 0 | AS21: 89.04658468 | AT21: 7.463277411 | AU21: 45.89061034 | AV21: 46.94458463 | AW21: 138.5833763
D22: 2 | J22: 201614 | K22: =SUM(K23:K33) -> 3968 | L22: =SUM(L23:L33) -> 3780 | M22: 3645 | N22: 3560 | O22: 3511 | P22: 3028 | Q22: 3038 | R22: 3071 | S22: 3121 | T22: 3176 | U22: 3057 | V22: 3139 | W22: 3204 | X22: 3254 | Y22: 3281 | Z22: 2947 | AA22: 2990 | AB22: 3010 | AC22: 2997 | AD22: 2968 | AE22: 17527 | AF22: 19512 | AG22: 19871 | AH22: 16284 | AI22: 14190 | AJ22: 11090 | AK22: 9428 | AL22: 7657 | AM22: 6132 | AN22: 5467 | AO22: 3604 | AP22: 3046 | AQ22: 3061 | AS22: 3758 | AT22: 252 | AU22: 1993 | AV22: 1587 | AW22: 4430
A23: 1 | B23: =+B21+1 -> 12 | C23: TRUJILLO | E23: EL PORVENIR | F23: 00005209 | G23: HOSPITAL DISTRITAL DE EL PORVENIR | H23: SANTA ISABEL | I23: II-1 | J23: 24693.92457 | K23: 486.0053999 | L23: 462.9789344 | M23: 446.4439724 | N23: 436.0330704 | O23: 430.0314917 | P23: 370.8730723 | Q23: 372.0978843 | R23: 376.1397639 | S23: 382.2638238 | T23: 389.0002898 | U23: 374.4250271 | V23: 384.4684854 | W23: 392.4297634 | X23: 398.5538234 | Y23: 401.8608158 | Z23: 360.9520951 | AA23: 366.2187867 | AB23: 368.6684107 | AC23: 367.0761551 | AD23: 363.5242003 | AE23: 2146.727985 | AF23: 2389.853166 | AG23: 2433.823917 | AH23: 1994.483854 | AI23: 1738.008222 | AJ23: 1358.316503 | AK23: 1154.752749 | AL23: 937.8385451 | AM23: 751.0547157 | AN23: 669.604718 | AO23: 441.4222432 | AP23: 373.0777339 | AQ23: 374.9149519 | AR23: 0 | AS23: 460.284348 | AT23: 30.86526229 | AU23: 244.1050307 | AV23: 194.3776637 | AW23: 542.5917141
A24: =+A23+1 -> 2 | B24: =+B23+1 -> 13 | C24: TRUJILLO | E24: EL PORVENIR | F24: 00005220 | G24: CENTRO DE SALUD | H24: ALTO TRUJILLO | I24: I-4 | J24: 58030.16772 | K24: 1142.101766 | L24: 1087.99009 | M24: 1049.133301 | N24: 1024.667915 | O24: 1010.56434 | P24: 871.5433841 | Q24: 874.4216648 | R24: 883.919991 | S24: 898.3113943 | T24: 914.1419379 | U24: 879.8903981 | V24: 903.4922995 | W24: 922.2011238 | X24: 936.5925271 | Y24: 944.3638849 | Z24: 848.2293108 | AA24: 860.6059176 | AB24: 866.3624789 | AC24: 862.6207141 | AD24: 854.2737002 | AE24: 5044.762514 | AF24: 5616.101226 | AG24: 5719.431501 | AH24: 4686.992228 | AI24: 4084.280258 | AJ24: 3192.013253 | AK24: 2713.643007 | AL24: 2203.899502 | AM24: 1764.961701 | AN24: 1573.556037 | AO24: 1037.33235 | AP24: 876.7242893 | AQ24: 881.0417103 | AR24: 0 | AS24: 1081.657872 | AT24: 72.53267266 | AU24: 573.6413357 | AV24: 456.7831409 | AW24: 1275.078333
A25: =+A24+1 -> 3 | B25: 14 | C25: TRUJILLO | E25: EL PORVENIR | F25: 00005210 | G25: PUESTO DE SALUD | H25: BUEN PASTOR | I25: I-2 | J25: 12221.64487 | K25: 240.5363062 | L25: 229.1399287 | M25: 220.9563599 | N25: 215.8037424 | O25: 212.83341 | P25: 183.5544191 | Q25: 184.1606094 | R25: 186.1610373 | S25: 189.1919888 | T25: 192.5260354 | U25: 185.3123709 | V25: 190.2831313 | W25: 194.2233682 | X25: 197.2543196 | Y25: 198.8910334 | Z25: 178.6442778 | AA25: 181.250896 | AB25: 182.4632766 | AC25: 181.6752292 | AD25: 179.9172774 | AE25: 1062.469717 | AF25: 1182.798489 | AG25: 1204.560721 | AH25: 987.1202645 | AI25: 860.1840182 | AJ25: 672.265029 | AK25: 571.5162032 | AL25: 464.1599033 | AM25: 371.7158844 | AN25: 331.4042303 | AO25: 218.4709797 | AP25: 184.6455616 | AQ25: 185.5548471 | AR25: 0 | AS25: 227.8063101 | AT25: 15.27599525 | AU25: 120.8137243 | AV25: 96.20239865 | AW25: 268.5422974
A26: 4 | B26: 15 | C26: TRUJILLO | E26: EL PORVENIR | F26: 00005211 | G26: PUESTO DE SALUD | H26: GRAN CHIMU | I26: I-2 | J26: 17283.34435 | K26: 340.1564891 | L26: 324.0402038 | M26: 312.4673394 | N26: 305.180721 | O26: 300.9801999 | P26: 259.5750627 | Q26: 260.4323119 | R26: 263.2612344 | S26: 267.5474804 | T26: 272.2623511 | U26: 262.0610854 | V26: 269.090529 | W26: 274.6626489 | X26: 278.948895 | Y26: 281.2634679 | Z26: 252.6313441 | AA26: 256.3175157 | AB26: 258.0320141 | AC26: 256.9175901 | AD26: 254.4315674 | AE26: 1502.500702 | AF26: 1672.664671 | AG26: 1703.439918 | AH26: 1395.944624 | AI26: 1216.436638 | AJ26: 950.689381 | AK26: 808.2145612 | AL26: 656.395725 | AM26: 525.6652195 | AN26: 468.6581466 | AO26: 308.9526176 | AP26: 261.1181113 | AQ26: 262.4039851 | AR26: 0 | AS26: 322.1542555 | AT26: 21.60268025 | AU26: 170.8497688 | AV26: 136.0454506 | AW26: 379.7614029
A27: 5 | B27: 16 | C27: TRUJILLO | E27: EL PORVENIR | F27: 00005212 | G27: PUESTO DE SALUD | H27: MIGUEL GRAU | I27: I-2 | J27: 16419.98794 | K27: 323.1646223 | L27: 307.8533952 | M27: 296.8586311 | N27: 289.9360018 | O27: 285.9453097 | P27: 246.608487 | Q27: 247.4229139 | R27: 250.1105229 | S27: 254.1826578 | T27: 258.6620061 | U27: 248.9703252 | V27: 255.6486263 | W27: 260.9424017 | X27: 265.0145365 | Y27: 267.2134893 | Z27: 240.0116285 | AA27: 243.5136645 | AB27: 245.1425184 | AC27: 244.0837633 | AD27: 241.7219251 | AE27: 1427.446153 | AF27: 1589.109907 | AG27: 1618.347835 | AH27: 1326.21288 | AI27: 1155.671872 | AJ27: 903.1995113 | AK27: 767.8417487 | AL27: 623.606732 | AM27: 499.4066189 | AN27: 445.2472253 | AO27: 293.5194805 | AP27: 248.0744555 | AQ27: 249.296096 | AR27: 0 | AS27: 306.0616559 | AT27: 20.52355968 | AU27: 162.3152954 | AV27: 129.2495604 | AW27: 360.7911484
A28: 6 | B28: 17 | C28: TRUJILLO | E28: EL PORVENIR | F28: 00005213 | G28: CENTRO DE SALUD | H28: RIO SECO - "SANTA. ROSA" | I28: I-3 | J28: 32097.19047 | K28: 631.7103564 | L28: 601.7805311 | M28: 580.2883692 | N28: 566.7562673 | O28: 558.9554086 | P28: 482.0612296 | Q28: 483.6532416 | R28: 488.9068812 | S28: 496.8669411 | T28: 505.623007 | U28: 486.6780644 | V28: 499.7325627 | W28: 510.0806406 | X28: 518.0407005 | Y28: 522.3391329 | Z28: 469.1659325 | AA28: 476.0115841 | AB28: 479.1956081 | AC28: 477.1259925 | AD28: 472.5091577 | AE28: 2790.319409 | AF28: 3106.333789 | AG28: 3163.487019 | AH28: 2592.432319 | AI28: 2259.065009 | AJ28: 1765.541293 | AK28: 1500.948901 | AL28: 1219.003578 | AM28: 976.2217504 | AN28: 870.3529532 | AO28: 573.7611201 | AP28: 484.9268512 | AQ28: 487.3148692 | AR28: 0 | AS28: 598.2781047 | AT28: 40.11870207 | AU28: 317.287989 | AV28: 252.6523023 | AW28: 705.2613102
A29: 7 | B29: 18 | C29: TRUJILLO | E29: EL PORVENIR | F29: 00005214 | G29: PUESTO DE SALUD | H29: VICTOR RAUL HAYA DE LA TORRE | I29: I-2 | J29: 5560.566992 | K29: 109.4384806 | L29: 104.2533913 | M29: 100.5300559 | N29: 98.18573358 | O29: 96.83430073 | P29: 83.51303407 | Q29: 83.78883669 | R29: 84.69898535 | S29: 86.07799846 | T29: 87.59491288 | U29: 84.31286168 | V29: 86.57444318 | W29: 88.36716023 | X29: 89.74617334 | Y29: 90.49084042 | Z29: 81.27903283 | AA29: 82.46498411 | AB29: 83.01658935 | AC29: 82.65804594 | AD29: 81.85821834 | AE29: 483.3992563 | AF29: 538.1460769 | AG29: 548.047391 | AH29: 449.1169904 | AI29: 391.3639212 | AJ29: 305.8651083 | AK29: 260.0267124 | AL29: 211.182068 | AM29: 169.1221681 | AN29: 150.7812937 | AO29: 99.39926512 | AP29: 84.00947879 | AQ29: 84.42318273 | AR29: 0 | AS29: 103.6466255 | AT29: 6.950226085 | AU29: 54.96746265 | AV29: 43.76987618 | AW29: 122.1805617
A30: 8 | B30: 19 | C30: TRUJILLO | E30: EL PORVENIR | F30: 00005215 | G30: PUESTO DE SALUD | H30: INDOAMERICA | I30: I-2 | J30: 6666.764577 | K30: 131.2097466 | L30: 124.9931557 | M30: 120.5291145 | N30: 117.7184218 | O30: 116.0981402 | P30: 100.1267925 | Q30: 100.4574622 | R30: 101.5486723 | S30: 103.2020209 | T30: 105.0207044 | U30: 101.0857347 | V30: 103.7972264 | W30: 105.9465796 | X30: 107.5999282 | Y30: 108.4927365 | Z30: 97.44836771 | AA30: 98.87024753 | AB30: 99.53158697 | AC30: 99.10171633 | AD30: 98.14277413 | AE30: 579.5648256 | AF30: 645.2027658 | AG30: 657.0738089 | AH30: 538.4625788 | AI30: 469.2203386 | AJ30: 366.7127241 | AK30: 311.7554159 | AL30: 253.1938078 | AM30: 202.7666749 | AN30: 180.7771382 | AO30: 119.1733686 | AP30: 100.721998 | AQ30: 101.2180026 | AR30: 0 | AS30: 124.2656823 | AT30: 8.332877049 | AU30: 65.90247603 | AV30: 52.47728523 | AW30: 146.4866878
A31: 9 | B31: 20 | C31: TRUJILLO | E31: EL PORVENIR | F31: 00005216 | G31: PUESTO DE SALUD | H31: VIRGEN DEL CARMEN | I31: I-2 | J31: 8950.687211 | K31: 176.1600229 | L31: 167.8137315 | M31: 161.8203839 | N31: 158.0467947 | O31: 155.8714315 | P31: 134.4285658 | Q31: 134.8725175 | R31: 136.337558 | S31: 138.5573164 | T31: 140.9990506 | U31: 135.7160257 | V31: 139.3564294 | W31: 142.2421152 | X31: 144.4618736 | Y31: 145.6605431 | Z31: 130.8325573 | AA31: 132.7415495 | AB31: 133.6294528 | AC31: 133.0523157 | AD31: 131.7648558 | AE31: 778.114093 | AF31: 866.2384996 | AG31: 882.1763646 | AH31: 722.9309003 | AI31: 629.9674205 | AJ31: 492.3424026 | AK31: 418.557635 | AL31: 339.9337941 | AM31: 272.2311644 | AN31: 242.7083783 | AO31: 160.0001821 | AP31: 135.2276789 | AQ31: 135.8936064 | AR31: 0 | AS31: 166.8370378 | AT31: 11.1875821 | AU31: 88.47956794 | AV31: 70.45513012 | AW31: 196.6705901
A32: 10 | B32: 21 | C32: TRUJILLO | E32: EL PORVENIR | F32: 00012229 | G32: PUESTO DE SALUD | H32: BARRIO 1 | I32: I-2 | J32: 9815.981762 | K32: 193.1900346 | L32: 184.0368777 | M32: 177.4641321 | N32: 173.3257367 | O32: 170.9400734 | P32: 147.4242502 | Q32: 147.9111202 | R32: 149.5177914 | S32: 151.9521416 | T32: 154.6299269 | U32: 148.8361733 | V32: 152.8285077 | W32: 155.993163 | X32: 158.4275132 | Y32: 159.7420624 | Z32: 143.4806028 | AA32: 145.574144 | AB32: 146.5478841 | AC32: 145.914953 | AD32: 144.5030299 | AE32: 853.337131 | AF32: 949.9808353 | AG32: 967.45947 | AH32: 792.8191842 | AI32: 690.8685964 | AJ32: 539.9388819 | AK32: 459.0210801 | AL32: 372.7963948 | AM32: 298.5487127 | AN32: 266.1718546 | AO32: 175.4679649 | AP32: 148.3006163 | AQ32: 149.0309213 | AR32: 0 | AS32: 182.9657636 | AT32: 12.26912518 | AU32: 97.03320033 | AV32: 77.26627643 | AW32: 215.6834307
A33: 11 | B33: 22 | C33: TRUJILLO | E33: EL PORVENIR | F33: 00013242 | G33: PUESTO DE SALUD | H33: SUPERVIVENCIA | I33: I-2 | J33: 9873.73954 | K33: 194.3267754 | L33: 185.1197608 | M33: 178.5083408 | N33: 174.3455949 | O33: 171.9458943 | P33: 148.2917026 | Q33: 148.7814374 | R33: 150.3975623 | S33: 152.8462364 | T33: 155.5397779 | U33: 149.7119336 | V33: 153.7277591 | W33: 156.9110354 | X33: 159.3597095 | Y33: 160.6819935 | Z33: 144.3248506 | AA33: 146.4307103 | AB33: 147.4101799 | AC33: 146.7735247 | AD33: 145.3532937 | AE33: 858.3582138 | AF33: 955.570575 | AG33: 973.1520549 | AH33: 797.484176 | AI33: 694.9337054 | AJ33: 543.1159121 | AK33: 461.7219855 | AL33: 374.9899494 | AM33: 300.3053898 | AN33: 267.7380245 | AO33: 176.5004281 | AP33: 149.1732253 | AQ33: 149.9078275 | AR33: 0 | AS33: 184.0423442 | AT33: 12.34131739 | AU33: 97.60414903 | AV33: 77.72091546 | AW33: 216.9525239
D34: 3 | J34: 45793 | K34: =SUM(K35:K38) -> 870 | L34: =SUM(L35:L38) -> 759 | M34: 683 | N34: 635 | O34: 619 | P34: 530 | Q34: 541 | R34: 565 | S34: 596 | T34: 626 | U34: 635 | V34: 691 | W34: 723 | X34: 714 | Y34: 677 | Z34: 580 | AA34: 556 | AB34: 554 | AC34: 578 | AD34: 630 | AE34: 4287 | AF34: 4402 | AG34: 3976 | AH34: 3501 | AI34: 2774 | AJ34: 2438 | AK34: 2783 | AL34: 2400 | AM34: 1969 | AN34: 1668 | AO34: 1431 | AP34: 805 | AQ34: 597 | AS34: 869 | AT34: 47 | AU34: 462 | AV34: 325 | AW34: 898
A35: 1 | B35: =+B33+1 -> 23 | C35: TRUJILLO | E35: FLORENCIA DE MORA | F35: 00005217 | G35: HOSPITAL DISTRITAL DE FLORENCIA DE MORA | H35: EL ESFUERZO | I35: II-1 | J35: 26909.00557 | K35: 511.231735 | L35: 446.0056171 | M35: 401.3462931 | N35: 373.1404043 | O35: 363.7384414 | P35: 311.4400225 | Q35: 317.903872 | R35: 332.0068164 | S35: 350.2231196 | T35: 367.8518001 | U35: 373.1404043 | V35: 406.0472746 | W35: 424.8512005 | X35: 419.5625963 | Y35: 397.820557 | Z35: 340.8211567 | AA35: 326.7182123 | AB35: 325.5429669 | AC35: 339.6459113 | AD35: 370.2022909 | AE35: 2519.138446 | AF35: 2586.715055 | AG35: 2336.387791 | AH35: 2057.267016 | AI35: 1630.065325 | AJ35: 1432.624103 | AK35: 1635.353929 | AL35: 1410.294441 | AM35: 1157.029065 | AN35: 980.1546368 | AO35: 840.8880607 | AP35: 473.0362606 | AQ35: 350.8107423 | AR35: 0 | AS35: 510.6441123 | AT35: 27.61826615 | AU35: 271.48168 | AV35: 190.9773723 | AW35: 527.6851702
A36: =+A35+1 -> 2 | B36: 24 | C36: TRUJILLO | E36: FLORENCIA DE MORA | F36: 00017752 | G36: PUESTO DE SALUD | H36: LA CABAÑA | I36: I-2 | J36: 2991.075452 | K36: 56.82605733 | L36: 49.57583622 | M36: 44.61172087 | N36: 41.47649012 | O36: 40.4314132 | P36: 34.61817286 | Q36: 35.33666324 | R36: 36.90427861 | S36: 38.92911514 | T36: 40.88863436 | U36: 41.47649012 | V36: 45.13425933 | W36: 47.22441316 | X36: 46.6365574 | Y36: 44.21981703 | Z36: 37.88403822 | AA36: 36.31642285 | AB36: 36.18578823 | AC36: 37.75340361 | AD36: 41.14990358 | AE36: 280.0152963 | AF36: 287.5267866 | AG36: 259.7016137 | AH36: 228.6758928 | AI36: 181.1902104 | AJ36: 159.2435951 | AK36: 181.7780662 | AL36: 156.7615375 | AM36: 128.609778 | AN36: 108.9492685 | AO36: 93.46906671 | AP36: 52.58043236 | AQ36: 38.99443244 | AR36: 0 | AS36: 56.76074002 | AT36: 3.069913442 | AU36: 30.17659596 | AV36: 21.22812486 | AW36: 58.65494193
A37: 3 | B37: 25 | C37: TRUJILLO | E37: FLORENCIA DE MORA | F37: 00005218 | G37: CENTRO DE SALUD | H37: FLORENCIA DE MORA PARTE ALTA | I37: I-3 | J37: 6602.212797 | K37: 125.4323834 | L37: 109.4289414 | M37: 98.47162973 | N37: 91.55122237 | O37: 89.24441992 | P37: 76.41283127 | Q37: 77.99875796 | R37: 81.45896164 | S37: 85.92839139 | T37: 90.25364599 | U37: 91.55122237 | V37: 99.62503096 | W37: 104.2386359 | X37: 102.9410595 | Y37: 97.60657881 | Z37: 83.62158894 | AA37: 80.16138526 | AB37: 79.87303495 | AC37: 83.33323863 | AD37: 90.83034661 | AE37: 618.0788824 | AF37: 634.659025 | AG37: 573.2404097 | AH37: 504.7572119 | AI37: 399.9418754 | AJ37: 351.4990238 | AK37: 401.2394518 | AL37: 346.020368 | AM37: 283.8808769 | AN37: 240.4841558 | AO37: 206.3146444 | AP37: 116.0609984 | AQ37: 86.07256655 | AR37: 0 | AS37: 125.2882083 | AT37: 6.776232207 | AU37: 66.60892084 | AV37: 46.85692484 | AW37: 129.4692877
A38: 4 | B38: 26 | C38: TRUJILLO | E38: FLORENCIA DE MORA | F38: 00005219 | G38: PUESTO DE SALUD | H38: SANTO TORIBIO DE MOGROVEJO | I38: I-2 | J38: 9290.706185 | K38: 176.5098242 | L38: 153.9896053 | M38: 138.5703563 | N38: 128.8318832 | O38: 125.5857255 | P38: 107.5289734 | Q38: 109.7607068 | R38: 114.6299433 | S38: 120.9193738 | T38: 127.0059195 | U38: 128.8318832 | V38: 140.1934351 | W38: 146.6857505 | X38: 144.8597868 | Y38: 137.3530471 | Z38: 117.6732162 | AA38: 112.8039796 | AB38: 112.3982099 | AC38: 117.2674464 | AD38: 127.8174589 | AE38: 869.7673753 | AF38: 893.0991336 | AG38: 806.6701852 | AH38: 710.2998789 | AI38: 562.802589 | AJ38: 494.6332776 | AK38: 564.6285527 | AL38: 486.923653 | AM38: 399.4802804 | AN38: 338.4119389 | AO38: 290.3282281 | AP38: 163.3223086 | AQ38: 121.1222587 | AR38: 0 | AS38: 176.3069394 | AT38: 9.535588205 | AU38: 93.73280321 | AV38: 65.93757802 | AW38: 182.1906002
D39: 4 | J39: 30078.41682 | K39: =SUM(K40:K43) -> 509.9909829 | L39: =SUM(L40:L43) -> 559.9258945 | M39: 596.7631244 | N39: 624.1863956 | O39: 636.4654722 | P39: 552.149146 | Q39: 549.2840281 | R39: 541.097977 | S39: 531.2747157 | T39: 521.0421519 | U39: 473.9723581 | V39: 452.6886253 | W39: 450.2328099 | X39: 476.0188709 | Y39: 519.8142442 | Z39: 495.2560909 | AA39: 536.1863464 | AB39: 555.832869 | AC39: 537.0049515 | AD39: 496.8933012 | AE39: 2502.885121 | AF39: 2371.908303 | AG39: 2858.159738 | AH39: 2633.452636 | AI39: 1878.698725 | AJ39: 1872.968489 | AK39: 1446.065925 | AL39: 1107.572712 | AM39: 922.1586553 | AN39: 692.1306196 | AO39: 473.9723581 | AP39: 218.5675641 | AQ39: 483.7956194 | AS39: 441.6374563 | AT39: 40.11165034 | AU39: 222.2512871 | AV39: 237.3954816 | AW39: 687.218989
A40: 1 | B40: =+B38+1 -> 27 | C40: TRUJILLO | E40: HUANCHACO | F40: 00005221 | G40: CENTRO DE SALUD CON CAMAS DE INTERNAMIENTO | H40: HUANCHACO | I40: I-4 | J40: 13503.28221 | K40: 228.9532793 | L40: 251.3708556 | M40: 267.9084119 | N40: 280.2197038 | O40: 285.7322225 | P40: 247.8795937 | Q40: 246.5933393 | R40: 242.9183268 | S40: 238.5083118 | T40: 233.9145462 | U40: 212.7832242 | V40: 203.2281917 | W40: 202.125688 | X40: 213.7019774 | Y40: 233.3632943 | Z40: 222.3382568 | AA40: 240.7133193 | AB40: 249.5333493 | AC40: 241.0808206 | AD40: 223.0732593 | AE40: 1123.635074 | AF40: 1064.834874 | AG40: 1283.130617 | AH40: 1182.251524 | AI40: 843.4153707 | AJ40: 840.8428619 | AK40: 649.1909596 | AL40: 497.2291924 | AM40: 413.9901591 | AN40: 310.7223076 | AO40: 212.7832242 | AP40: 98.12283398 | AQ40: 217.1932393 | AR40: 0 | AS40: 198.2669248 | AT40: 18.00756129 | AU40: 99.77658961 | AV40: 106.5753627 | AW40: 308.5173001
A41: =+A40+1 -> 2 | B41: 28 | C41: TRUJILLO | E41: HUANCHACO | F41: 00011629 | G41: PUESTO DE SALUD | H41: HUANCHAQUITO | I41: I-1 | J41: 4541.697705 | K41: 77.00620982 | L41: 84.54614368 | M41: 90.10838998 | N41: 94.24917333 | O41: 96.10325543 | P41: 83.37189169 | Q41: 82.93927253 | R41: 81.7032178 | S41: 80.21995212 | T41: 78.67488371 | U41: 71.567569 | V41: 68.35382669 | W41: 67.98301027 | X41: 71.87658268 | Y41: 78.4894755 | Z41: 74.7813113 | AA41: 80.96158496 | AB41: 83.92811632 | AC41: 81.08519043 | AD41: 75.02852225 | AE41: 377.9237344 | AF41: 358.1468587 | AG41: 431.5685098 | AH41: 397.6388074 | AI41: 283.674561 | AJ41: 282.8093227 | AK41: 218.3490684 | AL41: 167.2382053 | AM41: 139.2415656 | AN41: 104.5084276 | AO41: 71.567569 | AP41: 33.00266135 | AQ41: 73.05083467 | AR41: 0 | AS41: 66.6851528 | AT41: 6.056668188 | AU41: 33.55888598 | AV41: 35.84558723 | AW41: 103.7667948
A42: 3 | B42: 29 | C42: TRUJILLO | E42: HUANCHACO | F42: 00011007 | G42: PUESTO DE SALUD | H42: EL TROPICO | I42: I-2 | J42: 6219.392236 | K42: 105.4521579 | L42: 115.777329 | M42: 123.3942586 | N42: 129.0646395 | O42: 131.603616 | P42: 114.1693106 | Q42: 113.5768827 | R42: 111.8842317 | S42: 109.8530505 | T42: 107.7372367 | U42: 98.00449345 | V42: 93.60360082 | W42: 93.09580552 | X42: 98.4276562 | Y42: 107.4833391 | Z42: 102.4053861 | AA42: 110.8686411 | AB42: 114.9310035 | AC42: 111.0379062 | AD42: 102.7439163 | AE42: 517.5280461 | AF42: 490.44563 | AG42: 590.9890999 | AH42: 544.5258297 | AI42: 388.4634067 | AJ42: 387.278551 | AK42: 299.0068008 | AL42: 229.0156816 | AM42: 190.6771362 | AN42: 143.1136428 | AO42: 98.00449345 | AP42: 45.19378195 | AQ42: 100.0356747 | AR42: 0 | AS42: 91.31852196 | AT42: 8.293989946 | AU42: 45.95547491 | AV42: 49.08687927 | AW42: 142.0980522
A43: 4 | B43: 30 | C43: TRUJILLO | E43: HUANCHACO | F43: 00005223 | G43: PUESTO DE SALUD | H43: VILLA DEL MAR | I43: I-2 | J43: 5814.04467 | K43: 98.57933591 | L43: 108.2315662 | M43: 115.352064 | N43: 120.652879 | O43: 123.0263783 | P43: 106.72835 | Q43: 106.1745335 | R43: 104.5922007 | S43: 102.6934013 | T43: 100.7154852 | U43: 91.61707142 | V43: 87.50300604 | W43: 87.02830618 | X43: 92.01265463 | Y43: 100.4781353 | Z43: 95.7311368 | AA43: 103.642801 | AB43: 107.4403998 | AC43: 103.8010343 | AD43: 96.04760337 | AE43: 483.7982657 | AF43: 458.4809403 | AG43: 552.471511 | AH43: 509.0364745 | AI43: 363.1453867 | AJ43: 362.0377537 | AK43: 279.5190961 | AL43: 214.0896332 | AM43: 178.2497944 | AN43: 133.7862416 | AO43: 91.61707142 | AP43: 42.24828682 | AQ43: 93.51587083 | AR43: 0 | AS43: 85.3668567 | AT43: 7.753430915 | AU43: 42.9603366 | AV43: 45.88765235 | AW43: 132.8368419
D44: 5 | J44: 241940.5832 | K44: =SUM(K45:K54) -> 3825.009017 | L44: =SUM(L45:L54) -> 3793.074105 | M44: 3768.236876 | N44: 3761.813604 | O44: 3765.534528 | P44: 3260.850854 | Q44: 3284.715972 | R44: 3316.902023 | S44: 3360.725284 | T44: 3424.957848 | U44: 3280.027642 | V44: 3334.311375 | W44: 3428.76719 | X44: 3575.981129 | Y44: 3754.185756 | Z44: 3485.743909 | AA44: 3647.813654 | AB44: 3758.167131 | AC44: 3779.995049 | AD44: 3742.106699 | AE44: 21696.11488 | AF44: 21142.0917 | AG44: 21955.84026 | AH44: 20634.54736 | AI44: 19320.30127 | AJ44: 15307.03151 | AK44: 13097.93407 | AL44: 12077.42729 | AM44: 7605.841345 | AN44: 6041.86938 | AO44: 4177.027642 | AP44: 3261.432436 | AQ44: 4274.204381 | AS44: 3300.362544 | AT44: 296.8883497 | AU44: 1644.748713 | AV44: 1799.604518 | AW44: 5170.781011
A45: 1 | B45: =+B43+1 -> 31 | C45: TRUJILLO | E45: LA ESPERANZA | F45: 00005222 | G45: CENTRO DE SALUD CON CAMAS DE INTERNAMIENTO | H45: EL MILAGRO | I45: I-4 | J45: 20795.99792 | K45: 352.6040444 | L45: 387.128678 | M45: 412.5976699 | N45: 431.5579195 | O45: 440.0475835 | P45: 381.7518908 | Q45: 379.7709692 | R45: 374.1111932 | S45: 367.319462 | T45: 360.244742 | U45: 327.70103 | V45: 312.9856125 | W45: 311.2876797 | X45: 329.115974 | Y45: 359.3957756 | Z45: 342.4164476 | AA45: 370.7153276 | AB45: 384.29879 | AC45: 371.2813052 | AD45: 343.5484028 | AE45: 1730.47651 | AF45: 1639.920094 | AG45: 1976.110788 | AH45: 1820.749937 | AI45: 1298.918591 | AJ45: 1294.956747 | AK45: 999.7994293 | AL45: 765.767692 | AM45: 637.5737657 | AN45: 478.5340603 | AO45: 327.70103 | AP45: 151.116019 | AQ45: 334.4927612 | AR45: 0 | AS45: 305.3449149 | AT45: 27.73290237 | AU45: 153.6629182 | AV45: 164.1335038 | AW45: 475.1381947
A46: =+A45+1 -> 2 | B46: =+B45+1 -> 32 | C46: TRUJILLO | E46: LA ESPERANZA | F46: 00012228 | G46: PUESTO DE SALUD | H46: VICTOR RAUL HAYA DE LA TORRE | I46: I-2 | J46: 10730.76706 | K46: 181.9442317 | L46: 199.758996 | M46: 212.9010352 | N46: 222.6845532 | O46: 227.065233 | P46: 196.9845655 | Q46: 195.9624069 | R46: 193.0419537 | S46: 189.5374099 | T46: 185.8868435 | U46: 169.0942378 | V46: 161.5010596 | W46: 160.6249236 | X46: 169.8243511 | Y46: 185.4487755 | Z46: 176.687416 | AA46: 191.2896818 | AB46: 198.2987694 | AC46: 191.5817271 | AD46: 177.2715066 | AE46: 892.9285528 | AF46: 846.2013023 | AG46: 1019.67622 | AH46: 939.5097807 | AI46: 670.2439996 | AJ46: 668.1996824 | AK46: 515.8980502 | AL46: 395.1373122 | AM46: 328.9890482 | AN46: 246.9243144 | AO46: 169.0942378 | AP46: 77.9760993 | AQ46: 172.5987816 | AR46: 0 | AS46: 157.5584478 | AT46: 14.31022047 | AU46: 79.29030322 | AV46: 84.69314156 | AW46: 245.1720426
A47: =+A46+1 -> 3 | B47: 33 | C47: TRUJILLO | E47: LA ESPERANZA | F47: 00020157 | G47: PUESTO DE SALUD | H47: 1° DE MAYO- SECTOR 10 EL MILAGRO | I47: I-2 | J47: 11881.8182 | K47: 201.460741 | L47: 221.1864315 | M47: 235.7381704 | N47: 246.5711316 | O47: 251.4217113 | P47: 218.1143978 | Q47: 216.9825958 | R47: 213.7488761 | S47: 209.8684124 | T47: 205.8262627 | U47: 187.2323741 | V47: 178.8247027 | W47: 177.8545868 | X47: 188.040804 | Y47: 205.3412047 | Z47: 195.6400454 | AA47: 211.8086442 | AB47: 219.5695716 | AC47: 212.1320162 | AD47: 196.2867894 | AE47: 988.7098164 | AF47: 936.9703002 | AG47: 1129.053254 | AH47: 1040.287647 | AI47: 742.1386847 | AJ47: 739.8750809 | AK47: 571.2365955 | AL47: 437.5222834 | AM47: 364.2785309 | AN47: 273.4110056 | AO47: 187.2323741 | AP47: 86.34031757 | AQ47: 191.1128378 | AR47: 0 | AS47: 174.459181 | AT47: 15.84522682 | AU47: 87.79549146 | AV47: 93.77787302 | AW47: 271.4707738
A48: 4 | B48: 34 | C48: TRUJILLO | E48: LA ESPERANZA | F48: 00005226 | G48: HOSPITAL DISTRITAL DE LA ESPERANZA | H48: JERUSALEN | I48: II-1 | J48: 73739.89994 | K48: 1147.334187 | L48: 1108.705908 | M48: 1079.734698 | N48: 1062.649113 | O48: 1057.449152 | P48: 915.1930845 | Q48: 925.5930059 | R48: 941.9357396 | S48: 963.4784339 | T48: 992.8210693 | U48: 964.2212854 | V48: 995.7924755 | W48: 1032.1922 | X48: 1073.049035 | Y48: 1115.762997 | Z48: 1029.220794 | AA48: 1067.477648 | AB48: 1097.934561 | AC48: 1116.134423 | AD48: 1123.562939 | AE48: 6716.863531 | AF48: 6581.293127 | AG48: 6622.892812 | AH48: 6252.581325 | AI48: 6169.010528 | AJ48: 4681.45034 | AK48: 4089.769096 | AL48: 3892.170589 | AM48: 2330.696674 | AN48: 1873.100132 | AO48: 1297.390196 | AP48: 1094.220303 | AQ48: 1328.218535 | AR48: 0 | AS48: 989.1068117 | AT48: 88.77075779 | AU48: 491.7677126 | AV48: 541.1673393 | AW48: 1552.188271
A49: 5 | B49: 35 | C49: TRUJILLO | E49: LA ESPERANZA | F49: 00005230 | G49: CENTRO DE SALUD CON CAMAS DE INTERNAMIENTO | H49: WICHANZAO | I49: I-4 | J49: 40543.06853 | K49: 630.8178968 | L49: 609.5796122 | M49: 593.6508987 | N49: 584.257042 | O49: 581.3980422 | P49: 503.1839747 | Q49: 508.9019744 | R49: 517.8874025 | S49: 529.7318305 | T49: 545.8647582 | U49: 530.140259 | V49: 547.4984724 | W49: 567.5114714 | X49: 589.9750417 | Y49: 613.4596834 | Z49: 565.8777572 | AA49: 586.9118276 | AB49: 603.6573982 | AC49: 613.6638977 | AD49: 617.7481832 | AE49: 3693.010957 | AF49: 3618.472746 | AG49: 3641.344745 | AH49: 3437.743113 | AI49: 3391.794901 | AJ49: 2573.916728 | AK49: 2248.603387 | AL49: 2139.961392 | AM49: 1281.444578 | AN49: 1029.852591 | AO49: 713.3204641 | AP49: 601.6152554 | AQ49: 730.270249 | AR49: 0 | AS49: 543.8226155 | AT49: 48.80721183 | AU49: 270.3797007 | AV49: 297.5401993 | AW49: 853.411457
A50: 6 | B50: 36 | C50: TRUJILLO | E50: LA ESPERANZA | F50: 00005229 | G50: CENTRO DE SALUD CON CAMAS DE INTERNAMIENTO | H50: BELLAVISTA | I50: I-3 | J50: 19399.652 | K50: 301.8431539 | L50: 291.6807427 | M50: 284.0589344 | N50: 279.5640217 | O50: 278.1960049 | P50: 240.7709715 | Q50: 243.5070053 | R50: 247.8064869 | S50: 253.4739855 | T50: 261.1935093 | U50: 253.6694164 | V50: 261.9752332 | W50: 271.5513514 | X50: 282.3000555 | Y50: 293.5373371 | Z50: 270.7696275 | AA50: 280.8343231 | AB50: 288.8469935 | AC50: 293.6350525 | AD50: 295.5893624 | AE50: 1767.086952 | AF50: 1731.420797 | AG50: 1742.364932 | AH50: 1644.942587 | AI50: 1622.956602 | AJ50: 1231.606057 | AK50: 1075.945279 | AL50: 1023.960637 | AM50: 613.1647104 | AN50: 492.7792246 | AO50: 341.3202125 | AP50: 287.8698385 | AQ50: 349.4305983 | AR50: 0 | AS50: 260.2163544 | AT50: 23.35400252 | AU50: 129.375311 | AV50: 142.3714714 | AW50: 408.3530398
A51: 7 | B51: 37 | C51: TRUJILLO | E51: LA ESPERANZA | F51: 00005227 | G51: PUESTO DE SALUD | H51: SAN MARTIN | I51: I-2 | J51: 13665.63854 | K51: 212.6264656 | L51: 205.4677888 | M51: 200.0987813 | N51: 196.9324435 | O51: 195.9687755 | P51: 169.6055717 | Q51: 171.5329078 | R51: 174.5615787 | S51: 178.5539177 | T51: 183.9917586 | U51: 178.6915845 | V51: 184.5424261 | W51: 191.2881022 | X51: 198.8597795 | Y51: 206.775624 | Z51: 190.7374348 | AA51: 197.8272781 | AB51: 203.4716193 | AC51: 206.8444574 | AD51: 208.221126 | AE51: 1244.78375 | AF51: 1219.659548 | AG51: 1227.368892 | AH51: 1158.741962 | AI51: 1143.25444 | AJ51: 867.5765529 | AK51: 757.9248987 | AL51: 721.3055139 | AM51: 431.9297738 | AN51: 347.1269879 | AO51: 240.4351713 | AP51: 202.783285 | AQ51: 246.148346 | AR51: 0 | AS51: 183.3034243 | AT51: 16.45118979 | AU51: 91.13546144 | AV51: 100.2903076 | AW51: 287.6549043
A52: 8 | B52: 38 | C52: TRUJILLO | E52: LA ESPERANZA | F52: 00005228 | G52: PUESTO DE SALUD | H52: PUEBLO LIBRE | I52: I-2 | J52: 13990.03316 | K52: 217.6737877 | L52: 210.3451785 | M52: 204.8487215 | N52: 201.6072213 | O52: 200.6206777 | P52: 173.6316649 | Q52: 175.604752 | R52: 178.7053174 | S52: 182.7924264 | T52: 188.3593508 | U52: 182.9333612 | V52: 188.9230899 | W52: 195.8288948 | X52: 203.5803084 | Y52: 211.684059 | Z52: 195.2651556 | AA52: 202.5232974 | AB52: 208.301624 | AC52: 211.7545264 | AD52: 213.1638743 | AE52: 1274.332398 | AF52: 1248.611798 | AG52: 1256.504146 | AH52: 1186.248152 | AI52: 1170.392988 | AJ52: 888.1710651 | AK52: 775.9165025 | AL52: 738.4278476 | AM52: 442.1829128 | AN52: 355.3670804 | AO52: 246.1426159 | AP52: 207.59695 | AQ52: 251.9914098 | AR52: 0 | AS52: 187.6546768 | AT52: 16.84170776 | AU52: 93.29883292 | AV52: 102.6709967 | AW52: 294.4832498
A53: 9 | B53: 39 | C53: TRUJILLO | E53: LA ESPERANZA | F53: 00007115 | G53: PUESTO DE SALUD | H53: MANUEL AREVALO | I53: I-2 | J53: 19080.24393 | K53: 296.8734184 | L53: 286.8783276 | M53: 279.3820095 | N53: 274.9611039 | O53: 273.6156109 | P53: 236.8067669 | Q53: 239.4977529 | R53: 243.7264451 | S53: 249.3006304 | T53: 256.8930551 | U53: 249.4928437 | V53: 257.6619083 | W53: 267.0803592 | X53: 277.6520899 | Y53: 288.7043538 | Z53: 266.3115061 | AA53: 276.2104903 | AB53: 284.0912349 | AC53: 288.8004604 | AD53: 290.7225933 | AE53: 1737.992521 | AF53: 1702.913597 | AG53: 1713.677541 | AH53: 1617.859218 | AI53: 1596.235224 | AJ53: 1211.328121 | AK53: 1058.230239 | AL53: 1007.101506 | AM53: 603.0691811 | AN53: 484.6657976 | AO53: 335.7005019 | AP53: 283.1301685 | AQ53: 343.6773532 | AR53: 0 | AS53: 255.9319887 | AT53: 22.96948753 | AU53: 127.2451945 | AV53: 140.027378 | AW53: 401.6296586
A54: 10 | B54: 40 | C54: TRUJILLO | E54: LA ESPERANZA | F54: 00005225 | G54: CENTRO DE SALUD | H54: SANTISIMO SACRAMENTO | I54: I-3 | J54: 18113.46391 | K54: 281.8310902 | L54: 272.3424423 | M54: 265.2259564 | N54: 261.0290544 | O54: 259.7517364 | P54: 224.8079658 | Q54: 227.3626018 | R54: 231.3770297 | S54: 236.6687757 | T54: 243.8764986 | U54: 236.8512497 | V54: 244.6063946 | W54: 253.5476205 | X54: 263.5836904 | Y54: 274.0759453 | Z54: 252.8177245 | AA54: 262.2151354 | AB54: 269.6965693 | AC54: 274.1671823 | AD54: 275.9919223 | AE54: 1649.929892 | AF54: 1616.628387 | AG54: 1626.846931 | AH54: 1535.883643 | AI54: 1515.355318 | AJ54: 1149.951137 | AK54: 1004.610597 | AL54: 956.0725136 | AM54: 572.5121694 | AN54: 460.1081865 | AO54: 318.6908379 | AP54: 268.7841993 | AQ54: 326.2635088 | AR54: 0 | AS54: 242.9641286 | AT54: 21.80564278 | AU54: 120.7977868 | AV54: 132.9323077 | AW54: 381.2794192
D55: 6 | J55: 47003 | K55: =SUM(K56:K60) -> 782 | L55: =SUM(L56:L60) -> 808 | M55: 818 | N55: 846 | O55: 855 | P55: 747 | Q55: 754 | R55: 751 | S55: 747 | T55: 745 | U55: 697 | V55: 686 | W55: 677 | X55: 668 | Y55: 660 | Z55: 576 | AA55: 564 | AB55: 566 | AC55: 577 | AD55: 594 | AE55: 3818 | AF55: 3735 | AG55: 3567 | AH55: 3761 | AI55: 3520 | AJ55: 3144 | AK55: 2165 | AL55: 2613 | AM55: 1946 | AN55: 1830 | AO55: 1081 | AP55: 816 | AQ55: 889 | AS55: 685 | AT55: 50 | AU55: 494 | AV55: 263 | AW55: 1014
A56: 1 | B56: =+B54+1 -> 41 | C56: TRUJILLO | E56: LAREDO | F56: 00005231 | G56: HOSPITAL DISTRITAL DE LAREDO | H56: LAREDO | I56: II-1 | J56: 32912.32811 | K56: 434.4157614 | L56: 489.0377825 | M56: 532.5647056 | N56: 565.8499996 | O56: 585.4797885 | P56: 520.6161384 | Q56: 531.7112365 | R56: 531.7112365 | S56: 527.4438911 | T56: 525.7369529 | U56: 486.4773753 | V56: 472.82187 | W56: 465.1406483 | X56: 463.4337101 | Y56: 466.8475864 | Z56: 413.0790344 | AA56: 411.3720963 | AB56: 411.3720963 | AC56: 414.7859726 | AD56: 419.053318 | AE56: 2571.502336 | AF56: 2620.150074 | AG56: 2609.054976 | AH56: 2469.086047 | AI56: 2616.736197 | AJ56: 2284.736726 | AK56: 1569.529637 | AL56: 2039.7911 | AM56: 1434.681522 | AN56: 1254.599547 | AO56: 739.1042228 | AP56: 483.916968 | AQ56: 550.4875562 | AR56: 0 | AS56: 368.6986423 | AT56: 36.69917041 | AU56: 186.9097284 | AV56: 204.8325791 | AW56: 638.3948714
A57: =+A56+1 -> 2 | B57: 42 | C57: TRUJILLO | E57: LAREDO | F57: 00005232 | G57: PUESTO DE SALUD | H57: MENOCUCHO | I57: I-2 | J57: 4389.118744 | K57: 57.93277081 | L57: 65.21704847 | M57: 71.02170723 | N57: 75.46056394 | O57: 78.07835122 | P57: 69.4282715 | Q57: 70.9078904 | R57: 70.9078904 | S57: 70.3388062 | T57: 70.11117253 | U57: 64.87559795 | V57: 63.05452854 | W57: 62.03017699 | X57: 61.80254331 | Y57: 62.25781067 | Z57: 55.08734984 | AA57: 54.85971617 | AB57: 54.85971617 | AC57: 55.31498352 | AD57: 55.88406771 | AE57: 342.9301345 | AF57: 349.4176942 | AG57: 347.9380753 | AH57: 329.2721138 | AI57: 348.9624269 | AJ57: 304.6876767 | AK57: 209.309166 | AL57: 272.0222441 | AM57: 191.3261055 | AN57: 167.3107526 | AO57: 98.56538216 | AP57: 64.53414744 | AQ57: 73.41186084 | AR57: 0 | AS57: 49.16887424 | AT57: 4.894124056 | AU57: 24.92588764 | AV57: 27.31604124 | AW57: 85.13499521
A58: 3 | B58: 43 | C58: TRUJILLO | E58: LAREDO | F58: 00005233 | G58: PUESTO DE SALUD | H58: SANTO DOMINGO | I58: I-2 | J58: 1261.553147 | K58: 16.65146777 | L58: 18.74516903 | M58: 20.41358721 | N58: 21.68943641 | O58: 22.4418603 | P58: 19.95559006 | Q58: 20.38087313 | R58: 20.38087313 | S58: 20.21730272 | T58: 20.15187456 | U58: 18.64702678 | V58: 18.12360147 | W58: 17.82917473 | X58: 17.76374657 | Y58: 17.89460289 | Z58: 15.83361572 | AA58: 15.76818756 | AB58: 15.76818756 | AC58: 15.89904389 | AD58: 16.0626143 | AE58: 98.56752928 | AF58: 100.432232 | AG58: 100.0069489 | AH58: 94.64183944 | AI58: 100.3013756 | AJ58: 87.57559771 | AK58: 60.16119693 | AL58: 78.18665615 | AM58: 54.99237196 | AN58: 48.08970065 | AO58: 28.33039507 | AP58: 18.54888453 | AQ58: 21.10058294 | AR58: 0 | AS58: 14.13248346 | AT58: 1.406705529 | AU58: 7.164383974 | AV58: 7.851379697 | AW58: 24.47013339
A59: 4 | B59: 44 | C59: TRUJILLO | E59: LAREDO | F59: 00005238 | G59: CENTRO DE SALUD | H59: POROTO | I59: I-3 | J59: 3590 | K59: 124 | L59: 103 | M59: 83 | N59: 79 | O59: 71 | P59: 58 | Q59: 58 | R59: 58 | S59: 61 | T59: 64 | U59: 62 | V59: 66 | W59: 66 | X59: 61 | Y59: 56 | Z59: 40 | AA59: 30 | AB59: 30 | AC59: 30 | AD59: 35 | AE59: 258 | AF59: 289 | AG59: 262 | AH59: 323 | AI59: 228 | AJ59: 153 | AK59: 103 | AL59: 100 | AM59: 136 | AN59: 184 | AO59: 115 | AP59: 136 | AQ59: 68 | AR59: 0 | AS59: 115 | AT59: 5 | AU59: 133 | AV59: 8 | AW59: 126
A60: 5 | B60: 45 | C60: TRUJILLO | E60: LAREDO | F60: 00005241 | G60: PUESTO DE SALUD | H60: SIMBAL | I60: I-2 | J60: 4850 | K60: 149 | L60: 132 | M60: 111 | N60: 104 | O60: 98 | P60: 79 | Q60: 73 | R60: 70 | S60: 68 | T60: 65 | U60: 65 | V60: 66 | W60: 66 | X60: 64 | Y60: 57 | Z60: 52 | AA60: 52 | AB60: 54 | AC60: 61 | AD60: 68 | AE60: 547 | AF60: 376 | AG60: 248 | AH60: 545 | AI60: 226 | AJ60: 314 | AK60: 223 | AL60: 123 | AM60: 129 | AN60: 176 | AO60: 100 | AP60: 113 | AQ60: 176 | AR60: 0 | AS60: 138 | AT60: 2 | AU60: 142 | AV60: 15 | AW60: 140
D61: 7 | J61: 37620 | K61: =SUM(K62:K67) -> 661 | L61: =SUM(L62:L67) -> 635 | M61: 615 | N61: 606 | O61: 611 | P61: 524 | Q61: 535 | R61: 547 | S61: 563 | T61: 575 | U61: 562 | V61: 579 | W61: 592 | X61: 590 | Y61: 573 | Z61: 504 | AA61: 492 | AB61: 487 | AC61: 489 | AD61: 503 | AE61: 3078 | AF61: 3263 | AG61: 3364 | AH61: 3346 | AI61: 3173 | AJ61: 2284 | AK61: 1980 | AL61: 1909 | AM61: 893 | AN61: 1216 | AO61: 822 | AP61: 400 | AQ61: 649 | AS61: 602 | AT61: 42 | AU61: 289 | AV61: 306 | AW61: 819
A62: 1 | B62: =+B60+1 -> 46 | C62: TRUJILLO | E62: MOCHE | F62: 00007152 | G62: HOSPITAL | H62: ALTO MOCHE-WALTER CRUZ VILCA | I62: II-1 | J62: 10727.27815 | K62: 188.4830105 | L62: 181.0691553 | M62: 175.3661898 | N62: 172.7998553 | O62: 174.2255967 | P62: 149.4176967 | Q62: 152.5543277 | R62: 155.976107 | S62: 160.5384795 | T62: 163.9602588 | U62: 160.2533312 | V62: 165.1008519 | W62: 168.8077795 | X62: 168.2374829 | Y62: 163.3899622 | Z62: 143.7147312 | AA62: 140.2929518 | AB62: 138.8672105 | AC62: 139.437507 | AD62: 143.4295829 | AE62: 877.6863939 | AF62: 930.438825 | AG62: 959.2388009 | AH62: 954.1061319 | AI62: 904.7754801 | AJ62: 651.2786626 | AK62: 564.5935867 | AL62: 544.3480591 | AM62: 254.6374106 | AN62: 346.7403038 | AO62: 234.391883 | AP62: 114.0593104 | AQ62: 185.0612312 | AR62: 0 | AS62: 171.6592622 | AT62: 11.9762276 | AU62: 82.4078518 | AV62: 87.25537249 | AW62: 233.5364381
A63: =+A62+1 -> 2 | B63: 47 | C63: TRUJILLO | E63: MOCHE | F63: 00005234 | G63: CENTRO DE SALUD CON CAMAS DE INTERNAMIENTO | H63: SANTA LUCIA DE MOCHE | I63: I-4 | J63: 11874.77695 | K63: 208.6450708 | L63: 200.4381542 | M63: 194.1251415 | N63: 191.2842858 | O63: 192.862539 | P63: 165.4009336 | Q63: 168.8730906 | R63: 172.6608982 | S63: 177.7113084 | T63: 181.4991161 | U63: 177.3956578 | V63: 182.7617186 | W63: 186.8651769 | X63: 186.2338756 | Y63: 180.8678148 | Z63: 159.0879209 | AA63: 155.3001132 | AB63: 153.72186 | AC63: 154.3531613 | AD63: 158.7722702 | AE63: 971.5726595 | AF63: 1029.968027 | AG63: 1061.848742 | AH63: 1056.16703 | AI63: 1001.55947 | AJ63: 720.946054 | AK63: 624.9882605 | AL63: 602.5770653 | AM63: 281.8760185 | AN63: 383.8311741 | AO63: 259.4648233 | AP63: 126.2602546 | AQ63: 204.8572632 | AR63: 0 | AS63: 190.0216832 | AT63: 13.25732674 | AU63: 91.22303398 | AV63: 96.5890948 | AW63: 258.5178714
A64: 3 | B64: 48 | C64: TRUJILLO | E64: MOCHE | F64: 00005235 | G64: PUESTO DE SALUD | H64: ALTO MOCHE | I64: I-2 | J64: 7383.855827 | K64: 129.737605 | L64: 124.6344617 | M64: 120.7089669 | N64: 118.9424942 | O64: 119.9238679 | P64: 102.8479653 | Q64: 105.0069874 | R64: 107.3622843 | S64: 110.5026802 | T64: 112.8579771 | U64: 110.3064055 | V64: 113.6430761 | W64: 116.1946478 | X64: 115.8020983 | Y64: 112.4654277 | Z64: 98.9224704 | AA64: 96.56717349 | AB64: 95.58579978 | AC64: 95.97834926 | AD64: 98.72619566 | AE64: 604.1336585 | AF64: 640.444486 | AG64: 660.268235 | AH64: 656.7352896 | AI64: 622.7797591 | AJ64: 448.2915127 | AK64: 388.6239909 | AL64: 374.6884841 | AM64: 175.2733454 | AN64: 238.6700873 | AO64: 161.3378386 | AP64: 78.50989715 | AQ64: 127.3823081 | AR64: 0 | AS64: 118.1573952 | AT64: 8.2435392 | AU64: 56.72340069 | AV64: 60.06007132 | AW64: 160.7490144
A65: 4 | B65: 49 | C65: TRUJILLO | E65: MOCHE | F65: 00005236 | G65: PUESTO DE SALUD | H65: ELIO JACOBO CAFFO | I65: I-2 | J65: 2345.234579 | K65: 41.20680641 | L65: 39.58596379 | M65: 38.33916178 | N65: 37.77810088 | O65: 38.08980138 | P65: 32.66621264 | Q65: 33.35195375 | R65: 34.10003495 | S65: 35.09747656 | T65: 35.84555777 | U65: 35.03513646 | V65: 36.09491817 | W65: 36.90533947 | X65: 36.78065927 | Y65: 35.72087757 | Z65: 31.41941063 | AA65: 30.67132943 | AB65: 30.35962893 | AC65: 30.48430913 | AD65: 31.35707053 | AE65: 191.8828292 | AF65: 203.4157478 | AG65: 209.712098 | AH65: 208.5899761 | AI65: 197.8051388 | AJ65: 142.3847895 | AK65: 123.4333989 | AL65: 119.0072518 | AM65: 55.66970971 | AN65: 75.80556216 | AO65: 51.24356258 | AP65: 24.93604019 | AQ65: 40.4587252 | AR65: 0 | AS65: 37.52874048 | AT65: 2.618284219 | AU65: 18.01628903 | AV65: 19.07607074 | AW65: 51.05654228
A66: 5 | B66: 50 | C66: TRUJILLO | E66: MOCHE | F66: 00005237 | G66: PUESTO DE SALUD | H66: SAN PEDRO - DELICIAS | I66: I-2 | J66: 4240.452075 | K66: 74.50661408 | L66: 71.57594545 | M66: 69.32158496 | N66: 68.30712275 | O66: 68.87071287 | P66: 59.06424475 | Q66: 60.30414302 | R66: 61.65675931 | S66: 63.4602477 | T66: 64.81286399 | U66: 63.34752967 | V66: 65.26373609 | W66: 66.7290704 | X66: 66.50363436 | Y66: 64.58742794 | Z66: 56.80988426 | AA66: 55.45726797 | AB66: 54.89367785 | AC66: 55.1191139 | AD66: 56.69716624 | AE66: 346.9460789 | AF66: 367.7989134 | AG66: 379.1834339 | AH66: 377.1545094 | AI66: 357.6542912 | AJ66: 257.4479676 | AK66: 223.1816882 | AL66: 215.1787085 | AM66: 100.6571957 | AN66: 137.0651176 | AO66: 92.654216 | AP66: 45.08720973 | AQ66: 73.15399779 | AR66: 0 | AS66: 67.85625065 | AT66: 4.734157022 | AU66: 32.57550903 | AV66: 34.49171545 | AW66: 92.31606193
A67: 6 | B67: 51 | C67: TRUJILLO | E67: MOCHE | F67: 00007151 | G67: PUESTO DE SALUD | H67: CURVA DE SUN | I67: I-1 | J67: 1048.402422 | K67: 18.42089316 | L67: 17.69631945 | M67: 17.13895506 | N67: 16.88814109 | O67: 17.02748218 | P67: 14.60294708 | Q67: 14.90949749 | R67: 15.24391613 | S67: 15.68980764 | T67: 16.02422628 | U67: 15.66193942 | V67: 16.13569916 | W67: 16.49798601 | X67: 16.44224957 | Y67: 15.96848984 | Z67: 14.04558269 | AA67: 13.71116405 | AB67: 13.57182295 | AC67: 13.62755939 | AD67: 14.01771447 | AE67: 85.77837997 | AF67: 90.9340006 | AG67: 93.74869078 | AH67: 93.24706283 | AI67: 88.42586084 | AJ67: 63.6510136 | AK67: 55.17907484 | AL67: 53.20043124 | AM67: 24.88632012 | AN67: 33.88775505 | AO67: 22.90767652 | AP67: 11.14728785 | AQ67: 18.08647453 | AR67: 0 | AS67: 16.77666821 | AT67: 1.170465224 | AU67: 8.053915468 | AV67: 8.527675202 | AW67: 22.82407186
D68: 8 | J68: 19846 | K68: =SUM(K69:K70) -> 462 | L68: =SUM(L69:L70) -> 408 | M68: 363 | N68: 330 | O68: 321 | P68: 265 | Q68: 260 | R68: 265 | S68: 272 | T68: 290 | U68: 279 | V68: 296 | W68: 311 | X68: 314 | Y68: 309 | Z68: 274 | AA68: 276 | AB68: 276 | AC68: 274 | AD68: 271 | AE68: 1616 | AF68: 1909 | AG68: 1864 | AH68: 1705 | AI68: 1133 | AJ68: 1406 | AK68: 1020 | AL68: 647 | AM68: 940 | AN68: 401 | AO68: 306 | AP68: 308 | AQ68: 475 | AS68: 463 | AT68: 28 | AU68: 245 | AV68: 173 | AW68: 483
A69: 1 | B69: =+B67+1 -> 52 | C69: TRUJILLO | E69: SALAVERRY | F69: 00005239 | G69: CENTRO DE SALUD | H69: SALAVERRY | I69: I-4 | J69: 15298.07882 | K69: 356.1278049 | L69: 314.5024771 | M69: 279.8147039 | N69: 254.3770035 | O69: 247.4394489 | P69: 204.2724422 | Q69: 200.4182452 | R69: 204.2724422 | S69: 209.668318 | T69: 223.5434273 | U69: 215.0641939 | V69: 228.1684637 | W69: 239.7310548 | X69: 242.043573 | Y69: 238.189376 | Z69: 211.2099968 | AA69: 212.7516757 | AB69: 212.7516757 | AC69: 211.2099968 | AD69: 208.8974786 | AE69: 1245.676478 | AF69: 1471.532423 | AG69: 1436.84465 | AH69: 1314.281185 | AI69: 873.3610454 | AJ69: 1083.800203 | AK69: 786.2561926 | AL69: 498.7330947 | AM69: 724.5890403 | AN69: 309.1066012 | AO69: 235.8768578 | AP69: 237.4185366 | AQ69: 366.1487172 | AR69: 0 | AS69: 356.8986443 | AT69: 21.58350333 | AU69: 188.8556541 | AV69: 133.355217 | AW69: 372.3154324
A70: 2 | B70: =+B69+1 -> 53 | C70: TRUJILLO | E70: SALAVERRY | F70: 00005240 | G70: PUESTO DE SALUD | H70: AURORA DIAZ | I70: I-2 | J70: 4547.921177 | K70: 105.8721951 | L70: 93.49752294 | M70: 83.18529615 | N70: 75.6229965 | O70: 73.56055114 | P70: 60.72755779 | Q70: 59.58175481 | R70: 60.72755779 | S70: 62.33168196 | T70: 66.45657268 | U70: 63.93580613 | V70: 67.83153625 | W70: 71.26894518 | X70: 71.95642697 | Y70: 70.81062399 | Z70: 62.79000315 | AA70: 63.24832434 | AB70: 63.24832434 | AC70: 62.79000315 | AD70: 62.10252136 | AE70: 370.3235222 | AF70: 437.4675767 | AG70: 427.1553499 | AH70: 390.7188152 | AI70: 259.6389546 | AJ70: 322.1997972 | AK70: 233.7438074 | AL70: 148.2669053 | AM70: 215.4109597 | AN70: 91.89339877 | AO70: 70.12314221 | AP70: 70.5814634 | AQ70: 108.8512828 | AR70: 0 | AS70: 106.1013557 | AT70: 6.416496672 | AU70: 56.14434588 | AV70: 39.64478301 | AW70: 110.6845676
D71: 9 | J71: 70531 | K71: =SUM(K72:K76) -> 890 | L71: =SUM(L72:L76) -> 830 | M71: 785 | N71: 759 | O71: 748 | P71: 640 | Q71: 644 | R71: 655 | S71: 680 | T71: 704 | U71: 702 | V71: 739 | W71: 789 | X71: 869 | Y71: 958 | Z71: 934 | AA71: 1021 | AB71: 1071 | AC71: 1066 | AD71: 1015 | AE71: 5669 | AF71: 6811 | AG71: 6011 | AH71: 5386 | AI71: 5250 | AJ71: 4753 | AK71: 4922 | AL71: 4730 | AM71: 2950 | AN71: 2342 | AO71: 1836 | AP71: 1325 | AQ71: 2047 | AS71: 808 | AT71: 64 | AU71: 405 | AV71: 396 | AW71: 1114
A72: 1 | B72: =+B70+1 -> 54 | C72: TRUJILLO | E72: VICTOR LARCO HERRERA | F72: 00005243 | G72: HOSPITAL | H72: VISTA ALEGRE | I72: II-1 | J72: 25226.42013 | K72: 318.3212192 | L72: 296.8613617 | M72: 280.7664686 | N72: 271.4671971 | O72: 267.5328899 | P72: 228.9051464 | Q72: 230.3358036 | R72: 234.2701108 | S72: 243.211718 | T72: 251.795661 | U72: 251.0803325 | V72: 264.3139112 | W72: 282.1971258 | X72: 310.8102691 | Y72: 342.642391 | Z72: 334.058448 | AA72: 365.1752414 | AB72: 383.0584559 | AC72: 381.2701345 | AD72: 363.0292556 | AE72: 2027.598867 | AF72: 2436.051488 | AG72: 2149.920055 | AH72: 1926.379873 | AI72: 1877.737529 | AJ72: 1699.978376 | AK72: 1760.423642 | AL72: 1691.752098 | AM72: 1055.109659 | AN72: 837.6497701 | AO72: 656.6716387 | AP72: 473.9051859 | AQ72: 732.1388042 | AR72: 0 | AS72: 288.9927473 | AT72: 22.89051464 | AU72: 144.854038 | AV72: 141.6350593 | AW72: 398.4380204
A73: =+A72+1 -> 2 | B73: 55 | C73: TRUJILLO | E73: VICTOR LARCO HERRERA | F73: 00005242 | G73: CENTRO DE SALUD | H73: VICTOR LARCO HERRERA | I73: I-3 | J73: =SUM(K73:AQ73) -> 17133.13923 | K73: 216.195629 | L73: 201.6206428 | M73: 190.6894031 | N73: 184.3735758 | O73: 181.701495 | P73: 155.4665198 | Q73: 156.4381855 | R73: 159.1102663 | S73: 165.1831772 | T73: 171.0131717 | U73: 170.5273389 | V73: 179.515247 | W73: 191.6610689 | X73: 211.0943839 | Y73: 232.7139468 | Z73: 226.8839523 | AA73: 248.0176823 | AB73: 260.1635042 | AC73: 258.948922 | AD73: 246.5601837 | AE73: 1377.093282 | AF73: 1654.503853 | AG73: 1460.170704 | AH73: 1308.34793 | AI73: 1275.311295 | AJ73: 1154.581826 | AK73: 1195.634703 | AL73: 1148.994748 | AM73: 716.6034895 | AN73: 568.9102957 | AO73: 445.9945785 | AP73: 321.8642792 | AQ73: 497.2499468 | AR73: 0 | AS73: 196.2764812 | AT73: 15.54665198 | AU73: 98.38115703 | AV73: 96.1949091 | AW73: 270.6089109
A74: 3 | B74: 56 | C74: TRUJILLO | E74: VICTOR LARCO HERRERA | F74: 00005245 | G74: CENTRO DE SALUD | H74: LIBERACION SOCIAL | I74: I-3 | J74: 14263.86019 | K74: 179.9894454 | L74: 167.8553255 | M74: 158.7547355 | N74: 153.4966169 | O74: 151.2720282 | P74: 129.4306124 | Q74: 130.2395537 | R74: 132.4641424 | S74: 137.5200257 | T74: 142.3736736 | U74: 141.969203 | V74: 149.4519103 | W74: 159.5636768 | X74: 175.7425034 | Y74: 193.7414479 | Z74: 188.8878 | AA74: 206.4822738 | AB74: 216.5940404 | AC74: 215.5828638 | AD74: 205.2688619 | AE74: 1146.472096 | AF74: 1377.424845 | AG74: 1215.63658 | AH74: 1089.239497 | AI74: 1061.735492 | AJ74: 961.2245324 | AK74: 995.4023035 | AL74: 956.5731198 | AM74: 596.594229 | AN74: 473.6351472 | AO74: 371.3040693 | AP74: 267.9618147 | AQ74: 413.9757243 | AR74: 0 | AS74: 163.4061482 | AT74: 12.94306124 | AU74: 81.90530941 | AV74: 80.08519142 | AW74: 225.2901597
A75: 4 | B75: 57 | C75: TRUJILLO | E75: VICTOR LARCO HERRERA | F75: 00005244 | G75: PUESTO DE SALUD | H75: BUENOS AIRES SUR | I75: I-2 | J75: 8027.089651 | K75: 101.2903516 | L75: 94.46178858 | M75: 89.34036631 | N75: 86.38132233 | O75: 85.12941911 | P75: 72.83800566 | Q75: 73.29324319 | R75: 74.54514641 | S75: 77.39038101 | T75: 80.12180622 | U75: 79.89418745 | V75: 84.10513466 | W75: 89.79560385 | X75: 98.90035455 | Y75: 109.0293897 | Z75: 106.2979645 | AA75: 116.1993809 | AB75: 121.8898501 | AC75: 121.3208032 | AD75: 115.5165246 | AE75: 645.185397 | AF75: 775.1557133 | AG75: 684.1082062 | AH75: 612.9773413 | AI75: 597.4992651 | AJ75: 540.9360014 | AK75: 560.1697872 | AL75: 538.3183855 | AM75: 335.7376823 | AN75: 266.5415769 | AO75: 208.9540287 | AP75: 150.7974336 | AQ75: 232.9678087 | AR75: 0 | AS75: 91.95798214 | AT75: 7.283800566 | AU75: 46.09280045 | AV75: 45.068516 | AW75: 126.7836536
A76: 5 | B76: 58 | C76: TRUJILLO | E76: VICTOR LARCO HERRERA | F76: 00005246 | G76: PUESTO DE SALUD | H76: HUAMAN | I76: I-2 | J76: 5880.490804 | K76: 74.20335478 | L76: 69.20088142 | M76: 65.4490264 | N76: 63.28128795 | O76: 62.36416783 | P76: 53.35971579 | Q76: 53.69321402 | R76: 54.61033413 | S76: 56.69469803 | T76: 58.69568737 | U76: 58.52893826 | V76: 61.61379683 | W76: 65.78252463 | X76: 72.4524891 | Y76: 79.87282458 | Z76: 77.87183524 | AA76: 85.1254216 | AB76: 89.2941494 | AC76: 88.87727662 | AD76: 84.62517427 | AE76: 472.6503576 | AF76: 567.8641004 | AG76: 501.1644557 | AH76: 449.0553582 | AI76: 437.7164186 | AJ76: 396.2792643 | AK76: 410.3695643 | AL76: 394.3616495 | AM76: 245.95494 | AN76: 195.26321 | AO76: 153.0756847 | AP76: 110.4712866 | AQ76: 170.667716 | AR76: 0 | AS76: 67.36664119 | AT76: 5.335971579 | AU76: 33.76669515 | AV76: 33.01632415 | AW76: 92.8792553
C77: ASCOPE | D77: 4 | J77: 135770.5266 | K77: =+K78+K83+K89+K93 -> 2238.971546 | L77: =+L78+L83+L89+L93 -> 2103.555748 | M77: 2035.704714 | N77: 2020.567411 | O77: 2075.712489 | P77: 1814.269479 | Q77: 1869.555748 | R77: 1926.128287 | S77: 1960.269479 | T77: 2025.983209 | U77: 1951.689164 | V77: 2024.257816 | W77: 2066.540198 | X77: 2016.528536 | Y77: 1927.230604 | Z77: 1654.497436 | AA77: 1590.772043 | AB77: 1552.050537 | AC77: 1535.191729 | AD77: 1539.050537 | AE77: 9416.212571 | AF77: 10790.56882 | AG77: 10725.44706 | AH77: 11388.21133 | AI77: 10462.34334 | AJ77: 9296.397766 | AK77: 8512.343341 | AL77: 6929.300579 | AM77: 6948.163275 | AN77: 5055.531182 | AO77: 3671.638627 | AP77: 1873.04665 | AQ77: 2772.795368 | AS77: 2021.967659 | AT77: 135.7215054 | AU77: 1395.779818 | AV77: 729.7526053 | AW77: 2767.845905
D78: 1 | J78: 42181 | K78: =SUM(K79:K82) -> 670 | L78: =SUM(L79:L82) -> 589 | M78: 538 | N78: 509 | O78: 502 | P78: 439 | Q78: 458 | R78: 480 | S78: 502 | T78: 532 | U78: 527 | V78: 564 | W78: 592 | X78: 595 | Y78: 584 | Z78: 505 | AA78: 502 | AB78: 493 | AC78: 479 | AD78: 469 | AE78: 2733 | AF78: 3211 | AG78: 3234 | AH78: 4072 | AI78: 3531 | AJ78: 3134 | AK78: 2687 | AL78: 2544 | AM78: 2518 | AN78: 1411 | AO78: 1142 | AP78: 554 | AQ78: 881 | AS78: 571 | AT78: 42 | AU78: 433 | AV78: 212 | AW78: 831
A79: 1 | B79: =+B76+1 -> 59 | C79: ASCOPE | E79: ASCOPE | F79: 00005263 | G79: HOSPITAL | H79: ASCOPE "ROSA SANCHEZ DE SANTILLAN" | I79: II-1 | J79: 7504 | K79: 251 | L79: 174 | M79: 122 | N79: 88 | O79: 70 | P79: 52 | Q79: 52 | R79: 53 | S79: 59 | T79: 69 | U79: 73 | V79: 90 | W79: 106 | X79: 112 | Y79: 113 | Z79: 102 | AA79: 106 | AB79: 106 | AC79: 100 | AD79: 89 | AE79: 471 | AF79: 586 | AG79: 623 | AH79: 471 | AI79: 617 | AJ79: 556 | AK79: 520 | AL79: 387 | AM79: 200 | AN79: 296 | AO79: 342 | AP79: 228 | AQ79: 220 | AR79: 0 | AS79: 205 | AT79: 9 | AU79: 241 | AV79: 26 | AW79: 252
A80: 2 | B80: =+B79+1 -> 60 | C80: ASCOPE | E80: ASCOPE | F80: 00007631 | G80: CENTRO DE SALUD | H80: CASA GRANDE | I80: I-3 | J80: 24653.14332 | K80: 297.8823731 | L80: 295.0386273 | M80: 295.7495637 | N80: 299.304246 | O80: 307.1245469 | P80: 275.1324066 | Q80: 288.6401992 | R80: 303.5698647 | S80: 314.9448479 | T80: 329.1635769 | U80: 322.7651489 | V80: 336.9838779 | W80: 345.5151153 | X80: 343.382306 | Y80: 334.8510685 | Z80: 286.5073899 | AA80: 281.5308347 | AB80: 275.1324066 | AC80: 269.444915 | AD80: 270.1558515 | AE80: 1608.138253 | AF80: 1866.208185 | AG80: 1856.255074 | AH80: 2560.082161 | AI80: 2071.668819 | AJ80: 1832.794171 | AK80: 1540.59929 | AL80: 1533.489925 | AM80: 1647.950694 | AN80: 792.6941431 | AO80: 568.749161 | AP80: 231.7652831 | AQ80: 469.9289943 | AR80: 0 | AS80: 260.2027412 | AT80: 23.46090289 | AU80: 136.4997986 | AV80: 132.2341799 | AW80: 411.6322053
A81: 3 | B81: =+B80+1 -> 61 | C81: ASCOPE | E81: ASCOPE | F81: 00005275 | G81: CENTRO DE SALUD | H81: ROMA "3 DE OCTUBRE" | I81: I-3 | J81: 7629.226889 | K81: 92.18346646 | L81: 91.30343337 | M81: 91.52344164 | N81: 92.62348301 | O81: 95.04357401 | P81: 85.14320172 | Q81: 89.32335891 | R81: 93.94353265 | S81: 97.46366502 | T81: 101.8638305 | U81: 99.88375602 | V81: 104.2839215 | W81: 106.9240208 | X81: 106.2639959 | Y81: 103.6238967 | Z81: 88.66333409 | AA81: 87.12327618 | AB81: 85.14320172 | AC81: 83.38313553 | AD81: 83.60314381 | AE81: 497.6587139 | AF81: 577.5217171 | AG81: 574.4416013 | AH81: 792.2497917 | AI81: 641.104108 | AJ81: 567.1813283 | AK81: 476.757928 | AL81: 474.5578452 | AM81: 509.9791772 | AN81: 245.3092246 | AO81: 176.0066185 | AP81: 71.72269706 | AQ81: 145.4254686 | AR81: 0 | AS81: 80.52302798 | AT81: 7.260273015 | AU81: 42.24158845 | AV81: 40.92153881 | AW81: 127.3847902
A82: 4 | B82: =+B81+1 -> 62 | C82: ASCOPE | E82: ASCOPE | F82: 00005274 | G82: PUESTO DE SALUD | H82: MOCAN | I82: I-2 | J82: 2394.629791 | K82: 28.93416047 | L82: 28.65793937 | M82: 28.72699464 | N82: 29.07227102 | O82: 29.83187905 | P82: 26.72439165 | Q82: 28.03644188 | R82: 29.48660267 | S82: 30.59148708 | T82: 31.97259259 | U82: 31.35109511 | V82: 32.73220062 | W82: 33.56086393 | X82: 33.3536981 | Y82: 32.5250348 | Z82: 27.82927606 | AA82: 27.34588913 | AB82: 26.72439165 | AC82: 26.17194944 | AD82: 26.24100472 | AE82: 156.2030334 | AF82: 181.2700984 | AG82: 180.3033245 | AH82: 248.6680474 | AI82: 201.227073 | AJ82: 178.0245004 | AK82: 149.6427822 | AL82: 148.9522294 | AM82: 160.0701288 | AN82: 76.99663227 | AO82: 55.24422046 | AP82: 22.51201984 | AQ82: 45.64553716 | AR82: 0 | AS82: 25.27423086 | AT82: 2.278824094 | AU82: 13.25861291 | AV82: 12.84428126 | AW82: 39.98300456
D83: 2 | J83: 41683.52662 | K83: =SUM(K84:K88) -> 904.9715464 | L83: =SUM(L84:L88) -> 749.5557482 | M83: 638.7047143 | N83: 582.5674107 | O83: 566.7124893 | P83: 485.2694785 | Q83: 501.5557482 | R83: 527.1282875 | S83: 559.2694785 | T83: 609.9832089 | U83: 618.6891643 | V83: 683.257816 | W83: 720.5401982 | X83: 692.5285357 | Y83: 637.2306036 | Z83: 522.4974357 | AA83: 481.7720428 | AB83: 456.0505375 | AC83: 451.1917286 | AD83: 465.0505375 | AE83: 2856.212571 | AF83: 3144.568816 | AG83: 3088.447062 | AH83: 3383.21133 | AI83: 3223.343341 | AJ83: 2936.397766 | AK83: 2627.343341 | AL83: 1872.300579 | AM83: 2314.163275 | AN83: 2003.531182 | AO83: 1175.638627 | AP83: 478.04665 | AQ83: 725.7953678 | AS83: 887.9676589 | AT83: 37.72150536 | AU83: 685.7798178 | AV83: 195.7526053 | AW83: 859.8459053
A84: 1 | B84: =+B82+1 -> 63 | C84: ASCOPE | E84: CHICAMA | F84: 00005264 | G84: CENTRO DE SALUD CON CAMAS DE INTERNAMIENTO | H84: MATERNO CHICAMA | I84: I-4 | J84: 11545.54436 | K84: 237.0013493 | L84: 204.5909084 | M84: 177.5822076 | N84: 163.4026397 | O84: 164.7530747 | P84: 141.1204616 | Q84: 147.8726368 | R84: 155.975247 | S84: 166.1035098 | T84: 178.9326426 | U84: 182.9839478 | V84: 203.2404733 | W84: 211.3430836 | X84: 195.8130806 | Y84: 178.9326426 | Z84: 137.0691564 | AA84: 120.1887185 | AB84: 110.7356732 | AC84: 112.0861082 | AD84: 119.5135009 | AE84: 816.337981 | AF84: 1043.211068 | AG84: 719.7818757 | AH84: 970.2875754 | AI84: 898.7145184 | AJ84: 889.9366906 | AK84: 667.7901267 | AL84: 523.2935776 | AM84: 651.5849062 | AN84: 452.395738 | AO84: 299.1213611 | AP84: 139.7700265 | AQ84: 164.0778572 | AR84: 0 | AS84: 247.1296121 | AT84: 13.50435039 | AU84: 139.094809 | AV84: 76.97479721 | AW84: 233.6252617
A85: 2 | B85: =+B84+1 -> 64 | C85: ASCOPE | E85: CHICAMA | F85: 00005265 | G85: PUESTO DE SALUD | H85: ALTO PERU | I85: I-2 | J85: 5553.455635 | K85: 113.9986507 | L85: 98.40909162 | M85: 85.41779239 | N85: 78.5973603 | O85: 79.24692526 | P85: 67.87953844 | Q85: 71.12736325 | R85: 75.02475301 | S85: 79.89649022 | T85: 86.06735735 | U85: 88.01605224 | V85: 97.75952665 | W85: 101.6569164 | X85: 94.18691937 | Y85: 86.06735735 | Z85: 65.93084356 | AA85: 57.81128154 | AB85: 53.26432681 | AC85: 53.91389178 | AD85: 57.48649906 | AE85: 392.662019 | AF85: 501.7889325 | AG85: 346.2181243 | AH85: 466.7124246 | AI85: 432.2854816 | AJ85: 428.0633094 | AK85: 321.2098733 | AL85: 251.7064224 | AM85: 313.4150938 | AN85: 217.604262 | AO85: 143.8786389 | AP85: 67.22997348 | AQ85: 78.92214278 | AR85: 0 | AS85: 118.8703879 | AT85: 6.495649612 | AU85: 66.905191 | AV85: 37.02520279 | AW85: 112.3747383
A86: 3 | B86: =+B85+1 -> 65 | C86: ASCOPE | E86: CHICAMA | F86: 00005272 | G86: PUESTO DE SALUD | H86: SANTIAGO DE CAO | I86: I-2 | J86: 5993.892197 | K86: 135.5836329 | L86: 104.3583113 | M86: 84.089243 | N86: 73.6808025 | O86: 68.47658225 | P86: 57.79423542 | Q86: 59.43767339 | R86: 62.99845567 | S86: 67.92876959 | T86: 76.69377212 | U86: 78.61111642 | V86: 88.47174426 | W86: 95.86721515 | X86: 96.14112148 | Y86: 89.56736958 | Z86: 77.78939743 | AA86: 75.05033414 | AB86: 72.85908351 | AC86: 71.21564554 | AD86: 71.7634582 | AE86: 400.9988656 | AF86: 377.990734 | AG86: 490.8401416 | AH86: 462.901696 | AI86: 490.0184226 | AJ86: 407.2987112 | AK86: 420.446215 | AL86: 278.2888303 | AM86: 346.4915062 | AN86: 330.6049391 | AO86: 191.1866176 | AP86: 67.65486326 | AQ86: 120.7926911 | AR86: 0 | AS86: 127.366443 | AT86: 3.834688606 | AU86: 122.1622227 | AV86: 16.9821924 | AW86: 122.1622227
A87: 4 | B87: =+B86+1 -> 66 | C87: ASCOPE | E87: CHICAMA | F87: 00005273 | G87: PUESTO DE SALUD | H87: SANTA ROSA DE CARTAVIO | I87: I-2 | J87: 15889.1078 | K87: 359.4163671 | L87: 276.6416887 | M87: 222.910757 | N87: 195.3191975 | O87: 181.5234178 | P87: 153.2057646 | Q87: 157.5623266 | R87: 167.0015443 | S87: 180.0712304 | T87: 203.3062279 | U87: 208.3888836 | V87: 234.5282557 | W87: 254.1327849 | X87: 254.8588785 | Y87: 237.4326304 | Z87: 206.2106026 | AA87: 198.9496659 | AB87: 193.1409165 | AC87: 188.7843545 | AD87: 190.2365418 | AE87: 1063.001134 | AF87: 1002.009266 | AG87: 1301.159858 | AH87: 1227.098304 | AI87: 1298.981577 | AJ87: 1079.701289 | AK87: 1114.553785 | AL87: 737.7111697 | AM87: 918.5084938 | AN87: 876.3950609 | AO87: 506.8133824 | AP87: 179.3451367 | AQ87: 320.2073089 | AR87: 0 | AS87: 337.633557 | AT87: 10.16531139 | AU87: 323.8377773 | AV87: 45.0178076 | AW87: 323.8377773
A88: 5 | B88: =+B87+1 -> 67 | C88: ASCOPE | E88: CHICAMA | F88: 00005276 | G88: PUESTO DE SALUD | H88: LLAGUEN | I88: I-1 | J88: 2701.526619 | K88: 58.97154641 | L88: 65.55574819 | M88: 68.70471426 | N88: 71.56741069 | O88: 72.71248926 | P88: 65.26947855 | Q88: 65.55574819 | R88: 66.12828748 | S88: 65.26947855 | T88: 64.9832089 | U88: 60.68916426 | V88: 59.25781605 | W88: 57.54019819 | X88: 51.52853569 | Y88: 45.23060355 | Z88: 35.4974357 | AA88: 29.77204285 | AB88: 26.05053749 | AC88: 25.19172856 | AD88: 26.05053749 | AE88: 183.2125714 | AF88: 219.568816 | AG88: 230.4470624 | AH88: 256.2113303 | AI88: 103.343341 | AJ88: 131.397766 | AK88: 103.343341 | AL88: 81.30057854 | AM88: 84.16327497 | AN88: 126.5311821 | AO88: 34.63862677 | AP88: 24.04664999 | AQ88: 41.79536784 | AR88: 0 | AS88: 56.96765891 | AT88: 3.721505356 | AU88: 33.77981784 | AV88: 19.75260535 | AW88: 67.84590533
D89: 3 | J89: 13989 | K89: =SUM(K90:K92) -> 68 | L89: =SUM(L90:L92) -> 122 | M89: =SUM(M90:M92) -> 170 | N89: =SUM(N90:N92) -> 216 | O89: =SUM(O90:O92) -> 251 | P89: 228 | Q89: 239 | R89: 239 | S89: 226 | T89: 217 | U89: 192 | V89: 170 | W89: 161 | X89: 164 | Y89: 172 | Z89: 172 | AA89: 180 | AB89: 185 | AC89: 175 | AD89: 154 | AE89: 807 | AF89: 1139 | AG89: 1254 | AH89: 1186 | AI89: 1117 | AJ89: 1099 | AK89: 980 | AL89: 754 | AM89: 638 | AN89: 415 | AO89: 291 | AP89: 317 | AQ89: 291 | AS89: 46 | AT89: 13 | AU89: 19 | AV89: 43 | AW89: 231
A90: 1 | B90: =+B88+1 -> 68 | C90: ASCOPE | E90: CHOCOPE | F90: 00005266 | G90: CENTRO DE SALUD | H90: CHOCOPE | I90: I-3 | J90: 8440.291132 | K90: 42.20957289 | L90: 73.05503 | M90: 103.0887646 | N90: 129.0638863 | O90: 146.9217825 | P90: 138.804557 | Q90: 147.7335051 | R90: 149.3569502 | S90: 142.0514472 | T90: 134.7459442 | U90: 122.5701059 | V90: 111.2059901 | W90: 106.3356548 | X90: 107.1473773 | Y90: 107.9590999 | Z90: 102.277042 | AA90: 103.0887646 | AB90: 103.9004871 | AC90: 98.21842922 | AD90: 88.47775855 | AE90: 491.9038686 | AF90: 685.0938369 | AG90: 743.5378609 | AH90: 767.8895375 | AI90: 633.9553159 | AJ90: 673.7297211 | AK90: 553.5947829 | AL90: 497.5859265 | AM90: 407.4847229 | AN90: 213.4830321 | AO90: 177.7672397 | AP90: 184.2610201 | AQ90: 151.7921179 | AR90: 0 | AS90: 29.222012 | AT90: 7.305503 | AU90: 13.79928344 | AV90: 24.35167667 | AW90: 132.3107766
A91: 2 | B91: =+B90+1 -> 69 | C91: ASCOPE | E91: CHOCOPE | F91: 00005267 | G91: PUESTO DE SALUD | H91: MOLINOS DE CAJANLEQUE | I91: I-2 | J91: 1957.708868 | K91: 9.790427113 | L91: 16.94497 | M91: 23.91123545 | N91: 29.93611367 | O91: 34.07821745 | P91: 32.19544301 | Q91: 34.26649489 | R91: 34.64304978 | S91: 32.94855278 | T91: 31.25405578 | U91: 28.42989412 | V91: 25.79400989 | W91: 24.66434523 | X91: 24.85262267 | Y91: 25.04090012 | Z91: 23.722958 | AA91: 23.91123545 | AB91: 24.09951289 | AC91: 22.78157078 | AD91: 20.52224145 | AE91: 114.0961314 | AF91: 158.9061631 | AG91: 172.4621391 | AH91: 178.1104625 | AI91: 147.0446841 | AJ91: 156.2702789 | AK91: 128.4052171 | AL91: 115.4140735 | AM91: 94.51527713 | AN91: 49.5169679 | AO91: 41.23276034 | AP91: 42.7389799 | AQ91: 35.20788212 | AR91: 0 | AS91: 6.777988001 | AT91: 1.694497 | AU91: 3.200716556 | AV91: 5.648323334 | AW91: 30.68922345
A92: 3 | B92: =+B91+1 -> 70 | C92: ASCOPE | E92: CHOCOPE | F92: 00005268 | G92: PUESTO DE SALUD | H92: MAGDALENA DE CAO | I92: I-2 | J92: 3591 | K92: 16 | L92: 32 | M92: 43 | N92: 57 | O92: 70 | P92: 57 | Q92: 57 | R92: 55 | S92: 51 | T92: 51 | U92: 41 | V92: 33 | W92: 30 | X92: 32 | Y92: 39 | Z92: 46 | AA92: 53 | AB92: 57 | AC92: 54 | AD92: 45 | AE92: 201 | AF92: 295 | AG92: 338 | AH92: 240 | AI92: 336 | AJ92: 269 | AK92: 298 | AL92: 141 | AM92: 136 | AN92: 152 | AO92: 72 | AP92: 90 | AQ92: 104 | AR92: 0 | AS92: 10 | AT92: 4 | AU92: 2 | AV92: 13 | AW92: 68
D93: 4 | J93: 37917 | K93: =SUM(K94:K96) -> 596 | L93: =SUM(L94:L96) -> 643 | M93: 689 | N93: 713 | O93: 756 | P93: 662 | Q93: 671 | R93: 680 | S93: 673 | T93: 667 | U93: 614 | V93: 607 | W93: 593 | X93: 565 | Y93: 534 | Z93: 455 | AA93: 427 | AB93: 418 | AC93: 430 | AD93: 451 | AE93: 3020 | AF93: 3296 | AG93: 3149 | AH93: 2747 | AI93: 2591 | AJ93: 2127 | AK93: 2218 | AL93: 1759 | AM93: 1478 | AN93: 1226 | AO93: 1063 | AP93: 524 | AQ93: 875 | AS93: 517 | AT93: 43 | AU93: 258 | AV93: 279 | AW93: 846
A94: 1 | B94: =+B92+1 -> 71 | C94: ASCOPE | E94: PAIJAN | F94: 00005269 | G94: CENTRO DE SALUD CON CAMAS DE INTERNAMIENTO | H94: PAIJAN | I94: I-4 | J94: 24891.1556 | K94: 446.5020587 | L94: 448.2809513 | M94: 450.059844 | N94: 448.2809513 | O94: 456.2859683 | P94: 397.5825104 | Q94: 402.9191884 | R94: 409.1453127 | S94: 412.703098 | T94: 421.5975614 | U94: 397.5825104 | V94: 405.5875274 | W94: 404.6980811 | X94: 387.7986007 | Y94: 364.6729961 | Z94: 311.3062162 | AA94: 290.8489506 | AB94: 284.6228262 | AC94: 286.4017189 | AD94: 294.4067359 | AE94: 1890.962902 | AF94: 2067.073276 | AG94: 2115.992824 | AH94: 1864.279512 | AI94: 1626.797341 | AJ94: 1376.862922 | AK94: 1415.109114 | AL94: 1133.154627 | AM94: 1032.647191 | AN94: 824.5167498 | AO94: 771.1499698 | AP94: 381.5724764 | AQ94: 669.753088 | AR94: 0 | AS94: 397.5825104 | AT94: 32.90951428 | AU94: 198.346532 | AV94: 203.68321 | AW94: 575.4717768
A95: 2 | B95: =+B94+1 -> 72 | C95: ASCOPE | E95: PAIJAN | F95: 00005270 | G95: PUESTO DE SALUD | H95: MACABI BAJO | I95: I-2 | J95: 3093.844399 | K95: 55.49794134 | L95: 55.71904868 | M95: 55.94015601 | N95: 55.71904868 | O95: 56.71403169 | P95: 49.4174896 | Q95: 50.08081161 | R95: 50.85468728 | S95: 51.29690196 | T95: 52.40243864 | U95: 49.4174896 | V95: 50.41247261 | W95: 50.30191894 | X95: 48.20139925 | Y95: 45.32700388 | Z95: 38.6937838 | AA95: 36.15104944 | AB95: 35.37717376 | AC95: 35.5982811 | AD95: 36.59326411 | AE95: 235.0370982 | AF95: 256.9267245 | AG95: 263.0071762 | AH95: 231.7204882 | AI95: 202.2026588 | AJ95: 171.1370781 | AK95: 175.8908858 | AL95: 140.845373 | AM95: 128.3528086 | AN95: 102.4832502 | AO95: 95.85003017 | AP95: 47.42752358 | AQ95: 83.24691201 | AR95: 0 | AS95: 49.4174896 | AT95: 4.090485716 | AU95: 24.65346797 | AV95: 25.31678997 | AW95: 71.5282232
A96: 3 | B96: =+B95+1 -> 73 | C96: ASCOPE | E96: PAIJAN | F96: 00005271 | G96: CENTRO DE SALUD CON CAMAS DE INTERNAMIENTO | H96: RAZURI | I96: I-3 | J96: 9932 | K96: 94 | L96: 139 | M96: 183 | N96: 209 | O96: 243 | P96: 215 | Q96: 218 | R96: 220 | S96: 209 | T96: 193 | U96: 167 | V96: 151 | W96: 138 | X96: 129 | Y96: 124 | Z96: 105 | AA96: 100 | AB96: 98 | AC96: 108 | AD96: 120 | AE96: 894 | AF96: 972 | AG96: 770 | AH96: 651 | AI96: 762 | AJ96: 579 | AK96: 627 | AL96: 485 | AM96: 317 | AN96: 299 | AO96: 196 | AP96: 95 | AQ96: 122 | AR96: 0 | AS96: 70 | AT96: 6 | AU96: 35 | AV96: 50 | AW96: 199
C97: BOLIVAR | D97: 2 | J97: 18743 | K97: =+K98+K104 -> 417 | L97: =+L98+L104 -> 479 | M97: 503 | N97: 537 | O97: 540 | P97: 485 | Q97: 487 | R97: 483 | S97: 483 | T97: 471 | U97: 437 | V97: 439 | W97: 426 | X97: 389 | Y97: 342 | Z97: 269 | AA97: 227 | AB97: 204 | AC97: 181 | AD97: 179 | AE97: 1090 | AF97: 1322 | AG97: 1476 | AH97: 1265 | AI97: 1242 | AJ97: 791 | AK97: 585 | AL97: 744 | AM97: 399 | AN97: 362 | AO97: 744 | AP97: 360 | AQ97: 385 | AS97: 422 | AT97: 31 | AU97: 239 | AV97: 148 | AW97: 574
D98: 1 | J98: 12071 | K98: =SUM(K99:K103) -> 292 | L98: =SUM(L99:L103) -> 297 | M98: 285 | N98: 278 | O98: 280 | P98: 247 | Q98: 254 | R98: 257 | S98: 278 | T98: 283 | U98: 276 | V98: 298 | W98: 305 | X98: 274 | Y98: 231 | Z98: 175 | AA98: 138 | AB98: 118 | AC98: 103 | AD98: 100 | AE98: 667 | AF98: 1000 | AG98: 929 | AH98: 863 | AI98: 793 | AJ98: 579 | AK98: 394 | AL98: 527 | AM98: 252 | AN98: 273 | AO98: 492 | AP98: 245 | AQ98: 288 | AS98: 294 | AT98: 19 | AU98: 166 | AV98: 104 | AW98: 363
A99: 1 | B99: =+B96+1 -> 74 | C99: BOLIVAR | E99: BOLIVAR NORTE | F99: 00005366 | G99: HOSPITAL | H99: BOLIVAR | I99: II-1 | J99: 5477 | K99: 123 | L99: 144 | M99: 151 | N99: 155 | O99: 161 | P99: 141 | Q99: 143 | R99: 137 | S99: 137 | T99: 129 | U99: 120 | V99: 115 | W99: 111 | X99: 100 | Y99: 91 | Z99: 72 | AA99: 61 | AB99: 54 | AC99: 49 | AD99: 48 | AE99: 279 | AF99: 419 | AG99: 254 | AH99: 465 | AI99: 350 | AJ99: 253 | AK99: 153 | AL99: 272 | AM99: 49 | AN99: 157 | AO99: 298 | AP99: 49 | AQ99: 237 | AR99: 0 | AS99: 117 | AT99: 8 | AU99: 63 | AV99: 48 | AW99: 148
A100: 2 | B100: =+B99+1 -> 75 | C100: BOLIVAR | E100: BOLIVAR NORTE | F100: 00005371 | G100: PUESTO DE SALUD | H100: LONGOTEA | I100: I-2 | J100: 664.7194811 | K100: 11.44232894 | L100: 10.64402692 | M100: 8.781322208 | N100: 8.781322208 | O100: 10.11182557 | P100: 8.781322208 | Q100: 9.313523554 | R100: 10.64402692 | S100: 13.837235 | T100: 16.49824173 | U100: 16.7643424 | V100: 20.75585249 | W100: 23.94906057 | X100: 21.28805384 | Y100: 17.29654374 | Z100: 13.837235 | AA100: 11.17622827 | AB100: 9.8457249 | AC100: 8.249120863 | AD100: 6.386416152 | AE100: 35.39138951 | AF100: 38.05239624 | AG100: 88.34542343 | AH100: 43.10830902 | AI100: 36.18969153 | AJ100: 40.71340297 | AK100: 26.87616797 | AL100: 22.08635586 | AM100: 9.8457249 | AN100: 9.047422881 | AO100: 25.54566461 | AP100: 24.74736259 | AQ100: 6.386416152 | AR100: 0 | AS100: 11.97453028 | AT100: 0.798302019 | AU100: 6.120315479 | AV100: 4.257610768 | AW100: 16.7643424
A101: 3 | B101: =+B100+1 -> 76 | C101: BOLIVAR | E101: BOLIVAR NORTE | F101: 00005372 | G101: CENTRO DE SALUD | H101: PUSAC | I101: I-3 | J101: 1833.280519 | K101: 31.55767106 | L101: 29.35597308 | M101: 24.21867779 | N101: 24.21867779 | O101: 27.88817443 | P101: 24.21867779 | Q101: 25.68647645 | R101: 29.35597308 | S101: 38.162765 | T101: 45.50175827 | U101: 46.2356576 | V101: 57.24414751 | W101: 66.05093943 | X101: 58.71194616 | Y101: 47.70345626 | Z101: 38.162765 | AA101: 30.82377173 | AB101: 27.1542751 | AC101: 22.75087914 | AD101: 17.61358385 | AE101: 97.60861049 | AF101: 104.9476038 | AG101: 243.6545766 | AH101: 118.891691 | AI101: 99.81030847 | AJ101: 112.286597 | AK101: 74.12383203 | AL101: 60.91364414 | AM101: 27.1542751 | AN101: 24.95257712 | AO101: 70.45433539 | AP101: 68.25263741 | AQ101: 17.61358385 | AR101: 0 | AS101: 33.02546972 | AT101: 2.201697981 | AU101: 16.87968452 | AV101: 11.74238923 | AW101: 46.2356576
A102: 4 | B102: =+B101+1 -> 77 | C102: BOLIVAR | E102: BOLIVAR NORTE | F102: 00005373 | G102: PUESTO DE SALUD | H102: UCHUMARCA | I102: I-1 | J102: 3128 | K102: 103 | L102: 84 | M102: 78 | N102: 65 | O102: 64 | P102: 55 | Q102: 58 | R102: 63 | S102: 69 | T102: 75 | U102: 76 | V102: 86 | W102: 86 | X102: 76 | Y102: 58 | Z102: 39 | AA102: 27 | AB102: 19 | AC102: 16 | AD102: 21 | AE102: 172 | AF102: 330 | AG102: 323 | AH102: 144 | AI102: 257 | AJ102: 114 | AK102: 51 | AL102: 163 | AM102: 82 | AN102: 68 | AO102: 89 | AP102: 102 | AQ102: 15 | AR102: 0 | AS102: 97 | AT102: 7 | AU102: 54 | AV102: 39 | AW102: 123
A103: 5 | B103: =+B102+1 -> 78 | C103: BOLIVAR | E103: BOLIVAR NORTE | F103: 00005374 | G103: PUESTO DE SALUD | H103: UCUNCHA | I103: I-2 | J103: 968 | K103: 23 | L103: 29 | M103: 23 | N103: 25 | O103: 17 | P103: 18 | Q103: 18 | R103: 17 | S103: 20 | T103: 17 | U103: 17 | V103: 19 | W103: 18 | X103: 18 | Y103: 17 | Z103: 12 | AA103: 8 | AB103: 8 | AC103: 7 | AD103: 7 | AE103: 83 | AF103: 108 | AG103: 20 | AH103: 92 | AI103: 50 | AJ103: 59 | AK103: 89 | AL103: 9 | AM103: 84 | AN103: 14 | AO103: 9 | AP103: 1 | AQ103: 12 | AR103: 0 | AS103: 35 | AT103: 1 | AU103: 26 | AV103: 1 | AW103: 29
D104: 2 | J104: 6672 | K104: =SUM(K105:K107) -> 125 | L104: =SUM(L105:L107) -> 182 | M104: 218 | N104: 259 | O104: 260 | P104: 238 | Q104: 233 | R104: 226 | S104: 205 | T104: 188 | U104: 161 | V104: 141 | W104: 121 | X104: 115 | Y104: 111 | Z104: 94 | AA104: 89 | AB104: 86 | AC104: 78 | AD104: 79 | AE104: 423 | AF104: 322 | AG104: 547 | AH104: 402 | AI104: 449 | AJ104: 212 | AK104: 191 | AL104: 217 | AM104: 147 | AN104: 89 | AO104: 252 | AP104: 115 | AQ104: 97 | AS104: 128 | AT104: 12 | AU104: 73 | AV104: 44 | AW104: 211
A105: 1 | B105: =+B103+1 -> 79 | C105: BOLIVAR | E105: BOLIVAR SUR | F105: 00005368 | G105: CENTRO DE SALUD | H105: CALEMAR | I105: I-3 | J105: 1855.854143 | K105: 18.59234569 | L105: 37.18469138 | M105: 53.66427052 | N105: 70.98895628 | O105: 77.74980926 | P105: 72.67916952 | Q105: 70.56640297 | R105: 67.60852979 | S105: 60.4251235 | T105: 52.8191639 | U105: 44.79065099 | V105: 36.76213807 | W105: 30.00128509 | X105: 27.46596523 | Y105: 26.6208586 | Z105: 21.55021887 | AA105: 19.43745231 | AB105: 19.014899 | AC105: 18.59234569 | AD105: 19.86000563 | AE105: 136.0621662 | AF105: 101.4127947 | AG105: 166.4860046 | AH105: 128.8787599 | AI105: 105.6383278 | AJ105: 44.79065099 | AK105: 47.32597085 | AL105: 54.50937714 | AM105: 47.74852416 | AN105: 16.05702583 | AO105: 92.96172846 | AP105: 43.52299105 | AQ105: 24.08553874 | AR105: 0 | AS105: 13.52170596 | AT105: 3.38042649 | AU105: 6.760852979 | AV105: 10.14127947 | AW105: 58.73491026
A106: 2 | B106: =+B105+1 -> 80 | C106: BOLIVAR | E106: BOLIVAR SUR | F106: 00005367 | G106: PUESTO DE SALUD | H106: BAMBAMARCA | I106: I-2 | J106: 2536.145857 | K106: 25.40765431 | L106: 50.81530862 | M106: 73.33572948 | N106: 97.01104372 | O106: 106.2501907 | P106: 99.32083048 | Q106: 96.43359703 | R106: 92.39147021 | S106: 82.5748765 | T106: 72.1808361 | U106: 61.20934901 | V106: 50.23786193 | W106: 40.99871491 | X106: 37.53403477 | Y106: 36.3791414 | Z106: 29.44978113 | AA106: 26.56254769 | AB106: 25.985101 | AC106: 25.40765431 | AD106: 27.13999437 | AE106: 185.9378338 | AF106: 138.5872053 | AG106: 227.5139954 | AH106: 176.1212401 | AI106: 144.3616722 | AJ106: 61.20934901 | AK106: 64.67402915 | AL106: 74.49062286 | AM106: 65.25147584 | AN106: 21.94297417 | AO106: 127.0382715 | AP106: 59.47700895 | AQ106: 32.91446126 | AR106: 0 | AS106: 18.47829404 | AT106: 4.61957351 | AU106: 9.239147021 | AV106: 13.85872053 | AW106: 80.26508974
A107: 3 | B107: =+B106+1 -> 81 | C107: BOLIVAR | E107: BOLIVAR SUR | F107: 00005369 | G107: PUESTO DE SALUD | H107: CONDORMARCA | I107: I-2 | J107: 2280 | K107: 81 | L107: 94 | M107: 91 | N107: 91 | O107: 76 | P107: 66 | Q107: 66 | R107: 66 | S107: 62 | T107: 63 | U107: 55 | V107: 54 | W107: 50 | X107: 50 | Y107: 48 | Z107: 43 | AA107: 43 | AB107: 41 | AC107: 34 | AD107: 32 | AE107: 101 | AF107: 82 | AG107: 153 | AH107: 97 | AI107: 199 | AJ107: 106 | AK107: 79 | AL107: 88 | AM107: 34 | AN107: 51 | AO107: 32 | AP107: 12 | AQ107: 40 | AR107: 0 | AS107: 96 | AT107: 4 | AU107: 57 | AV107: 20 | AW107: 72
C108: CHEPEN | D108: 2 | J108: =SUM(K108:AQ108) -> 95293 | K108: =+K109+K111+K115 -> 1762 | L108: =+L109+L111+L115 -> 1658 | M108: 1596 | N108: 1580 | O108: 1600 | P108: 1403 | Q108: 1433 | R108: 1470 | S108: 1525 | T108: 1556 | U108: 1511 | V108: 1575 | W108: 1602 | X108: 1556 | Y108: 1487 | Z108: 1252 | AA108: 1193 | AB108: 1159 | AC108: 1146 | AD108: 1167 | AE108: 7157 | AF108: 7708 | AG108: 8725 | AH108: 9044 | AI108: 7441 | AJ108: 5412 | AK108: 4933 | AL108: 3846 | AM108: 3896 | AN108: 2780 | AO108: 2270 | AP108: 1376 | AQ108: 1474 | AS108: 1701 | AT108: 110 | AU108: 943 | AV108: 655 | AW108: 1990
J109: 44933.32802 | K109: =+K110 -> 868.7278279 | L109: =+L110 -> 732.4897755 | M109: 640.8234316 | N109: 592.046845 | O109: 560.0897709 | P109: 483.5609884 | Q109: 495.3346473 | R109: 519.7229406 | S109: 553.3619659 | T109: 594.5697719 | U109: 597.0926987 | V109: 652.5970905 | W109: 688.7590426 | X109: 684.5541645 | Y109: 660.1658712 | Z109: 563.4536735 | AA109: 541.588307 | AB109: 528.9736726 | AC109: 526.4507457 | AD109: 533.1785507 | AE109: 3256.257647 | AF109: 3418.565944 | AG109: 4255.336698 | AH109: 4300.749382 | AI109: 3775.980588 | AJ109: 2838.292758 | AK109: 2675.984461 | AL109: 2108.32591 | AM109: 1992.271272 | AN109: 1552.441017 | AO109: 1153.818567 | AP109: 793.8809966 | AQ109: 793.8809966 | AS109: 877.9785598 | AT109: 45.41268413 | AU109: 502.0624523 | AV109: 289.2956174 | AW109: 866.204901
A110: 1 | B110: =+B107+1 -> 82 | C110: CHEPEN | E110: NO ESTA ASIGNADO A MICRORED | F110: 00005299 | G110: HOSPITAL DE APOYO | H110: CHEPEN | I110: II-1 | J110: 44933.32802 | K110: 868.7278279 | L110: 732.4897755 | M110: 640.8234316 | N110: 592.046845 | O110: 560.0897709 | P110: 483.5609884 | Q110: 495.3346473 | R110: 519.7229406 | S110: 553.3619659 | T110: 594.5697719 | U110: 597.0926987 | V110: 652.5970905 | W110: 688.7590426 | X110: 684.5541645 | Y110: 660.1658712 | Z110: 563.4536735 | AA110: 541.588307 | AB110: 528.9736726 | AC110: 526.4507457 | AD110: 533.1785507 | AE110: 3256.257647 | AF110: 3418.565944 | AG110: 4255.336698 | AH110: 4300.749382 | AI110: 3775.980588 | AJ110: 2838.292758 | AK110: 2675.984461 | AL110: 2108.32591 | AM110: 1992.271272 | AN110: 1552.441017 | AO110: 1153.818567 | AP110: 793.8809966 | AQ110: 793.8809966 | AR110: 0 | AS110: 877.9785598 | AT110: 45.41268413 | AU110: 502.0624523 | AV110: 289.2956174 | AW110: 866.204901
D111: 1 | J111: 34226.67198 | K111: =SUM(K112:K114) -> 675.2721721 | L111: =SUM(L112:L114) -> 655.5102245 | M111: 642.1765684 | N111: 642.953155 | O111: 662.9102291 | P111: 586.4390116 | Q111: 603.6653527 | R111: 622.2770594 | S111: 649.6380341 | T111: 665.4302281 | U111: 643.9073013 | V111: 671.4029095 | W111: 674.2409574 | X111: 630.4458355 | Y111: 575.8341288 | Z111: 458.5463265 | AA111: 411.411693 | AB111: 388.0263274 | AC111: 389.5492543 | AD111: 417.8214493 | AE111: 2786.742353 | AF111: 2908.434056 | AG111: 2924.663302 | AH111: 3155.250618 | AI111: 2629.019412 | AJ111: 1653.707242 | AK111: 1493.015539 | AL111: 1148.67409 | AM111: 1378.728728 | AN111: 872.5589833 | AO111: 781.1814328 | AP111: 418.1190034 | AQ111: 409.1190034 | AS111: 652.0214402 | AT111: 42.58731587 | AU111: 352.9375477 | AV111: 257.7043826 | AW111: 744.795099
A112: 1 | B112: =+B110+1 -> 83 | C112: CHEPEN | E112: SAN MARTIN DE PORRAS | F112: 00005300 | G112: PUESTO DE SALUD | H112: CHEQUEN | I112: I-2 | J112: 8496.67198 | K112: 164.2721721 | L112: 138.5102245 | M112: 121.1765684 | N112: 111.953155 | O112: 105.9102291 | P112: 91.43901158 | Q112: 93.66535273 | R112: 98.2770594 | S112: 104.6380341 | T112: 112.4302281 | U112: 112.9073013 | V112: 123.4029095 | W112: 130.2409574 | X112: 129.4458355 | Y112: 124.8341288 | Z112: 106.5463265 | AA112: 102.411693 | AB112: 100.0263274 | AC112: 99.54925434 | AD112: 100.8214493 | AE112: 615.7423527 | AF112: 646.4340558 | AG112: 804.6633019 | AH112: 813.2506178 | AI112: 714.0194121 | AJ112: 536.7072419 | AK112: 506.0155389 | AL112: 398.6740905 | AM112: 376.7287277 | AN112: 293.5589833 | AO112: 218.1814328 | AP112: 150.1190034 | AQ112: 150.1190034 | AR112: 0 | AS112: 166.0214402 | AT112: 8.58731587 | AU112: 94.93754767 | AV112: 54.70438258 | AW112: 163.795099
A113: 2 | B113: =+B112+1 -> 84 | C113: CHEPEN | E113: SAN MARTIN DE PORRAS | F113: 00005301 | G113: CENTRO DE SALUD | H113: PACANGA | I113: I-3 | J113: 6105.43781 | K113: 121.2545169 | L113: 122.678249 | M113: 123.6274038 | N113: 126.0002906 | O113: 132.1697963 | P113: 117.457898 | Q113: 121.0172283 | R113: 124.3392698 | S113: 129.3223322 | T113: 131.2206416 | U113: 126.0002906 | V113: 130.0341982 | W113: 129.0850435 | X113: 118.8816301 | Y113: 107.017196 | Z113: 83.52561636 | AA113: 73.322203 | AB113: 68.33914066 | AC113: 68.81371803 | AD113: 75.22051246 | AE113: 515.1537305 | AF113: 536.7470006 | AG113: 503.0520076 | AH113: 555.7300952 | AI113: 454.4078277 | AJ113: 265.0514587 | AK113: 234.20393 | AL113: 177.9665121 | AM113: 237.7632602 | AN113: 137.3901474 | AO113: 133.5935284 | AP113: 63.593367 | AQ113: 61.45776886 | AR113: 0 | AS113: 115.3222999 | AT113: 8.067815217 | AU113: 61.22048018 | AV113: 48.16960262 | AW113: 137.8647247
A114: 3 | B114: =+B113+1 -> 85 | C114: CHEPEN | E114: SAN MARTIN DE PORRAS | F114: 00005302 | G114: CENTRO DE SALUD | H114: PACANGUILLA | I114: I-3 | J114: 19624.56219 | K114: 389.7454831 | L114: 394.321751 | M114: 397.3725962 | N114: 404.9997094 | O114: 424.8302037 | P114: 377.542102 | Q114: 388.9827717 | R114: 399.6607302 | S114: 415.6776678 | T114: 421.7793584 | U114: 404.9997094 | V114: 417.9658018 | W114: 414.9149565 | X114: 382.1183699 | Y114: 343.982804 | Z114: 268.4743836 | AA114: 235.677797 | AB114: 219.6608593 | AC114: 221.186282 | AD114: 241.7794875 | AE114: 1655.84627 | AF114: 1725.252999 | AG114: 1616.947992 | AH114: 1786.269905 | AI114: 1460.592172 | AJ114: 851.9485413 | AK114: 752.79607 | AL114: 572.0334879 | AM114: 764.2367398 | AN114: 441.6098526 | AO114: 429.4064716 | AP114: 204.406633 | AQ114: 197.5422311 | AR114: 0 | AS114: 370.6777001 | AT114: 25.93218478 | AU114: 196.7795198 | AV114: 154.8303974 | AW114: 443.1352753
D115: 2 | J115: 16133 | K115: =SUM(K116:K118) -> 218 | L115: =SUM(L116:L118) -> 270 | M115: 313 | N115: 345 | O115: 377 | P115: 333 | Q115: 334 | R115: 328 | S115: 322 | T115: 296 | U115: 270 | V115: 251 | W115: 239 | X115: 241 | Y115: 251 | Z115: 230 | AA115: 240 | AB115: 242 | AC115: 230 | AD115: 216 | AE115: 1114 | AF115: 1381 | AG115: 1545 | AH115: 1588 | AI115: 1036 | AJ115: 920 | AK115: 764 | AL115: 589 | AM115: 525 | AN115: 355 | AO115: 335 | AP115: 164 | AQ115: 271 | AS115: 171 | AT115: 22 | AU115: 88 | AV115: 108 | AW115: 379
A116: 1 | B116: =+B114+1 -> 86 | C116: CHEPEN | E116: SANTA ROSA DE LIMA | F116: 00005303 | G116: CENTRO DE SALUD CON CAMAS DE INTERNAMIENTO | H116: PUEBLO NUEVO | I116: I-3 | J116: 9225.206205 | K116: 124.6572214 | L116: 154.3919714 | M116: 178.9803225 | N116: 197.2786302 | O116: 215.5769379 | P116: 190.4167648 | Q116: 190.9885869 | R116: 187.5576542 | S116: 184.1267215 | T116: 169.2593465 | U116: 154.3919714 | V116: 143.5273512 | W116: 136.6654858 | X116: 137.8091301 | Y116: 143.5273512 | Z116: 131.5190868 | AA116: 137.237308 | AB116: 138.3809522 | AC116: 131.5190868 | AD116: 123.5135772 | AE116: 637.0098377 | AF116: 789.6863428 | AG116: 883.4651699 | AH116: 908.053521 | AI116: 592.4077127 | AJ116: 526.0763472 | AK116: 436.872097 | AL116: 336.8032266 | AM116: 300.2066111 | AN116: 202.9968513 | AO116: 191.560409 | AP116: 93.7788271 | AQ116: 154.9637936 | AR116: 0 | AS116: 97.78158192 | AT116: 12.58008656 | AU116: 50.32034625 | AV116: 61.75678858 | AW116: 216.7205821
A117: 2 | B117: =+B116+1 -> 87 | C117: CHEPEN | E117: SANTA ROSA DE LIMA | F117: 00005305 | G117: PUESTO DE SALUD | H117: SANTA ROSA | I117: I-2 | J117: 4351.924932 | K117: 58.80615106 | L117: 72.83330636 | M117: 84.43268479 | N117: 93.06478035 | O117: 101.6968759 | P117: 89.82774452 | Q117: 90.0974975 | R117: 88.47897958 | S117: 86.86046166 | T117: 79.84688401 | U117: 72.83330636 | V117: 67.70799962 | W117: 64.47096378 | X117: 65.01046976 | Y117: 67.70799962 | Z117: 62.0431869 | AA117: 64.74071677 | AB117: 65.28022274 | AC117: 62.0431869 | AD117: 58.26664509 | AE117: 300.504827 | AF117: 372.5288744 | AG117: 416.7683642 | AH117: 428.3677426 | AI117: 279.4640941 | AJ117: 248.1727476 | AK117: 206.0912817 | AL117: 158.8845091 | AM117: 141.6203179 | AN117: 95.76231022 | AO117: 90.36725049 | AP117: 44.23948979 | AQ117: 73.10305935 | AR117: 0 | AS117: 46.1277607 | AT117: 5.934565704 | AU117: 23.73826282 | AV117: 29.13332255 | AW117: 102.2363819
A118: 3 | B118: =+B117+1 -> 88 | C118: CHEPEN | E118: SANTA ROSA DE LIMA | F118: 00005304 | G118: PUESTO DE SALUD | H118: SAN IDELFONSO | I118: I-2 | J118: 2555.868863 | K118: 34.53662755 | L118: 42.77472219 | M118: 49.58699276 | N118: 54.65658946 | O118: 59.72618617 | P118: 52.7554907 | Q118: 52.9139156 | R118: 51.96336621 | S118: 51.01281683 | T118: 46.89376951 | U118: 42.77472219 | V118: 39.76464915 | W118: 37.86355038 | X118: 38.18040018 | Y118: 39.76464915 | Z118: 36.43772631 | AA118: 38.02197528 | AB118: 38.33882507 | AC118: 36.43772631 | AD118: 34.21977775 | AE118: 176.4853353 | AF118: 218.7847828 | AG118: 244.7664659 | AH118: 251.5787364 | AI118: 164.1281933 | AJ118: 145.7509052 | AK118: 121.0366213 | AL118: 93.31226433 | AM118: 83.17307092 | AN118: 56.24083843 | AO118: 53.07234049 | AP118: 25.98168311 | AQ118: 42.93314709 | AR118: 0 | AS118: 27.09065739 | AT118: 3.485347734 | AU118: 13.94139094 | AV118: 17.10988888 | AW118: 60.04303596
C119: GRAN CHIMU | D119: 4 | J119: 35076 | K119: =+K120+K123+K127+K136 -> 774 | L119: =+L120+L123+L127+L136 -> 872 | M119: 937 | N119: 986 | O119: 1032 | P119: 908 | Q119: 911 | R119: 913 | S119: 897 | T119: 888 | U119: 808 | V119: 774 | W119: 730 | X119: 700 | Y119: 673 | Z119: 567 | AA119: 537 | AB119: 496 | AC119: 445 | AD119: 389 | AE119: 1821 | AF119: 2076 | AG119: 2174 | AH119: 2090 | AI119: 2033 | AJ119: 1868 | AK119: 1351 | AL119: 1207 | AM119: 1184 | AN119: 1129 | AO119: 1165 | AP119: 540 | AQ119: 1201 | AS119: 746 | AT119: 55 | AU119: 462 | AV119: 254 | AW119: 885
D120: 1 | J120: 11088.88499 | K120: =SUM(K121:K122) -> 175.0951806 | L120: =SUM(L121:L122) -> 208.6848683 | M120: 230.1250945 | N120: 248.7066238 | O120: 263.7147822 | P120: 237.2718365 | Q120: 240.8452076 | R120: 244.4185786 | S120: 244.4185786 | T120: 242.274556 | U120: 227.9810718 | V120: 221.549004 | W120: 212.2582393 | X120: 205.8261714 | Y120: 197.250081 | Z120: 171.5218095 | AA120: 162.2310448 | AB120: 155.798977 | AC120: 150.0815833 | AD120: 140.0761445 | AE120: 725.3943195 | AF120: 668.220383 | AG120: 943.3699524 | AH120: 727.5383421 | AI120: 835.4541473 | AJ120: 683.2285413 | AK120: 394.5001619 | AL120: 420.9431076 | AM120: 335.896877 | AN120: 333.7528544 | AO120: 325.1767639 | AP120: 157.9429996 | AQ120: 357.3371032 | AS120: 165.8044159 | AT120: 12.14946151 | AU120: 84.33155635 | AV120: 73.61144326 | AW120: 221.549004
A121: 1 | B121: =+B118+1 -> 89 | C121: GRAN CHIMU | E121: CASCAS | F121: 00005277 | G121: HOSPITAL | H121: CASCAS | I121: II-1 | J121: 9811.337424 | K121: 154.9225102 | L121: 184.6423387 | M121: 203.612442 | N121: 220.0531982 | O121: 233.3322705 | P121: 209.9358098 | Q121: 213.0974937 | R121: 216.2591776 | S121: 216.2591776 | T121: 214.3621672 | U121: 201.7154317 | V121: 196.0244007 | W121: 187.8040226 | X121: 182.1129916 | Y121: 174.5249503 | Z121: 151.7608264 | AA121: 143.5404483 | AB121: 137.8494173 | AC121: 132.7907231 | AD121: 123.9380082 | AE121: 641.8218282 | AF121: 591.234886 | AG121: 834.684545 | AH121: 643.7188385 | AI121: 739.2016917 | AJ121: 604.5139583 | AK121: 349.0499006 | AL121: 372.4463614 | AM121: 297.198285 | AN121: 295.3012746 | AO121: 287.7132333 | AP121: 139.7464276 | AQ121: 316.1683883 | AR121: 0 | AS121: 146.7021321 | AT121: 10.7497252 | AU121: 74.61573963 | AV121: 65.13068798 | AW121: 196.0244007
A122: 2 | B122: =+B121+1 -> 90 | C122: GRAN CHIMU | E122: CASCAS | F122: 00005279 | G122: PUESTO DE SALUD | H122: PUNTA MORENO | I122: I-2 | J122: 1277.547562 | K122: 20.17267032 | L122: 24.04252953 | M122: 26.51265242 | N122: 28.6534256 | O122: 30.38251163 | P122: 27.33602672 | Q122: 27.74771387 | R122: 28.15940102 | S122: 28.15940102 | T122: 27.91238873 | U122: 26.26564013 | V122: 25.52460326 | W122: 24.45421668 | X122: 23.71317981 | Y122: 22.72513065 | Z122: 19.76098317 | AA122: 18.69059658 | AB122: 17.94955971 | AC122: 17.29086028 | AD122: 16.13813626 | AE122: 83.57249133 | AF122: 76.98549694 | AG122: 108.6854074 | AH122: 83.81950362 | AI122: 96.25245553 | AJ122: 78.71458297 | AK122: 45.4502613 | AL122: 48.4967462 | AM122: 38.69859204 | AN122: 38.45157976 | AO122: 37.4635306 | AP122: 18.196572 | AQ122: 41.16871494 | AR122: 0 | AS122: 19.10228373 | AT122: 1.399736308 | AU122: 9.715816726 | AV122: 8.480755278 | AW122: 25.52460326
D123: 2 | J123: 2775.655935 | K123: =SUM(K124:K126) -> 113.2277514 | L123: =SUM(L124:L126) -> 102.7450137 | M123: 87.80364042 | N123: 71.78604843 | O123: 67.77465891 | P123: 54.55240729 | Q123: 54.70616791 | R123: 55.83831881 | S123: 55.96411335 | T123: 59.93360658 | U123: 57.31988724 | V123: 58.67566114 | W123: 58.04668842 | X123: 53.3783601 | Y123: 45.80282707 | Z123: 36.63386126 | AA123: 31.71394386 | AB123: 24.58565683 | AC123: 24.27813558 | AD123: 21.5386217 | AE123: 134.2911611 | AF123: 180.1078127 | AG123: 119.4615464 | AH123: 210.3258352 | AI123: 104.953489 | AJ123: 215.7069289 | AK123: 163.5870425 | AL123: 79.80893313 | AM123: 81.73774758 | AN123: 77.94998106 | AO123: 116.2745752 | AP123: 55.82438859 | AQ123: 99.32112325 | AS123: 100.7603727 | AT123: 10.95794984 | AU123: 87.07673358 | AV123: 21.48268954 | AW123: 116.9455499
A124: 1 | B124: =+B122+1 -> 91 | C124: GRAN CHIMU | E124: COMPIN | F124: 00005286 | G124: PUESTO DE SALUD | H124: COMPIN | I124: I-2 | J124: 1063.887043 | K124: 48.87422019 | L124: 43.6376966 | M124: 35.34653424 | N124: 26.18261796 | O124: 24.00073313 | P124: 18.32783257 | Q124: 17.8914556 | R124: 17.8914556 | S124: 17.8914556 | T124: 18.76420954 | U124: 18.32783257 | V124: 18.76420954 | W124: 18.76420954 | X124: 17.01870167 | Y124: 13.52768595 | Z124: 11.34580112 | AA124: 9.600293251 | AB124: 6.982031456 | AC124: 7.854785387 | AD124: 7.418408422 | AE124: 55.85625164 | AF124: 75.05683815 | AG124: 49.74697412 | AH124: 98.18481734 | AI124: 40.58305784 | AJ124: 102.548587 | AK124: 65.89292186 | AL124: 26.61899492 | AM124: 27.92812582 | AN124: 26.18261796 | AO124: 56.29262861 | AP124: 16.14594774 | AQ124: 24.43711009 | AR124: 0 | AS124: 39.27392694 | AT124: 5.672900558 | AU124: 38.83754997 | AV124: 8.291162353 | AW124: 53.67436681
A125: 2 | B125: =+B124+1 -> 92 | C125: GRAN CHIMU | E125: COMPIN | F125: 00005285 | G125: PUESTO DE SALUD | H125: CORMOT | I125: I-1 | J125: 708.0542287 | K125: 32.52751174 | L125: 29.04242119 | M125: 23.52436117 | N125: 17.42545272 | O125: 15.97333166 | P125: 12.1978169 | Q125: 11.90739269 | R125: 11.90739269 | S125: 11.90739269 | T125: 12.48824111 | U125: 12.1978169 | V125: 12.48824111 | W125: 12.48824111 | X125: 11.32654427 | Y125: 9.00315057 | Z125: 7.551029511 | AA125: 6.389332663 | AB125: 4.646787391 | AC125: 5.227635815 | AD125: 4.937211603 | AE125: 37.17429913 | AF125: 49.95296445 | AG125: 33.10836016 | AH125: 65.34544769 | AI125: 27.00945171 | AJ125: 68.24968981 | AK125: 43.854056 | AL125: 17.71587693 | AM125: 18.58714956 | AN125: 17.42545272 | AO125: 37.46472334 | AP125: 10.74569584 | AQ125: 16.26375587 | AR125: 0 | AS125: 26.13817908 | AT125: 3.775514755 | AU125: 25.84775486 | AV125: 5.518060027 | AW125: 35.72217807
A126: 3 | B126: =+B125+1 -> 93 | C126: GRAN CHIMU | E126: COMPIN | F126: 00009814 | G126: PUESTO DE SALUD | H126: HUAYO | I126: I-1 | J126: 1003.714663 | K126: 31.82601951 | L126: 30.0648959 | M126: 28.93274501 | N126: 28.17797775 | O126: 27.80059412 | P126: 24.02675781 | Q126: 24.90731962 | R126: 26.03947051 | S126: 26.16526505 | T126: 28.68115592 | U126: 26.79423777 | V126: 27.42321049 | W126: 26.79423777 | X126: 25.03311416 | Y126: 23.27199055 | Z126: 17.73703064 | AA126: 15.72431794 | AB126: 12.95683798 | AC126: 11.19571437 | AD126: 9.183001678 | AE126: 41.26061028 | AF126: 55.09801007 | AG126: 36.60621217 | AH126: 46.79557019 | AI126: 37.36097943 | AJ126: 44.90865204 | AK126: 53.84006463 | AL126: 35.47406128 | AM126: 35.22247219 | AN126: 34.34191038 | AO126: 22.51722329 | AP126: 28.93274501 | AQ126: 58.62025729 | AR126: 0 | AS126: 35.34826673 | AT126: 1.509534522 | AU126: 22.39142875 | AV126: 7.673467155 | AW126: 27.54900503
D127: 3 | J127: 12574.52295 | K127: =SUM(K128:K135) -> 330.7544468 | L127: =SUM(L128:L135) -> 332.9094369 | M127: 331.8976258 | N127: 331.101182 | O127: 334.9309589 | P127: 292.1607619 | Q127: 298.9908312 | R127: 307.6211109 | S127: 307.5543685 | T127: 323.1791015 | U127: 301.6509107 | V127: 302.0113586 | W127: 292.4919994 | X127: 276.426346 | Y127: 258.9654186 | Z127: 207.7003085 | AA127: 189.0770402 | AB127: 165.4159956 | AC127: 149.7250645 | AD127: 130.0862705 | AE127: 630.6869742 | AF127: 726.0625857 | AG127: 687.0205931 | AH127: 703.4270113 | AI127: 644.8282025 | AJ127: 666.7764885 | AK127: 585.0897671 | AL127: 446.4691738 | AM127: 416.8448276 | AN127: 406.507272 | AO127: 343.7993089 | AP127: 277.1108051 | AQ127: 575.2494004 | AS127: 344.3502429 | AT127: 19.61213698 | AU127: 217.8536501 | AV127: 91.83570803 | AW127: 326.401966
A128: 1 | B128: =+B126+1 -> 94 | C128: GRAN CHIMU | E128: EL MOLINO | F128: 00005280 | G128: CENTRO DE SALUD | H128: EL MOLINO | I128: I-3 | J128: 3519.067889 | K128: 55.56661722 | L128: 66.22633562 | M128: 73.0304112 | N128: 78.9272767 | O128: 83.6901296 | P128: 75.29843639 | Q128: 76.43244899 | R128: 77.56646159 | S128: 77.56646159 | T128: 76.88605403 | U128: 72.35000364 | V128: 70.30878097 | W128: 67.36034822 | X128: 65.31912555 | Y128: 62.59749531 | Z128: 54.43260462 | AA128: 51.48417187 | AB128: 49.4429492 | AC128: 47.62852904 | AD128: 44.45329377 | AE128: 230.204557 | AF128: 212.0603555 | AG128: 299.3793254 | AH128: 230.8849646 | AI128: 265.132145 | AJ128: 216.8232084 | AK128: 125.1949906 | AL128: 133.5866838 | AM128: 106.597184 | AN128: 105.9167765 | AO128: 103.1951463 | AP128: 50.12335676 | AQ128: 113.4012596 | AR128: 0 | AS128: 52.61818447 | AT128: 3.855642827 | AU128: 26.76269727 | AV128: 23.36065948 | AW128: 70.30878097
A129: 2 | B129: =+B128+1 -> 95 | C129: GRAN CHIMU | E129: EL MOLINO | F129: 00005278 | G129: PUESTO DE SALUD | H129: SAN FELIPE | I129: I-2 | J129: 908.047125 | K129: 14.33820222 | L129: 17.08879611 | M129: 18.84449434 | N129: 20.36609948 | O129: 21.59508824 | P129: 19.42972709 | Q129: 19.72234346 | R129: 20.01495983 | S129: 20.01495983 | T129: 19.83939001 | U129: 18.66892452 | V129: 18.14221505 | W129: 17.38141248 | X129: 16.85470302 | Y129: 16.15242372 | Z129: 14.04558585 | AA129: 13.28478328 | AB129: 12.75807381 | AC129: 12.28988762 | AD129: 11.47056177 | AE129: 59.40112347 | AF129: 54.71926153 | AG129: 77.25072215 | AH129: 59.5766933 | AI129: 68.41370773 | AJ129: 55.94825029 | AK129: 32.30484745 | AL129: 34.4702086 | AM129: 27.50593895 | AN129: 27.33036913 | AO129: 26.62808983 | AP129: 12.93364363 | AQ129: 29.26163718 | AR129: 0 | AS129: 13.57739965 | AT129: 0.9948956641 | AU129: 6.905746374 | AV129: 6.027897259 | AW129: 18.14221505
A130: 3 | B130: 96 | C130: GRAN CHIMU | E130: EL MOLINO | F130: 00005281 | G130: CENTRO DE SALUD | H130: LUCMA | I130: I-3 | J130: 4294.547437 | K130: 136.1725155 | L130: 128.6372775 | M130: 123.7931959 | N130: 120.5638082 | O130: 118.9491144 | P130: 102.8021758 | Q130: 106.5697948 | R130: 111.4138764 | S130: 111.9521076 | T130: 122.7167334 | U130: 114.6432641 | V130: 117.3344205 | W130: 114.6432641 | X130: 107.1080261 | Y130: 99.57278804 | Z130: 75.89061143 | AA130: 67.27891084 | AB130: 55.43782253 | AC130: 47.90258452 | AD130: 39.29088393 | AE130: 176.539862 | AF130: 235.7453036 | AG130: 156.6253044 | AH130: 200.2220387 | AI130: 159.8546922 | AJ130: 192.1485694 | AK130: 230.3629907 | AL130: 151.7812229 | AM130: 150.7047603 | AN130: 146.9371413 | AO130: 96.34340032 | AP130: 123.7931959 | AQ130: 250.8157796 | AR130: 0 | AS130: 151.2429916 | AT130: 6.458775441 | AU130: 95.80516904 | AV130: 32.83210849 | AW130: 117.8726518
A131: 4 | B131: 97 | C131: GRAN CHIMU | E131: EL MOLINO | F131: 00005283 | G131: PUESTO DE SALUD | H131: CHUQUILLANQUI | I131: I-1 | J131: 1301.612979 | K131: 41.27184907 | L131: 38.98803133 | M131: 37.51986279 | N131: 36.54108376 | O131: 36.05169424 | P131: 31.1577991 | Q131: 32.29970796 | R131: 33.76787651 | S131: 33.93100635 | T131: 37.19360311 | U131: 34.74665554 | V131: 35.56230473 | W131: 34.74665554 | X131: 32.4628378 | Y131: 30.17902007 | Z131: 23.00130719 | AA131: 20.39122978 | AB131: 16.80237334 | AC131: 14.5185556 | AD131: 11.90847819 | AE131: 53.50658693 | AF131: 71.45086913 | AG131: 47.47078292 | AH131: 60.68429981 | AI131: 48.44956195 | AJ131: 58.23735224 | AK131: 69.81957075 | AL131: 46.00261437 | AM131: 45.6763547 | AN131: 44.53444583 | AO131: 29.20024104 | AP131: 37.51986279 | AQ131: 76.0185046 | AR131: 0 | AS131: 45.83948454 | AT131: 1.957558058 | AU131: 29.0371112 | AV131: 9.95092013 | AW131: 35.72543457
A132: 5 | B132: 98 | C132: GRAN CHIMU | E132: EL MOLINO | F132: 00005282 | G132: PUESTO DE SALUD | H132: LA BANDA | I132: I-1 | J132: 461.9876516 | K132: 14.64881261 | L132: 13.83820638 | M132: 13.31710238 | N132: 12.96969971 | O132: 12.79599837 | P132: 11.05898502 | Q132: 11.46428813 | R132: 11.98539214 | S132: 12.04329258 | T132: 13.20130149 | U132: 12.33279481 | V132: 12.62229704 | W132: 12.33279481 | X132: 11.52218858 | Y132: 10.71158235 | Z132: 8.163962761 | AA132: 7.237555639 | AB132: 5.963745847 | AC132: 5.153139615 | AD132: 4.226732493 | AE132: 18.991346 | AF132: 25.36039496 | AG132: 16.84902953 | AH132: 21.53896558 | AI132: 17.1964322 | AJ132: 20.67045891 | AK132: 24.78139051 | AL132: 16.32792552 | AM132: 16.21212463 | AN132: 15.80682152 | AO132: 10.36417968 | AP132: 13.31710238 | AQ132: 26.98160742 | AR132: 0 | AS132: 16.27002508 | AT132: 0.6948053414 | AU132: 10.30627923 | AV132: 3.531927152 | AW132: 12.68019748
A133: 6 | B133: 99 | C133: GRAN CHIMU | E133: EL MOLINO | F133: 00016831 | G133: PUESTO DE SALUD | H133: HUANCAY | I133: I-2 | J133: 666.0587282 | K133: 30.59826807 | L133: 27.31988221 | M133: 22.12910459 | N133: 16.39192933 | O133: 15.02593521 | P133: 11.47435053 | Q133: 11.20115171 | R133: 11.20115171 | S133: 11.20115171 | T133: 11.74754935 | U133: 11.47435053 | V133: 11.74754935 | W133: 11.74754935 | X133: 10.65475406 | Y133: 8.469163485 | Z133: 7.103169374 | AA133: 6.010374086 | AB133: 4.371181153 | AC133: 4.917578798 | AD133: 4.644379975 | AE133: 34.96944923 | AF133: 46.9901974 | AG133: 31.14466572 | AH133: 61.46973497 | AI133: 25.40749045 | AJ133: 64.20172319 | AK133: 41.25302213 | AL133: 16.66512815 | AM133: 17.48472461 | AN133: 16.39192933 | AO133: 35.24264805 | AP133: 10.10835642 | AQ133: 15.29913404 | AR133: 0 | AS133: 24.58789399 | AT133: 3.551584687 | AU133: 24.31469517 | AV133: 5.19077762 | AW133: 33.60345512
A134: 7 | B134: 100 | C134: GRAN CHIMU | E134: EL MOLINO | F134: 00016937 | G134: PUESTO DE SALUD | H134: RECUAYCITO | I134: I-2 | J134: 917.1372698 | K134: 29.08080327 | L134: 27.47158886 | M134: 26.43709388 | N134: 25.74743056 | O134: 25.4025989 | P134: 21.95428231 | Q134: 22.75888951 | R134: 23.79338449 | S134: 23.90832838 | T134: 26.20720611 | U134: 24.48304781 | V134: 25.05776724 | W134: 24.48304781 | X134: 22.8738334 | Y134: 21.26461899 | Z134: 16.20708799 | AA134: 14.3679858 | AB134: 11.8392203 | AC134: 10.23000589 | AD134: 8.39090371 | AE134: 37.70159475 | AF134: 50.34542226 | AG134: 33.44867095 | AH134: 42.75912575 | AI134: 34.13833427 | AJ134: 41.03496746 | AK134: 49.19598339 | AL134: 32.41417597 | AM134: 32.1842882 | AN134: 31.379681 | AO134: 20.57495567 | AP134: 26.43709388 | AQ134: 53.56385108 | AR134: 0 | AS134: 32.29923209 | AT134: 1.379326637 | AU134: 20.46001178 | AV134: 7.011577072 | AW134: 25.17271113
A135: 8 | B135: 101 | C135: GRAN CHIMU | E135: EL MOLINO | F135: 00005284 | G135: PUESTO DE SALUD | H135: SIMBRON | I135: I-1 | J135: 506.0638681 | K135: 9.077378799 | L135: 13.33931885 | M135: 16.8263607 | N135: 19.59385424 | O135: 21.42039997 | P135: 18.98500566 | Q135: 18.54220669 | R135: 17.87800824 | S135: 16.93706044 | T135: 15.38726406 | U135: 12.95186975 | V135: 11.23602376 | W135: 9.796927119 | X135: 9.630877506 | Y135: 10.0183266 | Z135: 8.855979316 | AA135: 9.022028928 | AB135: 8.800629446 | AC135: 7.084783453 | AD135: 5.701036685 | AE135: 19.37245475 | AF135: 29.39078136 | AG135: 24.85209196 | AH135: 26.2911886 | AI135: 26.23583872 | AJ135: 17.71195863 | AK135: 12.17697156 | AL135: 15.22121445 | AM135: 20.47945217 | AN135: 18.21010747 | AO135: 22.25064803 | AP135: 2.878193278 | AQ135: 9.90762686 | AR135: 0 | AS135: 7.915031514 | AT135: 0.7195483194 | AU135: 4.261940046 | AV135: 3.929840822 | AW135: 12.89651988
D136: 4 | J136: 8636.936132 | K136: =SUM(K137:K139) -> 154.9226212 | L136: =SUM(L137:L139) -> 227.6606812 | M136: 287.1736393 | N136: 334.4061458 | O136: 365.5796 | P136: 324.0149943 | Q136: 316.4577933 | R136: 305.1219918 | S136: 289.0629396 | T136: 262.6127359 | U136: 221.0481302 | V136: 191.7639762 | W136: 167.2030729 | X136: 164.3691225 | Y136: 170.9816734 | Z136: 151.1440207 | AA136: 153.9779711 | AB136: 150.1993706 | AC136: 120.9152165 | AD136: 97.29896332 | AE136: 330.6275452 | AF136: 501.6092186 | AG136: 424.147908 | AH136: 448.7088114 | AI136: 447.7641613 | AJ136: 302.2880414 | AK136: 207.8230284 | AL136: 259.7787856 | AM136: 349.5205478 | AN136: 310.7898925 | AO136: 379.749352 | AP136: 49.12180672 | AQ136: 169.0923731 | AS136: 135.0849685 | AT136: 12.28045168 | AU136: 72.73805995 | AV136: 67.07015918 | AW136: 220.1034801
A137: 1 | B137: =+B135+1 -> 102 | C137: GRAN CHIMU | E137: SAYAPULLO | F137: 00005287 | G137: CENTRO DE SALUD | H137: SAYAPULLO | I137: I-3 | J137: =SUM(K137:AQ137) -> 4318.494265 | K137: 77.46178054 | L137: 113.8310312 | M137: 143.5876908 | N137: 167.2040873 | O137: 182.790909 | P137: 162.00848 | Q137: 158.2298566 | R137: 152.5619214 | S137: 144.5323466 | T137: 131.3071646 | U137: 110.5247356 | V137: 95.88256982 | W137: 83.60204363 | X137: 82.18505984 | Y137: 85.49135535 | Z137: 75.57246882 | AA137: 76.98945261 | AB137: 75.10014089 | AC137: 60.45797506 | AD137: 48.6497768 | AE137: 165.3147755 | AF137: 250.8061309 | AG137: 212.0752406 | AH137: 224.3557668 | AI137: 223.8834389 | AJ137: 151.1449376 | AK137: 103.9121446 | AL137: 129.8901808 | AM137: 174.7613341 | AN137: 155.395889 | AO137: 189.8758279 | AP137: 24.56105237 | AQ137: 84.54669949 | AR137: 0 | AS137: 67.54289401 | AT137: 6.140263092 | AU137: 36.36925062 | AV137: 33.53528304 | AW137: 110.0524077
A138: 2 | B138: =+B137+1 -> 103 | C138: GRAN CHIMU | E138: SAYAPULLO | F138: 00005288 | G138: PUESTO DE SALUD | H138: EL PORVENIR | I138: I-2 | J138: 1998.26459 | K138: 35.84331104 | L138: 52.67218268 | M138: 66.44125948 | N138: 77.36909821 | O138: 84.58147177 | P138: 74.96497369 | Q138: 73.21651949 | R138: 70.5938382 | S138: 66.87837303 | T138: 60.75878334 | U138: 51.14228526 | V138: 44.36702524 | W138: 38.68454911 | X138: 38.02887878 | Y138: 39.5587762 | Z138: 34.96908394 | AA138: 35.62475426 | AB138: 34.75052716 | AC138: 27.97526715 | AD138: 22.51134778 | AE138: 76.49487111 | AF138: 116.0536473 | AG138: 98.1319918 | AH138: 103.8144679 | AI138: 103.5959112 | AJ138: 69.93816787 | AK138: 48.08249041 | AL138: 60.10311302 | AM138: 80.8660066 | AN138: 71.90517885 | AO138: 87.85982339 | AP138: 11.36495228 | AQ138: 39.12166265 | AR138: 0 | AS138: 31.25361877 | AT138: 2.84123807 | AU138: 16.82887164 | AV138: 15.517531 | AW138: 50.92372848
A139: 3 | B139: =+B138+1 -> 104 | C139: GRAN CHIMU | E139: SAYAPULLO | F139: 00006962 | G139: PUESTO DE SALUD | H139: LA COLPA | I139: I-2 | J139: 2320.177277 | K139: 41.61752962 | L139: 61.15746731 | M139: 77.14468906 | N139: 89.83296029 | O139: 98.2072193 | P139: 87.04154062 | Q139: 85.01141722 | R139: 81.96623213 | S139: 77.65221991 | T139: 70.54678802 | U139: 59.38110934 | V139: 51.51438118 | W139: 44.91648014 | X139: 44.15518387 | Y139: 45.93154184 | Z139: 40.60246793 | AA139: 41.3637642 | AB139: 40.3487025 | AC139: 32.48197434 | AD139: 26.13783873 | AE139: 88.81789859 | AF139: 134.7494404 | AG139: 113.9406756 | AH139: 120.5385767 | AI139: 120.2848112 | AJ139: 81.20493585 | AK139: 55.8283934 | AL139: 69.78549175 | AM139: 93.89320708 | AN139: 83.48882467 | AO139: 102.0137007 | AP139: 13.19580208 | AQ139: 45.42401099 | AR139: 0 | AS139: 36.28845571 | AT139: 3.298950519 | AU139: 19.53993769 | AV139: 18.01734514 | AW139: 59.12734392
C140: JULCAN | D140: 3 | J140: 34195 | K140: =+K141+K147+K150+K158 -> 876 | L140: =+L141+L147+L150+L158 -> 895 | M140: 905 | N140: 913 | O140: 921 | P140: 804 | Q140: 800 | R140: 800 | S140: 787 | T140: 771 | U140: 713 | V140: 704 | W140: 682 | X140: 644 | Y140: 580 | Z140: 475 | AA140: 426 | AB140: 402 | AC140: 394 | AD140: 405 | AE140: 2549 | AF140: 2520 | AG140: 2504 | AH140: 2438 | AI140: 1834 | AJ140: 1745 | AK140: 1655 | AL140: 1120 | AM140: 953 | AN140: 991 | AO140: 706 | AP140: 422 | AQ140: 861 | AS140: 862 | AT140: 57 | AU140: 543 | AV140: 279 | AW140: 1026
D141: 1 | J141: 6280 | K141: =SUM(K142:K146) -> 207 | L141: =SUM(L142:L146) -> 202 | M141: 197 | N141: 193 | O141: 180 | P141: 154 | Q141: 150 | R141: 147 | S141: 142 | T141: 134 | U141: 125 | V141: 125 | W141: 121 | X141: 113 | Y141: 101 | Z141: 80 | AA141: 70 | AB141: 68 | AC141: 71 | AD141: 75 | AE141: 513 | AF141: 312 | AG141: 375 | AH141: 377 | AI141: 489 | AJ141: 263 | AK141: 309 | AL141: 126 | AM141: 237 | AN141: 336 | AO141: 140 | AP141: 25 | AQ141: 123 | AS141: 236 | AT141: 10 | AU141: 160 | AV141: 40 | AW141: 180
A142: 1 | B142: =+B139+1 -> 105 | C142: JULCAN | E142: CALAMARCA | F142: 00005308 | G142: CENTRO DE SALUD CON CAMAS DE INTERNAMIENTO | H142: CALAMARCA | I142: I-4 | J142: 2347.517073 | K142: 77.37834938 | L142: 75.50930712 | M142: 73.64026487 | N142: 72.14503106 | O142: 67.2855212 | P142: 57.56650147 | Q142: 56.07126767 | R142: 54.94984231 | S142: 53.08080006 | T142: 50.09033245 | U142: 46.72605639 | V142: 46.72605639 | W142: 45.23082258 | X142: 42.24035497 | Y142: 37.75465356 | Z142: 29.90467609 | AA142: 26.16659158 | AB142: 25.41897468 | AC142: 26.54040003 | AD142: 28.03563383 | AE142: 191.7637354 | AF142: 116.6282367 | AG142: 140.1781692 | AH142: 140.9257861 | AI142: 182.7923326 | AJ142: 98.31162264 | AK142: 115.5068114 | AL142: 47.09986484 | AM142: 88.59260291 | AN142: 125.5996396 | AO142: 52.33318315 | AP142: 9.345211278 | AQ142: 45.97843949 | AR142: 0 | AS142: 88.21879446 | AT142: 3.738084511 | AU142: 59.80935218 | AV142: 14.95233804 | AW142: 67.2855212
A143: 2 | B143: =+B142+1 -> 106 | C143: JULCAN | E143: CALAMARCA | F143: 00005309 | G143: CENTRO DE SALUD | H143: SICCHAL | I143: I-3 | J143: 2013.773705 | K143: 66.37757277 | L143: 64.77424975 | M143: 63.17092674 | N143: 61.88826833 | O143: 57.71962849 | P143: 49.38234882 | Q143: 48.09969041 | R143: 47.1376966 | S143: 45.53437359 | T143: 42.96905677 | U143: 40.08307534 | V143: 40.08307534 | W143: 38.80041693 | X143: 36.23510011 | Y143: 32.38712488 | Z143: 25.65316822 | AA143: 22.44652219 | AB143: 21.80519299 | AC143: 22.76718679 | AD143: 24.04984521 | AE143: 164.5009412 | AF143: 100.0473561 | AG143: 120.249226 | AH143: 120.8905552 | AI143: 156.8049907 | AJ143: 84.33479052 | AK143: 99.08536225 | AL143: 40.40373995 | AM143: 75.99751085 | AN143: 107.7433065 | AO143: 44.89304438 | AP143: 8.016615068 | AQ143: 39.44174614 | AR143: 0 | AS143: 75.67684625 | AT143: 3.206646027 | AU143: 51.30633644 | AV143: 12.82658411 | AW143: 57.71962849
A144: 3 | B144: =+B143+1 -> 107 | C144: JULCAN | E144: CALAMARCA | F144: 00007247 | G144: PUESTO DE SALUD | H144: BARRO NEGRO | I144: I-2 | J144: 588.3146348 | K144: 19.39189959 | L144: 18.92349622 | M144: 18.45509284 | N144: 18.08037015 | O144: 16.86252138 | P144: 14.42682385 | Q144: 14.05210115 | R144: 13.77105913 | S144: 13.30265576 | T144: 12.55321036 | U144: 11.71008429 | V144: 11.71008429 | W144: 11.33536159 | X144: 10.5859162 | Y144: 9.461748108 | Z144: 7.494453947 | AA144: 6.557647203 | AB144: 6.370285855 | AC144: 6.651327878 | AD144: 7.026050575 | AE144: 48.05818593 | AF144: 29.22837039 | AG144: 35.13025287 | AH144: 35.31761422 | AI144: 45.80984975 | AJ144: 24.63801735 | AK144: 28.94732837 | AL144: 11.80376497 | AM144: 22.20231982 | AN144: 31.47670658 | AO144: 13.11529441 | AP144: 2.342016858 | AQ144: 11.52272294 | AR144: 0 | AS144: 22.10863914 | AT144: 0.9368067433 | AU144: 14.98890789 | AV144: 3.747226973 | AW144: 16.86252138
A145: 4 | B145: =+B144+1 -> 108 | C145: JULCAN | E145: CALAMARCA | F145: 00007248 | G145: PUESTO DE SALUD | H145: CHAZKA | I145: I-1 | J145: 632.8032587 | K145: 20.85832397 | L145: 20.35449972 | M145: 19.85067547 | N145: 19.44761607 | O145: 18.13767302 | P145: 15.51778692 | Q145: 15.11472752 | R145: 14.81243297 | S145: 14.30860872 | T145: 13.50248992 | U145: 12.59560626 | V145: 12.59560626 | W145: 12.19254686 | X145: 11.38642806 | Y145: 10.17724986 | Z145: 8.061188009 | AA145: 7.053539508 | AB145: 6.852009808 | AC145: 7.154304358 | AD145: 7.557363759 | AE145: 51.69236811 | AF145: 31.43863324 | AG145: 37.78681879 | AH145: 37.98834849 | AI145: 49.27401171 | AJ145: 26.50115558 | AK145: 31.13633869 | AL145: 12.69637111 | AM145: 23.88126948 | AN145: 33.85698964 | AO145: 14.10707902 | AP145: 2.519121253 | AQ145: 12.39407656 | AR145: 0 | AS145: 23.78050463 | AT145: 1.007648501 | AU145: 16.12237602 | AV145: 4.030594005 | AW145: 18.13767302
A146: 5 | B146: =+B145+1 -> 109 | C146: JULCAN | E146: CALAMARCA | F146: 00016424 | G146: PUESTO DE SALUD | H146: HUAGAL | I146: I-1 | J146: 697.5913283 | K146: 22.99385429 | L146: 22.43844718 | M146: 21.88304008 | N146: 21.43871439 | O146: 19.99465591 | P146: 17.10653894 | Q146: 16.66221326 | R146: 16.32896899 | S146: 15.77356188 | T146: 14.88491051 | U146: 13.88517771 | V146: 13.88517771 | W146: 13.44085203 | X146: 12.55220065 | Y146: 11.21922359 | Z146: 8.886513737 | AA146: 7.77569952 | AB146: 7.553536676 | AC146: 7.886780941 | AD146: 8.331106628 | AE146: 56.98476934 | AF146: 34.65740357 | AG146: 41.65553314 | AH146: 41.87769598 | AI146: 54.31881522 | AJ146: 29.21441391 | AK146: 34.32415931 | AL146: 13.99625914 | AM146: 26.32629694 | AN146: 37.32335769 | AO146: 15.55139904 | AP146: 2.777035543 | AQ146: 13.66301487 | AR146: 0 | AS146: 26.21521552 | AT146: 1.110814217 | AU146: 17.77302747 | AV146: 4.443256868 | AW146: 19.99465591
J147: 6063.133911 | K147: =SUM(K148:K149) -> 219.7400079 | L147: =SUM(L148:L149) -> 197.7660071 | M147: 177.4823141 | N147: 165.6501598 | O147: 159.7340827 | P147: 132.6891586 | Q147: 130.153697 | R147: 130.153697 | S147: 129.3085431 | T147: 130.153697 | U147: 125.0827737 | V147: 126.7730815 | W147: 125.9279276 | X147: 119.1666966 | Y147: 103.9539268 | Z147: 87.89600316 | AA147: 76.90900277 | AB147: 71.83807951 | AC147: 67.61231013 | AD147: 69.30261788 | AE147: 440.3251697 | AF147: 594.1431752 | AG147: 416.6608611 | AH147: 349.048551 | AI147: 344.8227816 | AJ147: 353.2743204 | AK147: 241.7140087 | AL147: 92.12177255 | AM147: 209.5981614 | AN147: 155.5083133 | AO147: 137.7600819 | AP147: 43.94800158 | AQ147: 136.914928 | AS147: 241.7140087 | AT147: 10.14184652 | AU147: 179.1726218 | AV147: 37.18677057 | AW147: 190.1596222
A148: 1 | B148: =+B146+1 -> 110 | C148: JULCAN | E148: No pertenece a ninguna MR | F148: 00005310 | G148: CENTRO DE SALUD | H148: CARABAMBA | I148: I-3 | J148: 5510.495902 | K148: 199.7113095 | L148: 179.7401786 | M148: 161.3052884 | N148: 150.5516026 | O148: 145.1747596 | P148: 120.5949061 | Q148: 118.2905449 | R148: 118.2905449 | S148: 117.5224244 | T148: 118.2905449 | U148: 113.6818223 | V148: 115.2180632 | W148: 114.4499428 | X148: 108.3049794 | Y148: 94.4788118 | Z148: 79.8845238 | AA148: 69.89895833 | AB148: 65.2902358 | AC148: 61.44963369 | AD148: 62.98587454 | AE148: 400.1907394 | AF148: 539.9886561 | AG148: 378.6833676 | AH148: 317.2337339 | AI148: 313.3931318 | AJ148: 321.0743361 | AK148: 219.6824405 | AL148: 83.72512591 | AM148: 190.4938645 | AN148: 141.3341575 | AO148: 125.2036287 | AP148: 39.9422619 | AQ148: 124.4355082 | AR148: 0 | AS148: 219.6824405 | AT148: 9.217445054 | AU148: 162.8415293 | AV148: 33.79729853 | AW148: 172.8270948
A149: 2 | B149: =+B148+1 -> 111 | C149: JULCAN | E149: No pertenece a ninguna MR | F149: 00005311 | G149: PUESTO DE SALUD | H149: SAN JOSE DE SALO BAJO | I149: I-1 | J149: 552.638009 | K149: 20.0286984 | L149: 18.02582856 | M149: 16.17702563 | N149: 15.09855726 | O149: 14.55932307 | P149: 12.0942525 | Q149: 11.86315213 | R149: 11.86315213 | S149: 11.78611868 | T149: 11.86315213 | U149: 11.4009514 | V149: 11.55501831 | W149: 11.47798485 | X149: 10.86171721 | Y149: 9.475115014 | Z149: 8.011479361 | AA149: 7.010044441 | AB149: 6.547843709 | AC149: 6.162676432 | AD149: 6.316743342 | AE149: 40.13443026 | AF149: 54.15451914 | AG149: 37.97749351 | AH149: 31.81481708 | AI149: 31.4296498 | AJ149: 32.19998436 | AK149: 22.03156824 | AL149: 8.396646638 | AM149: 19.10429694 | AN149: 14.17415579 | AO149: 12.55645323 | AP149: 4.005739681 | AQ149: 12.47941977 | AR149: 0 | AS149: 22.03156824 | AT149: 0.9244014647 | AU149: 16.33109254 | AV149: 3.389472037 | AW149: 17.33252746
D150: 2 | J150: 7921 | K150: =SUM(K151:K157) -> 157 | L150: =SUM(L151:L157) -> 211 | M150: 249 | N150: 274 | O150: 295 | P150: 264 | Q150: 263 | R150: 260 | S150: 247 | T150: 227 | U150: 198 | V150: 180 | W150: 163 | X150: 154 | Y150: 145 | Z150: 120 | AA150: 111 | AB150: 104 | AC150: 99 | AD150: 97 | AE150: 539 | AF150: 645 | AG150: 534 | AH150: 565 | AI150: 299 | AJ150: 347 | AK150: 286 | AL150: 333 | AM150: 54 | AN150: 159 | AO150: 79 | AP150: 53 | AQ150: 210 | AS150: 132 | AT150: 14 | AU150: 67 | AV150: 73 | AW150: 244
A151: 1 | B151: =+B149+1 -> 112 | C151: JULCAN | E151: HUASO | F151: 00005312 | G151: CENTRO DE SALUD CON CAMAS DE INTERNAMIENTO | H151: HUASO | I151: I-4 | J151: 1338.586411 | K151: 26.53175945 | L151: 35.65733276 | M151: 42.0790325 | N151: 46.30383496 | O151: 49.85266903 | P151: 44.61391398 | Q151: 44.44492188 | R151: 43.93794558 | S151: 41.7410483 | T151: 38.36120634 | U151: 33.46043548 | V151: 30.41857771 | W151: 27.54571204 | X151: 26.02478315 | Y151: 24.50385427 | Z151: 20.27905181 | AA151: 18.75812292 | AB151: 17.57517823 | AC151: 16.73021774 | AD151: 16.39223354 | AE151: 91.08674103 | AF151: 108.9999035 | AG151: 90.24178054 | AH151: 95.48053559 | AI151: 50.52863742 | AJ151: 58.64025814 | AK151: 48.33174014 | AL151: 56.27436877 | AM151: 9.125573313 | AN151: 26.86974364 | AO151: 13.35037577 | AP151: 8.956581215 | AQ151: 35.48834066 | AR151: 0 | AS151: 22.30695699 | AT151: 2.365889378 | AU151: 11.32247059 | AV151: 12.33642318 | AW151: 41.23407201
A152: 2 | B152: =+B151+1 -> 113 | C152: JULCAN | E152: HUASO | F152: 00006771 | G152: CENTRO DE SALUD | H152: CANRAZ | I152: I-3 | J152: 1650.909119 | K152: 32.72222342 | L152: 43.9770009 | M152: 51.8970295 | N152: 57.10757463 | O152: 61.48443254 | P152: 55.02335658 | Q152: 54.81493478 | R152: 54.18966936 | S152: 51.48018589 | T152: 47.31174979 | U152: 41.26751744 | V152: 37.51592494 | W152: 33.97275425 | X152: 32.09695801 | Y152: 30.22116176 | Z152: 25.01061663 | AA152: 23.13482038 | AB152: 21.67586774 | AC152: 20.63375872 | AD152: 20.21691511 | AE152: 112.339353 | AF152: 134.4320644 | AG152: 111.297244 | AH152: 117.75832 | AI152: 62.31811976 | AJ152: 72.32236641 | AK152: 59.6086363 | AL152: 69.40446114 | AM152: 11.25477748 | AN152: 33.13906703 | AO152: 16.46532261 | AP152: 11.04635568 | AQ152: 43.7685791 | AR152: 0 | AS152: 27.51167829 | AT152: 2.917905273 | AU152: 13.96426095 | AV152: 15.21479178 | AW152: 50.85492048
A153: 3 | B153: 114 | C153: JULCAN | E153: HUASO | F153: 00006772 | G153: PUESTO DE SALUD | H153: LA VEGA | I153: I-2 | J153: 707.9658625 | K153: 14.0324 | L153: 18.85883058 | M153: 22.25520765 | N153: 24.48966625 | O153: 26.36661147 | P153: 23.59588281 | Q153: 23.50650446 | R153: 23.23836943 | S153: 22.07645096 | T153: 20.28888408 | U153: 17.6969121 | V153: 16.08810191 | W153: 14.56867007 | X153: 13.76426497 | Y153: 12.95985987 | Z153: 10.72540128 | AA153: 9.92099618 | AB153: 9.295347772 | AC153: 8.848456052 | AD153: 8.669699364 | AE153: 48.1749274 | AF153: 57.64903186 | AG153: 47.72803568 | AH153: 50.49876434 | AI153: 26.72412484 | AJ153: 31.01428535 | AK153: 25.56220637 | AL153: 29.76298854 | AM153: 4.826430574 | AN153: 14.21115669 | AO153: 7.060889173 | AP153: 4.73705223 | AQ153: 18.76945223 | AR153: 0 | AS153: 11.7979414 | AT153: 1.251296815 | AU153: 5.988349045 | AV153: 6.524619109 | AW153: 21.80831593
A154: 4 | B154: 115 | C154: JULCAN | E154: HUASO | F154: 00006770 | G154: PUESTO DE SALUD | H154: CHINCHINVARA | I154: I-2 | J154: 991.90353 | K154: 19.66025176 | L154: 26.42237657 | M154: 31.18090885 | N154: 34.31152218 | O154: 36.94123739 | P154: 33.05927685 | Q154: 32.93405232 | R154: 32.55837871 | S154: 30.93045978 | T154: 28.42596911 | U154: 24.79445764 | V154: 22.54041603 | W154: 20.41159896 | X154: 19.28457816 | Y154: 18.15755736 | Z154: 15.02694402 | AA154: 13.89992322 | AB154: 13.02335149 | AC154: 12.39722882 | AD154: 12.14677975 | AE154: 67.49602357 | AF154: 80.76982412 | AG154: 66.8699009 | AH154: 70.75186144 | AI154: 37.44213552 | AJ154: 43.45291313 | AK154: 35.81421659 | AL154: 41.69976966 | AM154: 6.76212481 | AN154: 19.91070083 | AO154: 9.892738148 | AP154: 6.636900276 | AQ154: 26.29715204 | AR154: 0 | AS154: 16.52963842 | AT154: 1.753143469 | AU154: 8.390043746 | AV154: 9.141390947 | AW154: 30.55478618
A155: 5 | B155: 116 | C155: JULCAN | E155: HUASO | F155: 00005313 | G155: PUESTO DE SALUD | H155: PARASIVE | I155: I-2 | J155: 943.2576531 | K155: 18.69605499 | L155: 25.12654524 | M155: 29.65170504 | N155: 32.62878386 | O155: 35.12953007 | P155: 31.43795233 | Q155: 31.31886918 | R155: 30.96161972 | S155: 29.41353874 | T155: 27.03187568 | U155: 23.57846425 | V155: 21.4349675 | W155: 19.4105539 | X155: 18.33880553 | Y155: 17.26705715 | Z155: 14.28997833 | AA155: 13.21822996 | AB155: 12.38464789 | AC155: 11.78923212 | AD155: 11.55106582 | AE155: 64.18581935 | AF155: 76.80863354 | AG155: 63.59040358 | AH155: 67.28198132 | AI155: 35.60586268 | AJ155: 41.32185401 | AK155: 34.05778169 | AL155: 39.65468987 | AM155: 6.43049025 | AN155: 18.93422129 | AO155: 9.407569069 | AP155: 6.311407097 | AQ155: 25.00746208 | AR155: 0 | AS155: 15.71897617 | AT155: 1.667164139 | AU155: 7.978571236 | AV155: 8.693070153 | AW155: 29.05628928
A156: 6 | B156: 117 | C156: JULCAN | E156: HUASO | F156: 00016422 | G156: PUESTO DE SALUD | H156: LA UNION | I156: I-1 | J156: 650.5329139 | K156: 12.89403705 | L156: 17.32892878 | M156: 20.44977851 | N156: 22.50296912 | O156: 24.22764924 | P156: 21.68169288 | Q156: 21.59956525 | R156: 21.35318238 | S156: 20.28552326 | T156: 18.64297077 | U156: 16.26126966 | V156: 14.78297241 | W156: 13.3868028 | X156: 12.64765418 | Y156: 11.90850556 | Z156: 9.855314943 | AA156: 9.116166323 | AB156: 8.541272951 | AC156: 8.130634828 | AD156: 7.966379579 | AE156: 44.26678962 | AF156: 52.97231782 | AG156: 43.8561515 | AH156: 46.40210786 | AI156: 24.55615973 | AJ156: 28.49828571 | AK156: 23.48850061 | AL156: 27.34849897 | AM156: 4.434891724 | AN156: 13.0582923 | AO156: 6.488082338 | AP156: 4.3527641 | AQ156: 17.24680115 | AR156: 0 | AS156: 10.84084644 | AT156: 1.149786743 | AU156: 5.502550843 | AV156: 5.99531659 | AW156: 20.03914038
A157: 7 | B157: 118 | C157: JULCAN | E157: HUASO | F157: 00005335 | G157: PUESTO DE SALUD | H157: UNINGAMBAL | I157: I-2 | J157: 1637.84451 | K157: 32.46327333 | L157: 43.62898518 | M157: 51.48633796 | N157: 56.655649 | O157: 60.99787027 | P157: 54.58792458 | Q157: 54.38115214 | R157: 53.76083481 | S157: 51.07279307 | T157: 46.93734424 | U157: 40.94094344 | V157: 37.21903949 | W157: 33.70390798 | X157: 31.84295601 | Y157: 29.98200403 | Z157: 24.81269299 | AA157: 22.95174102 | AB157: 21.50433393 | AC157: 20.47047172 | AD157: 20.05692683 | AE157: 111.450346 | AF157: 133.3682248 | AG157: 110.4164838 | AH157: 116.8264295 | AI157: 61.82496004 | AJ157: 71.75003723 | AK157: 59.1369183 | AL157: 68.85522305 | AM157: 11.16571185 | AN157: 32.87681821 | AO157: 16.33502289 | AP157: 10.9589394 | AQ157: 43.42221273 | AR157: 0 | AS157: 27.29396229 | AT157: 2.894814182 | AU157: 13.85375359 | AV157: 15.09438824 | AW157: 50.45247575
D158: 3 | J158: 13930.86609 | K158: =SUM(K159:K166) -> 292.2599921 | L158: =SUM(L159:L166) -> 284.2339929 | M158: 281.5176859 | N158: 280.3498402 | O158: 286.2659173 | P158: 253.3108414 | Q158: 256.846303 | R158: 262.846303 | S158: 268.6914569 | T158: 279.846303 | U158: 264.9172263 | V158: 272.2269185 | W158: 272.0720724 | X158: 257.8333034 | Y158: 230.0460732 | Z158: 187.1039968 | AA158: 168.0909972 | AB158: 158.1619205 | AC158: 156.3876899 | AD158: 163.6973821 | AE158: 1056.67483 | AF158: 968.8568248 | AG158: 1178.339139 | AH158: 1146.951449 | AI158: 701.1772184 | AJ158: 781.7256796 | AK158: 818.2859913 | AL158: 568.8782275 | AM158: 452.4018386 | AN158: 340.4916867 | AO158: 349.2399181 | AP158: 300.0519984 | AQ158: 391.085072 | AS158: 252.2859913 | AT158: 22.85815348 | AU158: 136.8273782 | AV158: 128.8132294 | AW158: 411.8403778
A159: 1 | B159: =+B157+1 -> 119 | C159: JULCAN | E159: JULCAN | F159: 00005306 | G159: HOSPITAL | H159: JULCAN | I159: II-1 | J159: 6029.349884 | K159: 118.517642 | L159: 116.6364096 | M159: 117.1067177 | N159: 117.5770258 | O159: 120.8691825 | P159: 107.7005556 | Q159: 109.5817881 | R159: 112.4036367 | S159: 115.2254853 | T159: 120.3988744 | U159: 113.814561 | V159: 117.1067177 | W159: 117.1067177 | X159: 110.9927124 | Y159: 99.23500979 | Z159: 80.42268566 | AA159: 72.4274479 | AB159: 68.19467497 | AC159: 67.72436687 | AD159: 71.01652359 | AE159: 459.0207088 | AF159: 404.4649688 | AG159: 518.2795298 | AH159: 509.3436758 | AI159: 300.0565699 | AJ159: 337.21091 | AK159: 364.0184719 | AL159: 259.610073 | AM159: 194.7075548 | AN159: 146.7361282 | AO159: 152.3798255 | AP159: 137.3299662 | AQ159: 172.1327658 | AR159: 0 | AS159: 97.82408548 | AT159: 9.876470169 | AU159: 48.91204274 | AV159: 57.3775886 | AW159: 177.3061549
A160: 2 | B160: =+B159+1 -> 120 | C160: JULCAN | E160: JULCAN | F160: 00006775 | G160: CENTRO DE SALUD | H160: AYANGAY | I160: I-3 | J160: 2043.525205 | K160: 40.1691382 | L160: 39.53153283 | M160: 39.69093417 | N160: 39.85033551 | O160: 40.96614491 | P160: 36.50290733 | Q160: 37.1405127 | R160: 38.09692075 | S160: 39.0533288 | T160: 40.80674357 | U160: 38.57512478 | V160: 39.69093417 | W160: 39.69093417 | X160: 37.61871672 | Y160: 33.63368317 | Z160: 27.25762949 | AA160: 24.54780668 | AB160: 23.1131946 | AC160: 22.95379326 | AD160: 24.06960265 | AE160: 155.5757098 | AF160: 137.0851542 | AG160: 175.6602789 | AH160: 172.6316534 | AI160: 101.6980562 | AJ160: 114.2907623 | AK160: 123.3766387 | AL160: 87.98954081 | AM160: 65.99215561 | AN160: 49.73321872 | AO160: 51.64603483 | AP160: 46.54519188 | AQ160: 58.34089119 | AR160: 0 | AS160: 33.15547915 | AT160: 3.347428183 | AU160: 16.57773957 | AV160: 19.44696373 | AW160: 60.09430595
A161: 3 | B161: 121 | C161: JULCAN | E161: JULCAN | F161: 00007249 | G161: PUESTO DE SALUD | H161: SAN AGUSTIN | I161: I-2 | J161: 729.3342343 | K161: 14.33636716 | L161: 14.10880578 | M161: 14.16569613 | N161: 14.22258647 | O161: 14.62081889 | P161: 13.02788921 | Q161: 13.25545059 | R161: 13.59679267 | S161: 13.93813474 | T161: 14.56392855 | U161: 13.76746371 | V161: 14.16569613 | W161: 14.16569613 | X161: 13.42612163 | Y161: 12.00386298 | Z161: 9.728249148 | AA161: 8.761113267 | AB161: 8.249100154 | AC161: 8.192209809 | AD161: 8.59044223 | AE161: 55.52497759 | AF161: 48.92569747 | AG161: 62.69316117 | AH161: 61.6122446 | AI161: 36.29604068 | AJ161: 40.79037801 | AK161: 44.03312772 | AL161: 31.40347093 | AM161: 23.5526032 | AN161: 17.74978792 | AO161: 18.43247207 | AP161: 16.611981 | AQ161: 20.8218666 | AR161: 0 | AS161: 11.83319195 | AT161: 1.194697264 | AU161: 5.916595973 | AV161: 6.940622199 | AW161: 21.4476604
A162: 4 | B162: 122 | C162: JULCAN | E162: JULCAN | F162: 00006963 | G162: PUESTO DE SALUD | H162: CHUGURPAMPA | I162: I-2 | J162: 729.3342343 | K162: 14.33636716 | L162: 14.10880578 | M162: 14.16569613 | N162: 14.22258647 | O162: 14.62081889 | P162: 13.02788921 | Q162: 13.25545059 | R162: 13.59679267 | S162: 13.93813474 | T162: 14.56392855 | U162: 13.76746371 | V162: 14.16569613 | W162: 14.16569613 | X162: 13.42612163 | Y162: 12.00386298 | Z162: 9.728249148 | AA162: 8.761113267 | AB162: 8.249100154 | AC162: 8.192209809 | AD162: 8.59044223 | AE162: 55.52497759 | AF162: 48.92569747 | AG162: 62.69316117 | AH162: 61.6122446 | AI162: 36.29604068 | AJ162: 40.79037801 | AK162: 44.03312772 | AL162: 31.40347093 | AM162: 23.5526032 | AN162: 17.74978792 | AO162: 18.43247207 | AP162: 16.611981 | AQ162: 20.8218666 | AR162: 0 | AS162: 11.83319195 | AT162: 1.194697264 | AU162: 5.916595973 | AV162: 6.940622199 | AW162: 21.4476604
A163: 5 | B163: 123 | C163: JULCAN | E163: JULCAN | F163: 00006774 | G163: PUESTO DE SALUD | H163: PARUQUE BAJO | I163: I-2 | J163: 1120.946352 | K163: 22.03420286 | L163: 21.68445361 | M163: 21.77189092 | N163: 21.85932824 | O163: 22.47138943 | P163: 20.02314466 | Q163: 20.37289392 | R163: 20.89751779 | S163: 21.42214167 | T163: 22.38395211 | U163: 21.15982973 | V163: 21.77189092 | W163: 21.77189092 | X163: 20.63520585 | Y163: 18.44927303 | Z163: 14.95178051 | AA163: 13.46534619 | AB163: 12.67841038 | AC163: 12.59097306 | AD163: 13.20303425 | AE163: 85.33881743 | AF163: 75.19608913 | AG163: 96.35591886 | AH163: 94.69460992 | AI163: 55.78500566 | AJ163: 62.69255338 | AK163: 67.67648022 | AL163: 48.26539674 | AM163: 36.19904756 | AN163: 27.28044164 | AO163: 28.32968939 | AP163: 25.53169538 | AQ163: 32.00205654 | AR163: 0 | AS163: 18.18696109 | AT163: 1.836183572 | AU163: 9.093480546 | AV163: 10.66735218 | AW163: 32.96386698
A164: 6 | B164: 124 | C164: JULCAN | E164: JULCAN | F164: 00005307 | G164: PUESTO DE SALUD | H164: SANTA TERESA | I164: I-2 | J164: 921.3295253 | K164: 18.11037756 | L164: 17.82291125 | M164: 17.89477783 | N164: 17.96664441 | O164: 18.46971045 | P164: 16.45744628 | Q164: 16.74491259 | R164: 17.17611206 | S164: 17.60731152 | T164: 18.39784388 | U164: 17.39171179 | V164: 17.89477783 | W164: 17.89477783 | X164: 16.96051232 | Y164: 15.16384788 | Z164: 12.28918478 | AA164: 11.06745296 | AB164: 10.42065376 | AC164: 10.34878718 | AD164: 10.85185322 | AE164: 70.14177978 | AF164: 61.80525677 | AG164: 79.19696856 | AH164: 77.83150358 | AI164: 45.85087653 | AJ164: 51.52833617 | AK164: 55.62473109 | AL164: 39.67035086 | AM164: 29.75276314 | AN164: 22.42237222 | AO164: 23.28477115 | AP164: 20.98504067 | AQ164: 26.30316742 | AR164: 0 | AS164: 14.94824815 | AT164: 1.50919813 | AU164: 7.474124074 | AV164: 8.767722472 | AW164: 27.09369977
A165: 7 | B165: 125 | C165: JULCAN | E165: JULCAN | F165: 00016423 | G165: PUESTO DE SALUD | H165: SAN ANTONIO | I165: I-2 | J165: 1246.180565 | K165: 24.49590502 | L165: 24.10708113 | M165: 24.2042871 | N165: 24.30149308 | O165: 24.98193488 | P165: 22.26016766 | Q165: 22.64899155 | R165: 23.23222738 | S165: 23.81546321 | T165: 24.88472891 | U165: 23.5238453 | V165: 24.2042871 | W165: 24.2042871 | X165: 22.94060946 | Y165: 20.51046016 | Z165: 16.62222126 | AA165: 14.96971973 | AB165: 14.09486598 | AC165: 13.99766001 | AD165: 14.67810182 | AE165: 94.87302897 | AF165: 83.59713618 | AG165: 107.1209815 | AH165: 105.274068 | AI165: 62.01741033 | AJ165: 69.69668214 | AK165: 75.23742256 | AL165: 53.65769671 | AM165: 40.24327253 | AN165: 30.32826336 | AO165: 31.49473503 | AP165: 28.38414391 | AQ165: 35.57738586 | AR165: 0 | AS165: 20.21884224 | AT165: 2.041325418 | AU165: 10.10942112 | AV165: 11.85912862 | AW165: 36.64665156
A166: 8 | B166: 126 | C166: JULCAN | E166: JULCAN | F166: 00006773 | G166: PUESTO DE SALUD | H166: VILLA MARIA | I166: I-2 | J166: 1110.866089 | K166: 40.25999209 | L166: 36.23399288 | M166: 32.51768592 | N166: 30.34984019 | O166: 29.26591733 | P166: 24.31084138 | Q166: 23.84630301 | R166: 23.84630301 | S166: 23.69145688 | T166: 23.84630301 | U166: 22.91722627 | V166: 23.22691851 | W166: 23.07207239 | X166: 21.8333034 | Y166: 19.04607318 | Z166: 16.10399684 | AA166: 14.09099723 | AB166: 13.16192049 | AC166: 12.38768987 | AD166: 12.69738212 | AE166: 80.67483031 | AF166: 108.8568248 | AG166: 76.33913885 | AH166: 63.95144898 | AI166: 63.17721836 | AJ166: 64.72567959 | AK166: 44.2859913 | AL166: 16.87822745 | AM166: 38.40183861 | AN166: 28.49168671 | AO166: 25.23991812 | AP166: 8.051998418 | AQ166: 25.085072 | AR166: 0 | AS166: 44.2859913 | AT166: 1.858153481 | AU166: 32.82737817 | AV166: 6.813229431 | AW166: 34.84037777
C167: OTUZCO | D167: 4 | J167: 98210.47338 | K167: =+K168+K170+K189+K196+K205+K216 -> 1937.028454 | L167: =+L168+L170+L189+L196+L205+L216 -> 2091.444252 | M167: 2155.295286 | N167: 2241.432589 | O167: 2288.287511 | P167: 2014.730521 | Q167: 2034.444252 | R167: 2039.871713 | S167: 2026.730521 | T167: 2025.016791 | U167: 1871.310836 | V167: 1870.742184 | W167: 1817.459802 | X167: 1725.471464 | Y167: 1605.769396 | Z167: 1326.502564 | AA167: 1220.227957 | AB167: 1161.949463 | AC167: 1146.808271 | AD167: 1160.949463 | AE167: 7223.787429 | AF167: 6804.431184 | AG167: 7405.552938 | AH167: 6789.78867 | AI167: 5474.656659 | AJ167: 4919.602234 | AK167: 4454.656659 | AL167: 4653.699421 | AM167: 3393.836725 | AN167: 3891.468818 | AO167: 2137.361373 | AP167: 2563.95335 | AQ167: 2736.204632 | AS167: 1808.032341 | AT167: 165.2784946 | AU167: 1068.220182 | AV167: 722.2473947 | AW167: 2461.154095
J168: 6081.527213 | K168: =+K169 -> 95.58074203 | L168: =+L169 -> 107.3258332 | M168: 115.8308992 | N168: 121.9059464 | O168: 123.9309621 | P168: 107.5283348 | Q168: 107.1233316 | R168: 105.0983159 | S168: 101.6557892 | T168: 99.4282719 | U168: 89.3031933 | V168: 86.26566971 | W168: 82.82314299 | X168: 82.41813984 | Y168: 83.22814613 | Z168: 74.11557539 | AA168: 74.92558168 | AB168: 76.9505974 | AC168: 78.16560683 | AD168: 79.78561941 | AE168: 489.4462998 | AF168: 446.3134649 | AG168: 521.4415482 | AH168: 396.9030813 | AI168: 363.4903219 | AJ168: 348.9102087 | AK168: 268.1120815 | AL168: 314.687443 | AM168: 243.8118928 | AN168: 268.1120815 | AO168: 125.5509747 | AP168: 197.4390328 | AQ168: 203.9190831 | AS168: 80.19062255 | AT168: 7.897561312 | AU168: 42.120327 | AV168: 43.94284115 | AW168: 137.701069
A169: 1 | B169: =+B166+1 -> 127 | C169: OTUZCO | E169: NO ESTA ASIGNADO A MICRORED | F169: 00005314 | G169: HOSPITAL DE APOYO | H169: OTUZCO | I169: II-1 | J169: 6081.527213 | K169: 95.58074203 | L169: 107.3258332 | M169: 115.8308992 | N169: 121.9059464 | O169: 123.9309621 | P169: 107.5283348 | Q169: 107.1233316 | R169: 105.0983159 | S169: 101.6557892 | T169: 99.4282719 | U169: 89.3031933 | V169: 86.26566971 | W169: 82.82314299 | X169: 82.41813984 | Y169: 83.22814613 | Z169: 74.11557539 | AA169: 74.92558168 | AB169: 76.9505974 | AC169: 78.16560683 | AD169: 79.78561941 | AE169: 489.4462998 | AF169: 446.3134649 | AG169: 521.4415482 | AH169: 396.9030813 | AI169: 363.4903219 | AJ169: 348.9102087 | AK169: 268.1120815 | AL169: 314.687443 | AM169: 243.8118928 | AN169: 268.1120815 | AO169: 125.5509747 | AP169: 197.4390328 | AQ169: 203.9190831 | AR169: 0 | AS169: 80.19062255 | AT169: 7.897561312 | AU169: 42.120327 | AV169: 43.94284115 | AW169: 137.701069
D170: 1 | J170: 20987 | K170: =SUM(K171:K188) -> 416 | L170: =SUM(L171:L188) -> 431 | M170: 434 | N170: 456 | O170: 465 | P170: 414 | Q170: 420 | R170: 433 | S170: 439 | T170: 444 | U170: 417 | V170: 427 | W170: 423 | X170: 406 | Y170: 376 | Z170: 320 | AA170: 300 | AB170: 284 | AC170: 272 | AD170: 259 | AE170: 1505 | AF170: 1667 | AG170: 1495 | AH170: 1223 | AI170: 1396 | AJ170: 1228 | AK170: 1086 | AL170: 826 | AM170: 519 | AN170: 651 | AO170: 483 | AP170: 485 | AQ170: 587 | AS170: 390 | AT170: 33 | AU170: 212 | AV170: 164 | AW170: 582
A171: 1 | B171: =+B169+1 -> 128 | C171: OTUZCO | E171: CLAS AGALLPAMPA | F171: 00005318 | G171: CENTRO DE SALUD CON CAMAS DE INTERNAMIENTO | H171: AGALLPAMPA | I171: I-4 | J171: 1165.69746 | K171: 31.81777162 | L171: 29.8360419 | M171: 28.40479266 | N171: 27.63411999 | O171: 28.07450437 | P171: 24.22114102 | Q171: 24.7716215 | R171: 25.76248636 | S171: 26.64325513 | T171: 27.96440827 | U171: 27.08363951 | V171: 28.73508094 | W171: 29.06536923 | X171: 27.63411999 | Y171: 25.43219808 | Z171: 20.91825816 | AA171: 19.04662453 | AB171: 17.72547139 | AC171: 16.73460653 | AD171: 16.40431824 | AE171: 96.55427581 | AF171: 103.2701376 | AG171: 87.52639597 | AH171: 68.25957925 | AI171: 62.86487057 | AJ171: 66.71823391 | AK171: 48.77257034 | AL171: 34.12978963 | AM171: 18.16585577 | AN171: 23.12018007 | AO171: 16.18412605 | AP171: 16.18412605 | AQ171: 20.03748939 | AR171: 0 | AS171: 31.59757943 | AT171: 1.871633625 | AU171: 18.27595186 | AV171: 10.67932127 | AW171: 33.46921305
A172: 2 | B172: =+B171+1 -> 129 | C172: OTUZCO | E172: CLAS AGALLPAMPA | F172: 00005319 | G172: PUESTO DE SALUD | H172: CHOTA | I172: I-2 | J172: 2450.258604 | K172: 66.87993355 | L172: 62.71440136 | M172: 59.70596144 | N172: 58.08603225 | O172: 59.01170607 | P172: 50.91206014 | Q172: 52.06915242 | R172: 54.15191852 | S172: 56.00326616 | T172: 58.78028762 | U172: 56.92893998 | V172: 60.40021681 | W172: 61.09447217 | X172: 58.08603225 | Y172: 53.45766315 | Z172: 43.96950649 | AA172: 40.03539275 | AB172: 37.25837129 | AC172: 35.17560519 | AD172: 34.48134982 | AE172: 202.9539852 | AF172: 217.070511 | AG172: 183.9776719 | AH172: 143.4794422 | AI172: 132.1399379 | AJ172: 140.2395838 | AK172: 102.5183757 | AL172: 71.73972111 | AM172: 38.18404511 | AN172: 48.59787559 | AO172: 34.01851291 | AP172: 34.01851291 | AQ172: 42.11815885 | AR172: 0 | AS172: 66.41709664 | AT172: 3.934113738 | AU172: 38.41546356 | AV172: 22.44759015 | AW172: 70.35121038
